Workbook

Sheet instrukcja
A1: Instrukcja:
A2: Pierwszą czynnością, od której należy zacząć jest odblokowanie możliwości korzystania z makr !!!
A3: Bez możliwości korzystania z makr arkusz nie będzie działał poprawnie.
A4: Działa w wersji: Excel 2007, Excel 2010, Excel 2013, Excel 2016
A6: Aplikacja służy do wstępnego wyszukania najbliższej gminy i powiatu prowadzącej szkołę danego typu i rodzaju.
A7: Po wyznaczeniu gminy/powiatu /województwa za pomocą aplikacji należy zweryfikować aktualność danych w zakresie prowadzenia szkoły/placówki danego typu i rodzaju.
A9: Krok 1: Przejdź do zakładki "panel" i wpisz TERYT swojego JST (6-cyfrowy dla gminy, 4-cyfrowy dla powiatu i 2-cyfrowy dla województwa).
A10: Krok 2: Korzystając z rozwijanych list wyboru dokonaj wstępnego wyboru szkoły lub placówki zaznaczając: typ szkoły/placówki, specyfikę, kategorię uczniów, tryb nauki.
A11: Krok 3: W zależności od rodzaju JST korzystaj z przycisków wyszukiwania odpowiednio w sekcji: wyszukiwanie dla gmin, wyszukiwanie dla powiatów, wyszukiwanie dla województwa.
A12: Krok 4: W przypadku pomyślnego wyszukania arkusz zwraca listę szkół lub placówek z dodatkowymi charakterystykami oraz informacją o wskaźniku dochodów na rok 2017.
A13: Wyliczona jest również wartość bezwzględna różnicy pomiędzy wskaźnikiem dochodów podatkowych na jednego mieszkańca w JST dotującym i wskaźnikiem dochodów podatkowych na jednego mieszkańca w JST spełniającym warunki
A14: (w liście gmin pojawia się również gmina, której TERYT wpisano w krok 1).
A15: Uwaga: W przypadku miast na prawach powiatu wyszukiwanie należy prowadzić odrębnie dla części powiatowej (wpisujemy 4-cyfrowy kod TERYT i wyszukujemy w sekcji wyszukiwania dla powiatów)
A16: i odrębnie dla części miejskiej gminnej (wpisujemy 6-cyfrowy kod TERYT i wyszukujemy w sekcji wyszukiwania dla gmin)
A17: Krok 5: W otrzymanej liście za pomocą filtrów wybrać przedszkole/szkołę/placówkę danego typu i rodzaju.
A19: Informacje czy szkoła posiada dany rodzaj oddziału znajdują się na liście wynikowej w kolumnach o nazwach:
A20: Czy_Integracyjne
A21: Czy_Specjalne
A22: Czy_Sportowe
A23: Czy_Msportowego
A24: Czy_Dwujezyczne
A25: Czy_Mniejszosci
A26: Czy_Miedzynarodowe
A27: Czy_Terapeutyczne
A28: Czy_Medyczne
A29: Czy_Pleczniczym
A31: Kolumny:
A32: Wskaźnik dochodów - wskaźnik dochodów JST będącego organem prowadzącym szkoły lub placówki
A33: Różnica wsk. Doch - wartość bezwzględna różnicy pomiędzy wskaźnikiem dochodów podatkowych na jednego mieszkańca w JST dotującym i wskaźnikiem dochodów podatkowych na jednego mieszkańca w JST spełniającym warunki
A35: Włączanie makr:
A36: Office 2007/Office 2010
A37: Office 2013/Office 2016
A39: Szkoły wielotrybowe:
A40: Legenda tłumacząca skróty w kolumnach: Tryb nauki i Czy_medyczne
A41: D | B41: dzienna
A42: W | B42: wieczorowa
A43: Z | B43: zaoczna
A44: S | B44: stacjonarna
A46: przykład:DZS (dzienna, zaoczna, stacjonarna)
B47: DZ (dzienna, zaoczna)

Sheet panel
B1: inne woj | C1: =A21&A12&A25&A26&A27&A28&A29 -> 
B2: szkoła typ ustawienia | C2: =A25&A26&A27&A28&A29 -> 
B3: gmina_typ powiat | C3: =A14&A13&A12 ->  | D3: =C3&$C$2 -> 
B4: gmina_typ woj. | C4: =A16&A13&A12 ->  | D4: =C4&$C$2 -> 
B5: gmina_typ inne woj. | C5: =A21&A13&A12 -> 
B6: powiat_typ woj. | C6: =A16&A15&A12 -> 
B7: powiat_typ inne woj. | C7: =A21&A15&A12 -> 
I8: Organ założycielski | J8: =IFERROR(VLOOKUP(A12,JST_listy!S2:T5,2,0),"") -> 
A9: =LEN(C9) -> 0 | B9: Wpisz TERYT: | F9: =IF(AND(C11="",C9<>""),"błędny TERYT - wpisz ponownie. (6-cyfrowy dla gminy, 4-cyfrowy dla powiatu i 2-cyfrowy dla województwa)","") ->  | I9: Typ jednostki | J9: =C12 -> 
F10: Wyszukiwanie dla gminy: | G10: Wykaz wszystkich szkół i placówek: | I10: Podtyp jednostki | J10: =IF(C12="Gmina",C13,IF(C12="Powiat",C15,"")) -> 
B11: Nazwa JST | C11: =IFERROR(VLOOKUP($C$9,slownik_JST!B:J,7,0),"") ->  | I11: Kryterium wyboru szkoły lub placówki | J11: =C25&", "&C26&", "&C27&", "&C28&", "&C29 -> , , publiczna, ,
A12: =VLOOKUP(C12,JST_listy!Q2:S5,3,0) ->  | B12: Typ jednostki | C12: =IFERROR(VLOOKUP($C$9,slownik_JST!B:J,8,0),"") ->  | I12: Rozkład w województwach: | J12: =SUM(J13:J33) -> 0
A13: =VLOOKUP(C13,JST_listy!$G$1:$H$5,2,0) ->  | B13: Podtyp gminy | C13: =IFERROR(IF(OR(LEN(C9)=2,LEN(C9)=4),"",VLOOKUP($C$9,slownik_JST!B:J,9,0)),"") ->  | I13: dolnośląskie | J13: =U13 -> n/a | S13: 02 | T13: =S13&IF(LEN($C$9)=6,$A$13&$A$12&$C$2,IF(LEN($C$9)=4,$A$15&$A$12&$C$2,IF(LEN($C$9)=2,$A$12&$C$2,"n/a"))) -> 02n/a | U13: =IFERROR(IF(LEN($C$9)=2,VLOOKUP($T13,liczba_placówek!A:B,2,0),IF(LEN($C$9)=4,VLOOKUP($T13,liczba_placówek!E:F,2,0),IF(LEN($C$9)=6,VLOOKUP($T13,liczba_placówek!I:J,2,0),"n/a"))),0) -> n/a
A14: =IF(LEN(C9)=6,LEFT(C9,4),"") ->  | B14: Powiat | C14: =IFERROR(IF($C$12="Gmina",VLOOKUP(LEFT($C$9,4),slownik_JST!A:H,8,0),""),"") ->  | G14: Szkoły wielotrybowe: | I14: kujawsko-pomorskie | J14: =U14 -> n/a | S14: 04 | T14: =S14&IF(LEN($C$9)=6,$A$13&$A$12&$C$2,IF(LEN($C$9)=4,$A$15&$A$12&$C$2,IF(LEN($C$9)=2,$A$12&$C$2,"n/a"))) -> 04n/a | U14: =IFERROR(IF(LEN($C$9)=2,VLOOKUP($T14,liczba_placówek!A:B,2,0),IF(LEN($C$9)=4,VLOOKUP($T14,liczba_placówek!E:F,2,0),IF(LEN($C$9)=6,VLOOKUP($T14,liczba_placówek!I:J,2,0),"n/a"))),0) -> n/a
A15: =VLOOKUP(C15,JST_listy!$D$1:$E$3,2,0) ->  | B15: Typ powiatu | C15: =IFERROR(IF(OR(LEN($C$9)=4,LEN($C$9)=6),VLOOKUP(LEFT(C9,4),slownik_JST!B:J,9,0),""),"") ->  | I15: lubelskie | J15: n/a | S15: 06 | T15: 06n/a | U15: =IFERROR(IF(LEN($C$9)=2,VLOOKUP($T15,liczba_placówek!A:B,2,0),IF(LEN($C$9)=4,VLOOKUP($T15,liczba_placówek!E:F,2,0),IF(LEN($C$9)=6,VLOOKUP($T15,liczba_placówek!I:J,2,0),"n/a"))),0) -> n/a
A16: =VLOOKUP(C16,JST_listy!$A$1:$B$16,2,0) ->  | B16: Województwo | C16: =IFERROR(IF(OR($C$12="Gmina",$C$12="Powiat",$C$12="Miasto na prawach powiatu"),VLOOKUP(LEFT($C$9,2),slownik_JST!A:H,8,0),""),0) ->  | I16: lubuskie | J16: n/a | S16: 08 | T16: 08n/a | U16: =IFERROR(IF(LEN($C$9)=2,VLOOKUP($T16,liczba_placówek!A:B,2,0),IF(LEN($C$9)=4,VLOOKUP($T16,liczba_placówek!E:F,2,0),IF(LEN($C$9)=6,VLOOKUP($T16,liczba_placówek!I:J,2,0),"n/a"))),0) -> n/a
B17: Wskaźnik dochodów | C17: =IFERROR(VLOOKUP($C$9,wsk_doch!B:D,3,0),"") ->  | F17: Wyszukiwanie dla powiatu: | G17: Młodociani pracownicy: | I17: łódzkie | J17: n/a | S17: 10 | T17: 10n/a | U17: =IFERROR(IF(LEN($C$9)=2,VLOOKUP($T17,liczba_placówek!A:B,2,0),IF(LEN($C$9)=4,VLOOKUP($T17,liczba_placówek!E:F,2,0),IF(LEN($C$9)=6,VLOOKUP($T17,liczba_placówek!I:J,2,0),"n/a"))),0) -> n/a
I18: małopolskie | J18: n/a | S18: 12 | T18: 12n/a | U18: =IFERROR(IF(LEN($C$9)=2,VLOOKUP($T18,liczba_placówek!A:B,2,0),IF(LEN($C$9)=4,VLOOKUP($T18,liczba_placówek!E:F,2,0),IF(LEN($C$9)=6,VLOOKUP($T18,liczba_placówek!I:J,2,0),"n/a"))),0) -> n/a
A19: =VLOOKUP(C19,JST_listy!$G$1:$H$5,2,0) ->  | B19: Typ gminy | C19: =C13 ->  | J19: n/a | U19: =IFERROR(IF(LEN($C$9)=2,VLOOKUP($T19,liczba_placówek!A:B,2,0),IF(LEN($C$9)=4,VLOOKUP($T19,liczba_placówek!E:F,2,0),IF(LEN($C$9)=6,VLOOKUP($T19,liczba_placówek!I:J,2,0),"n/a"))),0) -> n/a
A20: =VLOOKUP(C20,JST_listy!$D$1:$E$3,2,0) ->  | B20: Typ powiatu | C20: =C15 ->  | J20: n/a | U20: =IFERROR(IF(LEN($C$9)=2,VLOOKUP($T20,liczba_placówek!A:B,2,0),IF(LEN($C$9)=4,VLOOKUP($T20,liczba_placówek!E:F,2,0),IF(LEN($C$9)=6,VLOOKUP($T20,liczba_placówek!I:J,2,0),"n/a"))),0) -> n/a
A21: =VLOOKUP(C21,JST_listy!$A$1:$B$17,2,0) -> * | B21: Województwo | C21: wszystkie województwa | J21: n/a | U21: =IFERROR(IF(LEN($C$9)=2,VLOOKUP($T21,liczba_placówek!A:B,2,0),IF(LEN($C$9)=4,VLOOKUP($T21,liczba_placówek!E:F,2,0),IF(LEN($C$9)=6,VLOOKUP($T21,liczba_placówek!I:J,2,0),"n/a"))),0) -> n/a
J22: n/a | U22: =IFERROR(IF(LEN($C$9)=2,VLOOKUP($T22,liczba_placówek!A:B,2,0),IF(LEN($C$9)=4,VLOOKUP($T22,liczba_placówek!E:F,2,0),IF(LEN($C$9)=6,VLOOKUP($T22,liczba_placówek!I:J,2,0),"n/a"))),0) -> n/a
I23: mazowieckie | J23: n/a | S23: 14 | T23: =S23&IF(LEN($C$9)=6,$A$13&$A$12&$C$2,IF(LEN($C$9)=4,$A$15&$A$12&$C$2,IF(LEN($C$9)=2,$A$12&$C$2,"n/a"))) -> 14n/a | U23: =IFERROR(IF(LEN($C$9)=2,VLOOKUP($T23,liczba_placówek!A:B,2,0),IF(LEN($C$9)=4,VLOOKUP($T23,liczba_placówek!E:F,2,0),IF(LEN($C$9)=6,VLOOKUP($T23,liczba_placówek!I:J,2,0),"n/a"))),0) -> n/a
C24: Ustaw zakres wyboru: | I24: opolskie | J24: n/a | S24: 16 | T24: 16n/a | U24: =IFERROR(IF(LEN($C$9)=2,VLOOKUP($T24,liczba_placówek!A:B,2,0),IF(LEN($C$9)=4,VLOOKUP($T24,liczba_placówek!E:F,2,0),IF(LEN($C$9)=6,VLOOKUP($T24,liczba_placówek!I:J,2,0),"n/a"))),0) -> n/a
A25: =VLOOKUP(C25,listy_plac!J2:K52,2,0) ->  | B25: Typ szkoły/placówki | I25: podkarpackie | J25: n/a | S25: 18 | T25: 18n/a | U25: =IFERROR(IF(LEN($C$9)=2,VLOOKUP($T25,liczba_placówek!A:B,2,0),IF(LEN($C$9)=4,VLOOKUP($T25,liczba_placówek!E:F,2,0),IF(LEN($C$9)=6,VLOOKUP($T25,liczba_placówek!I:J,2,0),"n/a"))),0) -> n/a
A26: =VLOOKUP(C26,'S8'!$B$4:$C$6,2,0) ->  | B26: Specyfika | F26: Wyszukiwanie dla województwa: | I26: podlaskie | J26: n/a | S26: 20 | T26: 20n/a | U26: =IFERROR(IF(LEN($C$9)=2,VLOOKUP($T26,liczba_placówek!A:B,2,0),IF(LEN($C$9)=4,VLOOKUP($T26,liczba_placówek!E:F,2,0),IF(LEN($C$9)=6,VLOOKUP($T26,liczba_placówek!I:J,2,0),"n/a"))),0) -> n/a
A27: =VLOOKUP(C27,'S4'!$B$4:$E$7,4,0) -> 001 | B27: Publiczność | C27: publiczna | S27: 22 | T27: 22n/a | U27: =IFERROR(IF(LEN($C$9)=2,VLOOKUP($T27,liczba_placówek!A:B,2,0),IF(LEN($C$9)=4,VLOOKUP($T27,liczba_placówek!E:F,2,0),IF(LEN($C$9)=6,VLOOKUP($T27,liczba_placówek!I:J,2,0),"n/a"))),0) -> n/a
A28: =VLOOKUP(C28,'S7'!$B$4:$C$6,2,0) ->  | B28: Kategoria uczniów | I28: pomorskie | J28: =U27 -> n/a | S28: 24 | T28: 24n/a | U28: =IFERROR(IF(LEN($C$9)=2,VLOOKUP($T28,liczba_placówek!A:B,2,0),IF(LEN($C$9)=4,VLOOKUP($T28,liczba_placówek!E:F,2,0),IF(LEN($C$9)=6,VLOOKUP($T28,liczba_placówek!I:J,2,0),"n/a"))),0) -> n/a
A29: =VLOOKUP(C29,'S6'!$B$4:$E$10,4,0) ->  | B29: Tryb nauki | I29: śląskie | J29: n/a | S29: 26 | T29: 26n/a | U29: =IFERROR(IF(LEN($C$9)=2,VLOOKUP($T29,liczba_placówek!A:B,2,0),IF(LEN($C$9)=4,VLOOKUP($T29,liczba_placówek!E:F,2,0),IF(LEN($C$9)=6,VLOOKUP($T29,liczba_placówek!I:J,2,0),"n/a"))),0) -> n/a
I30: świętokrzyskie | J30: n/a | S30: 28 | T30: 28n/a | U30: =IFERROR(IF(LEN($C$9)=2,VLOOKUP($T30,liczba_placówek!A:B,2,0),IF(LEN($C$9)=4,VLOOKUP($T30,liczba_placówek!E:F,2,0),IF(LEN($C$9)=6,VLOOKUP($T30,liczba_placówek!I:J,2,0),"n/a"))),0) -> n/a
I31: warmińsko-mazurskie | J31: n/a | S31: 30 | T31: 30n/a | U31: =IFERROR(IF(LEN($C$9)=2,VLOOKUP($T31,liczba_placówek!A:B,2,0),IF(LEN($C$9)=4,VLOOKUP($T31,liczba_placówek!E:F,2,0),IF(LEN($C$9)=6,VLOOKUP($T31,liczba_placówek!I:J,2,0),"n/a"))),0) -> n/a
B32: Znaleziono: | C32: =COUNTA($B$35:$B$70034) -> 0 | I32: wielkopolskie | J32: n/a | S32: 32 | T32: 32n/a | U32: =IFERROR(IF(LEN($C$9)=2,VLOOKUP($T32,liczba_placówek!A:B,2,0),IF(LEN($C$9)=4,VLOOKUP($T32,liczba_placówek!E:F,2,0),IF(LEN($C$9)=6,VLOOKUP($T32,liczba_placówek!I:J,2,0),"n/a"))),0) -> n/a
I33: zachodniopomorskie | J33: n/a
B34: TERYT | C34: WK | D34: PK | E34: GK | F34: Gmina typ | G34: Powiat typ | H34: województwo | I34: powiat | J34: gmina | K34: Organ prowadzący Nazwa | L34: Typ szkoły | M34: Złożoność | N34: Publiczność | O34: Kateg. Uczniów | P34: Specyfika szkoły | Q34: Tryb nauki | R34: Nazwa szkoły/placówki | S34: Miejscowość | T34: Ulica | U34: Dom/lokal | V34: Kod poczt. | W34: Poczta | X34: Klasa_Wlk_Miejscowości | Y34: Czy_Integracyjne | Z34: Czy_Specjalne | AA34: Czy_Sportowe | AB34: Czy_MSportowego | AC34: Czy_Dwujezyczne | AD34: Czy_Mniejszosci | AE34: Czy_Miedzynarodowe | AF34: Czy_Terapeutyczne | AG34: Czy_Medyczne | AH34: Czy_PLeczniczym | AI34: Wskaźnik dochodów | AJ34: Różnica wsk. doch.
CA90464: 00001 | CB90464: Przedszkole | CC90464: PUBL_00001 | CD90464: KATU_00001 | CE90464: SPEC_00001 | CF90464: TRYB_00001
CA90465: 00101 | CB90465: Oddział przedszkolny przy szkole podstawowej | CC90465: =LEFT(CC90464,5)&$CA90465 -> PUBL_00101 | CD90465: =LEFT(CD90464,5)&$CA90465 -> KATU_00101 | CE90465: =LEFT(CE90464,5)&$CA90465 -> SPEC_00101 | CF90465: =LEFT(CF90464,5)&$CA90465 -> TRYB_00101
CA90466: 00003 | CB90466: Szkoła podstawowa | CC90466: PUBL_00003 | CD90466: KATU_00003 | CE90466: SPEC_00003 | CF90466: TRYB_00003
CA90467: 00004 | CB90467: Gimnazjum | CC90467: PUBL_00004 | CD90467: KATU_00004 | CE90467: SPEC_00004 | CF90467: TRYB_00004
CA90468: 00013 | CB90468: Zasadnicza szkoła zawodowa | CC90468: PUBL_00013 | CD90468: KATU_00013 | CE90468: SPEC_00013 | CF90468: TRYB_00013
CA90469: 00014 | CB90469: Liceum ogólnokształcące | CC90469: PUBL_00014 | CD90469: KATU_00014 | CE90469: SPEC_00014 | CF90469: TRYB_00014
CA90470: 00016 | CB90470: Technikum | CC90470: PUBL_00016 | CD90470: KATU_00016 | CE90470: SPEC_00016 | CF90470: TRYB_00016
CA90471: 00019 | CB90471: Szkoła policealna (ponadgimnazjalna) | CC90471: PUBL_00019 | CD90471: KATU_00019 | CE90471: SPEC_00019 | CF90471: TRYB_00019
CA90472: 00020 | CB90472: Szkoła specjalna przysposabiająca do pracy dla uczniów z upośledzeniem umysłowym w stopniu umiarkowanym lub znacznym oraz dla uczniów z więcej niż jedną niepełnosprawnością | CC90472: PUBL_00020 | CD90472: KATU_00020 | CE90472: SPEC_00020 | CF90472: TRYB_00020
CA90473: 00021 | CB90473: Sześcioletnia ogólnokształcąca szkoła muzyczna I stopnia | CC90473: PUBL_00021 | CD90473: KATU_00021 | CE90473: SPEC_00021 | CF90473: TRYB_00021
CA90474: 00022 | CB90474: Sześcioletnia szkoła muzyczna I stopnia | CC90474: PUBL_00022 | CD90474: KATU_00022 | CE90474: SPEC_00022 | CF90474: TRYB_00022
CA90475: 00023 | CB90475: Czteroletnia szkoła muzyczna I stopnia | CC90475: PUBL_00023 | CD90475: KATU_00023 | CE90475: SPEC_00023 | CF90475: TRYB_00023
CA90476: 00024 | CB90476: Sześcioletnia ogólnokształcąca szkoła muzyczna II stopnia | CC90476: PUBL_00024 | CD90476: KATU_00024 | CE90476: SPEC_00024 | CF90476: TRYB_00024
CA90477: 00025 | CB90477: Sześcioletnia szkoła muzyczna II stopnia | CC90477: PUBL_00025 | CD90477: KATU_00025 | CE90477: SPEC_00025 | CF90477: TRYB_00025
CA90478: 00026 | CB90478: Sześcioletnia ogólnokształcąca szkoła sztuk pięknych | CC90478: PUBL_00026 | CD90478: KATU_00026 | CE90478: SPEC_00026 | CF90478: TRYB_00026
CA90479: 00027 | CB90479: Czteroletnie liceum plastyczne | CC90479: PUBL_00027 | CD90479: KATU_00027 | CE90479: SPEC_00027 | CF90479: TRYB_00027
CA90480: 00032 | CB90480: Policealna szkoła artystyczna | CC90480: PUBL_00032 | CD90480: KATU_00032 | CE90480: SPEC_00032 | CF90480: TRYB_00032
CA90481: 00035 | CB90481: Nauczycielskie Kolegium Języków Obcych | CC90481: PUBL_00035 | CD90481: KATU_00035 | CE90481: SPEC_00035 | CF90481: TRYB_00035
CA90482: 00043 | CB90482: Szkolne schronisko młodzieżowe | CC90482: PUBL_00043 | CD90482: KATU_00043 | CE90482: SPEC_00043 | CF90482: TRYB_00043
CA90483: 00045 | CB90483: Centrum Kształcenia Praktycznego | CC90483: PUBL_00045 | CD90483: KATU_00045 | CE90483: SPEC_00045 | CF90483: TRYB_00045
CA90484: 00046 | CB90484: Centrum Kształcenia Ustawicznego ze szkołami | CC90484: PUBL_00046 | CD90484: KATU_00046 | CE90484: SPEC_00046 | CF90484: TRYB_00046
CA90485: 00047 | CB90485: Ośrodek dokształcania i doskonalenia zawodowego | CC90485: PUBL_00047 | CD90485: KATU_00047 | CE90485: SPEC_00047 | CF90485: TRYB_00047
CA90486: 00048 | CB90486: Poradnia psychologiczno-pedagogiczna | CC90486: PUBL_00048 | CD90486: KATU_00048 | CE90486: SPEC_00048 | CF90486: TRYB_00048
CA90487: 00049 | CB90487: Poradnia specjalistyczna | CC90487: PUBL_00049 | CD90487: KATU_00049 | CE90487: SPEC_00049 | CF90487: TRYB_00049
CA90488: 00050 | CB90488: Specjalny Ośrodek Wychowawczy | CC90488: PUBL_00050 | CD90488: KATU_00050 | CE90488: SPEC_00050 | CF90488: TRYB_00050
CA90489: 00051 | CB90489: Specjalny Ośrodek Szkolno-Wychowawczy | CC90489: PUBL_00051 | CD90489: KATU_00051 | CE90489: SPEC_00051 | CF90489: TRYB_00051
CA90490: 00052 | CB90490: Ośrodek Rewalidacyjno-Wychowawczy umożliwiający upośledzonym umysłowo realizację obowiązku szkolnego i nauki | CC90490: PUBL_00052 | CD90490: KATU_00052 | CE90490: SPEC_00052 | CF90490: TRYB_00052
CA90491: 00053 | CB90491: Młodzieżowy Ośrodek Wychowawczy | CC90491: PUBL_00053 | CD90491: KATU_00053 | CE90491: SPEC_00053 | CF90491: TRYB_00053
CA90492: 00054 | CB90492: Młodzieżowy Ośrodek Socjoterapii ze szkołami | CC90492: PUBL_00054 | CD90492: KATU_00054 | CE90492: SPEC_00054 | CF90492: TRYB_00054
CA90493: 00055 | CB90493: Bursa | CC90493: PUBL_00055 | CD90493: KATU_00055 | CE90493: SPEC_00055 | CF90493: TRYB_00055
CA90494: 00056 | CB90494: Dom wczasów dziecięcych | CC90494: PUBL_00056 | CD90494: KATU_00056 | CE90494: SPEC_00056 | CF90494: TRYB_00056
CA90495: 00065 | CB90495: Kolegium Pracowników Służb Społecznych | CC90495: PUBL_00065 | CD90495: KATU_00065 | CE90495: SPEC_00065 | CF90495: TRYB_00065
CA90496: 00068 | CB90496: Internat | CC90496: PUBL_00068 | CD90496: KATU_00068 | CE90496: SPEC_00068 | CF90496: TRYB_00068
CA90497: 00069 | CB90497: Czteroletnia szkoła muzyczna II stopnia | CC90497: =LEFT(CC90496,5)&$CA90497 -> PUBL_00069 | CD90497: =LEFT(CD90496,5)&$CA90497 -> KATU_00069 | CE90497: =LEFT(CE90496,5)&$CA90497 -> SPEC_00069 | CF90497: =LEFT(CF90496,5)&$CA90497 -> TRYB_00069
CA90498: 00074 | CB90498: Centrum Kształcenia Ustawicznego - bez szkół | CC90498: PUBL_00074 | CD90498: KATU_00074 | CE90498: SPEC_00074 | CF90498: TRYB_00074
CA90499: 00080 | CB90499: Zespół wychowania przedszkolnego | CC90499: PUBL_00080 | CD90499: KATU_00080 | CE90499: SPEC_00080 | CF90499: TRYB_00080
CA90500: 00081 | CB90500: Punkt przedszkolny | CC90500: PUBL_00081 | CD90500: KATU_00081 | CE90500: SPEC_00081 | CF90500: TRYB_00081
CA90501: 00082 | CB90501: Poznańska szkoła chóralna | CC90501: PUBL_00082 | CD90501: KATU_00082 | CE90501: SPEC_00082 | CF90501: TRYB_00082
CA90502: 00037 | CB90502: Pałac młodzieży | CC90502: PUBL_00037 | CD90502: KATU_00037 | CE90502: SPEC_00037 | CF90502: TRYB_00037
CA90503: 00038 | CB90503: Młodzieżowy dom kultury | CC90503: PUBL_00038 | CD90503: KATU_00038 | CE90503: SPEC_00038 | CF90503: TRYB_00038
CA90504: 00039 | CB90504: Ognisko pracy pozaszkolnej | CC90504: PUBL_00039 | CD90504: KATU_00039 | CE90504: SPEC_00039 | CF90504: TRYB_00039
CA90505: 00040 | CB90505: Międzyszkolny ośrodek sportowy | CC90505: PUBL_00040 | CD90505: KATU_00040 | CE90505: SPEC_00040 | CF90505: TRYB_00040
CA90506: 00041 | CB90506: Ogród jordanowski | CC90506: PUBL_00041 | CD90506: KATU_00041 | CE90506: SPEC_00041 | CF90506: TRYB_00041
CA90507: 00042 | CB90507: Pozaszkolna placówka specjalistyczna | CC90507: PUBL_00042 | CD90507: KATU_00042 | CE90507: SPEC_00042 | CF90507: TRYB_00042
CA90508: 00044 | CB90508: Placówki artystyczne (ognisko artystyczne) | CC90508: PUBL_00044 | CD90508: KATU_00044 | CE90508: SPEC_00044 | CF90508: TRYB_00044
CA90509: 00057 | CB90509: Placówka doskonalenia nauczycieli | CC90509: PUBL_00057 | CD90509: KATU_00057 | CE90509: SPEC_00057 | CF90509: TRYB_00057
CA90510: 00058 | CB90510: Biblioteki pedagogiczne | CC90510: PUBL_00058 | CD90510: KATU_00058 | CE90510: SPEC_00058 | CF90510: TRYB_00058
CA90511: 00100 | CB90511: Zespół szkół i placówek oświatowych | CC90511: PUBL_00100 | CD90511: KATU_00100 | CE90511: SPEC_00100 | CF90511: TRYB_00100
CA90512: 00018 | CB90512: Technikum uzupełniające dla absolwentów zasadniczych szkół zawodowych | CC90512: PUBL_00018 | CD90512: KATU_00018 | CE90512: SPEC_00018 | CF90512: TRYB_00018
CA90513: 00034 | CB90513: Kolegium nauczycielskie | CC90513: PUBL_00034 | CD90513: KATU_00034 | CE90513: SPEC_00034 | CF90513: TRYB_00034
CA90514: 00090 | CB90514: Bednarska Szkoła Realna | CC90514: PUBL_00090 | CD90514: KATU_00090 | CE90514: SPEC_00090 | CF90514: TRYB_00090

Sheet wielotrybowe_data (hidden)
A1: TERYT | B1: WK | C1: PK | D1: GK | E1: Gmina typ | F1: Powiat typ | G1: województwo | H1: powiat | I1: gmina | J1: Organ prowadzący Nazwa | K1: Typ szkoły | L1: Złożoność | M1: Publicznośc | N1: Kateg. Uczniów | O1: Specyfika szkoły | P1: Tryb nauki | Q1: Nazwa szkoły/placówki | R1: Miejscowość | S1: Ulica | T1: Dom/lokal | U1: Kod poczt. | V1: Poczta | W1: KlasaWlk_Miejscowosci | X1: Czy_Integracyjne | Y1: Czy_Specjalne | Z1: Czy_Sportowe | AA1: Czy_MSportowego | AB1: Czy_Dwujezyczne | AC1: Czy_Mniejszosci | AD1: Czy_Miedzynarodowe | AE1: Czy_Terapeutyczne | AF1: Czy_Medyczne | AG1: Czy_przy_podmiocie_leczniczym | AH1: Wskaźnik dochodów | AI1: Różnica wsk. doch. | AJ1: =panel!C17 -> 
A2: 2061 | B2: 20 | C2: 61 | F2: Miasto (powiat) > 150 tys. mieszkańców | G2: WOJ. PODLASKIE | H2: Powiat m. Białystok | J2: Miasto na prawach powiatu | K2: Szkoła policealna (ponadgimnazjalna) | L2: Szkoła lub placówka w ramach jednostki złożonej | M2: publiczna | N2: Bez kategorii | O2: brak specyfiki | P2: DSZ | Q2: Szkoła Policealna Nr4 w Białymstoku | R2: Białystok | S2: Świętojańska | T2: 1 | U2: 15-082 | V2: Białystok | W2: 0 | X2: nie | Y2: nie | Z2: nie | AA2: nie | AB2: nie | AC2: nie | AD2: nie | AE2: nie | AF2: nie | AG2: nie | AH2: 232.58 | AI2: =IF(($AH2-$AJ$1)<0,($AH2-$AJ$1)*(-1),($AH2-$AJ$1)) -> 
A3: 2061 | B3: 20 | C3: 61 | F3: Miasto (powiat) > 150 tys. mieszkańców | G3: WOJ. PODLASKIE | H3: Powiat m. Białystok | J3: Miasto na prawach powiatu | K3: Szkoła policealna (ponadgimnazjalna) | L3: Szkoła lub placówka w ramach jednostki złożonej | M3: publiczna | N3: Dorośli | O3: brak specyfiki | P3: SZ | Q3: Szkoła Policealna Nr 5 dla Dorosłych w Białymstoku | R3: Białystok | S3: Żabia | T3: 5 | U3: 15-448 | V3: Białystok | W3: 0 | X3: nie | Y3: nie | Z3: nie | AA3: nie | AB3: nie | AC3: nie | AD3: nie | AE3: nie | AF3: nie | AG3: nie | AH3: 232.58
A4: 16 | B4: 16 | G4: WOJ. OPOLSKIE | J4: Samorząd województwa | K4: Szkoła policealna (ponadgimnazjalna) | L4: Szkoła lub placówka w ramach jednostki złożonej | M4: publiczna | N4: Dorośli | O4: brak specyfiki | P4: SZ | Q4: Szkoła Policealna dla Dorosłych w Brzegu | R4: Brzeg | S4: Ofiar Katynia | T4: 25 | U4: 49-300 | V4: Brzeg | W4: 0 | X4: nie | Y4: nie | Z4: nie | AA4: nie | AB4: nie | AC4: nie | AD4: nie | AE4: nie | AF4: S | AG4: nie | AH4: 105.96
A5: 1817 | B5: 18 | C5: 17 | F5: Powiat nie będący miastem na pr. powiatu | G5: WOJ. PODKARPACKIE | H5: Powiat sanocki | J5: Powiat ziemski | K5: Liceum ogólnokształcące | L5: Szkoła lub placówka w ramach jednostki złożonej | M5: publiczna | N5: Dorośli | O5: brak specyfiki | P5: SZ | Q5: III Liceum Ogólnokształcące dla Dorosłych | R5: Sanok | S5: Sadowa | T5: 21 | U5: 38-500 | V5: Sanok | W5: 0 | X5: nie | Y5: nie | Z5: nie | AA5: nie | AB5: nie | AC5: nie | AD5: nie | AE5: nie | AF5: nie | AG5: nie | AH5: 143.15
A6: 1861 | B6: 18 | C6: 61 | F6: Miasto (powiat) < 150 tys. mieszkańców | G6: WOJ. PODKARPACKIE | H6: Powiat m. Krosno | J6: Miasto na prawach powiatu | K6: Szkoła policealna (ponadgimnazjalna) | L6: Szkoła lub placówka w ramach jednostki złożonej | M6: publiczna | N6: Dorośli | O6: brak specyfiki | P6: SZ | Q6: Szkoła Policealna dla Dorosłych Nr 1 | R6: Krosno | S6: Czajkowskiego | T6: 49 | U6: 38-400 | V6: Krosno | W6: 0 | X6: nie | Y6: nie | Z6: nie | AA6: nie | AB6: nie | AC6: nie | AD6: nie | AE6: nie | AF6: S | AG6: nie | AH6: 222.22
A7: 1804 | B7: 18 | C7: 04 | F7: Powiat nie będący miastem na pr. powiatu | G7: WOJ. PODKARPACKIE | H7: Powiat jarosławski | J7: Powiat ziemski | K7: Liceum ogólnokształcące | L7: Szkoła lub placówka w ramach jednostki złożonej | M7: publiczna | N7: Dorośli | O7: brak specyfiki | P7: SZ | Q7: Liceum Ogólnokształcące dla Dorosłych | R7: Jarosław | S7: Poniatowskiego | T7: 63A | U7: 37-500 | V7: Jarosław | W7: 0 | X7: nie | Y7: nie | Z7: nie | AA7: nie | AB7: nie | AC7: nie | AD7: nie | AE7: nie | AF7: nie | AG7: nie | AH7: 120.65
A8: 18 | B8: 18 | G8: WOJ. PODKARPACKIE | J8: Samorząd województwa | K8: Szkoła policealna (ponadgimnazjalna) | L8: Szkoła lub placówka w ramach jednostki złożonej | M8: publiczna | N8: Bez kategorii | O8: brak specyfiki | P8: SZ | Q8: Policealna Szkoła Medyczno-Społeczna dla Dorosłych w Przemyślu | R8: Przemyśl | S8: Słowackiego | T8: 85 | U8: 37-700 | V8: Przemyśl | W8: 0 | X8: nie | Y8: nie | Z8: nie | AA8: nie | AB8: nie | AC8: nie | AD8: nie | AE8: nie | AF8: Z | AG8: nie | AH8: 86.61
A9: 18 | B9: 18 | G9: WOJ. PODKARPACKIE | J9: Samorząd województwa | K9: Szkoła policealna (ponadgimnazjalna) | L9: Szkoła lub placówka w ramach jednostki złożonej | M9: publiczna | N9: Bez kategorii | O9: brak specyfiki | P9: SZ | Q9: Policealna Szkoła Medyczno-Społeczna dla Dorosłych w Mielcu | R9: Mielec | S9: Kościuszki | T9: 7 | U9: 39-300 | V9: Mielec | W9: 0 | X9: nie | Y9: nie | Z9: nie | AA9: nie | AB9: nie | AC9: nie | AD9: nie | AE9: nie | AF9: SZ | AG9: nie | AH9: 86.61
A10: 1818 | B10: 18 | C10: 18 | F10: Powiat nie będący miastem na pr. powiatu | G10: WOJ. PODKARPACKIE | H10: Powiat stalowowolski | J10: Powiat ziemski | K10: Liceum ogólnokształcące | L10: Szkoła lub placówka w ramach jednostki złożonej | M10: publiczna | N10: Dorośli | O10: brak specyfiki | P10: SZ | Q10: Liceum Ogólnokształcące dla Dorosłych | R10: Stalowa Wola | S10: HUTNICZA | T10: 12 | U10: 37-450 | V10: STALOWA WOLA | W10: 0 | X10: nie | Y10: nie | Z10: nie | AA10: nie | AB10: nie | AC10: nie | AD10: nie | AE10: nie | AF10: nie | AG10: nie | AH10: 161.36
A11: 10 | B11: 10 | G11: WOJ. ŁÓDZKIE | J11: Samorząd województwa | K11: Szkoła policealna (ponadgimnazjalna) | L11: Szkoła lub placówka w ramach jednostki złożonej | M11: publiczna | N11: Dorośli | O11: brak specyfiki | P11: SZ | Q11: Samorządowa Szkoła Policealna dla Dorosłych | R11: Łódź | S11: Wielkopolska | T11: 70/72 | U11: 91-029 | V11: Łódź | W11: 0 | X11: nie | Y11: nie | Z11: nie | AA11: nie | AB11: nie | AC11: nie | AD11: nie | AE11: nie | AF11: SZ | AG11: nie | AH11: 136.11
A12: 10 | B12: 10 | G12: WOJ. ŁÓDZKIE | J12: Samorząd województwa | K12: Szkoła policealna (ponadgimnazjalna) | L12: Szkoła lub placówka w ramach jednostki złożonej | M12: publiczna | N12: Dorośli | O12: brak specyfiki | P12: SZ | Q12: Samorządowa Szkoła Policealna dla Dorosłych w Tomaszowie Maz. | R12: Tomaszów Mazowiecki | S12: Św. Antoniego | T12: 47 | U12: 97-200 | V12: Tomaszów Mazowiecki | W12: 0 | X12: nie | Y12: nie | Z12: nie | AA12: nie | AB12: nie | AC12: nie | AD12: nie | AE12: nie | AF12: S | AG12: nie | AH12: 136.11
A13: 10 | B13: 10 | G13: WOJ. ŁÓDZKIE | J13: Samorząd województwa | K13: Szkoła policealna (ponadgimnazjalna) | L13: Szkoła lub placówka w ramach jednostki złożonej | M13: publiczna | N13: Dorośli | O13: brak specyfiki | P13: SZ | Q13: Sieradzka Szkoła Policealna Województwa Łódzkiego dla Dorosłych | R13: Sieradz | S13: 3 Maja | T13: 7 | U13: 98-200 | V13: Sieradz | W13: 0 | X13: nie | Y13: nie | Z13: nie | AA13: nie | AB13: nie | AC13: nie | AD13: nie | AE13: nie | AF13: SZ | AG13: nie | AH13: 136.11
A14: 10 | B14: 10 | G14: WOJ. ŁÓDZKIE | J14: Samorząd województwa | K14: Szkoła policealna (ponadgimnazjalna) | L14: Szkoła lub placówka w ramach jednostki złożonej | M14: publiczna | N14: Dorośli | O14: brak specyfiki | P14: SZ | Q14: Łowicka Szkoła Policealna Województwa Łódzkiego dla Dorosłych w Łowiczu | R14: Łowicz | S14: UŁAŃSKA | T14: 2 | U14: 99-400 | V14: ŁOWICZ | W14: 0 | X14: nie | Y14: nie | Z14: nie | AA14: nie | AB14: nie | AC14: nie | AD14: nie | AE14: nie | AF14: S | AG14: nie | AH14: 136.11
A15: 10 | B15: 10 | G15: WOJ. ŁÓDZKIE | J15: Samorząd województwa | K15: Szkoła policealna (ponadgimnazjalna) | L15: Szkoła lub placówka w ramach jednostki złożonej | M15: publiczna | N15: Dorośli | O15: brak specyfiki | P15: SZ | Q15: Profesjonalna Szkoła Policealna Kwalifikacji Zawodowych dla Dorosłych w Zgierzu | R15: Zgierz | S15: 3 Maja | T15: 46 | U15: 95-100 | V15: zgierz | W15: 0 | X15: nie | Y15: nie | Z15: nie | AA15: nie | AB15: nie | AC15: nie | AD15: nie | AE15: nie | AF15: SZ | AG15: nie | AH15: 136.11
A16: 1002 | B16: 10 | C16: 02 | F16: Powiat nie będący miastem na pr. powiatu | G16: WOJ. ŁÓDZKIE | H16: Powiat kutnowski | J16: Powiat ziemski | K16: Liceum ogólnokształcące | L16: Szkoła lub placówka w ramach jednostki złożonej | M16: publiczna | N16: Dorośli | O16: brak specyfiki | P16: SZ | Q16: V Liceum Ogólnokształcące dla Dorosłych w Kutnie | R16: Kutno | S16: Staszica | T16: 27 | U16: 99-300 | V16: Kutno | W16: 0 | X16: nie | Y16: nie | Z16: nie | AA16: nie | AB16: nie | AC16: nie | AD16: nie | AE16: nie | AF16: nie | AG16: nie | AH16: 168.49
A17: 2263 | B17: 22 | C17: 63 | F17: Miasto (powiat) < 150 tys. mieszkańców | G17: WOJ. POMORSKIE | H17: Powiat m. Słupsk | J17: Miasto na prawach powiatu | K17: Liceum ogólnokształcące | L17: Szkoła lub placówka w ramach jednostki złożonej | M17: publiczna | N17: Dorośli | O17: brak specyfiki | P17: SZ | Q17: I Liceum Ogólnokształcące dla Dorosłych | R17: Słupsk | S17: Królowej Jadwigi | T17: 3 | U17: 76-200 | V17: Słupsk | W17: 0 | X17: nie | Y17: nie | Z17: nie | AA17: nie | AB17: nie | AC17: nie | AD17: nie | AE17: nie | AF17: nie | AG17: nie | AH17: 227.08
A18: 2261 | B18: 22 | C18: 61 | F18: Miasto (powiat) > 150 tys. mieszkańców | G18: WOJ. POMORSKIE | H18: Powiat m. Gdańsk | J18: Miasto na prawach powiatu | K18: Liceum ogólnokształcące | L18: Szkoła lub placówka w ramach jednostki złożonej | M18: publiczna | N18: Dorośli | O18: brak specyfiki | P18: SZ | Q18: I Liceum Ogólnokształcące dla Dorosłych | R18: Gdańsk | S18: Al. Gen. J. Hallera | T18: 16/18 | U18: 80-426 | V18: Gdańsk | W18: 0 | X18: nie | Y18: nie | Z18: nie | AA18: nie | AB18: nie | AC18: nie | AD18: nie | AE18: nie | AF18: nie | AG18: nie | AH18: 329.57
A19: 2262 | B19: 22 | C19: 62 | F19: Miasto (powiat) > 150 tys. mieszkańców | G19: WOJ. POMORSKIE | H19: Powiat m. Gdynia | J19: Miasto na prawach powiatu | K19: Liceum ogólnokształcące | L19: Szkoła lub placówka w ramach jednostki złożonej | M19: publiczna | N19: Dorośli | O19: brak specyfiki | P19: SZ | Q19: Liceum Ogólnokształcące dla Dorosłych | R19: Gdynia | S19: Raduńska | T19: 21 | U19: 81-057 | V19: Gdynia | W19: 0 | X19: nie | Y19: nie | Z19: nie | AA19: nie | AB19: nie | AC19: nie | AD19: nie | AE19: nie | AF19: nie | AG19: nie | AH19: 318.94
A20: 2202 | B20: 22 | C20: 02 | F20: Powiat nie będący miastem na pr. powiatu | G20: WOJ. POMORSKIE | H20: Powiat chojnicki | J20: Powiat ziemski | K20: Szkoła policealna (ponadgimnazjalna) | L20: Szkoła lub placówka w ramach jednostki złożonej | M20: publiczna | N20: Dorośli | O20: brak specyfiki | P20: SZ | Q20: Medyczno-Społeczna Szkoła Policealna dla Dorosłych w Chojnicach | R20: Chojnice | S20: Świętopełka | T20: 3 | U20: 89-600 | V20: Chojnice | W20: 0 | X20: nie | Y20: nie | Z20: nie | AA20: nie | AB20: nie | AC20: nie | AD20: nie | AE20: nie | AF20: S | AG20: nie | AH20: 144.17
A21: 2215 | B21: 22 | C21: 15 | F21: Powiat nie będący miastem na pr. powiatu | G21: WOJ. POMORSKIE | H21: Powiat wejherowski | J21: Powiat ziemski | K21: Liceum ogólnokształcące | L21: Szkoła lub placówka w ramach jednostki złożonej | M21: publiczna | N21: Dorośli | O21: brak specyfiki | P21: SZ | Q21: I Liceum Ogólnokształcące dla Dorosłych | R21: Wejherowo | S21: BUKOWA | T21: 1 | U21: 84-200 | V21: WEJHEROWO | W21: 0 | X21: nie | Y21: nie | Z21: nie | AA21: nie | AB21: nie | AC21: nie | AD21: nie | AE21: nie | AF21: nie | AG21: nie | AH21: 178.71
A22: 2215 | B22: 22 | C22: 15 | F22: Powiat nie będący miastem na pr. powiatu | G22: WOJ. POMORSKIE | H22: Powiat wejherowski | J22: Powiat ziemski | K22: Szkoła policealna (ponadgimnazjalna) | L22: Szkoła lub placówka w ramach jednostki złożonej | M22: publiczna | N22: Dorośli | O22: brak specyfiki | P22: SZ | Q22: Szkola Policealna nr 4 dla Dorosłych w Wejherowie | R22: Wejherowo | S22: Dworcowa | T22: 5 | U22: 84-200 | V22: Wejherowo | W22: 0 | X22: nie | Y22: nie | Z22: nie | AA22: nie | AB22: nie | AC22: nie | AD22: nie | AE22: nie | AF22: SZ | AG22: nie | AH22: 178.71
A23: 22 | B23: 22 | G23: WOJ. POMORSKIE | J23: Samorząd województwa | K23: Szkoła policealna (ponadgimnazjalna) | L23: Szkoła lub placówka w ramach jednostki złożonej | M23: publiczna | N23: Dorośli | O23: brak specyfiki | P23: SZ | Q23: Wojewódzka Szkoła Policealna dla Dorosłych w Gdyni | R23: Gdynia | S23: Żeromskiego 31 | T23: 0 | U23: 81-346 | V23: Gdynia | W23: 0 | X23: nie | Y23: nie | Z23: nie | AA23: nie | AB23: nie | AC23: nie | AD23: nie | AE23: nie | AF23: SZ | AG23: nie | AH23: 147.05
A24: 22 | B24: 22 | G24: WOJ. POMORSKIE | J24: Samorząd województwa | K24: Szkoła policealna (ponadgimnazjalna) | L24: Szkoła lub placówka w ramach jednostki złożonej | M24: publiczna | N24: Dorośli | O24: brak specyfiki | P24: SZ | Q24: Wojewodzka Szkoła Policealna dla Dorosłych | R24: Słupsk | S24: Bałtycka | T24: 29 | U24: 76-200 | V24: Słupsk | W24: 0 | X24: nie | Y24: nie | Z24: nie | AA24: nie | AB24: nie | AC24: nie | AD24: nie | AE24: nie | AF24: SZ | AG24: nie | AH24: 147.05
A25: 22 | B25: 22 | G25: WOJ. POMORSKIE | J25: Samorząd województwa | K25: Szkoła policealna (ponadgimnazjalna) | L25: Szkoła lub placówka w ramach jednostki złożonej | M25: publiczna | N25: Dorośli | O25: brak specyfiki | P25: SZ | Q25: Wojewódzka Szkoła Policealna dla Dorosłych Nr 2 w Gdańsku | R25: Gdańsk | S25: Generała Józefa Hallera | T25: 17 | U25: 80-401 | V25: Gdańsk | W25: 0 | X25: nie | Y25: nie | Z25: nie | AA25: nie | AB25: nie | AC25: nie | AD25: nie | AE25: nie | AF25: SZ | AG25: nie | AH25: 147.05
A26: 22 | B26: 22 | G26: WOJ. POMORSKIE | J26: Samorząd województwa | K26: Szkoła policealna (ponadgimnazjalna) | L26: Szkoła lub placówka w ramach jednostki złożonej | M26: publiczna | N26: Dorośli | O26: brak specyfiki | P26: SZ | Q26: Wojewódzka Szkoła Policealna dla Dorosłych w Sztumie | R26: Sztum | S26: Reja | T26: 12 | U26: 82-400 | V26: Sztum | W26: 0 | X26: nie | Y26: nie | Z26: nie | AA26: nie | AB26: nie | AC26: nie | AD26: nie | AE26: nie | AF26: SZ | AG26: nie | AH26: 147.05
A27: 0464 | B27: 04 | C27: 64 | F27: Miasto (powiat) < 150 tys. mieszkańców | G27: WOJ. KUJAWSKO-POMORSKIE | H27: Powiat m. Włocławek | J27: Miasto na prawach powiatu | K27: Szkoła policealna (ponadgimnazjalna) | L27: Szkoła lub placówka w ramach jednostki złożonej | M27: publiczna | N27: Dorośli | O27: brak specyfiki | P27: SZ | Q27: SZKOŁA POLICEALNA DLA DOROSŁYCH NR 4 | R27: Włocławek | S27: NOWOMIEJSKA | T27: 25 | U27: 87-800 | V27: WŁOCŁAWEK | W27: 0 | X27: nie | Y27: nie | Z27: nie | AA27: nie | AB27: nie | AC27: nie | AD27: nie | AE27: nie | AF27: S | AG27: nie | AH27: 209.87
A28: 04 | B28: 04 | G28: WOJ. KUJAWSKO-POMORSKIE | J28: Samorząd województwa | K28: Szkoła policealna (ponadgimnazjalna) | L28: Szkoła lub placówka w ramach jednostki złożonej | M28: publiczna | N28: Dorośli | O28: brak specyfiki | P28: SZ | Q28: Szkoła Policealna Medyczno-Społeczna dla Dorosłych w Toruniu | R28: Toruń | S28: Św. Jana | T28: 1/3 | U28: 87-100 | V28: Toruń | W28: 0 | X28: nie | Y28: nie | Z28: nie | AA28: nie | AB28: nie | AC28: nie | AD28: nie | AE28: nie | AF28: SZ | AG28: nie | AH28: 112.69
A29: 0407 | B29: 04 | C29: 07 | F29: Powiat nie będący miastem na pr. powiatu | G29: WOJ. KUJAWSKO-POMORSKIE | H29: Powiat inowrocławski | J29: Powiat ziemski | K29: Liceum ogólnokształcące | L29: Szkoła lub placówka w ramach jednostki złożonej | M29: publiczna | N29: Dorośli | O29: brak specyfiki | P29: SZ | Q29: Liceum Ogólnokształcące/3 | R29: Inowrocław | S29: Średnia | T29: 9 | U29: 88-100 | V29: Inowrocław | W29: 0 | X29: nie | Y29: nie | Z29: nie | AA29: nie | AB29: nie | AC29: nie | AD29: nie | AE29: nie | AF29: nie | AG29: nie | AH29: 164.2
A30: 0416 | B30: 04 | C30: 16 | F30: Powiat nie będący miastem na pr. powiatu | G30: WOJ. KUJAWSKO-POMORSKIE | H30: Powiat tucholski | J30: Powiat ziemski | K30: Liceum ogólnokształcące | L30: Szkoła lub placówka w ramach jednostki złożonej | M30: publiczna | N30: Dorośli | O30: brak specyfiki | P30: SZ | Q30: LICEUM OGÓLNOKSZTAŁCĄCE | R30: Tuchola | S30: ŚWIECKA | T30: 89A | U30: 89-500 | V30: TUCHOLA | W30: 0 | X30: nie | Y30: nie | Z30: nie | AA30: nie | AB30: nie | AC30: nie | AD30: nie | AE30: nie | AF30: nie | AG30: nie | AH30: 114.29
A31: 0402 | B31: 04 | C31: 02 | F31: Powiat nie będący miastem na pr. powiatu | G31: WOJ. KUJAWSKO-POMORSKIE | H31: Powiat brodnicki | J31: Powiat ziemski | K31: Liceum ogólnokształcące | L31: Szkoła lub placówka w ramach jednostki złożonej | M31: publiczna | N31: Dorośli | O31: brak specyfiki | P31: SZ | Q31: Liceum Ogólnokształcące dla Dorosłych | R31: Brodnica | S31: Karbowska | T31: 29 | U31: 87-300 | V31: BRODNICA | W31: 0 | X31: nie | Y31: nie | Z31: nie | AA31: nie | AB31: nie | AC31: nie | AD31: nie | AE31: nie | AF31: nie | AG31: nie | AH31: 142.94
A32: 0462 | B32: 04 | C32: 62 | F32: Miasto (powiat) < 150 tys. mieszkańców | G32: WOJ. KUJAWSKO-POMORSKIE | H32: Powiat m. Grudziądz | J32: Miasto na prawach powiatu | K32: Liceum ogólnokształcące | L32: Szkoła lub placówka w ramach jednostki złożonej | M32: publiczna | N32: Dorośli | O32: brak specyfiki | P32: SZ | Q32: Liceum Ogólnokształcące | R32: Grudziądz | S32: Legionów | T32: 2/12 | U32: 86-300 | V32: Grudziądz | W32: 0 | X32: nie | Y32: nie | Z32: nie | AA32: nie | AB32: nie | AC32: nie | AD32: nie | AE32: nie | AF32: nie | AG32: nie | AH32: 177.42
A33: 0208063 | B33: 02 | C33: 08 | D33: 06 | F33: Powiat nie będący miastem na pr. powiatu | G33: WOJ. DOLNOŚLĄSKIE | H33: Powiat kłodzki | I33: Bystrzyca Kłodzka | J33: Gmina | K33: Gimnazjum | L33: Dane własne | M33: publiczna | N33: Dorośli | O33: brak specyfiki | P33: SZ | Q33: Gimnazjum dla Dorosłych | R33: Bystrzyca Kłodzka | S33: Wojska Polskiego | T33: 68 | U33: 57-500 | V33: Bystrzyca Kłodzka | W33: 0 | X33: nie | Y33: nie | Z33: nie | AA33: nie | AB33: nie | AC33: nie | AD33: nie | AE33: nie | AF33: nie | AG33: nie | AH33: 1131.3
A34: 0264 | B34: 02 | C34: 64 | F34: Miasto (powiat) > 150 tys. mieszkańców | G34: WOJ. DOLNOŚLĄSKIE | H34: Powiat m. Wrocław | J34: Miasto na prawach powiatu | K34: Liceum ogólnokształcące | L34: Szkoła lub placówka w ramach jednostki złożonej | M34: publiczna | N34: Dorośli | O34: brak specyfiki | P34: SZ | Q34: Liceum Ogólnokształcące dla Dorosłych Nr 1 | R34: Wrocław | S34: Swobodna | T34: 73 | U34: 50-089 | V34: Wrocław | W34: 0 | X34: nie | Y34: nie | Z34: nie | AA34: nie | AB34: nie | AC34: nie | AD34: nie | AE34: nie | AF34: nie | AG34: nie | AH34: 350.17 | AI34: =IF(($AH34-$AJ$1)<0,($AH34-$AJ$1)*(-1),($AH34-$AJ$1)) -> 
A35: 02 | B35: 02 | G35: WOJ. DOLNOŚLĄSKIE | J35: Samorząd województwa | K35: Szkoła policealna (ponadgimnazjalna) | L35: Szkoła lub placówka w ramach jednostki złożonej | M35: publiczna | N35: Dorośli | O35: brak specyfiki | P35: SZ | Q35: Szkoła Policealna Służb Społecznych i Medycznych dla Dorosłych | R35: Jawor | S35: Rapackiego | T35: 1 | U35: 59-400 | V35: Jawor | W35: 0 | X35: nie | Y35: nie | Z35: nie | AA35: nie | AB35: nie | AC35: nie | AD35: nie | AE35: nie | AF35: S | AG35: nie | AH35: 203.61
A36: 02 | B36: 02 | G36: WOJ. DOLNOŚLĄSKIE | J36: Samorząd województwa | K36: Szkoła policealna (ponadgimnazjalna) | L36: Szkoła lub placówka w ramach jednostki złożonej | M36: publiczna | N36: Dorośli | O36: brak specyfiki | P36: SZ | Q36: Szkoła Policealna Służb Społecznych i Medycznych dla Dorosłych w Lubinie | R36: Lubin | S36: Marii Skłodowskiej- Curie | T36: 72 | U36: 59-300 | V36: Lubin | W36: 0 | X36: nie | Y36: nie | Z36: nie | AA36: nie | AB36: nie | AC36: nie | AD36: nie | AE36: nie | AF36: SZ | AG36: nie | AH36: 203.61
A37: 1463 | B37: 14 | C37: 63 | F37: Miasto (powiat) > 150 tys. mieszkańców | G37: WOJ. MAZOWIECKIE | H37: Powiat m. Radom | J37: Miasto na prawach powiatu | K37: Liceum ogólnokształcące | L37: Szkoła lub placówka w ramach jednostki złożonej | M37: publiczna | N37: Dorośli | O37: brak specyfiki | P37: SZ | Q37: Liceum Ogólnokształcące dla Dorosłych w Radomiu | R37: Radom | S37: Kościuszki | T37: 7 | U37: 26-600 | V37: Radom | W37: 0 | X37: nie | Y37: nie | Z37: nie | AA37: nie | AB37: nie | AC37: nie | AD37: nie | AE37: nie | AF37: nie | AG37: nie | AH37: 211.98
A38: 1465 | B38: 14 | C38: 65 | F38: Miasto (powiat) > 150 tys. mieszkańców | G38: WOJ. MAZOWIECKIE | H38: Powiat m. st. Warszawa | J38: Miasto na prawach powiatu | K38: Liceum ogólnokształcące | L38: Szkoła lub placówka w ramach jednostki złożonej | M38: publiczna | N38: Dorośli | O38: brak specyfiki | P38: SZ | Q38: LIII Liceum Ogólnokształcące dla Dorosłych | R38: Warszawa | S38: Noakowskiego | T38: 6 | U38: 00-666 | V38: Warszawa | W38: 0 | X38: nie | Y38: nie | Z38: nie | AA38: nie | AB38: nie | AC38: nie | AD38: nie | AE38: nie | AF38: nie | AG38: nie | AH38: 582.54
A39: 1465 | B39: 14 | C39: 65 | F39: Miasto (powiat) > 150 tys. mieszkańców | G39: WOJ. MAZOWIECKIE | H39: Powiat m. st. Warszawa | J39: Miasto na prawach powiatu | K39: Liceum ogólnokształcące | L39: Szkoła lub placówka w ramach jednostki złożonej | M39: publiczna | N39: Dorośli | O39: brak specyfiki | P39: SZ | Q39: CXXXIII Liceum Ogólnokształcące dla Dorosłych | R39: Warszawa | S39: Szczęśliwicka | T39: 56 | U39: 02-353 | V39: Warszawa | W39: 0 | X39: nie | Y39: nie | Z39: nie | AA39: nie | AB39: nie | AC39: nie | AD39: nie | AE39: nie | AF39: nie | AG39: nie | AH39: 582.54
A40: 1465 | B40: 14 | C40: 65 | F40: Miasto (powiat) > 150 tys. mieszkańców | G40: WOJ. MAZOWIECKIE | H40: Powiat m. st. Warszawa | J40: Miasto na prawach powiatu | K40: Liceum ogólnokształcące | L40: Szkoła lub placówka w ramach jednostki złożonej | M40: publiczna | N40: Dorośli | O40: brak specyfiki | P40: SZ | Q40: CIV Liceum Ogólnokształcące dla Dorosłych | R40: Warszawa | S40: Mińska | T40: 1/5 | U40: 03-806 | V40: Warszawa | W40: 0 | X40: nie | Y40: nie | Z40: nie | AA40: nie | AB40: nie | AC40: nie | AD40: nie | AE40: nie | AF40: nie | AG40: nie | AH40: 582.54
A41: 1465 | B41: 14 | C41: 65 | F41: Miasto (powiat) > 150 tys. mieszkańców | G41: WOJ. MAZOWIECKIE | H41: Powiat m. st. Warszawa | J41: Miasto na prawach powiatu | K41: Liceum ogólnokształcące | L41: Szkoła lub placówka w ramach jednostki złożonej | M41: publiczna | N41: Dorośli | O41: brak specyfiki | P41: SZ | Q41: CXXVIII Liceum Ogólnokształcące dla Dorosłych | R41: Warszawa | S41: Księcia Janusza | T41: 45/47 | U41: 01-452 | V41: Warszawa | W41: 0 | X41: nie | Y41: nie | Z41: nie | AA41: nie | AB41: nie | AC41: nie | AD41: nie | AE41: nie | AF41: nie | AG41: nie | AH41: 582.54
A42: 14 | B42: 14 | G42: WOJ. MAZOWIECKIE | J42: Samorząd województwa | K42: Szkoła policealna (ponadgimnazjalna) | L42: Szkoła lub placówka w ramach jednostki złożonej | M42: publiczna | N42: Dorośli | O42: brak specyfiki | P42: SZ | Q42: Medyczna Szkoła Policealna dla dorosłych w Przasnyszu | R42: Przasnysz | S42: Szpitalna | T42: 10 | U42: 06-300 | V42: Przasnysz | W42: 0 | X42: nie | Y42: nie | Z42: nie | AA42: nie | AB42: nie | AC42: nie | AD42: nie | AE42: nie | AF42: S | AG42: nie | AH42: 308.08
A43: 14 | B43: 14 | G43: WOJ. MAZOWIECKIE | J43: Samorząd województwa | K43: Szkoła policealna (ponadgimnazjalna) | L43: Szkoła lub placówka w ramach jednostki złożonej | M43: publiczna | N43: Dorośli | O43: brak specyfiki | P43: SZ | Q43: Medyczna Szkoła Policealna dla Dorosłych w Radomiu | R43: Radom | S43: KELLES-KRAUZA | T43: 3 | U43: 26-610 | V43: RADOM | W43: 0 | X43: nie | Y43: nie | Z43: nie | AA43: nie | AB43: nie | AC43: nie | AD43: nie | AE43: nie | AF43: SZ | AG43: nie | AH43: 308.08
A44: 14 | B44: 14 | G44: WOJ. MAZOWIECKIE | J44: Samorząd województwa | K44: Szkoła policealna (ponadgimnazjalna) | L44: Szkoła lub placówka w ramach jednostki złożonej | M44: publiczna | N44: Bez kategorii | O44: brak specyfiki | P44: SZ | Q44: Medyczno-Społeczna Szkoła Policealna dla Dorosłych w Ostrołęce | R44: Ostrołęka | S44: Parkowa | T44: 6 | U44: 07-410 | V44: Ostrołęka | W44: 0 | X44: nie | Y44: nie | Z44: nie | AA44: nie | AB44: nie | AC44: nie | AD44: nie | AE44: nie | AF44: SZ | AG44: nie | AH44: 308.08
A45: 14 | B45: 14 | G45: WOJ. MAZOWIECKIE | J45: Samorząd województwa | K45: Szkoła policealna (ponadgimnazjalna) | L45: Szkoła lub placówka w ramach jednostki złożonej | M45: publiczna | N45: Bez kategorii | O45: brak specyfiki | P45: SZ | Q45: Medyczna Szkoła Policealna dla Dorosłych w Siedlcach | R45: Siedlce | S45: Młynarska | T45: 17 | U45: 08-110 | V45: Siedlce | W45: 0 | X45: nie | Y45: nie | Z45: nie | AA45: nie | AB45: nie | AC45: nie | AD45: nie | AE45: nie | AF45: SZ | AG45: nie | AH45: 308.08
A46: 1415 | B46: 14 | C46: 15 | F46: Powiat nie będący miastem na pr. powiatu | G46: WOJ. MAZOWIECKIE | H46: Powiat ostrołęcki | J46: Powiat ziemski | K46: Szkoła policealna (ponadgimnazjalna) | L46: Szkoła lub placówka w ramach jednostki złożonej | M46: publiczna | N46: Dorośli | O46: brak specyfiki | P46: SZ | Q46: Szkoła Policealna dla Dorosłych w Troszynie | R46: Troszyn | S46: Słowackiego | T46: 3 | U46: 07-405 | V46: Troszyn | W46: 0 | X46: nie | Y46: nie | Z46: nie | AA46: nie | AB46: nie | AC46: nie | AD46: nie | AE46: nie | AF46: nie | AG46: nie | AH46: 124.62
A47: 2461 | B47: 24 | C47: 61 | F47: Miasto (powiat) > 150 tys. mieszkańców | G47: WOJ. ŚLĄSKIE | H47: Powiat m. Bielsko-Biała | J47: Miasto na prawach powiatu | K47: Liceum ogólnokształcące | L47: Szkoła lub placówka w ramach jednostki złożonej | M47: publiczna | N47: Dorośli | O47: brak specyfiki | P47: SZ | Q47: Bielskie Centrum Kształcenia Ustawicznego i Praktycznego - Liceum Ogólnoksztłcące dla Dorosłych | R47: Bielsko-Biała | S47: Piastowska | T47: 21 | U47: 43-300 | V47: Bielsko -Biała | W47: 0 | X47: nie | Y47: nie | Z47: nie | AA47: nie | AB47: nie | AC47: nie | AD47: nie | AE47: nie | AF47: nie | AG47: nie | AH47: 294.61
A48: 2462 | B48: 24 | C48: 62 | F48: Miasto (powiat) > 150 tys. mieszkańców | G48: WOJ. ŚLĄSKIE | H48: Powiat m. Bytom | J48: Miasto na prawach powiatu | K48: Liceum ogólnokształcące | L48: Szkoła lub placówka w ramach jednostki złożonej | M48: publiczna | N48: Dorośli | O48: brak specyfiki | P48: SZ | Q48: IX Liceum Ogólnokształcące dla Dorosłych | R48: Bytom | S48: POWSTAŃCÓW ŚLĄSKICH | T48: 10 | U48: 41-902 | V48: BYTOM | W48: 0 | X48: nie | Y48: nie | Z48: nie | AA48: nie | AB48: nie | AC48: nie | AD48: nie | AE48: nie | AF48: nie | AG48: nie | AH48: 201.51
A49: 2462 | B49: 24 | C49: 62 | F49: Miasto (powiat) > 150 tys. mieszkańców | G49: WOJ. ŚLĄSKIE | H49: Powiat m. Bytom | J49: Miasto na prawach powiatu | K49: Szkoła policealna (ponadgimnazjalna) | L49: Szkoła lub placówka w ramach jednostki złożonej | M49: publiczna | N49: Dorośli | O49: brak specyfiki | P49: SZ | Q49: Szkoła Policealna Nr 7 dla Dorosłych | R49: Bytom | S49: POWSTAŃCÓW ŚLĄSKICH | T49: 10 | U49: 41-902 | V49: BYTOM | W49: 0 | X49: nie | Y49: nie | Z49: nie | AA49: nie | AB49: nie | AC49: nie | AD49: nie | AE49: nie | AF49: nie | AG49: nie | AH49: 201.51
A50: 2469 | B50: 24 | C50: 69 | F50: Miasto (powiat) > 150 tys. mieszkańców | G50: WOJ. ŚLĄSKIE | H50: Powiat m. Katowice | J50: Miasto na prawach powiatu | K50: Liceum ogólnokształcące | L50: Szkoła lub placówka w ramach jednostki złożonej | M50: publiczna | N50: Dorośli | O50: brak specyfiki | P50: SZ | Q50: XIX Liceum Ogólnokształcące dla Dorosłych w Katowicach | R50: Katowice | S50: 3 Maja | T50: 42 | U50: 40-097 | V50: Katowice | W50: 0 | X50: nie | Y50: nie | Z50: nie | AA50: nie | AB50: nie | AC50: nie | AD50: nie | AE50: nie | AF50: nie | AG50: nie | AH50: 353.74
A51: 2472 | B51: 24 | C51: 72 | F51: Miasto (powiat) < 150 tys. mieszkańców | G51: WOJ. ŚLĄSKIE | H51: Powiat m. Ruda Śląska | J51: Miasto na prawach powiatu | K51: Liceum ogólnokształcące | L51: Szkoła lub placówka w ramach jednostki złożonej | M51: publiczna | N51: Dorośli | O51: brak specyfiki | P51: SZ | Q51: Liceum Ogólnokształcące po Gimnazjum dla Dorosłych | R51: Ruda Śląska | S51: Orzegowska | T51: 25 | U51: 41-704 | V51: Ruda Śląska | W51: 0 | X51: nie | Y51: nie | Z51: nie | AA51: nie | AB51: nie | AC51: nie | AD51: nie | AE51: nie | AF51: nie | AG51: nie | AH51: 246.57
A52: 2407 | B52: 24 | C52: 07 | F52: Powiat nie będący miastem na pr. powiatu | G52: WOJ. ŚLĄSKIE | H52: Powiat lubliniecki | J52: Powiat ziemski | K52: Szkoła policealna (ponadgimnazjalna) | L52: Szkoła lub placówka w ramach jednostki złożonej | M52: publiczna | N52: Dorośli | O52: brak specyfiki | P52: SZ | Q52: Szkoła Policealna Nr 1 dla Dorosłych | R52: Lubliniec | S52: Grunwaldzka | T52: 48 | U52: 42-700 | V52: Lubliniec | W52: 0 | X52: nie | Y52: nie | Z52: nie | AA52: nie | AB52: nie | AC52: nie | AD52: nie | AE52: nie | AF52: SZ | AG52: nie | AH52: 166.17
A53: 2401 | B53: 24 | C53: 01 | F53: Powiat nie będący miastem na pr. powiatu | G53: WOJ. ŚLĄSKIE | H53: Powiat będziński | J53: Powiat ziemski | K53: Liceum ogólnokształcące | L53: Szkoła lub placówka w ramach jednostki złożonej | M53: publiczna | N53: Dorośli | O53: brak specyfiki | P53: SZ | Q53: Liceum Ogólnokształcące dla Dorosłych | R53: Będzin | S53: Promyka | T53: 26 | U53: 42-500 | V53: Będzin | W53: 0 | X53: nie | Y53: nie | Z53: nie | AA53: nie | AB53: nie | AC53: nie | AD53: nie | AE53: nie | AF53: nie | AG53: nie | AH53: 248.67
A54: 2415 | B54: 24 | C54: 15 | F54: Powiat nie będący miastem na pr. powiatu | G54: WOJ. ŚLĄSKIE | H54: Powiat wodzisławski | J54: Powiat ziemski | K54: Liceum ogólnokształcące | L54: Szkoła lub placówka w ramach jednostki złożonej | M54: publiczna | N54: Dorośli | O54: brak specyfiki | P54: SZ | Q54: Liceum Ogólnokształcące dla Dorosłych | R54: Wodzisław Śląski | S54: Gałczyńskiego | T54: 1 | U54: 44-300 | V54: Wodzisław Śląski | W54: 0 | X54: nie | Y54: nie | Z54: nie | AA54: nie | AB54: nie | AC54: nie | AD54: nie | AE54: nie | AF54: nie | AG54: nie | AH54: 233.44
A55: 24 | B55: 24 | G55: WOJ. ŚLĄSKIE | J55: Samorząd województwa | K55: Kolegium Pracowników Służb Społecznych | L55: Dane własne | M55: publiczna | N55: Bez kategorii | O55: brak specyfiki | P55: DZ | Q55: Kolegium Pracowników Służb Społecznych | R55: Czeladź | S55: Tuwima | T55: 14a | U55: 41-250 | V55: Czeladź | W55: 0 | X55: nie | Y55: nie | Z55: nie | AA55: nie | AB55: nie | AC55: nie | AD55: nie | AE55: nie | AF55: nie | AG55: nie | AH55: 130.76
A56: 24 | B56: 24 | G56: WOJ. ŚLĄSKIE | J56: Samorząd województwa | K56: Szkoła policealna (ponadgimnazjalna) | L56: Szkoła lub placówka w ramach jednostki złożonej | M56: publiczna | N56: Dorośli | O56: brak specyfiki | P56: SZ | Q56: Medyczna Szkoła Policealna Województwa Śląskiego dla Dorosłych | R56: Sosnowiec | S56: Stalowa | T56: 9a | U56: 41-214 | V56: Sosnowiec | W56: 0 | X56: nie | Y56: nie | Z56: nie | AA56: nie | AB56: nie | AC56: nie | AD56: nie | AE56: nie | AF56: S | AG56: nie | AH56: 130.76
A57: 2413 | B57: 24 | C57: 13 | F57: Powiat nie będący miastem na pr. powiatu | G57: WOJ. ŚLĄSKIE | H57: Powiat tarnogórski | J57: Powiat ziemski | K57: Szkoła policealna (ponadgimnazjalna) | L57: Szkoła lub placówka w ramach jednostki złożonej | M57: publiczna | N57: Dorośli | O57: brak specyfiki | P57: SZ | Q57: Szkoła Policealna dla Dorosłych nr 1 | R57: Tarnowskie Góry | S57: Opolska | T57: 26 | U57: 42-600 | V57: Tarnowskie Góry | W57: 0 | X57: nie | Y57: nie | Z57: nie | AA57: nie | AB57: nie | AC57: nie | AD57: nie | AE57: nie | AF57: SZ | AG57: nie | AH57: 237.64
A58: 26 | B58: 26 | G58: WOJ. ŚWIĘTOKRZYSKIE | J58: Samorząd województwa | K58: Kolegium Pracowników Służb Społecznych | L58: Szkoła lub placówka w ramach jednostki złożonej | M58: publiczna | N58: Bez kategorii | O58: brak specyfiki | P58: DZ | Q58: Kolegium Pracowników Służb Społecznych | R58: Skarżysko-Kamienna | S58: Legionów | T58: 124 | U58: 26-110 | V58: Skarżysko-Kamienna | W58: 0 | X58: nie | Y58: nie | Z58: nie | AA58: nie | AB58: nie | AC58: nie | AD58: nie | AE58: nie | AF58: nie | AG58: nie | AH58: 80.29
A59: 2611 | B59: 26 | C59: 11 | F59: Powiat nie będący miastem na pr. powiatu | G59: WOJ. ŚWIĘTOKRZYSKIE | H59: Powiat starachowicki | J59: Powiat ziemski | K59: Liceum ogólnokształcące | L59: Szkoła lub placówka w ramach jednostki złożonej | M59: publiczna | N59: Dorośli | O59: brak specyfiki | P59: SZ | Q59: Liceum Ogólnokształcące dla Dorosłych w Starachowicach | R59: Starachowice | S59: Szkolna | T59: 10 | U59: 27-200 | V59: Starachowice | W59: 0 | X59: nie | Y59: nie | Z59: nie | AA59: nie | AB59: nie | AC59: nie | AD59: nie | AE59: nie | AF59: nie | AG59: nie | AH59: 149.72
A60: 1212 | B60: 12 | C60: 12 | F60: Powiat nie będący miastem na pr. powiatu | G60: WOJ. MAŁOPOLSKIE | H60: Powiat olkuski | J60: Powiat ziemski | K60: Szkoła policealna (ponadgimnazjalna) | L60: Szkoła lub placówka w ramach jednostki złożonej | M60: publiczna | N60: Bez kategorii | O60: brak specyfiki | P60: SZ | Q60: Szkoła Policealna Nr 1 dla Dorosłych | R60: Olkusz | S60: Górnicza | T60: 12 | U60: 32-300 | V60: Olkusz | W60: 0 | X60: nie | Y60: nie | Z60: nie | AA60: nie | AB60: nie | AC60: nie | AD60: nie | AE60: nie | AF60: SZ | AG60: nie | AH60: 215.45
A61: 1203 | B61: 12 | C61: 03 | F61: Powiat nie będący miastem na pr. powiatu | G61: WOJ. MAŁOPOLSKIE | H61: Powiat chrzanowski | J61: Powiat ziemski | K61: Szkoła policealna (ponadgimnazjalna) | L61: Szkoła lub placówka w ramach jednostki złożonej | M61: publiczna | N61: Dorośli | O61: brak specyfiki | P61: SZ | Q61: Szkoła Policealna Nr 2 w Chrzanowie | R61: Chrzanów | S61: F. Focha | T61: 3 | U61: 32-500 | V61: Chrzanów | W61: 0 | X61: nie | Y61: nie | Z61: nie | AA61: nie | AB61: nie | AC61: nie | AD61: nie | AE61: nie | AF61: SZ | AG61: nie | AH61: 228.33
A62: 1208 | B62: 12 | C62: 08 | F62: Powiat nie będący miastem na pr. powiatu | G62: WOJ. MAŁOPOLSKIE | H62: Powiat miechowski | J62: Powiat ziemski | K62: Szkoła policealna (ponadgimnazjalna) | L62: Szkoła lub placówka w ramach jednostki złożonej | M62: publiczna | N62: Bez kategorii | O62: brak specyfiki | P62: SZ | Q62: Szkoła Policealna | R62: Miechów | S62: Racławicka | T62: 23 | U62: 32-200 | V62: Miechów | W62: 0 | X62: nie | Y62: nie | Z62: nie | AA62: nie | AB62: nie | AC62: nie | AD62: nie | AE62: nie | AF62: SZ | AG62: nie | AH62: 111.45
A63: 12 | B63: 12 | G63: WOJ. MAŁOPOLSKIE | J63: Samorząd województwa | K63: Szkoła policealna (ponadgimnazjalna) | L63: Szkoła lub placówka w ramach jednostki złożonej | M63: publiczna | N63: Bez kategorii | O63: brak specyfiki | P63: SZ | Q63: SZKOŁA POLICEALNA PRACOWNIKÓW SŁUŻB MEDYCZNYCH I SPOŁECZNYCH DLA DOROSŁYYCH W GORLICACH | R63: Gorlice | S63: WŁADYSŁAWA JAGIEŁŁY | T63: 2 | U63: 38-300 | V63: GORLICE | W63: 0 | X63: nie | Y63: nie | Z63: nie | AA63: nie | AB63: nie | AC63: nie | AD63: nie | AE63: nie | AF63: SZ | AG63: nie | AH63: 120.62
A64: 1261 | B64: 12 | C64: 61 | F64: Miasto (powiat) > 150 tys. mieszkańców | G64: WOJ. MAŁOPOLSKIE | H64: Powiat m. Kraków | J64: Miasto na prawach powiatu | K64: Liceum ogólnokształcące | L64: Szkoła lub placówka w ramach jednostki złożonej | M64: publiczna | N64: Dorośli | O64: brak specyfiki | P64: SZ | Q64: V LICEUM OGÓLNOKSZTAŁCĄCE DLA DOROSŁYCH | R64: Kraków | S64: OS.SZKOLNE | T64: 21 | U64: 31-977 | V64: KRAKÓW | W64: 0 | X64: nie | Y64: nie | Z64: nie | AA64: nie | AB64: nie | AC64: nie | AD64: nie | AE64: nie | AF64: nie | AG64: nie | AH64: 333.63
A65: 3061 | B65: 30 | C65: 61 | F65: Miasto (powiat) < 150 tys. mieszkańców | G65: WOJ. WIELKOPOLSKIE | H65: Powiat m. Kalisz | J65: Miasto na prawach powiatu | K65: Liceum ogólnokształcące | L65: Szkoła lub placówka w ramach jednostki złożonej | M65: publiczna | N65: Dorośli | O65: brak specyfiki | P65: SZ | Q65: VI Liceum Ogólnokształcące dla Dorosłych | R65: Kalisz | S65: Przemysłowa | T65: 1 | U65: 62-800 | V65: Kalisz | W65: 0 | X65: nie | Y65: nie | Z65: nie | AA65: nie | AB65: nie | AC65: nie | AD65: nie | AE65: nie | AF65: nie | AG65: nie | AH65: 238.82
A66: 30 | B66: 30 | G66: WOJ. WIELKOPOLSKIE | J66: Samorząd województwa | K66: Szkoła policealna (ponadgimnazjalna) | L66: Szkoła lub placówka w ramach jednostki złożonej | M66: publiczna | N66: Dorośli | O66: brak specyfiki | P66: SZ | Q66: Policealna Szkoła Służb Społecznych i Medycznych dla Dorosłych nr 2 | R66: Poznań | S66: Mostowa | T66: 6 | U66: 61-855 | V66: Poznań | W66: 0 | X66: nie | Y66: nie | Z66: nie | AA66: nie | AB66: nie | AC66: nie | AD66: nie | AE66: nie | AF66: SZ | AG66: nie | AH66: 168.8 | AI66: =IF(($AH66-$AJ$1)<0,($AH66-$AJ$1)*(-1),($AH66-$AJ$1)) -> 
A67: 30 | B67: 30 | G67: WOJ. WIELKOPOLSKIE | J67: Samorząd województwa | K67: Szkoła policealna (ponadgimnazjalna) | L67: Szkoła lub placówka w ramach jednostki złożonej | M67: publiczna | N67: Dorośli | O67: brak specyfiki | P67: SZ | Q67: POLICEALNA SZKOŁA SŁUZB SPOŁECZNYCH I MEDYCZNYCH DLA DOROSŁYCH W RAWICZU | R67: Rawicz | S67: GENERAŁA GROTA ROWECKIEGO | T67: 6 | U67: 63-900 | V67: RAWICZ | W67: 0 | X67: nie | Y67: nie | Z67: nie | AA67: nie | AB67: nie | AC67: nie | AD67: nie | AE67: nie | AF67: SZ | AG67: nie | AH67: 168.8
A68: 0663 | B68: 06 | C68: 63 | F68: Miasto (powiat) > 150 tys. mieszkańców | G68: WOJ. LUBELSKIE | H68: Powiat m. Lublin | J68: Miasto na prawach powiatu | K68: Liceum ogólnokształcące | L68: Szkoła lub placówka w ramach jednostki złożonej | M68: publiczna | N68: Dorośli | O68: brak specyfiki | P68: SZ | Q68: XXV Liceum Ogólnokształcące dla Dorosłych | R68: Lublin | S68: Krochmlana | T68: 29 | U68: 20-401 | V68: Lublin | W68: 0 | X68: nie | Y68: nie | Z68: nie | AA68: nie | AB68: nie | AC68: nie | AD68: nie | AE68: nie | AF68: nie | AG68: nie | AH68: 264.52
A69: 0663 | B69: 06 | C69: 63 | F69: Miasto (powiat) > 150 tys. mieszkańców | G69: WOJ. LUBELSKIE | H69: Powiat m. Lublin | J69: Miasto na prawach powiatu | K69: Liceum ogólnokształcące | L69: Szkoła lub placówka w ramach jednostki złożonej | M69: publiczna | N69: Dorośli | O69: brak specyfiki | P69: SZ | Q69: XXVI Liceum Ogólnokształcące dla Dorosłych w Lublinie | R69: Lublin | S69: Pogodna | T69: 52 | U69: 20-337 | V69: Lublin | W69: 0 | X69: nie | Y69: nie | Z69: nie | AA69: nie | AB69: nie | AC69: nie | AD69: nie | AE69: nie | AF69: nie | AG69: nie | AH69: 264.52
A70: 0662 | B70: 06 | C70: 62 | F70: Miasto (powiat) < 150 tys. mieszkańców | G70: WOJ. LUBELSKIE | H70: Powiat m. Chełm | J70: Miasto na prawach powiatu | K70: Liceum ogólnokształcące | L70: Szkoła lub placówka w ramach jednostki złożonej | M70: publiczna | N70: Dorośli | O70: brak specyfiki | P70: SZ | Q70: Liceum Ogólnokształcące dla Dorosłych nr VII | R70: Chełm | S70: BATOREGO | T70: 1 | U70: 22-100 | V70: CHEŁM | W70: 0 | X70: nie | Y70: nie | Z70: nie | AA70: nie | AB70: nie | AC70: nie | AD70: nie | AE70: nie | AF70: nie | AG70: nie | AH70: 185.66
A71: 0608 | B71: 06 | C71: 08 | F71: Powiat nie będący miastem na pr. powiatu | G71: WOJ. LUBELSKIE | H71: Powiat lubartowski | J71: Powiat ziemski | K71: Liceum ogólnokształcące | L71: Szkoła lub placówka w ramach jednostki złożonej | M71: publiczna | N71: Dorośli | O71: brak specyfiki | P71: SZ | Q71: I Liceum Ogólnokształcące dla Dorosłych w Lubartowie | R71: Lubartów | S71: 1 Maja | T71: 82 | U71: 21-100 | V71: Lubatów | W71: 0 | X71: nie | Y71: nie | Z71: nie | AA71: nie | AB71: nie | AC71: nie | AD71: nie | AE71: nie | AF71: nie | AG71: nie | AH71: 114.53
A72: 06 | B72: 06 | G72: WOJ. LUBELSKIE | J72: Samorząd województwa | K72: Szkoła policealna (ponadgimnazjalna) | L72: Dane własne | M72: publiczna | N72: Bez kategorii | O72: brak specyfiki | P72: DSZ | Q72: Medyczne Studium Zawodowe w Chełmie | R72: Chełm | S72: Szpitalna | T72: 50 | U72: 22-100 | V72: Chełm | W72: 0 | X72: nie | Y72: nie | Z72: nie | AA72: nie | AB72: nie | AC72: nie | AD72: nie | AE72: nie | AF72: DSZ | AG72: nie | AH72: 79.1
A73: 06 | B73: 06 | G73: WOJ. LUBELSKIE | J73: Samorząd województwa | K73: Szkoła policealna (ponadgimnazjalna) | L73: Dane własne | M73: publiczna | N73: Bez kategorii | O73: brak specyfiki | P73: DS | Q73: Medyczne Studium Zawodowe im. Stanisława Liebharta w Lublinie | R73: Lublin | S73: Jaczewskiego | T73: 5 | U73: 20-090 | V73: Lublin | W73: 0 | X73: nie | Y73: nie | Z73: nie | AA73: nie | AB73: nie | AC73: nie | AD73: nie | AE73: nie | AF73: DS | AG73: nie | AH73: 79.1
A74: 06 | B74: 06 | G74: WOJ. LUBELSKIE | J74: Samorząd województwa | K74: Szkoła policealna (ponadgimnazjalna) | L74: Dane własne | M74: publiczna | N74: Bez kategorii | O74: brak specyfiki | P74: DS | Q74: Medyczne Studium Zawodowe w Łukowie | R74: Łuków | S74: Kryńskiego | T74: 10 | U74: 21-400 | V74: Łuków | W74: 0 | X74: nie | Y74: nie | Z74: nie | AA74: nie | AB74: nie | AC74: nie | AD74: nie | AE74: nie | AF74: DS | AG74: nie | AH74: 79.1
A75: 06 | B75: 06 | G75: WOJ. LUBELSKIE | J75: Samorząd województwa | K75: Szkoła policealna (ponadgimnazjalna) | L75: Dane własne | M75: publiczna | N75: Bez kategorii | O75: brak specyfiki | P75: DSZ | Q75: Medyczne Studium Zawodowe im. Polskiego Czerwonego Krzyża w Puławach | R75: Puławy | S75: Mickiewicza | T75: 29 | U75: 24-100 | V75: Puławy | W75: 0 | X75: nie | Y75: nie | Z75: nie | AA75: nie | AB75: nie | AC75: nie | AD75: nie | AE75: nie | AF75: DS | AG75: nie | AH75: 79.1
A76: 06 | B76: 06 | G76: WOJ. LUBELSKIE | J76: Samorząd województwa | K76: Szkoła policealna (ponadgimnazjalna) | L76: Dane własne | M76: publiczna | N76: Bez kategorii | O76: brak specyfiki | P76: DS | Q76: MEDYCZNE STUDIUM ZAWODOWE im. Marii Minczewskiej w Białej Podlaskiej | R76: Biała Podlaska | S76: Okopowa | T76: 3 | U76: 21-500 | V76: Biała Podlaska | W76: 0 | X76: nie | Y76: nie | Z76: nie | AA76: nie | AB76: nie | AC76: nie | AD76: nie | AE76: nie | AF76: DS | AG76: nie | AH76: 79.1
A77: 06 | B77: 06 | G77: WOJ. LUBELSKIE | J77: Samorząd województwa | K77: Szkoła policealna (ponadgimnazjalna) | L77: Dane własne | M77: publiczna | N77: Bez kategorii | O77: brak specyfiki | P77: DS | Q77: Medyczne Studium Zawodowe im. Zofii Bagińskiej w Parczewie | R77: Parczew | S77: 0 | T77: 0 | U77: 21-200 | V77: Parczew | W77: 0 | X77: nie | Y77: nie | Z77: nie | AA77: nie | AB77: nie | AC77: nie | AD77: nie | AE77: nie | AF77: D | AG77: nie | AH77: 79.1
A78: 06 | B78: 06 | G78: WOJ. LUBELSKIE | J78: Samorząd województwa | K78: Szkoła policealna (ponadgimnazjalna) | L78: Dane własne | M78: publiczna | N78: Bez kategorii | O78: brak specyfiki | P78: DZ | Q78: Medyczne Studium Zawodowe w Zamościu | R78: Zamość | S78: Partyzantów | T78: 20 | U78: 22-400 | V78: Zamość | W78: 0 | X78: nie | Y78: nie | Z78: nie | AA78: nie | AB78: nie | AC78: nie | AD78: nie | AE78: nie | AF78: DZ | AG78: nie | AH78: 79.1
A79: 06 | B79: 06 | G79: WOJ. LUBELSKIE | J79: Samorząd województwa | K79: Szkoła policealna (ponadgimnazjalna) | L79: Dane własne | M79: publiczna | N79: Bez kategorii | O79: brak specyfiki | P79: DSZ | Q79: Szkoła Policealna Pracowników Służb Społecznych w Lublinie | R79: Lublin | S79: Sulisławicka | T79: 7 | U79: 20-360 | V79: Lublin | W79: 0 | X79: nie | Y79: nie | Z79: nie | AA79: nie | AB79: nie | AC79: nie | AD79: nie | AE79: nie | AF79: DSZ | AG79: nie | AH79: 79.1
A80: 06 | B80: 06 | G80: WOJ. LUBELSKIE | J80: Samorząd województwa | K80: Szkoła policealna (ponadgimnazjalna) | L80: Dane własne | M80: publiczna | N80: Bez kategorii | O80: brak specyfiki | P80: DS | Q80: Medyczne Studium Zawodowe im. Stefanii Wołynki | R80: Janów Lubelski | S80: Jana Zamoyskiego | T80: 57 | U80: 23-300 | V80: Janów Lubelski | W80: 0 | X80: nie | Y80: nie | Z80: nie | AA80: nie | AB80: nie | AC80: nie | AD80: nie | AE80: nie | AF80: D | AG80: nie | AH80: 79.1
A81: 06 | B81: 06 | G81: WOJ. LUBELSKIE | J81: Samorząd województwa | K81: Szkoła policealna (ponadgimnazjalna) | L81: Dane własne | M81: publiczna | N81: Bez kategorii | O81: brak specyfiki | P81: DSZ | Q81: Medyczne Studium Zawodowe w Biłgoraju | R81: Biłgoraj | S81: Tadeusza Kościuszki | T81: 127 | U81: 23-400 | V81: Biłgoraj | W81: 0 | X81: nie | Y81: nie | Z81: nie | AA81: nie | AB81: nie | AC81: nie | AD81: nie | AE81: nie | AF81: DS | AG81: nie | AH81: 79.1
A82: 0610 | B82: 06 | C82: 10 | F82: Powiat nie będący miastem na pr. powiatu | G82: WOJ. LUBELSKIE | H82: Powiat łęczyński | J82: Powiat ziemski | K82: Szkoła policealna (ponadgimnazjalna) | L82: Szkoła lub placówka w ramach jednostki złożonej | M82: publiczna | N82: Dorośli | O82: brak specyfiki | P82: SZ | Q82: Szkoła Policealna dla Dorosłych | R82: Ludwin | S82: 0 | T82: 30a | U82: 21-075 | V82: Ludwin | W82: 0 | X82: nie | Y82: nie | Z82: nie | AA82: nie | AB82: nie | AC82: nie | AD82: nie | AE82: nie | AF82: SZ | AG82: nie | AH82: 174.6
A83: 0664 | B83: 06 | C83: 64 | F83: Miasto (powiat) < 150 tys. mieszkańców | G83: WOJ. LUBELSKIE | H83: Powiat m. Zamość | J83: Miasto na prawach powiatu | K83: Liceum ogólnokształcące | L83: Szkoła lub placówka w ramach jednostki złożonej | M83: publiczna | N83: Dorośli | O83: brak specyfiki | P83: SZ | Q83: Liceum Ogólnokształcące dla Dorosłych w Zamościu | R83: Zamość | S83: Partyzantów | T83: 14 | U83: 22-400 | V83: Zamość | W83: 0 | X83: nie | Y83: nie | Z83: nie | AA83: nie | AB83: nie | AC83: nie | AD83: nie | AE83: nie | AF83: nie | AG83: nie | AH83: 192.59
A84: 0664 | B84: 06 | C84: 64 | F84: Miasto (powiat) < 150 tys. mieszkańców | G84: WOJ. LUBELSKIE | H84: Powiat m. Zamość | J84: Miasto na prawach powiatu | K84: Szkoła policealna (ponadgimnazjalna) | L84: Szkoła lub placówka w ramach jednostki złożonej | M84: publiczna | N84: Dorośli | O84: brak specyfiki | P84: SZ | Q84: Szkoła Policealna dla Dorosłych w Zamościu | R84: Zamość | S84: Partyzantów | T84: 14 | U84: 22-400 | V84: Zamość | W84: 0 | X84: nie | Y84: nie | Z84: nie | AA84: nie | AB84: nie | AC84: nie | AD84: nie | AE84: nie | AF84: nie | AG84: nie | AH84: 192.59
A85: 3261011 | B85: 32 | C85: 61 | D85: 01 | F85: Miasto (powiat) < 150 tys. mieszkańców | G85: WOJ. ZACHODNIOPOMORSKIE | H85: Powiat m. Koszalin | I85: M. Koszalin | J85: Gmina | K85: Gimnazjum | L85: Szkoła lub placówka w ramach jednostki złożonej | M85: publiczna | N85: Dorośli | O85: brak specyfiki | P85: SZ | Q85: Gimnazjum dla Dorosłych | R85: Koszalin | S85: JANA PAWŁA II | T85: 17 | U85: 75-452 | V85: KOSZALIN | W85: 0 | X85: nie | Y85: nie | Z85: nie | AA85: nie | AB85: nie | AC85: nie | AD85: nie | AE85: nie | AF85: nie | AG85: nie | AH85: 1672.79
A86: 3261 | B86: 32 | C86: 61 | F86: Miasto (powiat) < 150 tys. mieszkańców | G86: WOJ. ZACHODNIOPOMORSKIE | H86: Powiat m. Koszalin | J86: Miasto na prawach powiatu | K86: Liceum ogólnokształcące | L86: Szkoła lub placówka w ramach jednostki złożonej | M86: publiczna | N86: Dorośli | O86: brak specyfiki | P86: SZ | Q86: Liceum Ogólnokształcace dla Dorosłych | R86: Koszalin | S86: JANA PAWŁA II | T86: 17 | U86: 75-452 | V86: KOSZALIN | W86: 0 | X86: nie | Y86: nie | Z86: nie | AA86: nie | AB86: nie | AC86: nie | AD86: nie | AE86: nie | AF86: nie | AG86: nie | AH86: 246.08
A87: 32 | B87: 32 | G87: WOJ. ZACHODNIOPOMORSKIE | J87: Samorząd województwa | K87: Szkoła policealna (ponadgimnazjalna) | L87: Szkoła lub placówka w ramach jednostki złożonej | M87: publiczna | N87: Dorośli | O87: brak specyfiki | P87: SZ | Q87: Wojewódzka Szkoła Policealna dla Dorosłych w Szczecinie | R87: Szczecin | S87: WŁADYSŁAWA BRONIEWSKIEGO | T87: 9 | U87: 71-460 | V87: SZCZECIN | W87: 0 | X87: nie | Y87: nie | Z87: nie | AA87: nie | AB87: nie | AC87: nie | AD87: nie | AE87: nie | AF87: SZ | AG87: nie | AH87: 101.94
A88: 2808 | B88: 28 | C88: 08 | F88: Powiat nie będący miastem na pr. powiatu | G88: WOJ. WARMIŃSKO-MAZURSKIE | H88: Powiat kętrzyński | J88: Powiat ziemski | K88: Liceum ogólnokształcące | L88: Szkoła lub placówka w ramach jednostki złożonej | M88: publiczna | N88: Dorośli | O88: brak specyfiki | P88: SZ | Q88: Liceum Ogólnokształcące dla Dorosłych | R88: Kętrzyn | S88: Poznańska | T88: 21 | U88: 11-400 | V88: Kętrzyn | W88: 0 | X88: nie | Y88: nie | Z88: nie | AA88: nie | AB88: nie | AC88: nie | AD88: nie | AE88: nie | AF88: nie | AG88: nie | AH88: 132.24
A89: 28 | B89: 28 | G89: WOJ. WARMIŃSKO-MAZURSKIE | J89: Samorząd województwa | K89: Szkoła policealna (ponadgimnazjalna) | L89: Dane własne | M89: publiczna | N89: Dorośli | O89: brak specyfiki | P89: SZ | Q89: Szkoła Policealna im. prof. Zbigniewa Religi w Olsztynie | R89: Olsztyn | S89: Mariańska | T89: 3A | U89: 10-052 | V89: Olsztyn | W89: 0 | X89: nie | Y89: nie | Z89: nie | AA89: nie | AB89: nie | AC89: nie | AD89: nie | AE89: nie | AF89: SZ | AG89: nie | AH89: 79.68
A90: 2806 | B90: 28 | C90: 06 | F90: Powiat nie będący miastem na pr. powiatu | G90: WOJ. WARMIŃSKO-MAZURSKIE | H90: Powiat giżycki | J90: Powiat ziemski | K90: Szkoła policealna (ponadgimnazjalna) | L90: Dane własne | M90: publiczna | N90: Bez kategorii | O90: brak specyfiki | P90: DSZ | Q90: Szkoła Policealna | R90: Giżycko | S90: Sikorskiego | T90: 3 | U90: 11-500 | V90: Giżycko | W90: 0 | X90: nie | Y90: nie | Z90: nie | AA90: nie | AB90: nie | AC90: nie | AD90: nie | AE90: nie | AF90: DSZ | AG90: nie | AH90: 149.81
A91: 2813 | B91: 28 | C91: 13 | F91: Powiat nie będący miastem na pr. powiatu | G91: WOJ. WARMIŃSKO-MAZURSKIE | H91: Powiat olecki | J91: Powiat ziemski | K91: Szkoła policealna (ponadgimnazjalna) | L91: Szkoła lub placówka w ramach jednostki złożonej | M91: publiczna | N91: Dorośli | O91: brak specyfiki | P91: SZ | Q91: Szkoła Policealna Nr 1 | R91: Olecko | S91: Gołdapska | T91: 29 | U91: 19-400 | V91: Olecko | W91: 0 | X91: nie | Y91: nie | Z91: nie | AA91: nie | AB91: nie | AC91: nie | AD91: nie | AE91: nie | AF91: SZ | AG91: nie | AH91: 122.25
A92: 2816 | B92: 28 | C92: 16 | F92: Powiat nie będący miastem na pr. powiatu | G92: WOJ. WARMIŃSKO-MAZURSKIE | H92: Powiat piski | J92: Powiat ziemski | K92: Szkoła policealna (ponadgimnazjalna) | L92: Szkoła lub placówka w ramach jednostki złożonej | M92: publiczna | N92: Dorośli | O92: brak specyfiki | P92: SZ | Q92: Szkoła Policealna dla Dorosłych | R92: Pisz | S92: Warszawska | T92: 5 | U92: 12-200 | V92: Pisz | W92: 0 | X92: nie | Y92: nie | Z92: nie | AA92: nie | AB92: nie | AC92: nie | AD92: nie | AE92: nie | AF92: SZ | AG92: nie | AH92: 112.14
A93: 0862 | B93: 08 | C93: 62 | F93: Miasto (powiat) < 150 tys. mieszkańców | G93: WOJ. LUBUSKIE | H93: Powiat m. Zielona Góra | J93: Miasto na prawach powiatu | K93: Szkoła policealna (ponadgimnazjalna) | L93: Szkoła lub placówka w ramach jednostki złożonej | M93: publiczna | N93: Dorośli | O93: brak specyfiki | P93: SZ | Q93: Szkoła Policealna | R93: Zielona Góra | S93: Staszica | T93: 2 | U93: 65-175 | V93: Zielona Góra | W93: 0 | X93: nie | Y93: nie | Z93: nie | AA93: nie | AB93: nie | AC93: nie | AD93: nie | AE93: nie | AF93: nie | AG93: nie | AH93: 236.83
A94: 08 | B94: 08 | G94: WOJ. LUBUSKIE | J94: Samorząd województwa | K94: Szkoła policealna (ponadgimnazjalna) | L94: Szkoła lub placówka w ramach jednostki złożonej | M94: publiczna | N94: Dorośli | O94: brak specyfiki | P94: SZ | Q94: Szkoła Policealna Nr 1 "Medyk" | R94: Zielona Góra | S94: Wazow | T94: 44 | U94: 65-044 | V94: Zielona Góra | W94: 0 | X94: nie | Y94: nie | Z94: nie | AA94: nie | AB94: nie | AC94: nie | AD94: nie | AE94: nie | AF94: SZ | AG94: nie | AH94: 106.1
A95: 3262 | B95: 32 | C95: 62 | F95: Miasto (powiat) > 150 tys. mieszkańców | G95: WOJ. ZACHODNIOPOMORSKIE | H95: Powiat m. Szczecin | J95: Miasto na prawach powiatu | K95: Liceum ogólnokształcące | L95: Szkoła lub placówka w ramach jednostki złożonej | M95: publiczna | N95: Dorośli | O95: brak specyfiki | P95: SZ | Q95: Liceum Ogólnokształcące dla Dorosłych nr 2 | R95: Szczecin | S95: Hoża | T95: 6 | U95: 71-699 | V95: Szczecin | W95: 0 | X95: nie | Y95: nie | Z95: nie | AA95: nie | AB95: nie | AC95: nie | AD95: nie | AE95: nie | AF95: nie | AG95: nie | AH95: 253.99
A96: 2202 | B96: 22 | C96: 02 | F96: Powiat nie będący miastem na pr. powiatu | G96: WOJ. POMORSKIE | H96: Powiat chojnicki | J96: Powiat ziemski | K96: Liceum ogólnokształcące | L96: Szkoła lub placówka w ramach jednostki złożonej | M96: publiczna | N96: Dorośli | O96: brak specyfiki | P96: SZ | Q96: Liceum Ogólnokształcące dla Dorosłych | R96: Chojnice | S96: Świętopełka | T96: 3 | U96: 89-600 | V96: Chojnice | W96: 0 | X96: nie | Y96: nie | Z96: nie | AA96: nie | AB96: nie | AC96: nie | AD96: nie | AE96: nie | AF96: nie | AG96: nie | AH96: 144.17
A97: 2815 | B97: 28 | C97: 15 | F97: Powiat nie będący miastem na pr. powiatu | G97: WOJ. WARMIŃSKO-MAZURSKIE | H97: Powiat ostródzki | J97: Powiat ziemski | K97: Liceum ogólnokształcące | L97: Szkoła lub placówka w ramach jednostki złożonej | M97: publiczna | N97: Dorośli | O97: brak specyfiki | P97: SZ | Q97: Liceum Ogólnokształcące | R97: Ostróda | S97: Kardynała Stefana Wyszyńskiego | T97: 2 | U97: 14-100 | V97: Ostróda | W97: 0 | X97: nie | Y97: nie | Z97: nie | AA97: nie | AB97: nie | AC97: nie | AD97: nie | AE97: nie | AF97: nie | AG97: nie | AH97: 132.1
A98: 2815 | B98: 28 | C98: 15 | F98: Powiat nie będący miastem na pr. powiatu | G98: WOJ. WARMIŃSKO-MAZURSKIE | H98: Powiat ostródzki | J98: Powiat ziemski | K98: Szkoła policealna (ponadgimnazjalna) | L98: Szkoła lub placówka w ramach jednostki złożonej | M98: publiczna | N98: Dorośli | O98: brak specyfiki | P98: SZ | Q98: Szkoła Policealna | R98: Ostróda | S98: Kardynała Stefana Wyszyńskiego | T98: 2 | U98: 14-100 | V98: Ostróda | W98: 0 | X98: nie | Y98: nie | Z98: nie | AA98: nie | AB98: nie | AC98: nie | AD98: nie | AE98: nie | AF98: SZ | AG98: nie | AH98: 132.1
A99: 1008 | B99: 10 | C99: 08 | F99: Powiat nie będący miastem na pr. powiatu | G99: WOJ. ŁÓDZKIE | H99: Powiat pabianicki | J99: Powiat ziemski | K99: Szkoła policealna (ponadgimnazjalna) | L99: Szkoła lub placówka w ramach jednostki złożonej | M99: publiczna | N99: Dorośli | O99: brak specyfiki | P99: SZ | Q99: Szkoła Policealna | R99: Pabianice | S99: Gdańska | T99: 5 | U99: 95-200 | V99: Pabianice | W99: 0 | X99: nie | Y99: nie | Z99: nie | AA99: nie | AB99: nie | AC99: nie | AD99: nie | AE99: nie | AF99: S | AG99: nie | AH99: 215.92

Sheet mlodociani_data (hidden)
C1: =panel!C17 -> 
A4: numer RSPO | B4: Wsk. | C4: KOD_JST | D4: JST | K4: Organ prowadzący | P4: Typ szkoły | Q4: Klasa wlk. | R4: Złożoność | S4: Publicznośc | T4: Kateg. uczniów | U4: Specyfika szkoły | V4: Podbudowa | W4: Związanie org. | X4: Niep. dominująca | Y4: Tryb | Z4: Nabór | AA4: Nazwa szkoły/placówki | AB4: Regon | AC4: Położenie | AF4: Miejscowość | AG4: Ulica | AH4: Dom/lokal | AI4: Kod poczt. | AJ4: Poczta | AK4: Liczba uczniów
D5: woj | E5: pow | F5: gmi | G5: województwo | H5: powiat | I5: gmina | J5: typ gminy | K5: Kod | L5: Nazwa | M5: Woj | N5: Pow | O5: Gmi | AC5: woj | AD5: pow | AE5: gmi | AK5: ogółem | AL5: P12
A6: 1 | B6: 2 | C6: 3 | D6: 4 | E6: 5 | F6: 6 | G6: 7 | H6: 8 | I6: 9 | J6: 10 | K6: 11 | L6: 12 | M6: 13 | N6: 14 | O6: 15 | P6: 16 | Q6: 17 | R6: 18 | S6: 19 | T6: 20 | U6: 21 | V6: 22 | W6: 23 | X6: 24 | Y6: 25 | Z6: 26 | AA6: 27 | AB6: 28 | AC6: 29 | AD6: 30 | AE6: 31 | AF6: 32 | AG6: 33 | AH6: 34 | AI6: 35 | AJ6: 36 | AK6: 37 | AL6: 38 | AM6: TERYT | AN6: WK | AO6: PK | AP6: GK | AQ6: Gmina typ | AR6: Powiat typ | AS6: województwo | AT6: powiat | AU6: gmina | AV6: Organ prowadzący Nazwa | AW6: Typ szkoły | AX6: Złożoność | AY6: Publiczność | AZ6: Kateg. Uczniów | BA6: Specyfika szkoły | BB6: Tryb nauki | BC6: Nazwa szkoły/placówki | BD6: Miejscowość | BE6: Ulica | BF6: Dom/lokal | BG6: Kod poczt. | BH6: Poczta | BI6: Liczba uczniów ogółem | BJ6: Młodociani pracownicy | BK6: Wskaźnik dochodów | BL6: Różnica wsk. doch.
A7: 19335 | C7: =D7&E7&F7 -> 0201 | D7: 02 | E7: 01 | G7: DOLNOŚLĄSKIE | H7: bolesławiecki | K7: 0003 | L7: Powiat ziemski | M7: 02 | N7: 01 | P7: 00013 | Q7: 2 | R7: 002 | S7: 001 | T7: 001 | U7: 100 | V7: 0003 | W7: 0100 | Y7: 001 | Z7: 01 | AA7: Zasadnicza Szkoła Zawodowa nr 1 w Bolesławcu | AB7: 23118359100000 | AC7: 02 | AD7: 01 | AE7: 01 | AF7: Bolesławiec | AG7: Gorne Młyny | AH7: 1 | AI7: 59-700 | AJ7: Bolesławiec | AK7: 93 | AL7: 34 | AM7: =AN7&AO7&AP7 -> 0201 | AN7: =IF(D7="","",D7) -> 02 | AO7: =IF(E7="","",E7) -> 01 | AQ7: =IF(LEN($AM7)=6,VLOOKUP($AM7,slownik_JST!$B:$J,9,0),"") ->  | AR7: =VLOOKUP($AN7&$AO7,slownik_JST!$B:$J,9,0) -> Powiat nie będący miastem na pr. powiatu | AS7: =IF(G7="","",G7) -> DOLNOŚLĄSKIE | AT7: bolesławiecki | AU7: =IF(I7="","",I7) ->  | AV7: =L7 -> Powiat ziemski | AW7: =VLOOKUP(P7,listy_plac!$M$2:$N$52,2,0) -> Zasadnicza szkoła zawodowa | AX7: =VLOOKUP(R7,listy_plac!$Z$27:$AA$32,2,0) -> Szkoła lub placówka w ramach jednostki złożonej | AY7: =VLOOKUP(S7,listy_plac!$Z$2:$AA$5,2,0) -> publiczna | AZ7: =VLOOKUP(T7,listy_plac!$Z$8:$AA$10,2,0) -> Dzieci lub młodzież | BA7: =VLOOKUP(U7,listy_plac!$Z$13:$AA$15,2,0) -> brak specyfiki | BB7: =VLOOKUP(Y7,listy_plac!$Z$18:$AA$24,2,0) -> dzienna | BC7: =AA7 -> Zasadnicza Szkoła Zawodowa nr 1 w Bolesławcu | BD7: =AF7 -> Bolesławiec | BE7: =AG7 -> Gorne Młyny | BF7: =AH7 -> 1 | BG7: 59-700 | BH7: Bolesławiec | BI7: =AK7 -> 93 | BJ7: =AL7 -> 34 | BK7: =VLOOKUP(AM7,wsk_doch!B:D,3,0) -> 174.71 | BL7: =IF(($BK7-$C$1)<0,($BK7-$C$1)*(-1),($BK7-$C$1)) -> 
A8: 19605 | C8: 0201 | D8: 02 | E8: 01 | G8: DOLNOŚLĄSKIE | H8: bolesławiecki | K8: 0003 | L8: Powiat ziemski | M8: 02 | N8: 01 | P8: 00013 | Q8: 2 | R8: 002 | S8: 001 | T8: 001 | U8: 100 | V8: 0003 | W8: 0100 | Y8: 001 | Z8: 01 | AA8: Zasadnicza Szkoła Zawodowa Nr 2 w Bolesławcu | AB8: 23118416500000 | AC8: 02 | AD8: 01 | AE8: 01 | AF8: Bolesławiec | AG8: Aleja 1000-lecia | AH8: 51 | AI8: 59-700 | AJ8: Bolesławiec | AK8: 133 | AL8: 95 | AM8: =AN8&AO8&AP8 -> 0201 | AN8: =IF(D8="","",D8) -> 02 | AO8: =IF(E8="","",E8) -> 01 | AP8: =IF(F8="","",F8) ->  | AQ8: =IF(LEN($AM8)=6,VLOOKUP($AM8,slownik_JST!$B:$J,9,0),"") ->  | AR8: =VLOOKUP($AN8&$AO8,slownik_JST!$B:$J,9,0) -> Powiat nie będący miastem na pr. powiatu | AS8: =IF(G8="","",G8) -> DOLNOŚLĄSKIE | AT8: =IF(H8="","",H8) -> bolesławiecki | AU8: =IF(I8="","",I8) ->  | AV8: =L8 -> Powiat ziemski | AW8: =VLOOKUP(P8,listy_plac!$M$2:$N$52,2,0) -> Zasadnicza szkoła zawodowa | AX8: =VLOOKUP(R8,listy_plac!$Z$27:$AA$32,2,0) -> Szkoła lub placówka w ramach jednostki złożonej | AY8: =VLOOKUP(S8,listy_plac!$Z$2:$AA$5,2,0) -> publiczna | AZ8: =VLOOKUP(T8,listy_plac!$Z$8:$AA$10,2,0) -> Dzieci lub młodzież | BA8: =VLOOKUP(U8,listy_plac!$Z$13:$AA$15,2,0) -> brak specyfiki | BB8: =VLOOKUP(Y8,listy_plac!$Z$18:$AA$24,2,0) -> dzienna | BC8: =AA8 -> Zasadnicza Szkoła Zawodowa Nr 2 w Bolesławcu | BD8: =AF8 -> Bolesławiec | BE8: =AG8 -> Aleja 1000-lecia | BF8: =AH8 -> 51 | BG8: =AI8 -> 59-700 | BH8: =AJ8 -> Bolesławiec | BI8: =AK8 -> 133 | BJ8: =AL8 -> 95 | BK8: =VLOOKUP(AM8,wsk_doch!B:D,3,0) -> 174.71 | BL8: =IF(($BK8-$C$1)<0,($BK8-$C$1)*(-1),($BK8-$C$1)) -> 
A9: 22765 | C9: 0201 | D9: 02 | E9: 01 | G9: DOLNOŚLĄSKIE | H9: bolesławiecki | K9: 0003 | L9: Powiat ziemski | M9: 02 | N9: 01 | P9: 00013 | Q9: 2 | R9: 002 | S9: 001 | T9: 001 | U9: 100 | V9: 0003 | W9: 0100 | Y9: 001 | Z9: 01 | AA9: Zasadnicza Szkoła Zawodowa nr 5 w Bolesławcu | AB9: 23118456700000 | AC9: 02 | AD9: 01 | AE9: 01 | AF9: Bolesławiec | AG9: Zgorzelecka | AH9: 18 | AI9: 59-700 | AJ9: Bolesławiec | AK9: 127 | AL9: 127 | AM9: 0201 | AN9: 02 | AO9: 01 | AQ9: =IF(LEN($AM9)=6,VLOOKUP($AM9,slownik_JST!$B:$J,9,0),"") ->  | AR9: =VLOOKUP($AN9&$AO9,slownik_JST!$B:$J,9,0) -> Powiat nie będący miastem na pr. powiatu | AS9: DOLNOŚLĄSKIE | AT9: bolesławiecki | AV9: Powiat ziemski | AW9: =VLOOKUP(P9,listy_plac!$M$2:$N$52,2,0) -> Zasadnicza szkoła zawodowa | AX9: =VLOOKUP(R9,listy_plac!$Z$27:$AA$32,2,0) -> Szkoła lub placówka w ramach jednostki złożonej | AY9: =VLOOKUP(S9,listy_plac!$Z$2:$AA$5,2,0) -> publiczna | AZ9: =VLOOKUP(T9,listy_plac!$Z$8:$AA$10,2,0) -> Dzieci lub młodzież | BA9: =VLOOKUP(U9,listy_plac!$Z$13:$AA$15,2,0) -> brak specyfiki | BB9: =VLOOKUP(Y9,listy_plac!$Z$18:$AA$24,2,0) -> dzienna | BC9: Zasadnicza Szkoła Zawodowa nr 5 w Bolesławcu | BD9: Bolesławiec | BE9: Zgorzelecka | BF9: 18 | BG9: 59-700 | BH9: Bolesławiec | BI9: 127 | BJ9: 127 | BK9: =VLOOKUP(AM9,wsk_doch!B:D,3,0) -> 174.71
A10: 49570 | C10: 0202 | D10: 02 | E10: 02 | G10: DOLNOŚLĄSKIE | H10: dzierżoniowski | K10: 0003 | L10: Powiat ziemski | M10: 02 | N10: 02 | P10: 00013 | Q10: 2 | R10: 002 | S10: 001 | T10: 001 | U10: 100 | V10: 0003 | W10: 0100 | Y10: 001 | Z10: 01 | AA10: Zespół Szkół Nr 2 im. prof. Tadeusza Kotarbińskiego w Dzierżoniowie Zasadnicza Szkoła Zawodowa Nr 2 | AB10: 89141786200000 | AC10: 02 | AD10: 02 | AE10: 02 | AF10: Dzierżoniów | AG10: Piłsudskiego | AH10: 24 | AI10: 58-200 | AJ10: Dzierżoniów | AK10: 212 | AL10: 186 | AM10: 0202 | AN10: 02 | AO10: 02 | AQ10: =IF(LEN($AM10)=6,VLOOKUP($AM10,slownik_JST!$B:$J,9,0),"") ->  | AR10: =VLOOKUP($AN10&$AO10,slownik_JST!$B:$J,9,0) -> Powiat nie będący miastem na pr. powiatu | AS10: DOLNOŚLĄSKIE | AT10: dzierżoniowski | AV10: Powiat ziemski | AW10: =VLOOKUP(P10,listy_plac!$M$2:$N$52,2,0) -> Zasadnicza szkoła zawodowa | AX10: =VLOOKUP(R10,listy_plac!$Z$27:$AA$32,2,0) -> Szkoła lub placówka w ramach jednostki złożonej | AY10: =VLOOKUP(S10,listy_plac!$Z$2:$AA$5,2,0) -> publiczna | AZ10: =VLOOKUP(T10,listy_plac!$Z$8:$AA$10,2,0) -> Dzieci lub młodzież | BA10: =VLOOKUP(U10,listy_plac!$Z$13:$AA$15,2,0) -> brak specyfiki | BB10: =VLOOKUP(Y10,listy_plac!$Z$18:$AA$24,2,0) -> dzienna | BC10: Zespół Szkół Nr 2 im. prof. Tadeusza Kotarbińskiego w Dzierżoniowie Zasadnicza Szkoła Zawodowa Nr 2 | BD10: Dzierżoniów | BE10: Piłsudskiego | BF10: 24 | BG10: 58-200 | BH10: Dzierżoniów | BI10: 212 | BJ10: 186 | BK10: =VLOOKUP(AM10,wsk_doch!B:D,3,0) -> 153.07
A11: 49585 | C11: 0202 | D11: 02 | E11: 02 | G11: DOLNOŚLĄSKIE | H11: dzierżoniowski | K11: 0003 | L11: Powiat ziemski | M11: 02 | N11: 02 | P11: 00013 | Q11: 2 | R11: 002 | S11: 001 | T11: 001 | U11: 001 | V11: 0003 | W11: 0011 | X11: 005 | Y11: 001 | Z11: 01 | AA11: Zasadnicza Szkoła Zawodowa Specjalna nr 3 dla uczniów z upośledzeniem umysłowym w stopniu lekkim w Dzierżoniowie | AB11: 00074369800000 | AC11: 02 | AD11: 02 | AE11: 02 | AF11: Dzierżoniów | AG11: Nowowiejska | AH11: 74 i 76 | AI11: 58-200 | AJ11: Dzierżoniów | AK11: 15 | AL11: 3 | AM11: 0202 | AN11: 02 | AO11: 02 | AQ11: =IF(LEN($AM11)=6,VLOOKUP($AM11,slownik_JST!$B:$J,9,0),"") ->  | AR11: =VLOOKUP($AN11&$AO11,slownik_JST!$B:$J,9,0) -> Powiat nie będący miastem na pr. powiatu | AS11: DOLNOŚLĄSKIE | AT11: dzierżoniowski | AV11: Powiat ziemski | AW11: =VLOOKUP(P11,listy_plac!$M$2:$N$52,2,0) -> Zasadnicza szkoła zawodowa | AX11: =VLOOKUP(R11,listy_plac!$Z$27:$AA$32,2,0) -> Szkoła lub placówka w ramach jednostki złożonej | AY11: =VLOOKUP(S11,listy_plac!$Z$2:$AA$5,2,0) -> publiczna | AZ11: =VLOOKUP(T11,listy_plac!$Z$8:$AA$10,2,0) -> Dzieci lub młodzież | BA11: =VLOOKUP(U11,listy_plac!$Z$13:$AA$15,2,0) -> specjalna | BB11: =VLOOKUP(Y11,listy_plac!$Z$18:$AA$24,2,0) -> dzienna | BC11: Zasadnicza Szkoła Zawodowa Specjalna nr 3 dla uczniów z upośledzeniem umysłowym w stopniu lekkim w Dzierżoniowie | BD11: Dzierżoniów | BE11: Nowowiejska | BF11: 74 i 76 | BG11: 58-200 | BH11: Dzierżoniów | BI11: 15 | BJ11: 3 | BK11: =VLOOKUP(AM11,wsk_doch!B:D,3,0) -> 153.07
A12: 9827 | C12: 0203 | D12: 02 | E12: 03 | G12: DOLNOŚLĄSKIE | H12: głogowski | K12: 0003 | L12: Powiat ziemski | M12: 02 | N12: 03 | P12: 00013 | Q12: 2 | R12: 002 | S12: 001 | T12: 001 | U12: 100 | V12: 0003 | W12: 0100 | Y12: 001 | Z12: 01 | AA12: Zasadnicza Szkoła Zawodowa nr 1 w Głogowie | AB12: 39100932800000 | AC12: 02 | AD12: 03 | AE12: 01 | AF12: Głogów | AG12: Plac Jana z Głogowa | AH12: 7 | AI12: 67-200 | AJ12: Głogów | AK12: 87 | AL12: 30 | AM12: 0203 | AN12: 02 | AO12: 03 | AQ12: =IF(LEN($AM12)=6,VLOOKUP($AM12,slownik_JST!$B:$J,9,0),"") ->  | AR12: =VLOOKUP($AN12&$AO12,slownik_JST!$B:$J,9,0) -> Powiat nie będący miastem na pr. powiatu | AS12: DOLNOŚLĄSKIE | AT12: głogowski | AV12: Powiat ziemski | AW12: =VLOOKUP(P12,listy_plac!$M$2:$N$52,2,0) -> Zasadnicza szkoła zawodowa | AX12: =VLOOKUP(R12,listy_plac!$Z$27:$AA$32,2,0) -> Szkoła lub placówka w ramach jednostki złożonej | AY12: =VLOOKUP(S12,listy_plac!$Z$2:$AA$5,2,0) -> publiczna | AZ12: =VLOOKUP(T12,listy_plac!$Z$8:$AA$10,2,0) -> Dzieci lub młodzież | BA12: =VLOOKUP(U12,listy_plac!$Z$13:$AA$15,2,0) -> brak specyfiki | BB12: =VLOOKUP(Y12,listy_plac!$Z$18:$AA$24,2,0) -> dzienna | BC12: Zasadnicza Szkoła Zawodowa nr 1 w Głogowie | BD12: Głogów | BE12: Plac Jana z Głogowa | BF12: 7 | BG12: 67-200 | BH12: Głogów | BI12: 87 | BJ12: 30 | BK12: =VLOOKUP(AM12,wsk_doch!B:D,3,0) -> 280.44
A13: 6426 | C13: 0203 | D13: 02 | E13: 03 | G13: DOLNOŚLĄSKIE | H13: głogowski | K13: 0003 | L13: Powiat ziemski | M13: 02 | N13: 03 | P13: 00013 | Q13: 2 | R13: 002 | S13: 001 | T13: 001 | U13: 100 | V13: 0003 | W13: 0100 | Y13: 001 | Z13: 01 | AA13: Zasadnicza Szkoła Zawodowa z Oddziałami Integracyjnymi w Głogowie | AB13: 02081459500000 | AC13: 02 | AD13: 03 | AE13: 01 | AF13: Głogów | AG13: Perseusza | AH13: 5 | AI13: 67-200 | AJ13: Głogów | AK13: 108 | AL13: 108 | AM13: 0203 | AN13: 02 | AO13: 03 | AQ13: =IF(LEN($AM13)=6,VLOOKUP($AM13,slownik_JST!$B:$J,9,0),"") ->  | AR13: =VLOOKUP($AN13&$AO13,slownik_JST!$B:$J,9,0) -> Powiat nie będący miastem na pr. powiatu | AS13: DOLNOŚLĄSKIE | AT13: głogowski | AV13: Powiat ziemski | AW13: =VLOOKUP(P13,listy_plac!$M$2:$N$52,2,0) -> Zasadnicza szkoła zawodowa | AX13: =VLOOKUP(R13,listy_plac!$Z$27:$AA$32,2,0) -> Szkoła lub placówka w ramach jednostki złożonej | AY13: =VLOOKUP(S13,listy_plac!$Z$2:$AA$5,2,0) -> publiczna | AZ13: =VLOOKUP(T13,listy_plac!$Z$8:$AA$10,2,0) -> Dzieci lub młodzież | BA13: =VLOOKUP(U13,listy_plac!$Z$13:$AA$15,2,0) -> brak specyfiki | BB13: =VLOOKUP(Y13,listy_plac!$Z$18:$AA$24,2,0) -> dzienna | BC13: Zasadnicza Szkoła Zawodowa z Oddziałami Integracyjnymi w Głogowie | BD13: Głogów | BE13: Perseusza | BF13: 5 | BG13: 67-200 | BH13: Głogów | BI13: 108 | BJ13: 108 | BK13: =VLOOKUP(AM13,wsk_doch!B:D,3,0) -> 280.44
A14: 82814 | C14: 0204 | D14: 02 | E14: 04 | G14: DOLNOŚLĄSKIE | H14: górowski | K14: 0003 | L14: Powiat ziemski | M14: 02 | N14: 04 | P14: 00013 | Q14: 2 | R14: 002 | S14: 001 | T14: 001 | U14: 100 | V14: 0003 | W14: 0100 | Y14: 001 | Z14: 01 | AA14: Zasadnicza szkoła zawodowa w Górze | AB14: 93283188600000 | AC14: 02 | AD14: 04 | AE14: 01 | AF14: Góra | AG14: Armii Polskiej | AH14: 15a | AI14: 56-200 | AJ14: Góra | AK14: 208 | AL14: 181 | AM14: 0204 | AN14: 02 | AO14: 04 | AQ14: =IF(LEN($AM14)=6,VLOOKUP($AM14,slownik_JST!$B:$J,9,0),"") ->  | AR14: =VLOOKUP($AN14&$AO14,slownik_JST!$B:$J,9,0) -> Powiat nie będący miastem na pr. powiatu | AS14: DOLNOŚLĄSKIE | AT14: górowski | AV14: Powiat ziemski | AW14: =VLOOKUP(P14,listy_plac!$M$2:$N$52,2,0) -> Zasadnicza szkoła zawodowa | AX14: =VLOOKUP(R14,listy_plac!$Z$27:$AA$32,2,0) -> Szkoła lub placówka w ramach jednostki złożonej | AY14: =VLOOKUP(S14,listy_plac!$Z$2:$AA$5,2,0) -> publiczna | AZ14: =VLOOKUP(T14,listy_plac!$Z$8:$AA$10,2,0) -> Dzieci lub młodzież | BA14: =VLOOKUP(U14,listy_plac!$Z$13:$AA$15,2,0) -> brak specyfiki | BB14: =VLOOKUP(Y14,listy_plac!$Z$18:$AA$24,2,0) -> dzienna | BC14: Zasadnicza szkoła zawodowa w Górze | BD14: Góra | BE14: Armii Polskiej | BF14: 15a | BG14: 56-200 | BH14: Góra | BI14: 208 | BJ14: 181 | BK14: =VLOOKUP(AM14,wsk_doch!B:D,3,0) -> 116.5
A15: 104111 | C15: 0204 | D15: 02 | E15: 04 | G15: DOLNOŚLĄSKIE | H15: górowski | K15: 0003 | L15: Powiat ziemski | M15: 02 | N15: 04 | P15: 00013 | Q15: 1 | R15: 002 | S15: 001 | T15: 001 | U15: 001 | V15: 0003 | W15: 0011 | X15: 005 | Y15: 001 | Z15: 01 | AA15: Zasadnicza Szkoła Zawodowa Specjalna w Wąsoszu | AB15: 93281405000000 | AC15: 02 | AD15: 04 | AE15: 04 | AF15: Wąsosz | AG15: Janusza Korczaka | AH15: 6 | AI15: 56-210 | AJ15: Wąsosz | AK15: 22 | AL15: 19 | AM15: 0204 | AN15: 02 | AO15: 04 | AQ15: =IF(LEN($AM15)=6,VLOOKUP($AM15,slownik_JST!$B:$J,9,0),"") ->  | AR15: =VLOOKUP($AN15&$AO15,slownik_JST!$B:$J,9,0) -> Powiat nie będący miastem na pr. powiatu | AS15: DOLNOŚLĄSKIE | AT15: górowski | AV15: Powiat ziemski | AW15: =VLOOKUP(P15,listy_plac!$M$2:$N$52,2,0) -> Zasadnicza szkoła zawodowa | AX15: =VLOOKUP(R15,listy_plac!$Z$27:$AA$32,2,0) -> Szkoła lub placówka w ramach jednostki złożonej | AY15: =VLOOKUP(S15,listy_plac!$Z$2:$AA$5,2,0) -> publiczna | AZ15: =VLOOKUP(T15,listy_plac!$Z$8:$AA$10,2,0) -> Dzieci lub młodzież | BA15: =VLOOKUP(U15,listy_plac!$Z$13:$AA$15,2,0) -> specjalna | BB15: =VLOOKUP(Y15,listy_plac!$Z$18:$AA$24,2,0) -> dzienna | BC15: Zasadnicza Szkoła Zawodowa Specjalna w Wąsoszu | BD15: Wąsosz | BE15: Janusza Korczaka | BF15: 6 | BG15: 56-210 | BH15: Wąsosz | BI15: 22 | BJ15: 19 | BK15: =VLOOKUP(AM15,wsk_doch!B:D,3,0) -> 116.5
A16: 22313 | C16: 0205 | D16: 02 | E16: 05 | G16: DOLNOŚLĄSKIE | H16: jaworski | K16: 0003 | L16: Powiat ziemski | M16: 02 | N16: 05 | P16: 00013 | Q16: 2 | R16: 002 | S16: 001 | T16: 001 | U16: 100 | V16: 0003 | W16: 0100 | Y16: 001 | Z16: 01 | AA16: Zasadnicza Szkoła Zawodowa | AB16: 39100332000000 | AC16: 02 | AD16: 05 | AE16: 01 | AF16: Jawor | AG16: Wrocławska | AH16: 30a | AI16: 59-400 | AJ16: Jawor | AK16: 247 | AL16: 188 | AM16: 0205 | AN16: 02 | AO16: 05 | AQ16: =IF(LEN($AM16)=6,VLOOKUP($AM16,slownik_JST!$B:$J,9,0),"") ->  | AR16: =VLOOKUP($AN16&$AO16,slownik_JST!$B:$J,9,0) -> Powiat nie będący miastem na pr. powiatu | AS16: DOLNOŚLĄSKIE | AT16: jaworski | AV16: Powiat ziemski | AW16: =VLOOKUP(P16,listy_plac!$M$2:$N$52,2,0) -> Zasadnicza szkoła zawodowa | AX16: =VLOOKUP(R16,listy_plac!$Z$27:$AA$32,2,0) -> Szkoła lub placówka w ramach jednostki złożonej | AY16: =VLOOKUP(S16,listy_plac!$Z$2:$AA$5,2,0) -> publiczna | AZ16: =VLOOKUP(T16,listy_plac!$Z$8:$AA$10,2,0) -> Dzieci lub młodzież | BA16: =VLOOKUP(U16,listy_plac!$Z$13:$AA$15,2,0) -> brak specyfiki | BB16: =VLOOKUP(Y16,listy_plac!$Z$18:$AA$24,2,0) -> dzienna | BC16: Zasadnicza Szkoła Zawodowa | BD16: Jawor | BE16: Wrocławska | BF16: 30a | BG16: 59-400 | BH16: Jawor | BI16: 247 | BJ16: 188 | BK16: =VLOOKUP(AM16,wsk_doch!B:D,3,0) -> 150.85
A17: 21710 | C17: 0205 | D17: 02 | E17: 05 | G17: DOLNOŚLĄSKIE | H17: jaworski | K17: 0003 | L17: Powiat ziemski | M17: 02 | N17: 05 | P17: 00013 | Q17: 2 | R17: 002 | S17: 001 | T17: 001 | U17: 001 | V17: 0003 | W17: 0011 | X17: 005 | Y17: 001 | Z17: 01 | AA17: Zasadnicza Szkoła Zawodowa | AB17: 39100807900000 | AC17: 02 | AD17: 05 | AE17: 01 | AF17: Jawor | AG17: Paderewskiego | AH17: 6 | AI17: 59-400 | AJ17: Jawor | AK17: 15 | AL17: 15 | AM17: 0205 | AN17: 02 | AO17: 05 | AQ17: =IF(LEN($AM17)=6,VLOOKUP($AM17,slownik_JST!$B:$J,9,0),"") ->  | AR17: =VLOOKUP($AN17&$AO17,slownik_JST!$B:$J,9,0) -> Powiat nie będący miastem na pr. powiatu | AS17: DOLNOŚLĄSKIE | AT17: jaworski | AV17: Powiat ziemski | AW17: =VLOOKUP(P17,listy_plac!$M$2:$N$52,2,0) -> Zasadnicza szkoła zawodowa | AX17: =VLOOKUP(R17,listy_plac!$Z$27:$AA$32,2,0) -> Szkoła lub placówka w ramach jednostki złożonej | AY17: =VLOOKUP(S17,listy_plac!$Z$2:$AA$5,2,0) -> publiczna | AZ17: =VLOOKUP(T17,listy_plac!$Z$8:$AA$10,2,0) -> Dzieci lub młodzież | BA17: =VLOOKUP(U17,listy_plac!$Z$13:$AA$15,2,0) -> specjalna | BB17: =VLOOKUP(Y17,listy_plac!$Z$18:$AA$24,2,0) -> dzienna | BC17: Zasadnicza Szkoła Zawodowa | BD17: Jawor | BE17: Paderewskiego | BF17: 6 | BG17: 59-400 | BH17: Jawor | BI17: 15 | BJ17: 15 | BK17: =VLOOKUP(AM17,wsk_doch!B:D,3,0) -> 150.85
A18: 19678 | C18: 0207 | D18: 02 | E18: 07 | G18: DOLNOŚLĄSKIE | H18: kamiennogórski | K18: 0003 | L18: Powiat ziemski | M18: 02 | N18: 07 | P18: 00013 | Q18: 2 | R18: 002 | S18: 001 | T18: 001 | U18: 100 | V18: 0003 | W18: 0100 | Y18: 001 | Z18: 01 | AA18: Zasadnicza Szkoła Zawodowa dla Młodocianych Pracowników | AB18: 23118450900000 | AC18: 02 | AD18: 07 | AE18: 01 | AF18: Kamienna Góra | AG18: Traugutta | AH18: 2 | AI18: 58-400 | AJ18: Kamienna Góra | AK18: 297 | AL18: 297 | AM18: 0207 | AN18: 02 | AO18: 07 | AQ18: =IF(LEN($AM18)=6,VLOOKUP($AM18,slownik_JST!$B:$J,9,0),"") ->  | AR18: =VLOOKUP($AN18&$AO18,slownik_JST!$B:$J,9,0) -> Powiat nie będący miastem na pr. powiatu | AS18: DOLNOŚLĄSKIE | AT18: kamiennogórski | AV18: Powiat ziemski | AW18: =VLOOKUP(P18,listy_plac!$M$2:$N$52,2,0) -> Zasadnicza szkoła zawodowa | AX18: =VLOOKUP(R18,listy_plac!$Z$27:$AA$32,2,0) -> Szkoła lub placówka w ramach jednostki złożonej | AY18: =VLOOKUP(S18,listy_plac!$Z$2:$AA$5,2,0) -> publiczna | AZ18: =VLOOKUP(T18,listy_plac!$Z$8:$AA$10,2,0) -> Dzieci lub młodzież | BA18: =VLOOKUP(U18,listy_plac!$Z$13:$AA$15,2,0) -> brak specyfiki | BB18: =VLOOKUP(Y18,listy_plac!$Z$18:$AA$24,2,0) -> dzienna | BC18: Zasadnicza Szkoła Zawodowa dla Młodocianych Pracowników | BD18: Kamienna Góra | BE18: Traugutta | BF18: 2 | BG18: 58-400 | BH18: Kamienna Góra | BI18: 297 | BJ18: 297 | BK18: =VLOOKUP(AM18,wsk_doch!B:D,3,0) -> 142.42
A19: 79315 | C19: 0208 | D19: 02 | E19: 08 | G19: DOLNOŚLĄSKIE | H19: kłodzki | K19: 0003 | L19: Powiat ziemski | M19: 02 | N19: 08 | P19: 00013 | Q19: 2 | R19: 002 | S19: 001 | T19: 001 | U19: 100 | V19: 0003 | W19: 0100 | Y19: 001 | Z19: 01 | AA19: Zasadnicza Szkoła Zawodowa nr 2 w Kłodzku | AB19: 89142046200000 | AC19: 02 | AD19: 08 | AE19: 02 | AF19: Kłodzko | AG19: Szkolna | AH19: 8 | AI19: 57-300 | AJ19: Kłodzko | AK19: 252 | AL19: 106 | AM19: 0208 | AN19: 02 | AO19: 08 | AQ19: =IF(LEN($AM19)=6,VLOOKUP($AM19,slownik_JST!$B:$J,9,0),"") ->  | AR19: =VLOOKUP($AN19&$AO19,slownik_JST!$B:$J,9,0) -> Powiat nie będący miastem na pr. powiatu | AS19: DOLNOŚLĄSKIE | AT19: kłodzki | AV19: Powiat ziemski | AW19: =VLOOKUP(P19,listy_plac!$M$2:$N$52,2,0) -> Zasadnicza szkoła zawodowa | AX19: =VLOOKUP(R19,listy_plac!$Z$27:$AA$32,2,0) -> Szkoła lub placówka w ramach jednostki złożonej | AY19: =VLOOKUP(S19,listy_plac!$Z$2:$AA$5,2,0) -> publiczna | AZ19: =VLOOKUP(T19,listy_plac!$Z$8:$AA$10,2,0) -> Dzieci lub młodzież | BA19: =VLOOKUP(U19,listy_plac!$Z$13:$AA$15,2,0) -> brak specyfiki | BB19: =VLOOKUP(Y19,listy_plac!$Z$18:$AA$24,2,0) -> dzienna | BC19: Zasadnicza Szkoła Zawodowa nr 2 w Kłodzku | BD19: Kłodzko | BE19: Szkolna | BF19: 8 | BG19: 57-300 | BH19: Kłodzko | BI19: 252 | BJ19: 106 | BK19: =VLOOKUP(AM19,wsk_doch!B:D,3,0) -> 147.83
A20: 92214 | C20: 0208 | D20: 02 | E20: 08 | G20: DOLNOŚLĄSKIE | H20: kłodzki | K20: 0003 | L20: Powiat ziemski | M20: 02 | N20: 08 | P20: 00013 | Q20: 2 | R20: 002 | S20: 001 | T20: 001 | U20: 100 | V20: 0003 | W20: 0100 | Y20: 001 | Z20: 01 | AA20: Zasadnicza Szkoła Zawodowa | AB20: 89141900000000 | AC20: 02 | AD20: 08 | AE20: 04 | AF20: Nowa Ruda | AG20: Stara Droga | AH20: 4 | AI20: 57-401 | AJ20: Nowa Ruda | AK20: 77 | AL20: 54 | AM20: 0208 | AN20: 02 | AO20: 08 | AQ20: =IF(LEN($AM20)=6,VLOOKUP($AM20,slownik_JST!$B:$J,9,0),"") ->  | AR20: =VLOOKUP($AN20&$AO20,slownik_JST!$B:$J,9,0) -> Powiat nie będący miastem na pr. powiatu | AS20: DOLNOŚLĄSKIE | AT20: kłodzki | AV20: Powiat ziemski | AW20: =VLOOKUP(P20,listy_plac!$M$2:$N$52,2,0) -> Zasadnicza szkoła zawodowa | AX20: =VLOOKUP(R20,listy_plac!$Z$27:$AA$32,2,0) -> Szkoła lub placówka w ramach jednostki złożonej | AY20: =VLOOKUP(S20,listy_plac!$Z$2:$AA$5,2,0) -> publiczna | AZ20: =VLOOKUP(T20,listy_plac!$Z$8:$AA$10,2,0) -> Dzieci lub młodzież | BA20: =VLOOKUP(U20,listy_plac!$Z$13:$AA$15,2,0) -> brak specyfiki | BB20: =VLOOKUP(Y20,listy_plac!$Z$18:$AA$24,2,0) -> dzienna | BC20: Zasadnicza Szkoła Zawodowa | BD20: Nowa Ruda | BE20: Stara Droga | BF20: 4 | BG20: 57-401 | BH20: Nowa Ruda | BI20: 77 | BJ20: 54 | BK20: =VLOOKUP(AM20,wsk_doch!B:D,3,0) -> 147.83
A21: 92045 | C21: 0208 | D21: 02 | E21: 08 | G21: DOLNOŚLĄSKIE | H21: kłodzki | K21: 0003 | L21: Powiat ziemski | M21: 02 | N21: 08 | P21: 00013 | Q21: 2 | R21: 002 | S21: 001 | T21: 001 | U21: 100 | V21: 0003 | W21: 0100 | Y21: 001 | Z21: 01 | AA21: Zasadnicza Szkoła Zawodowa | AB21: 89053351400000 | AC21: 02 | AD21: 08 | AE21: 06 | AF21: Bystrzyca Kłodzka | AG21: Słowackiego | AH21: 4 | AI21: 57-500 | AJ21: Bystrzyca Kłodzka | AK21: 91 | AL21: 54 | AM21: 0208 | AN21: 02 | AO21: 08 | AQ21: =IF(LEN($AM21)=6,VLOOKUP($AM21,slownik_JST!$B:$J,9,0),"") ->  | AR21: =VLOOKUP($AN21&$AO21,slownik_JST!$B:$J,9,0) -> Powiat nie będący miastem na pr. powiatu | AS21: DOLNOŚLĄSKIE | AT21: kłodzki | AV21: Powiat ziemski | AW21: =VLOOKUP(P21,listy_plac!$M$2:$N$52,2,0) -> Zasadnicza szkoła zawodowa | AX21: =VLOOKUP(R21,listy_plac!$Z$27:$AA$32,2,0) -> Szkoła lub placówka w ramach jednostki złożonej | AY21: =VLOOKUP(S21,listy_plac!$Z$2:$AA$5,2,0) -> publiczna | AZ21: =VLOOKUP(T21,listy_plac!$Z$8:$AA$10,2,0) -> Dzieci lub młodzież | BA21: =VLOOKUP(U21,listy_plac!$Z$13:$AA$15,2,0) -> brak specyfiki | BB21: =VLOOKUP(Y21,listy_plac!$Z$18:$AA$24,2,0) -> dzienna | BC21: Zasadnicza Szkoła Zawodowa | BD21: Bystrzyca Kłodzka | BE21: Słowackiego | BF21: 4 | BG21: 57-500 | BH21: Bystrzyca Kłodzka | BI21: 91 | BJ21: 54 | BK21: =VLOOKUP(AM21,wsk_doch!B:D,3,0) -> 147.83
A22: 83789 | C22: 0208 | D22: 02 | E22: 08 | G22: DOLNOŚLĄSKIE | H22: kłodzki | K22: 0003 | L22: Powiat ziemski | M22: 02 | N22: 08 | P22: 00013 | Q22: 2 | R22: 001 | S22: 001 | T22: 001 | U22: 001 | V22: 0003 | W22: 0100 | X22: 005 | Y22: 001 | Z22: 01 | AA22: Zasadnicza Szkoła Zawodowa Specjalna nr 3 w Kłodzku | AB22: 00074368100000 | AC22: 02 | AD22: 08 | AE22: 02 | AF22: Kłodzko | AG22: Warty | AH22: 70 | AI22: 57-300 | AJ22: Kłodzko | AK22: 63 | AL22: 12 | AM22: 0208 | AN22: 02 | AO22: 08 | AQ22: =IF(LEN($AM22)=6,VLOOKUP($AM22,slownik_JST!$B:$J,9,0),"") ->  | AR22: =VLOOKUP($AN22&$AO22,slownik_JST!$B:$J,9,0) -> Powiat nie będący miastem na pr. powiatu | AS22: DOLNOŚLĄSKIE | AT22: kłodzki | AV22: Powiat ziemski | AW22: =VLOOKUP(P22,listy_plac!$M$2:$N$52,2,0) -> Zasadnicza szkoła zawodowa | AX22: =VLOOKUP(R22,listy_plac!$Z$27:$AA$32,2,0) -> Dane własne | AY22: =VLOOKUP(S22,listy_plac!$Z$2:$AA$5,2,0) -> publiczna | AZ22: =VLOOKUP(T22,listy_plac!$Z$8:$AA$10,2,0) -> Dzieci lub młodzież | BA22: =VLOOKUP(U22,listy_plac!$Z$13:$AA$15,2,0) -> specjalna | BB22: =VLOOKUP(Y22,listy_plac!$Z$18:$AA$24,2,0) -> dzienna | BC22: Zasadnicza Szkoła Zawodowa Specjalna nr 3 w Kłodzku | BD22: Kłodzko | BE22: Warty | BF22: 70 | BG22: 57-300 | BH22: Kłodzko | BI22: 63 | BJ22: 12 | BK22: =VLOOKUP(AM22,wsk_doch!B:D,3,0) -> 147.83
A23: 91928 | C23: 020803 | D23: 02 | E23: 08 | F23: 03 | G23: DOLNOŚLĄSKIE | H23: kłodzki | I23: Kudowa-Zdrój | J23: M | K23: 0001 | L23: Gmina | M23: 02 | N23: 08 | O23: 03 | P23: 00013 | Q23: 2 | R23: 002 | S23: 001 | T23: 001 | U23: 100 | V23: 0003 | W23: 0100 | Y23: 001 | Z23: 01 | AA23: Zasadnicza Szkoła Zawodowa w Kudowie-Zdroju | AB23: 89142129500000 | AC23: 02 | AD23: 08 | AE23: 03 | AF23: Kudowa-Zdrój | AG23: Zdrojowa | AH23: 22a | AI23: 57-350 | AJ23: Kudowa-Zdroj | AK23: 65 | AL23: 65 | AM23: 020803 | AN23: 02 | AO23: 08 | AP23: 03 | AQ23: =IF(LEN($AM23)=6,VLOOKUP($AM23,slownik_JST!$B:$J,9,0),"") -> Gmina miejska | AR23: =VLOOKUP($AN23&$AO23,slownik_JST!$B:$J,9,0) -> Powiat nie będący miastem na pr. powiatu | AS23: DOLNOŚLĄSKIE | AT23: kłodzki | AU23: Kudowa-Zdrój | AV23: Gmina | AW23: =VLOOKUP(P23,listy_plac!$M$2:$N$52,2,0) -> Zasadnicza szkoła zawodowa | AX23: =VLOOKUP(R23,listy_plac!$Z$27:$AA$32,2,0) -> Szkoła lub placówka w ramach jednostki złożonej | AY23: =VLOOKUP(S23,listy_plac!$Z$2:$AA$5,2,0) -> publiczna | AZ23: =VLOOKUP(T23,listy_plac!$Z$8:$AA$10,2,0) -> Dzieci lub młodzież | BA23: =VLOOKUP(U23,listy_plac!$Z$13:$AA$15,2,0) -> brak specyfiki | BB23: =VLOOKUP(Y23,listy_plac!$Z$18:$AA$24,2,0) -> dzienna | BC23: Zasadnicza Szkoła Zawodowa w Kudowie-Zdroju | BD23: Kudowa-Zdrój | BE23: Zdrojowa | BF23: 22a | BG23: 57-350 | BH23: Kudowa-Zdroj | BI23: 65 | BJ23: 65 | BK23: =VLOOKUP(AM23,wsk_doch!B:D,3,0) -> 1162.03
A24: 89004 | C24: 0209 | D24: 02 | E24: 09 | G24: DOLNOŚLĄSKIE | H24: legnicki | K24: 0003 | L24: Powiat ziemski | M24: 02 | N24: 09 | P24: 00013 | Q24: 2 | R24: 002 | S24: 001 | T24: 001 | U24: 100 | V24: 0003 | W24: 0100 | Y24: 001 | Z24: 01 | AA24: Zasadnicza Szkoła Zawodowa | AB24: 39092975900000 | AC24: 02 | AD24: 09 | AE24: 01 | AF24: Chojnów | AG24: Witosa | AH24: 1 | AI24: 59-225 | AJ24: Chojnów | AK24: 88 | AL24: 45 | AM24: 0209 | AN24: 02 | AO24: 09 | AQ24: =IF(LEN($AM24)=6,VLOOKUP($AM24,slownik_JST!$B:$J,9,0),"") ->  | AR24: =VLOOKUP($AN24&$AO24,slownik_JST!$B:$J,9,0) -> Powiat nie będący miastem na pr. powiatu | AS24: DOLNOŚLĄSKIE | AT24: legnicki | AV24: Powiat ziemski | AW24: =VLOOKUP(P24,listy_plac!$M$2:$N$52,2,0) -> Zasadnicza szkoła zawodowa | AX24: =VLOOKUP(R24,listy_plac!$Z$27:$AA$32,2,0) -> Szkoła lub placówka w ramach jednostki złożonej | AY24: =VLOOKUP(S24,listy_plac!$Z$2:$AA$5,2,0) -> publiczna | AZ24: =VLOOKUP(T24,listy_plac!$Z$8:$AA$10,2,0) -> Dzieci lub młodzież | BA24: =VLOOKUP(U24,listy_plac!$Z$13:$AA$15,2,0) -> brak specyfiki | BB24: =VLOOKUP(Y24,listy_plac!$Z$18:$AA$24,2,0) -> dzienna | BC24: Zasadnicza Szkoła Zawodowa | BD24: Chojnów | BE24: Witosa | BF24: 1 | BG24: 59-225 | BH24: Chojnów | BI24: 88 | BJ24: 45 | BK24: =VLOOKUP(AM24,wsk_doch!B:D,3,0) -> 168.82
A25: 19485 | C25: 0210 | D25: 02 | E25: 10 | G25: DOLNOŚLĄSKIE | H25: lubański | K25: 0003 | L25: Powiat ziemski | M25: 02 | N25: 10 | P25: 00013 | Q25: 2 | R25: 002 | S25: 001 | T25: 001 | U25: 100 | V25: 0003 | W25: 0100 | Y25: 001 | Z25: 01 | AA25: Zasadnicza Szkoła Zawodowa | AB25: 23116360200000 | AC25: 02 | AD25: 10 | AE25: 01 | AF25: Lubań | AG25: Kopernika | AH25: 31 | AI25: 59-800 | AJ25: Lubań | AK25: 184 | AL25: 184 | AM25: 0210 | AN25: 02 | AO25: 10 | AQ25: =IF(LEN($AM25)=6,VLOOKUP($AM25,slownik_JST!$B:$J,9,0),"") ->  | AR25: =VLOOKUP($AN25&$AO25,slownik_JST!$B:$J,9,0) -> Powiat nie będący miastem na pr. powiatu | AS25: DOLNOŚLĄSKIE | AT25: lubański | AV25: Powiat ziemski | AW25: =VLOOKUP(P25,listy_plac!$M$2:$N$52,2,0) -> Zasadnicza szkoła zawodowa | AX25: =VLOOKUP(R25,listy_plac!$Z$27:$AA$32,2,0) -> Szkoła lub placówka w ramach jednostki złożonej | AY25: =VLOOKUP(S25,listy_plac!$Z$2:$AA$5,2,0) -> publiczna | AZ25: =VLOOKUP(T25,listy_plac!$Z$8:$AA$10,2,0) -> Dzieci lub młodzież | BA25: =VLOOKUP(U25,listy_plac!$Z$13:$AA$15,2,0) -> brak specyfiki | BB25: =VLOOKUP(Y25,listy_plac!$Z$18:$AA$24,2,0) -> dzienna | BC25: Zasadnicza Szkoła Zawodowa | BD25: Lubań | BE25: Kopernika | BF25: 31 | BG25: 59-800 | BH25: Lubań | BI25: 184 | BJ25: 184 | BK25: =VLOOKUP(AM25,wsk_doch!B:D,3,0) -> 155.06
A26: 10888 | C26: 0211 | D26: 02 | E26: 11 | G26: DOLNOŚLĄSKIE | H26: lubiński | K26: 0003 | L26: Powiat ziemski | M26: 02 | N26: 11 | P26: 00013 | Q26: 3 | R26: 002 | S26: 001 | T26: 001 | U26: 100 | V26: 0003 | W26: 0100 | Y26: 001 | Z26: 01 | AA26: Zasadnicza Szkoła Zawodowa w Rudnej | AB26: 00074357000000 | AC26: 02 | AD26: 11 | AE26: 03 | AF26: Rudna | AG26: Kolejowa | AH26: 5 | AI26: 59-305 | AJ26: Rudna | AK26: 68 | AL26: 52 | AM26: 0211 | AN26: 02 | AO26: 11 | AQ26: =IF(LEN($AM26)=6,VLOOKUP($AM26,slownik_JST!$B:$J,9,0),"") ->  | AR26: =VLOOKUP($AN26&$AO26,slownik_JST!$B:$J,9,0) -> Powiat nie będący miastem na pr. powiatu | AS26: DOLNOŚLĄSKIE | AT26: lubiński | AV26: Powiat ziemski | AW26: =VLOOKUP(P26,listy_plac!$M$2:$N$52,2,0) -> Zasadnicza szkoła zawodowa | AX26: =VLOOKUP(R26,listy_plac!$Z$27:$AA$32,2,0) -> Szkoła lub placówka w ramach jednostki złożonej | AY26: =VLOOKUP(S26,listy_plac!$Z$2:$AA$5,2,0) -> publiczna | AZ26: =VLOOKUP(T26,listy_plac!$Z$8:$AA$10,2,0) -> Dzieci lub młodzież | BA26: =VLOOKUP(U26,listy_plac!$Z$13:$AA$15,2,0) -> brak specyfiki | BB26: =VLOOKUP(Y26,listy_plac!$Z$18:$AA$24,2,0) -> dzienna | BC26: Zasadnicza Szkoła Zawodowa w Rudnej | BD26: Rudna | BE26: Kolejowa | BF26: 5 | BG26: 59-305 | BH26: Rudna | BI26: 68 | BJ26: 52 | BK26: =VLOOKUP(AM26,wsk_doch!B:D,3,0) -> 347.57
A27: 107344 | C27: 021101 | D27: 02 | E27: 11 | F27: 01 | G27: DOLNOŚLĄSKIE | H27: lubiński | I27: Lubin | J27: M | K27: 0001 | L27: Gmina | M27: 02 | N27: 11 | O27: 01 | P27: 00013 | Q27: 2 | R27: 002 | S27: 001 | T27: 001 | U27: 100 | V27: 0003 | W27: 0100 | Y27: 001 | Z27: 01 | AA27: Zasadnicza Szkoła Zawodowa Nr 1 w Lubinie | AB27: 39102136400000 | AC27: 02 | AD27: 11 | AE27: 01 | AF27: Lubin | AG27: Kościuszki | AH27: 9 | AI27: 59-300 | AJ27: Lubin | AK27: 305 | AL27: 76 | AM27: 021101 | AN27: 02 | AO27: 11 | AP27: 01 | AQ27: =IF(LEN($AM27)=6,VLOOKUP($AM27,slownik_JST!$B:$J,9,0),"") -> Gmina miejska | AR27: =VLOOKUP($AN27&$AO27,slownik_JST!$B:$J,9,0) -> Powiat nie będący miastem na pr. powiatu | AS27: DOLNOŚLĄSKIE | AT27: lubiński | AU27: Lubin | AV27: Gmina | AW27: =VLOOKUP(P27,listy_plac!$M$2:$N$52,2,0) -> Zasadnicza szkoła zawodowa | AX27: =VLOOKUP(R27,listy_plac!$Z$27:$AA$32,2,0) -> Szkoła lub placówka w ramach jednostki złożonej | AY27: =VLOOKUP(S27,listy_plac!$Z$2:$AA$5,2,0) -> publiczna | AZ27: =VLOOKUP(T27,listy_plac!$Z$8:$AA$10,2,0) -> Dzieci lub młodzież | BA27: =VLOOKUP(U27,listy_plac!$Z$13:$AA$15,2,0) -> brak specyfiki | BB27: =VLOOKUP(Y27,listy_plac!$Z$18:$AA$24,2,0) -> dzienna | BC27: Zasadnicza Szkoła Zawodowa Nr 1 w Lubinie | BD27: Lubin | BE27: Kościuszki | BF27: 9 | BG27: 59-300 | BH27: Lubin | BI27: 305 | BJ27: 76 | BK27: =VLOOKUP(AM27,wsk_doch!B:D,3,0) -> 2129.11
A28: 84234 | C28: 0212 | D28: 02 | E28: 12 | G28: DOLNOŚLĄSKIE | H28: lwówecki | K28: 0003 | L28: Powiat ziemski | M28: 02 | N28: 12 | P28: 00013 | Q28: 3 | R28: 002 | S28: 001 | T28: 001 | U28: 100 | V28: 0003 | W28: 0100 | Y28: 001 | Z28: 01 | AA28: Szkoła Zawodowa | AB28: 23118589700000 | AC28: 02 | AD28: 12 | AE28: 03 | AF28: Rakowice Wielkie | AG28: Rakowice Wielkie | AH28: 48 | AI28: 59-600 | AJ28: Lwówek Śląski | AK28: 74 | AL28: 39 | AM28: 0212 | AN28: 02 | AO28: 12 | AQ28: =IF(LEN($AM28)=6,VLOOKUP($AM28,slownik_JST!$B:$J,9,0),"") ->  | AR28: =VLOOKUP($AN28&$AO28,slownik_JST!$B:$J,9,0) -> Powiat nie będący miastem na pr. powiatu | AS28: DOLNOŚLĄSKIE | AT28: lwówecki | AV28: Powiat ziemski | AW28: =VLOOKUP(P28,listy_plac!$M$2:$N$52,2,0) -> Zasadnicza szkoła zawodowa | AX28: =VLOOKUP(R28,listy_plac!$Z$27:$AA$32,2,0) -> Szkoła lub placówka w ramach jednostki złożonej | AY28: =VLOOKUP(S28,listy_plac!$Z$2:$AA$5,2,0) -> publiczna | AZ28: =VLOOKUP(T28,listy_plac!$Z$8:$AA$10,2,0) -> Dzieci lub młodzież | BA28: =VLOOKUP(U28,listy_plac!$Z$13:$AA$15,2,0) -> brak specyfiki | BB28: =VLOOKUP(Y28,listy_plac!$Z$18:$AA$24,2,0) -> dzienna | BC28: Szkoła Zawodowa | BD28: Rakowice Wielkie | BE28: Rakowice Wielkie | BF28: 48 | BG28: 59-600 | BH28: Lwówek Śląski | BI28: 74 | BJ28: 39 | BK28: =VLOOKUP(AM28,wsk_doch!B:D,3,0) -> 121.85
A29: 84850 | C29: 0212 | D29: 02 | E29: 12 | G29: DOLNOŚLĄSKIE | H29: lwówecki | K29: 0003 | L29: Powiat ziemski | M29: 02 | N29: 12 | P29: 00013 | Q29: 2 | R29: 002 | S29: 001 | T29: 001 | U29: 100 | V29: 0003 | W29: 0100 | Y29: 001 | Z29: 01 | AA29: Zasadnicza Szkoła Zawodowa | AB29: 23118573300000 | AC29: 02 | AD29: 12 | AE29: 01 | AF29: Gryfów Śląski | AG29: Kolejowa | AH29: 16 | AI29: 59-620 | AJ29: Gryfów Śląski | AK29: 82 | AL29: 82 | AM29: 0212 | AN29: 02 | AO29: 12 | AQ29: =IF(LEN($AM29)=6,VLOOKUP($AM29,slownik_JST!$B:$J,9,0),"") ->  | AR29: =VLOOKUP($AN29&$AO29,slownik_JST!$B:$J,9,0) -> Powiat nie będący miastem na pr. powiatu | AS29: DOLNOŚLĄSKIE | AT29: lwówecki | AV29: Powiat ziemski | AW29: =VLOOKUP(P29,listy_plac!$M$2:$N$52,2,0) -> Zasadnicza szkoła zawodowa | AX29: =VLOOKUP(R29,listy_plac!$Z$27:$AA$32,2,0) -> Szkoła lub placówka w ramach jednostki złożonej | AY29: =VLOOKUP(S29,listy_plac!$Z$2:$AA$5,2,0) -> publiczna | AZ29: =VLOOKUP(T29,listy_plac!$Z$8:$AA$10,2,0) -> Dzieci lub młodzież | BA29: =VLOOKUP(U29,listy_plac!$Z$13:$AA$15,2,0) -> brak specyfiki | BB29: =VLOOKUP(Y29,listy_plac!$Z$18:$AA$24,2,0) -> dzienna | BC29: Zasadnicza Szkoła Zawodowa | BD29: Gryfów Śląski | BE29: Kolejowa | BF29: 16 | BG29: 59-620 | BH29: Gryfów Śląski | BI29: 82 | BJ29: 82 | BK29: =VLOOKUP(AM29,wsk_doch!B:D,3,0) -> 121.85
A30: 109021 | C30: 021202 | D30: 02 | E30: 12 | F30: 02 | G30: DOLNOŚLĄSKIE | H30: lwówecki | I30: Lubomierz | J30: M-Gm | K30: 0001 | L30: Gmina | M30: 02 | N30: 12 | O30: 02 | P30: 00013 | Q30: 1 | R30: 002 | S30: 001 | T30: 001 | U30: 100 | V30: 0003 | W30: 0100 | Y30: 001 | Z30: 01 | AA30: Zasadnicza Szkoła Zawodowa w Lubomierzu | AB30: 23117687500000 | AC30: 02 | AD30: 12 | AE30: 02 | AF30: Lubomierz | AG30: Chopina | AH30: 9 | AI30: 59-623 | AJ30: Lubomierz | AK30: 30 | AL30: 23 | AM30: 021202 | AN30: 02 | AO30: 12 | AP30: 02 | AQ30: =IF(LEN($AM30)=6,VLOOKUP($AM30,slownik_JST!$B:$J,9,0),"") -> Gmina miejsko-wiejska | AR30: =VLOOKUP($AN30&$AO30,slownik_JST!$B:$J,9,0) -> Powiat nie będący miastem na pr. powiatu | AS30: DOLNOŚLĄSKIE | AT30: lwówecki | AU30: Lubomierz | AV30: Gmina | AW30: =VLOOKUP(P30,listy_plac!$M$2:$N$52,2,0) -> Zasadnicza szkoła zawodowa | AX30: =VLOOKUP(R30,listy_plac!$Z$27:$AA$32,2,0) -> Szkoła lub placówka w ramach jednostki złożonej | AY30: =VLOOKUP(S30,listy_plac!$Z$2:$AA$5,2,0) -> publiczna | AZ30: =VLOOKUP(T30,listy_plac!$Z$8:$AA$10,2,0) -> Dzieci lub młodzież | BA30: =VLOOKUP(U30,listy_plac!$Z$13:$AA$15,2,0) -> brak specyfiki | BB30: =VLOOKUP(Y30,listy_plac!$Z$18:$AA$24,2,0) -> dzienna | BC30: Zasadnicza Szkoła Zawodowa w Lubomierzu | BD30: Lubomierz | BE30: Chopina | BF30: 9 | BG30: 59-623 | BH30: Lubomierz | BI30: 30 | BJ30: 23 | BK30: =VLOOKUP(AM30,wsk_doch!B:D,3,0) -> 729.57
A31: 60195 | C31: 0213 | D31: 02 | E31: 13 | G31: DOLNOŚLĄSKIE | H31: milicki | K31: 0003 | L31: Powiat ziemski | M31: 02 | N31: 13 | P31: 00013 | Q31: 2 | R31: 002 | S31: 001 | T31: 001 | U31: 100 | V31: 0003 | W31: 0100 | Y31: 001 | Z31: 01 | AA31: Zasadnicza Szkoła Zawodowa | AB31: 93284363600000 | AC31: 02 | AD31: 13 | AE31: 03 | AF31: Milicz | AG31: TRZEBNICKA | AH31: 4 | AI31: 56-300 | AJ31: MILICZ | AK31: 283 | AL31: 283 | AM31: 0213 | AN31: 02 | AO31: 13 | AQ31: =IF(LEN($AM31)=6,VLOOKUP($AM31,slownik_JST!$B:$J,9,0),"") ->  | AR31: =VLOOKUP($AN31&$AO31,slownik_JST!$B:$J,9,0) -> Powiat nie będący miastem na pr. powiatu | AS31: DOLNOŚLĄSKIE | AT31: milicki | AV31: Powiat ziemski | AW31: =VLOOKUP(P31,listy_plac!$M$2:$N$52,2,0) -> Zasadnicza szkoła zawodowa | AX31: =VLOOKUP(R31,listy_plac!$Z$27:$AA$32,2,0) -> Szkoła lub placówka w ramach jednostki złożonej | AY31: =VLOOKUP(S31,listy_plac!$Z$2:$AA$5,2,0) -> publiczna | AZ31: =VLOOKUP(T31,listy_plac!$Z$8:$AA$10,2,0) -> Dzieci lub młodzież | BA31: =VLOOKUP(U31,listy_plac!$Z$13:$AA$15,2,0) -> brak specyfiki | BB31: =VLOOKUP(Y31,listy_plac!$Z$18:$AA$24,2,0) -> dzienna | BC31: Zasadnicza Szkoła Zawodowa | BD31: Milicz | BE31: TRZEBNICKA | BF31: 4 | BG31: 56-300 | BH31: MILICZ | BI31: 283 | BJ31: 283 | BK31: =VLOOKUP(AM31,wsk_doch!B:D,3,0) -> 148.09
A32: 62440 | C32: 0213 | D32: 02 | E32: 13 | G32: DOLNOŚLĄSKIE | H32: milicki | K32: 0003 | L32: Powiat ziemski | M32: 02 | N32: 13 | P32: 00013 | Q32: 2 | R32: 002 | S32: 001 | T32: 001 | U32: 001 | V32: 0003 | W32: 0011 | X32: 005 | Y32: 001 | Z32: 01 | AA32: zasadnicza szkoła zawodowa | AB32: 93268624300000 | AC32: 02 | AD32: 13 | AE32: 03 | AF32: Milicz | AG32: Armii Krajowej | AH32: 2 | AI32: 56-300 | AJ32: Milicz | AK32: 9 | AL32: 9 | AM32: 0213 | AN32: 02 | AO32: 13 | AQ32: =IF(LEN($AM32)=6,VLOOKUP($AM32,slownik_JST!$B:$J,9,0),"") ->  | AR32: =VLOOKUP($AN32&$AO32,slownik_JST!$B:$J,9,0) -> Powiat nie będący miastem na pr. powiatu | AS32: DOLNOŚLĄSKIE | AT32: milicki | AV32: Powiat ziemski | AW32: =VLOOKUP(P32,listy_plac!$M$2:$N$52,2,0) -> Zasadnicza szkoła zawodowa | AX32: =VLOOKUP(R32,listy_plac!$Z$27:$AA$32,2,0) -> Szkoła lub placówka w ramach jednostki złożonej | AY32: =VLOOKUP(S32,listy_plac!$Z$2:$AA$5,2,0) -> publiczna | AZ32: =VLOOKUP(T32,listy_plac!$Z$8:$AA$10,2,0) -> Dzieci lub młodzież | BA32: =VLOOKUP(U32,listy_plac!$Z$13:$AA$15,2,0) -> specjalna | BB32: =VLOOKUP(Y32,listy_plac!$Z$18:$AA$24,2,0) -> dzienna | BC32: zasadnicza szkoła zawodowa | BD32: Milicz | BE32: Armii Krajowej | BF32: 2 | BG32: 56-300 | BH32: Milicz | BI32: 9 | BJ32: 9 | BK32: =VLOOKUP(AM32,wsk_doch!B:D,3,0) -> 148.09
A33: 82519 | C33: 0214 | D33: 02 | E33: 14 | G33: DOLNOŚLĄSKIE | H33: oleśnicki | K33: 0003 | L33: Powiat ziemski | M33: 02 | N33: 14 | P33: 00013 | Q33: 2 | R33: 002 | S33: 001 | T33: 001 | U33: 100 | V33: 0003 | W33: 0100 | Y33: 001 | Z33: 01 | AA33: Zasadnicza Szkoła Zawodowa w Sycowie | AB33: 93282707000000 | AC33: 02 | AD33: 14 | AE33: 07 | AF33: Syców | AG33: Daszyńskiego | AH33: 42 | AI33: 56-500 | AJ33: Syców | AK33: 208 | AL33: 208 | AM33: 0214 | AN33: 02 | AO33: 14 | AQ33: =IF(LEN($AM33)=6,VLOOKUP($AM33,slownik_JST!$B:$J,9,0),"") ->  | AR33: =VLOOKUP($AN33&$AO33,slownik_JST!$B:$J,9,0) -> Powiat nie będący miastem na pr. powiatu | AS33: DOLNOŚLĄSKIE | AT33: oleśnicki | AV33: Powiat ziemski | AW33: =VLOOKUP(P33,listy_plac!$M$2:$N$52,2,0) -> Zasadnicza szkoła zawodowa | AX33: =VLOOKUP(R33,listy_plac!$Z$27:$AA$32,2,0) -> Szkoła lub placówka w ramach jednostki złożonej | AY33: =VLOOKUP(S33,listy_plac!$Z$2:$AA$5,2,0) -> publiczna | AZ33: =VLOOKUP(T33,listy_plac!$Z$8:$AA$10,2,0) -> Dzieci lub młodzież | BA33: =VLOOKUP(U33,listy_plac!$Z$13:$AA$15,2,0) -> brak specyfiki | BB33: =VLOOKUP(Y33,listy_plac!$Z$18:$AA$24,2,0) -> dzienna | BC33: Zasadnicza Szkoła Zawodowa w Sycowie | BD33: Syców | BE33: Daszyńskiego | BF33: 42 | BG33: 56-500 | BH33: Syców | BI33: 208 | BJ33: 208 | BK33: =VLOOKUP(AM33,wsk_doch!B:D,3,0) -> 181.38
A34: 81656 | C34: 0214 | D34: 02 | E34: 14 | G34: DOLNOŚLĄSKIE | H34: oleśnicki | K34: 0003 | L34: Powiat ziemski | M34: 02 | N34: 14 | P34: 00013 | Q34: 2 | R34: 002 | S34: 001 | T34: 001 | U34: 100 | V34: 0003 | W34: 0100 | Y34: 001 | Z34: 01 | AA34: Zasadnicza Szkoła Zawodowa w Twardogórze | AB34: 93282108900000 | AC34: 02 | AD34: 14 | AE34: 08 | AF34: Twardogóra | AG34: Stanisława Staszica | AH34: 3 | AI34: 56-416 | AJ34: Twardogóra | AK34: 121 | AL34: 121 | AM34: 0214 | AN34: 02 | AO34: 14 | AQ34: =IF(LEN($AM34)=6,VLOOKUP($AM34,slownik_JST!$B:$J,9,0),"") ->  | AR34: =VLOOKUP($AN34&$AO34,slownik_JST!$B:$J,9,0) -> Powiat nie będący miastem na pr. powiatu | AS34: DOLNOŚLĄSKIE | AT34: oleśnicki | AV34: Powiat ziemski | AW34: =VLOOKUP(P34,listy_plac!$M$2:$N$52,2,0) -> Zasadnicza szkoła zawodowa | AX34: =VLOOKUP(R34,listy_plac!$Z$27:$AA$32,2,0) -> Szkoła lub placówka w ramach jednostki złożonej | AY34: =VLOOKUP(S34,listy_plac!$Z$2:$AA$5,2,0) -> publiczna | AZ34: =VLOOKUP(T34,listy_plac!$Z$8:$AA$10,2,0) -> Dzieci lub młodzież | BA34: =VLOOKUP(U34,listy_plac!$Z$13:$AA$15,2,0) -> brak specyfiki | BB34: =VLOOKUP(Y34,listy_plac!$Z$18:$AA$24,2,0) -> dzienna | BC34: Zasadnicza Szkoła Zawodowa w Twardogórze | BD34: Twardogóra | BE34: Stanisława Staszica | BF34: 3 | BG34: 56-416 | BH34: Twardogóra | BI34: 121 | BJ34: 121 | BK34: =VLOOKUP(AM34,wsk_doch!B:D,3,0) -> 181.38
A35: 73476 | C35: 0214 | D35: 02 | E35: 14 | G35: DOLNOŚLĄSKIE | H35: oleśnicki | K35: 0003 | L35: Powiat ziemski | M35: 02 | N35: 14 | P35: 00013 | Q35: 1 | R35: 002 | S35: 001 | T35: 001 | U35: 100 | V35: 0003 | W35: 0100 | Y35: 001 | Z35: 01 | AA35: Zasadnicza Szkoła Zawodowa | AB35: 93281538000000 | AC35: 02 | AD35: 14 | AE35: 05 | AF35: Międzybórz | AG35: Wrocławska | AH35: 2 | AI35: 56-513 | AJ35: Międzybórz | AK35: 75 | AL35: 75 | AM35: 0214 | AN35: 02 | AO35: 14 | AQ35: =IF(LEN($AM35)=6,VLOOKUP($AM35,slownik_JST!$B:$J,9,0),"") ->  | AR35: =VLOOKUP($AN35&$AO35,slownik_JST!$B:$J,9,0) -> Powiat nie będący miastem na pr. powiatu | AS35: DOLNOŚLĄSKIE | AT35: oleśnicki | AV35: Powiat ziemski | AW35: =VLOOKUP(P35,listy_plac!$M$2:$N$52,2,0) -> Zasadnicza szkoła zawodowa | AX35: =VLOOKUP(R35,listy_plac!$Z$27:$AA$32,2,0) -> Szkoła lub placówka w ramach jednostki złożonej | AY35: =VLOOKUP(S35,listy_plac!$Z$2:$AA$5,2,0) -> publiczna | AZ35: =VLOOKUP(T35,listy_plac!$Z$8:$AA$10,2,0) -> Dzieci lub młodzież | BA35: =VLOOKUP(U35,listy_plac!$Z$13:$AA$15,2,0) -> brak specyfiki | BB35: =VLOOKUP(Y35,listy_plac!$Z$18:$AA$24,2,0) -> dzienna | BC35: Zasadnicza Szkoła Zawodowa | BD35: Międzybórz | BE35: Wrocławska | BF35: 2 | BG35: 56-513 | BH35: Międzybórz | BI35: 75 | BJ35: 75 | BK35: =VLOOKUP(AM35,wsk_doch!B:D,3,0) -> 181.38
A36: 84531 | C36: 0214 | D36: 02 | E36: 14 | G36: DOLNOŚLĄSKIE | H36: oleśnicki | K36: 0003 | L36: Powiat ziemski | M36: 02 | N36: 14 | P36: 00013 | Q36: 2 | R36: 002 | S36: 001 | T36: 001 | U36: 100 | V36: 0003 | W36: 0100 | Y36: 001 | Z36: 01 | AA36: Zasadnicza Szkoła Zawodowa Nr 1 | AB36: 93282362200000 | AC36: 02 | AD36: 14 | AE36: 01 | AF36: Oleśnica | AG36: Wojska Polskiego | AH36: 67/69 | AI36: 56-400 | AJ36: Oleśnica | AK36: 375 | AL36: 316 | AM36: 0214 | AN36: 02 | AO36: 14 | AQ36: =IF(LEN($AM36)=6,VLOOKUP($AM36,slownik_JST!$B:$J,9,0),"") ->  | AR36: =VLOOKUP($AN36&$AO36,slownik_JST!$B:$J,9,0) -> Powiat nie będący miastem na pr. powiatu | AS36: DOLNOŚLĄSKIE | AT36: oleśnicki | AV36: Powiat ziemski | AW36: =VLOOKUP(P36,listy_plac!$M$2:$N$52,2,0) -> Zasadnicza szkoła zawodowa | AX36: =VLOOKUP(R36,listy_plac!$Z$27:$AA$32,2,0) -> Szkoła lub placówka w ramach jednostki złożonej | AY36: =VLOOKUP(S36,listy_plac!$Z$2:$AA$5,2,0) -> publiczna | AZ36: =VLOOKUP(T36,listy_plac!$Z$8:$AA$10,2,0) -> Dzieci lub młodzież | BA36: =VLOOKUP(U36,listy_plac!$Z$13:$AA$15,2,0) -> brak specyfiki | BB36: =VLOOKUP(Y36,listy_plac!$Z$18:$AA$24,2,0) -> dzienna | BC36: Zasadnicza Szkoła Zawodowa Nr 1 | BD36: Oleśnica | BE36: Wojska Polskiego | BF36: 67/69 | BG36: 56-400 | BH36: Oleśnica | BI36: 375 | BJ36: 316 | BK36: =VLOOKUP(AM36,wsk_doch!B:D,3,0) -> 181.38
A37: 111286 | C37: 0214 | D37: 02 | E37: 14 | G37: DOLNOŚLĄSKIE | H37: oleśnicki | K37: 0003 | L37: Powiat ziemski | M37: 02 | N37: 14 | P37: 00013 | Q37: 2 | R37: 002 | S37: 001 | T37: 001 | U37: 001 | V37: 0003 | W37: 0011 | X37: 005 | Y37: 001 | Z37: 01 | AA37: Zasadnicza Szkoła Zawodowa Specjalna Nr 2 | AB37: 00086483500000 | AC37: 02 | AD37: 14 | AE37: 01 | AF37: Oleśnica | AG37: Wojska Polskiego | AH37: 8 | AI37: 56-400 | AJ37: OLEŚNICA | AK37: 20 | AL37: 4 | AM37: 0214 | AN37: 02 | AO37: 14 | AQ37: =IF(LEN($AM37)=6,VLOOKUP($AM37,slownik_JST!$B:$J,9,0),"") ->  | AR37: =VLOOKUP($AN37&$AO37,slownik_JST!$B:$J,9,0) -> Powiat nie będący miastem na pr. powiatu | AS37: DOLNOŚLĄSKIE | AT37: oleśnicki | AV37: Powiat ziemski | AW37: =VLOOKUP(P37,listy_plac!$M$2:$N$52,2,0) -> Zasadnicza szkoła zawodowa | AX37: =VLOOKUP(R37,listy_plac!$Z$27:$AA$32,2,0) -> Szkoła lub placówka w ramach jednostki złożonej | AY37: =VLOOKUP(S37,listy_plac!$Z$2:$AA$5,2,0) -> publiczna | AZ37: =VLOOKUP(T37,listy_plac!$Z$8:$AA$10,2,0) -> Dzieci lub młodzież | BA37: =VLOOKUP(U37,listy_plac!$Z$13:$AA$15,2,0) -> specjalna | BB37: =VLOOKUP(Y37,listy_plac!$Z$18:$AA$24,2,0) -> dzienna | BC37: Zasadnicza Szkoła Zawodowa Specjalna Nr 2 | BD37: Oleśnica | BE37: Wojska Polskiego | BF37: 8 | BG37: 56-400 | BH37: OLEŚNICA | BI37: 20 | BJ37: 4 | BK37: =VLOOKUP(AM37,wsk_doch!B:D,3,0) -> 181.38
A38: 29742 | C38: 0215 | D38: 02 | E38: 15 | G38: DOLNOŚLĄSKIE | H38: oławski | K38: 0003 | L38: Powiat ziemski | M38: 02 | N38: 15 | P38: 00013 | Q38: 2 | R38: 002 | S38: 001 | T38: 001 | U38: 100 | V38: 0003 | W38: 0100 | Y38: 001 | Z38: 01 | AA38: Zasadnicza Szkoła Zawodowa Nr 2 w Zespole Szkół Ponadgimnazjalnych Nr 2 Im Zjednoczonej Europy w Oławie | AB38: 93208809700000 | AC38: 02 | AD38: 15 | AE38: 01 | AF38: Oława | AG38: 3 Maja | AH38: 18E | AI38: 55-200 | AJ38: Oława | AK38: 118 | AL38: 118 | AM38: 0215 | AN38: 02 | AO38: 15 | AQ38: =IF(LEN($AM38)=6,VLOOKUP($AM38,slownik_JST!$B:$J,9,0),"") ->  | AR38: =VLOOKUP($AN38&$AO38,slownik_JST!$B:$J,9,0) -> Powiat nie będący miastem na pr. powiatu | AS38: DOLNOŚLĄSKIE | AT38: oławski | AV38: Powiat ziemski | AW38: =VLOOKUP(P38,listy_plac!$M$2:$N$52,2,0) -> Zasadnicza szkoła zawodowa | AX38: =VLOOKUP(R38,listy_plac!$Z$27:$AA$32,2,0) -> Szkoła lub placówka w ramach jednostki złożonej | AY38: =VLOOKUP(S38,listy_plac!$Z$2:$AA$5,2,0) -> publiczna | AZ38: =VLOOKUP(T38,listy_plac!$Z$8:$AA$10,2,0) -> Dzieci lub młodzież | BA38: =VLOOKUP(U38,listy_plac!$Z$13:$AA$15,2,0) -> brak specyfiki | BB38: =VLOOKUP(Y38,listy_plac!$Z$18:$AA$24,2,0) -> dzienna | BC38: Zasadnicza Szkoła Zawodowa Nr 2 w Zespole Szkół Ponadgimnazjalnych Nr 2 Im Zjednoczonej Europy w Oławie | BD38: Oława | BE38: 3 Maja | BF38: 18E | BG38: 55-200 | BH38: Oława | BI38: 118 | BJ38: 118 | BK38: =VLOOKUP(AM38,wsk_doch!B:D,3,0) -> 207.97
A39: 31152 | C39: 0215 | D39: 02 | E39: 15 | G39: DOLNOŚLĄSKIE | H39: oławski | K39: 0003 | L39: Powiat ziemski | M39: 02 | N39: 15 | P39: 00013 | Q39: 2 | R39: 002 | S39: 001 | T39: 001 | U39: 100 | V39: 0003 | W39: 0100 | Y39: 001 | Z39: 01 | AA39: Zasadnicza Szkoła Zawodowa | AB39: 93225026700000 | AC39: 02 | AD39: 15 | AE39: 03 | AF39: Jelcz-Laskowice | AG39: Techników | AH39: 26 | AI39: 55-220 | AJ39: Jelcz - Laskowice | AK39: 103 | AL39: 61 | AM39: 0215 | AN39: 02 | AO39: 15 | AQ39: =IF(LEN($AM39)=6,VLOOKUP($AM39,slownik_JST!$B:$J,9,0),"") ->  | AR39: =VLOOKUP($AN39&$AO39,slownik_JST!$B:$J,9,0) -> Powiat nie będący miastem na pr. powiatu | AS39: DOLNOŚLĄSKIE | AT39: oławski | AV39: Powiat ziemski | AW39: =VLOOKUP(P39,listy_plac!$M$2:$N$52,2,0) -> Zasadnicza szkoła zawodowa | AX39: =VLOOKUP(R39,listy_plac!$Z$27:$AA$32,2,0) -> Szkoła lub placówka w ramach jednostki złożonej | AY39: =VLOOKUP(S39,listy_plac!$Z$2:$AA$5,2,0) -> publiczna | AZ39: =VLOOKUP(T39,listy_plac!$Z$8:$AA$10,2,0) -> Dzieci lub młodzież | BA39: =VLOOKUP(U39,listy_plac!$Z$13:$AA$15,2,0) -> brak specyfiki | BB39: =VLOOKUP(Y39,listy_plac!$Z$18:$AA$24,2,0) -> dzienna | BC39: Zasadnicza Szkoła Zawodowa | BD39: Jelcz-Laskowice | BE39: Techników | BF39: 26 | BG39: 55-220 | BH39: Jelcz - Laskowice | BI39: 103 | BJ39: 61 | BK39: =VLOOKUP(AM39,wsk_doch!B:D,3,0) -> 207.97
A40: 30693 | C40: 0215 | D40: 02 | E40: 15 | G40: DOLNOŚLĄSKIE | H40: oławski | K40: 0003 | L40: Powiat ziemski | M40: 02 | N40: 15 | P40: 00013 | Q40: 2 | R40: 002 | S40: 001 | T40: 001 | U40: 100 | V40: 0003 | W40: 0100 | Y40: 001 | Z40: 01 | AA40: Zasadnicza Szkoła Zawodowa Nr 1 w Oławie | AB40: 93224486400000 | AC40: 02 | AD40: 15 | AE40: 01 | AF40: Oława | AG40: Ks. F. Kutrowskiego | AH40: 31 | AI40: 55-200 | AJ40: Oława | AK40: 86 | AL40: 86 | AM40: 0215 | AN40: 02 | AO40: 15 | AQ40: =IF(LEN($AM40)=6,VLOOKUP($AM40,slownik_JST!$B:$J,9,0),"") ->  | AR40: =VLOOKUP($AN40&$AO40,slownik_JST!$B:$J,9,0) -> Powiat nie będący miastem na pr. powiatu | AS40: DOLNOŚLĄSKIE | AT40: oławski | AV40: Powiat ziemski | AW40: =VLOOKUP(P40,listy_plac!$M$2:$N$52,2,0) -> Zasadnicza szkoła zawodowa | AX40: =VLOOKUP(R40,listy_plac!$Z$27:$AA$32,2,0) -> Szkoła lub placówka w ramach jednostki złożonej | AY40: =VLOOKUP(S40,listy_plac!$Z$2:$AA$5,2,0) -> publiczna | AZ40: =VLOOKUP(T40,listy_plac!$Z$8:$AA$10,2,0) -> Dzieci lub młodzież | BA40: =VLOOKUP(U40,listy_plac!$Z$13:$AA$15,2,0) -> brak specyfiki | BB40: =VLOOKUP(Y40,listy_plac!$Z$18:$AA$24,2,0) -> dzienna | BC40: Zasadnicza Szkoła Zawodowa Nr 1 w Oławie | BD40: Oława | BE40: Ks. F. Kutrowskiego | BF40: 31 | BG40: 55-200 | BH40: Oława | BI40: 86 | BJ40: 86 | BK40: =VLOOKUP(AM40,wsk_doch!B:D,3,0) -> 207.97
A41: 60251 | C41: 0215 | D41: 02 | E41: 15 | G41: DOLNOŚLĄSKIE | H41: oławski | K41: 0003 | L41: Powiat ziemski | M41: 02 | N41: 15 | P41: 00013 | Q41: 2 | R41: 002 | S41: 001 | T41: 001 | U41: 001 | V41: 0003 | W41: 0100 | X41: 005 | Y41: 001 | Z41: 01 | AA41: Zasadnicza Szkoła Zawodowa Specjalna nr 3 | AB41: 93293627200000 | AC41: 02 | AD41: 15 | AE41: 01 | AF41: Oława | AG41: Ks. Franciszka Kutrowskiego | AH41: 31 A | AI41: 55-200 | AJ41: Oława | AK41: 16 | AL41: 16 | AM41: 0215 | AN41: 02 | AO41: 15 | AQ41: =IF(LEN($AM41)=6,VLOOKUP($AM41,slownik_JST!$B:$J,9,0),"") ->  | AR41: =VLOOKUP($AN41&$AO41,slownik_JST!$B:$J,9,0) -> Powiat nie będący miastem na pr. powiatu | AS41: DOLNOŚLĄSKIE | AT41: oławski | AV41: Powiat ziemski | AW41: =VLOOKUP(P41,listy_plac!$M$2:$N$52,2,0) -> Zasadnicza szkoła zawodowa | AX41: =VLOOKUP(R41,listy_plac!$Z$27:$AA$32,2,0) -> Szkoła lub placówka w ramach jednostki złożonej | AY41: =VLOOKUP(S41,listy_plac!$Z$2:$AA$5,2,0) -> publiczna | AZ41: =VLOOKUP(T41,listy_plac!$Z$8:$AA$10,2,0) -> Dzieci lub młodzież | BA41: =VLOOKUP(U41,listy_plac!$Z$13:$AA$15,2,0) -> specjalna | BB41: =VLOOKUP(Y41,listy_plac!$Z$18:$AA$24,2,0) -> dzienna | BC41: Zasadnicza Szkoła Zawodowa Specjalna nr 3 | BD41: Oława | BE41: Ks. Franciszka Kutrowskiego | BF41: 31 A | BG41: 55-200 | BH41: Oława | BI41: 16 | BJ41: 16 | BK41: =VLOOKUP(AM41,wsk_doch!B:D,3,0) -> 207.97
A42: 40806 | C42: 0216 | D42: 02 | E42: 16 | G42: DOLNOŚLĄSKIE | H42: polkowicki | K42: 0003 | L42: Powiat ziemski | M42: 02 | N42: 16 | P42: 00013 | Q42: 2 | R42: 002 | S42: 001 | T42: 001 | U42: 100 | V42: 0003 | W42: 0100 | Y42: 001 | Z42: 01 | AA42: Zasadnicza Szkoła Zawodowa | AB42: 39100947500000 | AC42: 02 | AD42: 16 | AE42: 04 | AF42: Polkowice | AG42: Skalników | AH42: 6 | AI42: 59-101 | AJ42: Polkowice | AK42: 135 | AL42: 126 | AM42: 0216 | AN42: 02 | AO42: 16 | AQ42: =IF(LEN($AM42)=6,VLOOKUP($AM42,slownik_JST!$B:$J,9,0),"") ->  | AR42: =VLOOKUP($AN42&$AO42,slownik_JST!$B:$J,9,0) -> Powiat nie będący miastem na pr. powiatu | AS42: DOLNOŚLĄSKIE | AT42: polkowicki | AV42: Powiat ziemski | AW42: =VLOOKUP(P42,listy_plac!$M$2:$N$52,2,0) -> Zasadnicza szkoła zawodowa | AX42: =VLOOKUP(R42,listy_plac!$Z$27:$AA$32,2,0) -> Szkoła lub placówka w ramach jednostki złożonej | AY42: =VLOOKUP(S42,listy_plac!$Z$2:$AA$5,2,0) -> publiczna | AZ42: =VLOOKUP(T42,listy_plac!$Z$8:$AA$10,2,0) -> Dzieci lub młodzież | BA42: =VLOOKUP(U42,listy_plac!$Z$13:$AA$15,2,0) -> brak specyfiki | BB42: =VLOOKUP(Y42,listy_plac!$Z$18:$AA$24,2,0) -> dzienna | BC42: Zasadnicza Szkoła Zawodowa | BD42: Polkowice | BE42: Skalników | BF42: 6 | BG42: 59-101 | BH42: Polkowice | BI42: 135 | BJ42: 126 | BK42: =VLOOKUP(AM42,wsk_doch!B:D,3,0) -> 370.31
A43: 34920 | C43: 0216 | D43: 02 | E43: 16 | G43: DOLNOŚLĄSKIE | H43: polkowicki | K43: 0003 | L43: Powiat ziemski | M43: 02 | N43: 16 | P43: 00013 | Q43: 2 | R43: 002 | S43: 001 | T43: 001 | U43: 100 | V43: 0003 | W43: 0100 | Y43: 001 | Z43: 01 | AA43: Zasadnicza Szkoła Zawodowa | AB43: 39100903800000 | AC43: 02 | AD43: 16 | AE43: 01 | AF43: Chocianów | AG43: Kolonialna | AH43: 13 | AI43: 59-140 | AJ43: Chocianów | AK43: 148 | AL43: 148 | AM43: 0216 | AN43: 02 | AO43: 16 | AQ43: =IF(LEN($AM43)=6,VLOOKUP($AM43,slownik_JST!$B:$J,9,0),"") ->  | AR43: =VLOOKUP($AN43&$AO43,slownik_JST!$B:$J,9,0) -> Powiat nie będący miastem na pr. powiatu | AS43: DOLNOŚLĄSKIE | AT43: polkowicki | AV43: Powiat ziemski | AW43: =VLOOKUP(P43,listy_plac!$M$2:$N$52,2,0) -> Zasadnicza szkoła zawodowa | AX43: =VLOOKUP(R43,listy_plac!$Z$27:$AA$32,2,0) -> Szkoła lub placówka w ramach jednostki złożonej | AY43: =VLOOKUP(S43,listy_plac!$Z$2:$AA$5,2,0) -> publiczna | AZ43: =VLOOKUP(T43,listy_plac!$Z$8:$AA$10,2,0) -> Dzieci lub młodzież | BA43: =VLOOKUP(U43,listy_plac!$Z$13:$AA$15,2,0) -> brak specyfiki | BB43: =VLOOKUP(Y43,listy_plac!$Z$18:$AA$24,2,0) -> dzienna | BC43: Zasadnicza Szkoła Zawodowa | BD43: Chocianów | BE43: Kolonialna | BF43: 13 | BG43: 59-140 | BH43: Chocianów | BI43: 148 | BJ43: 148 | BK43: =VLOOKUP(AM43,wsk_doch!B:D,3,0) -> 370.31
A44: 106261 | C44: 021605 | D44: 02 | E44: 16 | F44: 05 | G44: DOLNOŚLĄSKIE | H44: polkowicki | I44: Przemków | J44: M-Gm | K44: 0001 | L44: Gmina | M44: 02 | N44: 16 | O44: 05 | P44: 00013 | Q44: 2 | R44: 002 | S44: 001 | T44: 001 | U44: 100 | V44: 0003 | W44: 0100 | Y44: 001 | Z44: 01 | AA44: Zasadnicza Szkoła Zawodowa | AB44: 39103263000000 | AC44: 02 | AD44: 16 | AE44: 05 | AF44: Przemków | AG44: LEŚNA GÓRA | AH44: 3 | AI44: 59-170 | AJ44: PRZEMKÓW | AK44: 43 | AL44: 43 | AM44: 021605 | AN44: 02 | AO44: 16 | AP44: 05 | AQ44: =IF(LEN($AM44)=6,VLOOKUP($AM44,slownik_JST!$B:$J,9,0),"") -> Gmina miejsko-wiejska | AR44: =VLOOKUP($AN44&$AO44,slownik_JST!$B:$J,9,0) -> Powiat nie będący miastem na pr. powiatu | AS44: DOLNOŚLĄSKIE | AT44: polkowicki | AU44: Przemków | AV44: Gmina | AW44: =VLOOKUP(P44,listy_plac!$M$2:$N$52,2,0) -> Zasadnicza szkoła zawodowa | AX44: =VLOOKUP(R44,listy_plac!$Z$27:$AA$32,2,0) -> Szkoła lub placówka w ramach jednostki złożonej | AY44: =VLOOKUP(S44,listy_plac!$Z$2:$AA$5,2,0) -> publiczna | AZ44: =VLOOKUP(T44,listy_plac!$Z$8:$AA$10,2,0) -> Dzieci lub młodzież | BA44: =VLOOKUP(U44,listy_plac!$Z$13:$AA$15,2,0) -> brak specyfiki | BB44: =VLOOKUP(Y44,listy_plac!$Z$18:$AA$24,2,0) -> dzienna | BC44: Zasadnicza Szkoła Zawodowa | BD44: Przemków | BE44: LEŚNA GÓRA | BF44: 3 | BG44: 59-170 | BH44: PRZEMKÓW | BI44: 43 | BJ44: 43 | BK44: =VLOOKUP(AM44,wsk_doch!B:D,3,0) -> 1111.95
A45: 79824 | C45: 0217 | D45: 02 | E45: 17 | G45: DOLNOŚLĄSKIE | H45: strzeliński | K45: 0003 | L45: Powiat ziemski | M45: 02 | N45: 17 | P45: 00013 | Q45: 2 | R45: 002 | S45: 001 | T45: 001 | U45: 100 | V45: 0003 | W45: 0100 | Y45: 001 | Z45: 01 | AA45: Zasadnicza Szkoła Zawodowa im. Bohaterów Westerplatte w Strzelinie | AB45: 93282542000000 | AC45: 02 | AD45: 17 | AE45: 04 | AF45: Strzelin | AG45: Stanisława Staszica | AH45: 5 | AI45: 57-100 | AJ45: Strzelin | AK45: 122 | AL45: 61 | AM45: 0217 | AN45: 02 | AO45: 17 | AQ45: =IF(LEN($AM45)=6,VLOOKUP($AM45,slownik_JST!$B:$J,9,0),"") ->  | AR45: =VLOOKUP($AN45&$AO45,slownik_JST!$B:$J,9,0) -> Powiat nie będący miastem na pr. powiatu | AS45: DOLNOŚLĄSKIE | AT45: strzeliński | AV45: Powiat ziemski | AW45: =VLOOKUP(P45,listy_plac!$M$2:$N$52,2,0) -> Zasadnicza szkoła zawodowa | AX45: =VLOOKUP(R45,listy_plac!$Z$27:$AA$32,2,0) -> Szkoła lub placówka w ramach jednostki złożonej | AY45: =VLOOKUP(S45,listy_plac!$Z$2:$AA$5,2,0) -> publiczna | AZ45: =VLOOKUP(T45,listy_plac!$Z$8:$AA$10,2,0) -> Dzieci lub młodzież | BA45: =VLOOKUP(U45,listy_plac!$Z$13:$AA$15,2,0) -> brak specyfiki | BB45: =VLOOKUP(Y45,listy_plac!$Z$18:$AA$24,2,0) -> dzienna | BC45: Zasadnicza Szkoła Zawodowa im. Bohaterów Westerplatte w Strzelinie | BD45: Strzelin | BE45: Stanisława Staszica | BF45: 5 | BG45: 57-100 | BH45: Strzelin | BI45: 122 | BJ45: 61 | BK45: =VLOOKUP(AM45,wsk_doch!B:D,3,0) -> 158.02
A46: 22648 | C46: 0218 | D46: 02 | E46: 18 | G46: DOLNOŚLĄSKIE | H46: średzki | K46: 0003 | L46: Powiat ziemski | M46: 02 | N46: 18 | P46: 00013 | Q46: 2 | R46: 002 | S46: 001 | T46: 001 | U46: 100 | V46: 0003 | W46: 0100 | Y46: 001 | Z46: 01 | AA46: Zasadnicza Szkoła Zawodowa Nr 1 | AB46: 93282648300000 | AC46: 02 | AD46: 18 | AE46: 04 | AF46: Środa Śląska | AG46: Wrocławska | AH46: 12 | AI46: 55-300 | AJ46: Środa Śląska | AK46: 40 | AL46: 40 | AM46: 0218 | AN46: 02 | AO46: 18 | AQ46: =IF(LEN($AM46)=6,VLOOKUP($AM46,slownik_JST!$B:$J,9,0),"") ->  | AR46: =VLOOKUP($AN46&$AO46,slownik_JST!$B:$J,9,0) -> Powiat nie będący miastem na pr. powiatu | AS46: DOLNOŚLĄSKIE | AT46: średzki | AV46: Powiat ziemski | AW46: =VLOOKUP(P46,listy_plac!$M$2:$N$52,2,0) -> Zasadnicza szkoła zawodowa | AX46: =VLOOKUP(R46,listy_plac!$Z$27:$AA$32,2,0) -> Szkoła lub placówka w ramach jednostki złożonej | AY46: =VLOOKUP(S46,listy_plac!$Z$2:$AA$5,2,0) -> publiczna | AZ46: =VLOOKUP(T46,listy_plac!$Z$8:$AA$10,2,0) -> Dzieci lub młodzież | BA46: =VLOOKUP(U46,listy_plac!$Z$13:$AA$15,2,0) -> brak specyfiki | BB46: =VLOOKUP(Y46,listy_plac!$Z$18:$AA$24,2,0) -> dzienna | BC46: Zasadnicza Szkoła Zawodowa Nr 1 | BD46: Środa Śląska | BE46: Wrocławska | BF46: 12 | BG46: 55-300 | BH46: Środa Śląska | BI46: 40 | BJ46: 40 | BK46: =VLOOKUP(AM46,wsk_doch!B:D,3,0) -> 188.03
A47: 13181 | C47: 0219 | D47: 02 | E47: 19 | G47: DOLNOŚLĄSKIE | H47: świdnicki | K47: 0003 | L47: Powiat ziemski | M47: 02 | N47: 19 | P47: 00013 | Q47: 2 | R47: 002 | S47: 001 | T47: 001 | U47: 100 | V47: 0003 | W47: 0100 | Y47: 001 | Z47: 01 | AA47: Zasadnicza Szkoła Zawodowa | AB47: 89142016600000 | AC47: 02 | AD47: 19 | AE47: 06 | AF47: Strzegom | AG47: KRÓTKA | AH47: 6 | AI47: 58-150 | AJ47: STRZEGOM | AK47: 96 | AL47: 49 | AM47: 0219 | AN47: 02 | AO47: 19 | AQ47: =IF(LEN($AM47)=6,VLOOKUP($AM47,slownik_JST!$B:$J,9,0),"") ->  | AR47: =VLOOKUP($AN47&$AO47,slownik_JST!$B:$J,9,0) -> Powiat nie będący miastem na pr. powiatu | AS47: DOLNOŚLĄSKIE | AT47: świdnicki | AV47: Powiat ziemski | AW47: =VLOOKUP(P47,listy_plac!$M$2:$N$52,2,0) -> Zasadnicza szkoła zawodowa | AX47: =VLOOKUP(R47,listy_plac!$Z$27:$AA$32,2,0) -> Szkoła lub placówka w ramach jednostki złożonej | AY47: =VLOOKUP(S47,listy_plac!$Z$2:$AA$5,2,0) -> publiczna | AZ47: =VLOOKUP(T47,listy_plac!$Z$8:$AA$10,2,0) -> Dzieci lub młodzież | BA47: =VLOOKUP(U47,listy_plac!$Z$13:$AA$15,2,0) -> brak specyfiki | BB47: =VLOOKUP(Y47,listy_plac!$Z$18:$AA$24,2,0) -> dzienna | BC47: Zasadnicza Szkoła Zawodowa | BD47: Strzegom | BE47: KRÓTKA | BF47: 6 | BG47: 58-150 | BH47: STRZEGOM | BI47: 96 | BJ47: 49 | BK47: =VLOOKUP(AM47,wsk_doch!B:D,3,0) -> 192.05
A48: 12321 | C48: 0219 | D48: 02 | E48: 19 | G48: DOLNOŚLĄSKIE | H48: świdnicki | K48: 0003 | L48: Powiat ziemski | M48: 02 | N48: 19 | P48: 00013 | Q48: 2 | R48: 002 | S48: 001 | T48: 001 | U48: 100 | V48: 0003 | W48: 0100 | Y48: 001 | Z48: 01 | AA48: Zasadnicza szkoła zawodowa nr 1 w Świdnicy | AB48: 89141813000000 | AC48: 02 | AD48: 19 | AE48: 01 | AF48: Świdnica | AG48: Budowlana | AH48: 7-9 | AI48: 58-100 | AJ48: Świdnica | AK48: 136 | AL48: 136 | AM48: 0219 | AN48: 02 | AO48: 19 | AQ48: =IF(LEN($AM48)=6,VLOOKUP($AM48,slownik_JST!$B:$J,9,0),"") ->  | AR48: =VLOOKUP($AN48&$AO48,slownik_JST!$B:$J,9,0) -> Powiat nie będący miastem na pr. powiatu | AS48: DOLNOŚLĄSKIE | AT48: świdnicki | AV48: Powiat ziemski | AW48: =VLOOKUP(P48,listy_plac!$M$2:$N$52,2,0) -> Zasadnicza szkoła zawodowa | AX48: =VLOOKUP(R48,listy_plac!$Z$27:$AA$32,2,0) -> Szkoła lub placówka w ramach jednostki złożonej | AY48: =VLOOKUP(S48,listy_plac!$Z$2:$AA$5,2,0) -> publiczna | AZ48: =VLOOKUP(T48,listy_plac!$Z$8:$AA$10,2,0) -> Dzieci lub młodzież | BA48: =VLOOKUP(U48,listy_plac!$Z$13:$AA$15,2,0) -> brak specyfiki | BB48: =VLOOKUP(Y48,listy_plac!$Z$18:$AA$24,2,0) -> dzienna | BC48: Zasadnicza szkoła zawodowa nr 1 w Świdnicy | BD48: Świdnica | BE48: Budowlana | BF48: 7-9 | BG48: 58-100 | BH48: Świdnica | BI48: 136 | BJ48: 136 | BK48: =VLOOKUP(AM48,wsk_doch!B:D,3,0) -> 192.05
A49: 14928 | C49: 0219 | D49: 02 | E49: 19 | G49: DOLNOŚLĄSKIE | H49: świdnicki | K49: 0003 | L49: Powiat ziemski | M49: 02 | N49: 19 | P49: 00013 | Q49: 2 | R49: 002 | S49: 001 | T49: 001 | U49: 100 | V49: 0003 | W49: 0100 | Y49: 001 | Z49: 01 | AA49: Zasadnicza Szkoła Zawodowa | AB49: 89141751400000 | AC49: 02 | AD49: 19 | AE49: 02 | AF49: Świebodzice | AG49: Marszałka Józefa Piłsudskiego | AH49: 31 | AI49: 58-160 | AJ49: Świebodzice | AK49: 80 | AL49: 78 | AM49: 0219 | AN49: 02 | AO49: 19 | AQ49: =IF(LEN($AM49)=6,VLOOKUP($AM49,slownik_JST!$B:$J,9,0),"") ->  | AR49: =VLOOKUP($AN49&$AO49,slownik_JST!$B:$J,9,0) -> Powiat nie będący miastem na pr. powiatu | AS49: DOLNOŚLĄSKIE | AT49: świdnicki | AV49: Powiat ziemski | AW49: =VLOOKUP(P49,listy_plac!$M$2:$N$52,2,0) -> Zasadnicza szkoła zawodowa | AX49: =VLOOKUP(R49,listy_plac!$Z$27:$AA$32,2,0) -> Szkoła lub placówka w ramach jednostki złożonej | AY49: =VLOOKUP(S49,listy_plac!$Z$2:$AA$5,2,0) -> publiczna | AZ49: =VLOOKUP(T49,listy_plac!$Z$8:$AA$10,2,0) -> Dzieci lub młodzież | BA49: =VLOOKUP(U49,listy_plac!$Z$13:$AA$15,2,0) -> brak specyfiki | BB49: =VLOOKUP(Y49,listy_plac!$Z$18:$AA$24,2,0) -> dzienna | BC49: Zasadnicza Szkoła Zawodowa | BD49: Świebodzice | BE49: Marszałka Józefa Piłsudskiego | BF49: 31 | BG49: 58-160 | BH49: Świebodzice | BI49: 80 | BJ49: 78 | BK49: =VLOOKUP(AM49,wsk_doch!B:D,3,0) -> 192.05
A50: 14530 | C50: 0219 | D50: 02 | E50: 19 | G50: DOLNOŚLĄSKIE | H50: świdnicki | K50: 0003 | L50: Powiat ziemski | M50: 02 | N50: 19 | P50: 00013 | Q50: 2 | R50: 002 | S50: 001 | T50: 001 | U50: 100 | V50: 0003 | W50: 0100 | Y50: 001 | Z50: 01 | AA50: Zasadnicza Szkoła Zawodowa w Żarowie | AB50: 89141714100000 | AC50: 02 | AD50: 19 | AE50: 08 | AF50: Żarów | AG50: Zamkowa | AH50: 10 | AI50: 58-130 | AJ50: Żarów | AK50: 52 | AL50: 48 | AM50: 0219 | AN50: 02 | AO50: 19 | AQ50: =IF(LEN($AM50)=6,VLOOKUP($AM50,slownik_JST!$B:$J,9,0),"") ->  | AR50: =VLOOKUP($AN50&$AO50,slownik_JST!$B:$J,9,0) -> Powiat nie będący miastem na pr. powiatu | AS50: DOLNOŚLĄSKIE | AT50: świdnicki | AV50: Powiat ziemski | AW50: =VLOOKUP(P50,listy_plac!$M$2:$N$52,2,0) -> Zasadnicza szkoła zawodowa | AX50: =VLOOKUP(R50,listy_plac!$Z$27:$AA$32,2,0) -> Szkoła lub placówka w ramach jednostki złożonej | AY50: =VLOOKUP(S50,listy_plac!$Z$2:$AA$5,2,0) -> publiczna | AZ50: =VLOOKUP(T50,listy_plac!$Z$8:$AA$10,2,0) -> Dzieci lub młodzież | BA50: =VLOOKUP(U50,listy_plac!$Z$13:$AA$15,2,0) -> brak specyfiki | BB50: =VLOOKUP(Y50,listy_plac!$Z$18:$AA$24,2,0) -> dzienna | BC50: Zasadnicza Szkoła Zawodowa w Żarowie | BD50: Żarów | BE50: Zamkowa | BF50: 10 | BG50: 58-130 | BH50: Żarów | BI50: 52 | BJ50: 48 | BK50: =VLOOKUP(AM50,wsk_doch!B:D,3,0) -> 192.05
A51: 13149 | C51: 0219 | D51: 02 | E51: 19 | G51: DOLNOŚLĄSKIE | H51: świdnicki | K51: 0003 | L51: Powiat ziemski | M51: 02 | N51: 19 | P51: 00013 | Q51: 2 | R51: 002 | S51: 001 | T51: 001 | U51: 001 | V51: 0003 | W51: 0100 | X51: 005 | Y51: 001 | Z51: 01 | AA51: Zasadnicza Szkoła Zawodowa Nr 7 | AB51: 00074367500000 | AC51: 02 | AD51: 19 | AE51: 01 | AF51: Świdnica | AG51: Rotmistrza Witolda Pileckiego | AH51: 3 | AI51: 58-100 | AJ51: ŚWIDNICA | AK51: 23 | AL51: 10 | AM51: 0219 | AN51: 02 | AO51: 19 | AQ51: =IF(LEN($AM51)=6,VLOOKUP($AM51,slownik_JST!$B:$J,9,0),"") ->  | AR51: =VLOOKUP($AN51&$AO51,slownik_JST!$B:$J,9,0) -> Powiat nie będący miastem na pr. powiatu | AS51: DOLNOŚLĄSKIE | AT51: świdnicki | AV51: Powiat ziemski | AW51: =VLOOKUP(P51,listy_plac!$M$2:$N$52,2,0) -> Zasadnicza szkoła zawodowa | AX51: =VLOOKUP(R51,listy_plac!$Z$27:$AA$32,2,0) -> Szkoła lub placówka w ramach jednostki złożonej | AY51: =VLOOKUP(S51,listy_plac!$Z$2:$AA$5,2,0) -> publiczna | AZ51: =VLOOKUP(T51,listy_plac!$Z$8:$AA$10,2,0) -> Dzieci lub młodzież | BA51: =VLOOKUP(U51,listy_plac!$Z$13:$AA$15,2,0) -> specjalna | BB51: =VLOOKUP(Y51,listy_plac!$Z$18:$AA$24,2,0) -> dzienna | BC51: Zasadnicza Szkoła Zawodowa Nr 7 | BD51: Świdnica | BE51: Rotmistrza Witolda Pileckiego | BF51: 3 | BG51: 58-100 | BH51: ŚWIDNICA | BI51: 23 | BJ51: 10 | BK51: =VLOOKUP(AM51,wsk_doch!B:D,3,0) -> 192.05
A52: 92542 | C52: 0220 | D52: 02 | E52: 20 | G52: DOLNOŚLĄSKIE | H52: trzebnicki | K52: 0003 | L52: Powiat ziemski | M52: 02 | N52: 20 | P52: 00013 | Q52: 2 | R52: 002 | S52: 001 | T52: 001 | U52: 001 | V52: 0003 | W52: 0011 | X52: 005 | Y52: 001 | Z52: 01 | AA52: Zasadnicza Szkoła Zawodowa Specjalna nr 2 | AB52: 93022984300000 | AC52: 02 | AD52: 20 | AE52: 03 | AF52: Trzebnica | AG52: Nowa | AH52: 1 | AI52: 55-100 | AJ52: Trzebnica | AK52: 12 | AL52: 12 | AM52: 0220 | AN52: 02 | AO52: 20 | AQ52: =IF(LEN($AM52)=6,VLOOKUP($AM52,slownik_JST!$B:$J,9,0),"") ->  | AR52: =VLOOKUP($AN52&$AO52,slownik_JST!$B:$J,9,0) -> Powiat nie będący miastem na pr. powiatu | AS52: DOLNOŚLĄSKIE | AT52: trzebnicki | AV52: Powiat ziemski | AW52: =VLOOKUP(P52,listy_plac!$M$2:$N$52,2,0) -> Zasadnicza szkoła zawodowa | AX52: =VLOOKUP(R52,listy_plac!$Z$27:$AA$32,2,0) -> Szkoła lub placówka w ramach jednostki złożonej | AY52: =VLOOKUP(S52,listy_plac!$Z$2:$AA$5,2,0) -> publiczna | AZ52: =VLOOKUP(T52,listy_plac!$Z$8:$AA$10,2,0) -> Dzieci lub młodzież | BA52: =VLOOKUP(U52,listy_plac!$Z$13:$AA$15,2,0) -> specjalna | BB52: =VLOOKUP(Y52,listy_plac!$Z$18:$AA$24,2,0) -> dzienna | BC52: Zasadnicza Szkoła Zawodowa Specjalna nr 2 | BD52: Trzebnica | BE52: Nowa | BF52: 1 | BG52: 55-100 | BH52: Trzebnica | BI52: 12 | BJ52: 12 | BK52: =VLOOKUP(AM52,wsk_doch!B:D,3,0) -> 183.07
A53: 34791 | C53: 0220 | D53: 02 | E53: 20 | G53: DOLNOŚLĄSKIE | H53: trzebnicki | K53: 0003 | L53: Powiat ziemski | M53: 02 | N53: 20 | P53: 00013 | Q53: 2 | R53: 002 | S53: 001 | T53: 001 | U53: 100 | V53: 0003 | W53: 0100 | Y53: 001 | Z53: 01 | AA53: Zasadnicza Szkoła Zawodowa | AB53: 93283838000000 | AC53: 02 | AD53: 20 | AE53: 03 | AF53: Trzebnica | AG53: Żeromskiego | AH53: 25 | AI53: 55-100 | AJ53: Trzebnica | AK53: 239 | AL53: 237 | AM53: 0220 | AN53: 02 | AO53: 20 | AQ53: =IF(LEN($AM53)=6,VLOOKUP($AM53,slownik_JST!$B:$J,9,0),"") ->  | AR53: =VLOOKUP($AN53&$AO53,slownik_JST!$B:$J,9,0) -> Powiat nie będący miastem na pr. powiatu | AS53: DOLNOŚLĄSKIE | AT53: trzebnicki | AV53: Powiat ziemski | AW53: =VLOOKUP(P53,listy_plac!$M$2:$N$52,2,0) -> Zasadnicza szkoła zawodowa | AX53: =VLOOKUP(R53,listy_plac!$Z$27:$AA$32,2,0) -> Szkoła lub placówka w ramach jednostki złożonej | AY53: =VLOOKUP(S53,listy_plac!$Z$2:$AA$5,2,0) -> publiczna | AZ53: =VLOOKUP(T53,listy_plac!$Z$8:$AA$10,2,0) -> Dzieci lub młodzież | BA53: =VLOOKUP(U53,listy_plac!$Z$13:$AA$15,2,0) -> brak specyfiki | BB53: =VLOOKUP(Y53,listy_plac!$Z$18:$AA$24,2,0) -> dzienna | BC53: Zasadnicza Szkoła Zawodowa | BD53: Trzebnica | BE53: Żeromskiego | BF53: 25 | BG53: 55-100 | BH53: Trzebnica | BI53: 239 | BJ53: 237 | BK53: =VLOOKUP(AM53,wsk_doch!B:D,3,0) -> 183.07
A54: 34795 | C54: 0220 | D54: 02 | E54: 20 | G54: DOLNOŚLĄSKIE | H54: trzebnicki | K54: 0003 | L54: Powiat ziemski | M54: 02 | N54: 20 | P54: 00013 | Q54: 2 | R54: 002 | S54: 001 | T54: 001 | U54: 100 | V54: 0003 | W54: 0100 | Y54: 001 | Z54: 01 | AA54: Zasadnicza Szkoła Zawodowa | AB54: 93283600400000 | AC54: 02 | AD54: 20 | AE54: 06 | AF54: Żmigród | AG54: Willowa | AH54: 5 | AI54: 55-140 | AJ54: Żmigród | AK54: 124 | AL54: 124 | AM54: 0220 | AN54: 02 | AO54: 20 | AQ54: =IF(LEN($AM54)=6,VLOOKUP($AM54,slownik_JST!$B:$J,9,0),"") ->  | AR54: =VLOOKUP($AN54&$AO54,slownik_JST!$B:$J,9,0) -> Powiat nie będący miastem na pr. powiatu | AS54: DOLNOŚLĄSKIE | AT54: trzebnicki | AV54: Powiat ziemski | AW54: =VLOOKUP(P54,listy_plac!$M$2:$N$52,2,0) -> Zasadnicza szkoła zawodowa | AX54: =VLOOKUP(R54,listy_plac!$Z$27:$AA$32,2,0) -> Szkoła lub placówka w ramach jednostki złożonej | AY54: =VLOOKUP(S54,listy_plac!$Z$2:$AA$5,2,0) -> publiczna | AZ54: =VLOOKUP(T54,listy_plac!$Z$8:$AA$10,2,0) -> Dzieci lub młodzież | BA54: =VLOOKUP(U54,listy_plac!$Z$13:$AA$15,2,0) -> brak specyfiki | BB54: =VLOOKUP(Y54,listy_plac!$Z$18:$AA$24,2,0) -> dzienna | BC54: Zasadnicza Szkoła Zawodowa | BD54: Żmigród | BE54: Willowa | BF54: 5 | BG54: 55-140 | BH54: Żmigród | BI54: 124 | BJ54: 124 | BK54: =VLOOKUP(AM54,wsk_doch!B:D,3,0) -> 183.07
A55: 129114 | C55: 0220 | D55: 02 | E55: 20 | G55: DOLNOŚLĄSKIE | H55: trzebnicki | K55: 0003 | L55: Powiat ziemski | M55: 02 | N55: 20 | P55: 00013 | Q55: 2 | R55: 002 | S55: 001 | T55: 001 | U55: 001 | V55: 0003 | W55: 0100 | X55: 005 | Y55: 001 | Z55: 01 | AA55: Zasadnicza Szkoła Zawodowa | AB55: 36250281800000 | AC55: 02 | AD55: 20 | AE55: 06 | AF55: Żmigród | AG55: Rubacka | AH55: 17 | AI55: 55-140 | AJ55: Żmigród | AK55: 9 | AL55: 9 | AM55: 0220 | AN55: 02 | AO55: 20 | AQ55: =IF(LEN($AM55)=6,VLOOKUP($AM55,slownik_JST!$B:$J,9,0),"") ->  | AR55: =VLOOKUP($AN55&$AO55,slownik_JST!$B:$J,9,0) -> Powiat nie będący miastem na pr. powiatu | AS55: DOLNOŚLĄSKIE | AT55: trzebnicki | AV55: Powiat ziemski | AW55: =VLOOKUP(P55,listy_plac!$M$2:$N$52,2,0) -> Zasadnicza szkoła zawodowa | AX55: =VLOOKUP(R55,listy_plac!$Z$27:$AA$32,2,0) -> Szkoła lub placówka w ramach jednostki złożonej | AY55: =VLOOKUP(S55,listy_plac!$Z$2:$AA$5,2,0) -> publiczna | AZ55: =VLOOKUP(T55,listy_plac!$Z$8:$AA$10,2,0) -> Dzieci lub młodzież | BA55: =VLOOKUP(U55,listy_plac!$Z$13:$AA$15,2,0) -> specjalna | BB55: =VLOOKUP(Y55,listy_plac!$Z$18:$AA$24,2,0) -> dzienna | BC55: Zasadnicza Szkoła Zawodowa | BD55: Żmigród | BE55: Rubacka | BF55: 17 | BG55: 55-140 | BH55: Żmigród | BI55: 9 | BJ55: 9 | BK55: =VLOOKUP(AM55,wsk_doch!B:D,3,0) -> 183.07
A56: 38756 | C56: 0220 | D56: 02 | E56: 20 | G56: DOLNOŚLĄSKIE | H56: trzebnicki | K56: 0003 | L56: Powiat ziemski | M56: 02 | N56: 20 | P56: 00013 | Q56: 2 | R56: 002 | S56: 001 | T56: 001 | U56: 100 | V56: 0003 | W56: 0100 | Y56: 001 | Z56: 01 | AA56: ZASADNICZA SZKOŁA ZAWODOWA | AB56: 02060858800000 | AC56: 02 | AD56: 20 | AE56: 01 | AF56: Oborniki Śląskie | AG56: PARKOWA | AH56: 8 | AI56: 55-120 | AJ56: OBORNIKI śL | AK56: 62 | AL56: 62 | AM56: 0220 | AN56: 02 | AO56: 20 | AQ56: =IF(LEN($AM56)=6,VLOOKUP($AM56,slownik_JST!$B:$J,9,0),"") ->  | AR56: =VLOOKUP($AN56&$AO56,slownik_JST!$B:$J,9,0) -> Powiat nie będący miastem na pr. powiatu | AS56: DOLNOŚLĄSKIE | AT56: trzebnicki | AV56: Powiat ziemski | AW56: =VLOOKUP(P56,listy_plac!$M$2:$N$52,2,0) -> Zasadnicza szkoła zawodowa | AX56: =VLOOKUP(R56,listy_plac!$Z$27:$AA$32,2,0) -> Szkoła lub placówka w ramach jednostki złożonej | AY56: =VLOOKUP(S56,listy_plac!$Z$2:$AA$5,2,0) -> publiczna | AZ56: =VLOOKUP(T56,listy_plac!$Z$8:$AA$10,2,0) -> Dzieci lub młodzież | BA56: =VLOOKUP(U56,listy_plac!$Z$13:$AA$15,2,0) -> brak specyfiki | BB56: =VLOOKUP(Y56,listy_plac!$Z$18:$AA$24,2,0) -> dzienna | BC56: ZASADNICZA SZKOŁA ZAWODOWA | BD56: Oborniki Śląskie | BE56: PARKOWA | BF56: 8 | BG56: 55-120 | BH56: OBORNIKI śL | BI56: 62 | BJ56: 62 | BK56: =VLOOKUP(AM56,wsk_doch!B:D,3,0) -> 183.07
A57: 60237 | C57: 0222 | D57: 02 | E57: 22 | G57: DOLNOŚLĄSKIE | H57: wołowski | K57: 0003 | L57: Powiat ziemski | M57: 02 | N57: 22 | P57: 00013 | Q57: 2 | R57: 002 | S57: 001 | T57: 001 | U57: 100 | V57: 0003 | W57: 0100 | Y57: 001 | Z57: 01 | AA57: Zasadnicza Szkoła Zawodowa w Wołowie | AB57: 93283862900000 | AC57: 02 | AD57: 22 | AE57: 03 | AF57: Wołów | AG57: SPACEROWA | AH57: 1 | AI57: 56-100 | AJ57: WOŁÓW | AK57: 107 | AL57: 107 | AM57: 0222 | AN57: 02 | AO57: 22 | AQ57: =IF(LEN($AM57)=6,VLOOKUP($AM57,slownik_JST!$B:$J,9,0),"") ->  | AR57: =VLOOKUP($AN57&$AO57,slownik_JST!$B:$J,9,0) -> Powiat nie będący miastem na pr. powiatu | AS57: DOLNOŚLĄSKIE | AT57: wołowski | AV57: Powiat ziemski | AW57: =VLOOKUP(P57,listy_plac!$M$2:$N$52,2,0) -> Zasadnicza szkoła zawodowa | AX57: =VLOOKUP(R57,listy_plac!$Z$27:$AA$32,2,0) -> Szkoła lub placówka w ramach jednostki złożonej | AY57: =VLOOKUP(S57,listy_plac!$Z$2:$AA$5,2,0) -> publiczna | AZ57: =VLOOKUP(T57,listy_plac!$Z$8:$AA$10,2,0) -> Dzieci lub młodzież | BA57: =VLOOKUP(U57,listy_plac!$Z$13:$AA$15,2,0) -> brak specyfiki | BB57: =VLOOKUP(Y57,listy_plac!$Z$18:$AA$24,2,0) -> dzienna | BC57: Zasadnicza Szkoła Zawodowa w Wołowie | BD57: Wołów | BE57: SPACEROWA | BF57: 1 | BG57: 56-100 | BH57: WOŁÓW | BI57: 107 | BJ57: 107 | BK57: =VLOOKUP(AM57,wsk_doch!B:D,3,0) -> 165.09
A58: 11296 | C58: 0222 | D58: 02 | E58: 22 | G58: DOLNOŚLĄSKIE | H58: wołowski | K58: 0003 | L58: Powiat ziemski | M58: 02 | N58: 22 | P58: 00013 | Q58: 2 | R58: 002 | S58: 001 | T58: 001 | U58: 100 | V58: 0003 | W58: 0100 | Y58: 001 | Z58: 01 | AA58: Zasadnicza Szkoła Zawodowa | AB58: 93293661600000 | AC58: 02 | AD58: 22 | AE58: 01 | AF58: Brzeg Dolny | AG58: 1-go Maja | AH58: 1a | AI58: 56-120 | AJ58: Brzeg Dolny | AK58: 87 | AL58: 87 | AM58: 0222 | AN58: 02 | AO58: 22 | AQ58: =IF(LEN($AM58)=6,VLOOKUP($AM58,slownik_JST!$B:$J,9,0),"") ->  | AR58: =VLOOKUP($AN58&$AO58,slownik_JST!$B:$J,9,0) -> Powiat nie będący miastem na pr. powiatu | AS58: DOLNOŚLĄSKIE | AT58: wołowski | AV58: Powiat ziemski | AW58: =VLOOKUP(P58,listy_plac!$M$2:$N$52,2,0) -> Zasadnicza szkoła zawodowa | AX58: =VLOOKUP(R58,listy_plac!$Z$27:$AA$32,2,0) -> Szkoła lub placówka w ramach jednostki złożonej | AY58: =VLOOKUP(S58,listy_plac!$Z$2:$AA$5,2,0) -> publiczna | AZ58: =VLOOKUP(T58,listy_plac!$Z$8:$AA$10,2,0) -> Dzieci lub młodzież | BA58: =VLOOKUP(U58,listy_plac!$Z$13:$AA$15,2,0) -> brak specyfiki | BB58: =VLOOKUP(Y58,listy_plac!$Z$18:$AA$24,2,0) -> dzienna | BC58: Zasadnicza Szkoła Zawodowa | BD58: Brzeg Dolny | BE58: 1-go Maja | BF58: 1a | BG58: 56-120 | BH58: Brzeg Dolny | BI58: 87 | BJ58: 87 | BK58: =VLOOKUP(AM58,wsk_doch!B:D,3,0) -> 165.09
A59: 12611 | C59: 0222 | D59: 02 | E59: 22 | G59: DOLNOŚLĄSKIE | H59: wołowski | K59: 0003 | L59: Powiat ziemski | M59: 02 | N59: 22 | P59: 00013 | Q59: 2 | R59: 002 | S59: 001 | T59: 001 | U59: 001 | V59: 0003 | W59: 0100 | X59: 005 | Y59: 001 | Z59: 01 | AA59: Zasadnicza Szkoła Zawodowa Specjalna Nr 4 w Wołowie | AB59: 93290840700000 | AC59: 02 | AD59: 22 | AE59: 03 | AF59: Wołów | AG59: INWALIDÓW WOJENNYCH | AH59: 10 | AI59: 56-100 | AJ59: WOŁÓW | AK59: 4 | AL59: 4 | AM59: 0222 | AN59: 02 | AO59: 22 | AQ59: =IF(LEN($AM59)=6,VLOOKUP($AM59,slownik_JST!$B:$J,9,0),"") ->  | AR59: =VLOOKUP($AN59&$AO59,slownik_JST!$B:$J,9,0) -> Powiat nie będący miastem na pr. powiatu | AS59: DOLNOŚLĄSKIE | AT59: wołowski | AV59: Powiat ziemski | AW59: =VLOOKUP(P59,listy_plac!$M$2:$N$52,2,0) -> Zasadnicza szkoła zawodowa | AX59: =VLOOKUP(R59,listy_plac!$Z$27:$AA$32,2,0) -> Szkoła lub placówka w ramach jednostki złożonej | AY59: =VLOOKUP(S59,listy_plac!$Z$2:$AA$5,2,0) -> publiczna | AZ59: =VLOOKUP(T59,listy_plac!$Z$8:$AA$10,2,0) -> Dzieci lub młodzież | BA59: =VLOOKUP(U59,listy_plac!$Z$13:$AA$15,2,0) -> specjalna | BB59: =VLOOKUP(Y59,listy_plac!$Z$18:$AA$24,2,0) -> dzienna | BC59: Zasadnicza Szkoła Zawodowa Specjalna Nr 4 w Wołowie | BD59: Wołów | BE59: INWALIDÓW WOJENNYCH | BF59: 10 | BG59: 56-100 | BH59: WOŁÓW | BI59: 4 | BJ59: 4 | BK59: =VLOOKUP(AM59,wsk_doch!B:D,3,0) -> 165.09
A60: 73721 | C60: 0224 | D60: 02 | E60: 24 | G60: DOLNOŚLĄSKIE | H60: ząbkowicki | K60: 0003 | L60: Powiat ziemski | M60: 02 | N60: 24 | P60: 00013 | Q60: 2 | R60: 002 | S60: 001 | T60: 001 | U60: 100 | V60: 0003 | W60: 0100 | Y60: 001 | Z60: 01 | AA60: Zasadnicza Szkoła Zawodowa | AB60: 89142125000000 | AC60: 02 | AD60: 24 | AE60: 06 | AF60: Ziębice | AG60: Wojska Polskiego | AH60: 3 | AI60: 57-220 | AJ60: Ziębice | AK60: 60 | AL60: 36 | AM60: 0224 | AN60: 02 | AO60: 24 | AQ60: =IF(LEN($AM60)=6,VLOOKUP($AM60,slownik_JST!$B:$J,9,0),"") ->  | AR60: =VLOOKUP($AN60&$AO60,slownik_JST!$B:$J,9,0) -> Powiat nie będący miastem na pr. powiatu | AS60: DOLNOŚLĄSKIE | AT60: ząbkowicki | AV60: Powiat ziemski | AW60: =VLOOKUP(P60,listy_plac!$M$2:$N$52,2,0) -> Zasadnicza szkoła zawodowa | AX60: =VLOOKUP(R60,listy_plac!$Z$27:$AA$32,2,0) -> Szkoła lub placówka w ramach jednostki złożonej | AY60: =VLOOKUP(S60,listy_plac!$Z$2:$AA$5,2,0) -> publiczna | AZ60: =VLOOKUP(T60,listy_plac!$Z$8:$AA$10,2,0) -> Dzieci lub młodzież | BA60: =VLOOKUP(U60,listy_plac!$Z$13:$AA$15,2,0) -> brak specyfiki | BB60: =VLOOKUP(Y60,listy_plac!$Z$18:$AA$24,2,0) -> dzienna | BC60: Zasadnicza Szkoła Zawodowa | BD60: Ziębice | BE60: Wojska Polskiego | BF60: 3 | BG60: 57-220 | BH60: Ziębice | BI60: 60 | BJ60: 36 | BK60: =VLOOKUP(AM60,wsk_doch!B:D,3,0) -> 143.46
A61: 49783 | C61: 0225 | D61: 02 | E61: 25 | G61: DOLNOŚLĄSKIE | H61: zgorzelecki | K61: 0003 | L61: Powiat ziemski | M61: 02 | N61: 25 | P61: 00013 | Q61: 2 | R61: 002 | S61: 001 | T61: 001 | U61: 100 | V61: 0003 | W61: 0100 | Y61: 001 | Z61: 01 | AA61: Zasadnicza Szkoła Zawodowa | AB61: 23118269200000 | AC61: 02 | AD61: 25 | AE61: 03 | AF61: Bogatynia | AG61: Kościuszki | AH61: 33 | AI61: 59-920 | AJ61: Bogatynia | AK61: 108 | AL61: 64 | AM61: 0225 | AN61: 02 | AO61: 25 | AQ61: =IF(LEN($AM61)=6,VLOOKUP($AM61,slownik_JST!$B:$J,9,0),"") ->  | AR61: =VLOOKUP($AN61&$AO61,slownik_JST!$B:$J,9,0) -> Powiat nie będący miastem na pr. powiatu | AS61: DOLNOŚLĄSKIE | AT61: zgorzelecki | AV61: Powiat ziemski | AW61: =VLOOKUP(P61,listy_plac!$M$2:$N$52,2,0) -> Zasadnicza szkoła zawodowa | AX61: =VLOOKUP(R61,listy_plac!$Z$27:$AA$32,2,0) -> Szkoła lub placówka w ramach jednostki złożonej | AY61: =VLOOKUP(S61,listy_plac!$Z$2:$AA$5,2,0) -> publiczna | AZ61: =VLOOKUP(T61,listy_plac!$Z$8:$AA$10,2,0) -> Dzieci lub młodzież | BA61: =VLOOKUP(U61,listy_plac!$Z$13:$AA$15,2,0) -> brak specyfiki | BB61: =VLOOKUP(Y61,listy_plac!$Z$18:$AA$24,2,0) -> dzienna | BC61: Zasadnicza Szkoła Zawodowa | BD61: Bogatynia | BE61: Kościuszki | BF61: 33 | BG61: 59-920 | BH61: Bogatynia | BI61: 108 | BJ61: 64 | BK61: =VLOOKUP(AM61,wsk_doch!B:D,3,0) -> 239.34
A62: 44480 | C62: 0225 | D62: 02 | E62: 25 | G62: DOLNOŚLĄSKIE | H62: zgorzelecki | K62: 0003 | L62: Powiat ziemski | M62: 02 | N62: 25 | P62: 00013 | Q62: 2 | R62: 002 | S62: 001 | T62: 001 | U62: 100 | V62: 0003 | W62: 0100 | Y62: 001 | Z62: 01 | AA62: Zasadnicza Szkoła Zawodowa | AB62: 23113765100000 | AC62: 02 | AD62: 25 | AE62: 02 | AF62: Zgorzelec | AG62: Francuska | AH62: 6 | AI62: 59-900 | AJ62: Zgorzelec | AK62: 351 | AL62: 209 | AM62: 0225 | AN62: 02 | AO62: 25 | AQ62: =IF(LEN($AM62)=6,VLOOKUP($AM62,slownik_JST!$B:$J,9,0),"") ->  | AR62: =VLOOKUP($AN62&$AO62,slownik_JST!$B:$J,9,0) -> Powiat nie będący miastem na pr. powiatu | AS62: DOLNOŚLĄSKIE | AT62: zgorzelecki | AV62: Powiat ziemski | AW62: =VLOOKUP(P62,listy_plac!$M$2:$N$52,2,0) -> Zasadnicza szkoła zawodowa | AX62: =VLOOKUP(R62,listy_plac!$Z$27:$AA$32,2,0) -> Szkoła lub placówka w ramach jednostki złożonej | AY62: =VLOOKUP(S62,listy_plac!$Z$2:$AA$5,2,0) -> publiczna | AZ62: =VLOOKUP(T62,listy_plac!$Z$8:$AA$10,2,0) -> Dzieci lub młodzież | BA62: =VLOOKUP(U62,listy_plac!$Z$13:$AA$15,2,0) -> brak specyfiki | BB62: =VLOOKUP(Y62,listy_plac!$Z$18:$AA$24,2,0) -> dzienna | BC62: Zasadnicza Szkoła Zawodowa | BD62: Zgorzelec | BE62: Francuska | BF62: 6 | BG62: 59-900 | BH62: Zgorzelec | BI62: 351 | BJ62: 209 | BK62: =VLOOKUP(AM62,wsk_doch!B:D,3,0) -> 239.34
A63: 84241 | C63: 0226 | D63: 02 | E63: 26 | G63: DOLNOŚLĄSKIE | H63: złotoryjski | K63: 0003 | L63: Powiat ziemski | M63: 02 | N63: 26 | P63: 00013 | Q63: 2 | R63: 002 | S63: 001 | T63: 001 | U63: 100 | V63: 0003 | W63: 0100 | Y63: 001 | Z63: 01 | AA63: Zasadnicza Szkoła Zawodowa | AB63: 39100779500000 | AC63: 02 | AD63: 26 | AE63: 02 | AF63: Złotoryja | AG63: Wojska Polskiego | AH63: 50 | AI63: 59-500 | AJ63: Złotoryja | AK63: 215 | AL63: 215 | AM63: 0226 | AN63: 02 | AO63: 26 | AQ63: =IF(LEN($AM63)=6,VLOOKUP($AM63,slownik_JST!$B:$J,9,0),"") ->  | AR63: =VLOOKUP($AN63&$AO63,slownik_JST!$B:$J,9,0) -> Powiat nie będący miastem na pr. powiatu | AS63: DOLNOŚLĄSKIE | AT63: złotoryjski | AV63: Powiat ziemski | AW63: =VLOOKUP(P63,listy_plac!$M$2:$N$52,2,0) -> Zasadnicza szkoła zawodowa | AX63: =VLOOKUP(R63,listy_plac!$Z$27:$AA$32,2,0) -> Szkoła lub placówka w ramach jednostki złożonej | AY63: =VLOOKUP(S63,listy_plac!$Z$2:$AA$5,2,0) -> publiczna | AZ63: =VLOOKUP(T63,listy_plac!$Z$8:$AA$10,2,0) -> Dzieci lub młodzież | BA63: =VLOOKUP(U63,listy_plac!$Z$13:$AA$15,2,0) -> brak specyfiki | BB63: =VLOOKUP(Y63,listy_plac!$Z$18:$AA$24,2,0) -> dzienna | BC63: Zasadnicza Szkoła Zawodowa | BD63: Złotoryja | BE63: Wojska Polskiego | BF63: 50 | BG63: 59-500 | BH63: Złotoryja | BI63: 215 | BJ63: 215 | BK63: =VLOOKUP(AM63,wsk_doch!B:D,3,0) -> 151.78
A64: 34858 | C64: 0226 | D64: 02 | E64: 26 | G64: DOLNOŚLĄSKIE | H64: złotoryjski | K64: 0003 | L64: Powiat ziemski | M64: 02 | N64: 26 | P64: 00013 | Q64: 2 | R64: 002 | S64: 001 | T64: 001 | U64: 001 | V64: 0003 | W64: 0011 | X64: 005 | Y64: 001 | Z64: 01 | AA64: Zasadnicza Szkoła Zawodowa | AB64: 02012521700000 | AC64: 02 | AD64: 26 | AE64: 02 | AF64: Złotoryja | AG64: Staszica | AH64: 2 | AI64: 59-500 | AJ64: Złotoryja | AK64: 30 | AL64: 15 | AM64: 0226 | AN64: 02 | AO64: 26 | AQ64: =IF(LEN($AM64)=6,VLOOKUP($AM64,slownik_JST!$B:$J,9,0),"") ->  | AR64: =VLOOKUP($AN64&$AO64,slownik_JST!$B:$J,9,0) -> Powiat nie będący miastem na pr. powiatu | AS64: DOLNOŚLĄSKIE | AT64: złotoryjski | AV64: Powiat ziemski | AW64: =VLOOKUP(P64,listy_plac!$M$2:$N$52,2,0) -> Zasadnicza szkoła zawodowa | AX64: =VLOOKUP(R64,listy_plac!$Z$27:$AA$32,2,0) -> Szkoła lub placówka w ramach jednostki złożonej | AY64: =VLOOKUP(S64,listy_plac!$Z$2:$AA$5,2,0) -> publiczna | AZ64: =VLOOKUP(T64,listy_plac!$Z$8:$AA$10,2,0) -> Dzieci lub młodzież | BA64: =VLOOKUP(U64,listy_plac!$Z$13:$AA$15,2,0) -> specjalna | BB64: =VLOOKUP(Y64,listy_plac!$Z$18:$AA$24,2,0) -> dzienna | BC64: Zasadnicza Szkoła Zawodowa | BD64: Złotoryja | BE64: Staszica | BF64: 2 | BG64: 59-500 | BH64: Złotoryja | BI64: 30 | BJ64: 15 | BK64: =VLOOKUP(AM64,wsk_doch!B:D,3,0) -> 151.78
A65: 112111 | C65: 0261 | D65: 02 | E65: 61 | G65: DOLNOŚLĄSKIE | H65: m. Jelenia Góra | K65: 0002 | L65: Miasto na prawach powiatu | M65: 02 | N65: 61 | P65: 00013 | Q65: 2 | R65: 002 | S65: 001 | T65: 001 | U65: 100 | V65: 0003 | W65: 0100 | Y65: 001 | Z65: 01 | AA65: Zasadnicza Szkoła Zawodowa w Zespole Szkół Przyrodniczo-Usługowych i Bursy Szkolnej w Jeleniej Górze | AB65: 23118614100000 | AC65: 02 | AD65: 61 | AE65: 01 | AF65: Jelenia Góra | AG65: Leśna | AH65: 5 | AI65: 58-560 | AJ65: Jelenia Góra | AK65: 20 | AL65: 20 | AM65: 0261 | AN65: 02 | AO65: 61 | AQ65: =IF(LEN($AM65)=6,VLOOKUP($AM65,slownik_JST!$B:$J,9,0),"") ->  | AR65: =VLOOKUP($AN65&$AO65,slownik_JST!$B:$J,9,0) -> Miasto (powiat) < 150 tys. mieszkańców | AS65: DOLNOŚLĄSKIE | AT65: m. Jelenia Góra | AV65: Miasto na prawach powiatu | AW65: =VLOOKUP(P65,listy_plac!$M$2:$N$52,2,0) -> Zasadnicza szkoła zawodowa | AX65: =VLOOKUP(R65,listy_plac!$Z$27:$AA$32,2,0) -> Szkoła lub placówka w ramach jednostki złożonej | AY65: =VLOOKUP(S65,listy_plac!$Z$2:$AA$5,2,0) -> publiczna | AZ65: =VLOOKUP(T65,listy_plac!$Z$8:$AA$10,2,0) -> Dzieci lub młodzież | BA65: =VLOOKUP(U65,listy_plac!$Z$13:$AA$15,2,0) -> brak specyfiki | BB65: =VLOOKUP(Y65,listy_plac!$Z$18:$AA$24,2,0) -> dzienna | BC65: Zasadnicza Szkoła Zawodowa w Zespole Szkół Przyrodniczo-Usługowych i Bursy Szkolnej w Jeleniej Górze | BD65: Jelenia Góra | BE65: Leśna | BF65: 5 | BG65: 58-560 | BH65: Jelenia Góra | BI65: 20 | BJ65: 20 | BK65: =VLOOKUP(AM65,wsk_doch!B:D,3,0) -> 211.94
A66: 114708 | C66: 0261 | D66: 02 | E66: 61 | G66: DOLNOŚLĄSKIE | H66: m. Jelenia Góra | K66: 0002 | L66: Miasto na prawach powiatu | M66: 02 | N66: 61 | P66: 00013 | Q66: 2 | R66: 002 | S66: 001 | T66: 001 | U66: 100 | V66: 0003 | W66: 0100 | Y66: 001 | Z66: 01 | AA66: zasadnicza szkoła zawodowa | AB66: 23118536000000 | AC66: 02 | AD66: 61 | AE66: 01 | AF66: Jelenia Góra | AG66: Obrońców Pokoju | AH66: 10 | AI66: 58-500 | AJ66: Jelenia Góra | AK66: 189 | AL66: 171 | AM66: 0261 | AN66: 02 | AO66: 61 | AQ66: =IF(LEN($AM66)=6,VLOOKUP($AM66,slownik_JST!$B:$J,9,0),"") ->  | AR66: =VLOOKUP($AN66&$AO66,slownik_JST!$B:$J,9,0) -> Miasto (powiat) < 150 tys. mieszkańców | AS66: DOLNOŚLĄSKIE | AT66: m. Jelenia Góra | AV66: Miasto na prawach powiatu | AW66: =VLOOKUP(P66,listy_plac!$M$2:$N$52,2,0) -> Zasadnicza szkoła zawodowa | AX66: =VLOOKUP(R66,listy_plac!$Z$27:$AA$32,2,0) -> Szkoła lub placówka w ramach jednostki złożonej | AY66: =VLOOKUP(S66,listy_plac!$Z$2:$AA$5,2,0) -> publiczna | AZ66: =VLOOKUP(T66,listy_plac!$Z$8:$AA$10,2,0) -> Dzieci lub młodzież | BA66: =VLOOKUP(U66,listy_plac!$Z$13:$AA$15,2,0) -> brak specyfiki | BB66: =VLOOKUP(Y66,listy_plac!$Z$18:$AA$24,2,0) -> dzienna | BC66: zasadnicza szkoła zawodowa | BD66: Jelenia Góra | BE66: Obrońców Pokoju | BF66: 10 | BG66: 58-500 | BH66: Jelenia Góra | BI66: 189 | BJ66: 171 | BK66: =VLOOKUP(AM66,wsk_doch!B:D,3,0) -> 211.94
A67: 112058 | C67: 0261 | D67: 02 | E67: 61 | G67: DOLNOŚLĄSKIE | H67: m. Jelenia Góra | K67: 0002 | L67: Miasto na prawach powiatu | M67: 02 | N67: 61 | P67: 00013 | Q67: 2 | R67: 002 | S67: 001 | T67: 001 | U67: 100 | V67: 0003 | W67: 0100 | Y67: 001 | Z67: 01 | AA67: Zasadnicza Szkoła Zawodowa w Zespole Szkół Licealnych i Zawodowych nr 2 | AB67: 23118363900000 | AC67: 02 | AD67: 61 | AE67: 01 | AF67: Jelenia Góra | AG67: 1 Maja | AH67: 39/41 | AI67: 58-500 | AJ67: Jelenia Góra | AK67: 130 | AL67: 66 | AM67: 0261 | AN67: 02 | AO67: 61 | AQ67: =IF(LEN($AM67)=6,VLOOKUP($AM67,slownik_JST!$B:$J,9,0),"") ->  | AR67: =VLOOKUP($AN67&$AO67,slownik_JST!$B:$J,9,0) -> Miasto (powiat) < 150 tys. mieszkańców | AS67: DOLNOŚLĄSKIE | AT67: m. Jelenia Góra | AV67: Miasto na prawach powiatu | AW67: =VLOOKUP(P67,listy_plac!$M$2:$N$52,2,0) -> Zasadnicza szkoła zawodowa | AX67: =VLOOKUP(R67,listy_plac!$Z$27:$AA$32,2,0) -> Szkoła lub placówka w ramach jednostki złożonej | AY67: =VLOOKUP(S67,listy_plac!$Z$2:$AA$5,2,0) -> publiczna | AZ67: =VLOOKUP(T67,listy_plac!$Z$8:$AA$10,2,0) -> Dzieci lub młodzież | BA67: =VLOOKUP(U67,listy_plac!$Z$13:$AA$15,2,0) -> brak specyfiki | BB67: =VLOOKUP(Y67,listy_plac!$Z$18:$AA$24,2,0) -> dzienna | BC67: Zasadnicza Szkoła Zawodowa w Zespole Szkół Licealnych i Zawodowych nr 2 | BD67: Jelenia Góra | BE67: 1 Maja | BF67: 39/41 | BG67: 58-500 | BH67: Jelenia Góra | BI67: 130 | BJ67: 66 | BK67: =VLOOKUP(AM67,wsk_doch!B:D,3,0) -> 211.94
A68: 13887 | C68: 0262 | D68: 02 | E68: 62 | G68: DOLNOŚLĄSKIE | H68: m. Legnica | K68: 0002 | L68: Miasto na prawach powiatu | M68: 02 | N68: 62 | P68: 00013 | Q68: 2 | R68: 002 | S68: 001 | T68: 001 | U68: 001 | V68: 0003 | W68: 0011 | X68: 005 | Y68: 001 | Z68: 01 | AA68: Specjalna Zasadnicza Szkoła Zawodowa Nr 7 | AB68: 39100801000000 | AC68: 02 | AD68: 62 | AE68: 01 | AF68: Legnica | AG68: RYCERSKA | AH68: 13 | AI68: 59-220 | AJ68: LEGNICA | AK68: 28 | AL68: 13 | AM68: 0262 | AN68: 02 | AO68: 62 | AQ68: =IF(LEN($AM68)=6,VLOOKUP($AM68,slownik_JST!$B:$J,9,0),"") ->  | AR68: =VLOOKUP($AN68&$AO68,slownik_JST!$B:$J,9,0) -> Miasto (powiat) < 150 tys. mieszkańców | AS68: DOLNOŚLĄSKIE | AT68: m. Legnica | AV68: Miasto na prawach powiatu | AW68: =VLOOKUP(P68,listy_plac!$M$2:$N$52,2,0) -> Zasadnicza szkoła zawodowa | AX68: =VLOOKUP(R68,listy_plac!$Z$27:$AA$32,2,0) -> Szkoła lub placówka w ramach jednostki złożonej | AY68: =VLOOKUP(S68,listy_plac!$Z$2:$AA$5,2,0) -> publiczna | AZ68: =VLOOKUP(T68,listy_plac!$Z$8:$AA$10,2,0) -> Dzieci lub młodzież | BA68: =VLOOKUP(U68,listy_plac!$Z$13:$AA$15,2,0) -> specjalna | BB68: =VLOOKUP(Y68,listy_plac!$Z$18:$AA$24,2,0) -> dzienna | BC68: Specjalna Zasadnicza Szkoła Zawodowa Nr 7 | BD68: Legnica | BE68: RYCERSKA | BF68: 13 | BG68: 59-220 | BH68: LEGNICA | BI68: 28 | BJ68: 13 | BK68: =VLOOKUP(AM68,wsk_doch!B:D,3,0) -> 237.72
A69: 14281 | C69: 0262 | D69: 02 | E69: 62 | G69: DOLNOŚLĄSKIE | H69: m. Legnica | K69: 0002 | L69: Miasto na prawach powiatu | M69: 02 | N69: 62 | P69: 00013 | Q69: 2 | R69: 002 | S69: 001 | T69: 001 | U69: 100 | V69: 0003 | W69: 0100 | Y69: 001 | Z69: 01 | AA69: Zasadnicza Szkoła Zawodowa Nr 3 | AB69: 02155614900000 | AC69: 02 | AD69: 62 | AE69: 01 | AF69: Legnica | AG69: Lotnicza | AH69: 26 | AI69: 59-220 | AJ69: Legnica | AK69: 202 | AL69: 202 | AM69: 0262 | AN69: 02 | AO69: 62 | AQ69: =IF(LEN($AM69)=6,VLOOKUP($AM69,slownik_JST!$B:$J,9,0),"") ->  | AR69: =VLOOKUP($AN69&$AO69,slownik_JST!$B:$J,9,0) -> Miasto (powiat) < 150 tys. mieszkańców | AS69: DOLNOŚLĄSKIE | AT69: m. Legnica | AV69: Miasto na prawach powiatu | AW69: =VLOOKUP(P69,listy_plac!$M$2:$N$52,2,0) -> Zasadnicza szkoła zawodowa | AX69: =VLOOKUP(R69,listy_plac!$Z$27:$AA$32,2,0) -> Szkoła lub placówka w ramach jednostki złożonej | AY69: =VLOOKUP(S69,listy_plac!$Z$2:$AA$5,2,0) -> publiczna | AZ69: =VLOOKUP(T69,listy_plac!$Z$8:$AA$10,2,0) -> Dzieci lub młodzież | BA69: =VLOOKUP(U69,listy_plac!$Z$13:$AA$15,2,0) -> brak specyfiki | BB69: =VLOOKUP(Y69,listy_plac!$Z$18:$AA$24,2,0) -> dzienna | BC69: Zasadnicza Szkoła Zawodowa Nr 3 | BD69: Legnica | BE69: Lotnicza | BF69: 26 | BG69: 59-220 | BH69: Legnica | BI69: 202 | BJ69: 202 | BK69: =VLOOKUP(AM69,wsk_doch!B:D,3,0) -> 237.72
A70: 90635 | C70: 0264 | D70: 02 | E70: 64 | G70: DOLNOŚLĄSKIE | H70: m. Wrocław | K70: 0002 | L70: Miasto na prawach powiatu | M70: 02 | N70: 64 | P70: 00013 | Q70: 2 | R70: 002 | S70: 001 | T70: 001 | U70: 100 | V70: 0003 | W70: 0100 | Y70: 001 | Z70: 01 | AA70: Zasadnicza Szkoła Zawodowa nr 5 | AB70: 93283121900000 | AC70: 02 | AD70: 64 | AE70: 01 | AF70: Wrocław | AG70: Jana Władysława Dawida | AH70: 5 | AI70: 50-527 | AJ70: Wrocław | AK70: 407 | AL70: 407 | AM70: 0264 | AN70: 02 | AO70: 64 | AQ70: =IF(LEN($AM70)=6,VLOOKUP($AM70,slownik_JST!$B:$J,9,0),"") ->  | AR70: =VLOOKUP($AN70&$AO70,slownik_JST!$B:$J,9,0) -> Miasto (powiat) > 150 tys. mieszkańców | AS70: DOLNOŚLĄSKIE | AT70: m. Wrocław | AV70: Miasto na prawach powiatu | AW70: =VLOOKUP(P70,listy_plac!$M$2:$N$52,2,0) -> Zasadnicza szkoła zawodowa | AX70: =VLOOKUP(R70,listy_plac!$Z$27:$AA$32,2,0) -> Szkoła lub placówka w ramach jednostki złożonej | AY70: =VLOOKUP(S70,listy_plac!$Z$2:$AA$5,2,0) -> publiczna | AZ70: =VLOOKUP(T70,listy_plac!$Z$8:$AA$10,2,0) -> Dzieci lub młodzież | BA70: =VLOOKUP(U70,listy_plac!$Z$13:$AA$15,2,0) -> brak specyfiki | BB70: =VLOOKUP(Y70,listy_plac!$Z$18:$AA$24,2,0) -> dzienna | BC70: Zasadnicza Szkoła Zawodowa nr 5 | BD70: Wrocław | BE70: Jana Władysława Dawida | BF70: 5 | BG70: 50-527 | BH70: Wrocław | BI70: 407 | BJ70: 407 | BK70: =VLOOKUP(AM70,wsk_doch!B:D,3,0) -> 350.17
A71: 71670 | C71: =D71&E71&F71 -> 0265 | D71: 02 | E71: 65 | G71: DOLNOŚLĄSKIE | H71: m. Wałbrzych | K71: 0002 | L71: Miasto na prawach powiatu | M71: 02 | N71: 65 | P71: 00013 | Q71: 2 | R71: 002 | S71: 001 | T71: 001 | U71: 100 | V71: 0003 | W71: 0100 | Y71: 001 | Z71: 01 | AA71: Zasadnicza Szkoła Zawodowa Nr 2 | AB71: 89142081200000 | AC71: 02 | AD71: 65 | AE71: 01 | AF71: Wałbrzych | AG71: Ogrodowa | AH71: 2A | AI71: 58-306 | AJ71: Wałbrzych | AK71: 219 | AL71: 43 | AM71: 0265 | AN71: 02 | AO71: 65 | AQ71: =IF(LEN($AM71)=6,VLOOKUP($AM71,slownik_JST!$B:$J,9,0),"") ->  | AR71: =VLOOKUP($AN71&$AO71,slownik_JST!$B:$J,9,0) -> Miasto (powiat) < 150 tys. mieszkańców | AS71: DOLNOŚLĄSKIE | AT71: m. Wałbrzych | AV71: Miasto na prawach powiatu | AW71: =VLOOKUP(P71,listy_plac!$M$2:$N$52,2,0) -> Zasadnicza szkoła zawodowa | AX71: =VLOOKUP(R71,listy_plac!$Z$27:$AA$32,2,0) -> Szkoła lub placówka w ramach jednostki złożonej | AY71: =VLOOKUP(S71,listy_plac!$Z$2:$AA$5,2,0) -> publiczna | AZ71: =VLOOKUP(T71,listy_plac!$Z$8:$AA$10,2,0) -> Dzieci lub młodzież | BA71: =VLOOKUP(U71,listy_plac!$Z$13:$AA$15,2,0) -> brak specyfiki | BB71: =VLOOKUP(Y71,listy_plac!$Z$18:$AA$24,2,0) -> dzienna | BC71: Zasadnicza Szkoła Zawodowa Nr 2 | BD71: Wałbrzych | BE71: Ogrodowa | BF71: 2A | BG71: 58-306 | BH71: Wałbrzych | BI71: 219 | BJ71: 43 | BK71: =VLOOKUP(AM71,wsk_doch!B:D,3,0) -> 196.79
A72: 8467 | C72: 0265 | D72: 02 | E72: 65 | G72: DOLNOŚLĄSKIE | H72: m. Wałbrzych | K72: 0002 | L72: Miasto na prawach powiatu | M72: 02 | N72: 65 | P72: 00013 | Q72: 2 | R72: 002 | S72: 001 | T72: 001 | U72: 001 | V72: 0003 | W72: 0100 | X72: 005 | Y72: 001 | Z72: 01 | AA72: Zasadnicza Szkoła Zawodowe Specjalna | AB72: 00074366900000 | AC72: 02 | AD72: 65 | AE72: 01 | AF72: Wałbrzych | AG72: Mickiewicza | AH72: 24 | AI72: 58-300 | AJ72: Wałbrzych | AK72: 45 | AL72: 6 | AM72: =AN72&AO72&AP72 -> 0265 | AN72: =IF(D72="","",D72) -> 02 | AO72: =IF(E72="","",E72) -> 65 | AP72: =IF(F72="","",F72) ->  | AQ72: =IF(LEN($AM72)=6,VLOOKUP($AM72,slownik_JST!$B:$J,9,0),"") ->  | AR72: =VLOOKUP($AN72&$AO72,slownik_JST!$B:$J,9,0) -> Miasto (powiat) < 150 tys. mieszkańców | AS72: =IF(G72="","",G72) -> DOLNOŚLĄSKIE | AT72: =IF(H72="","",H72) -> m. Wałbrzych | AU72: =IF(I72="","",I72) ->  | AV72: =L72 -> Miasto na prawach powiatu | AW72: =VLOOKUP(P72,listy_plac!$M$2:$N$52,2,0) -> Zasadnicza szkoła zawodowa | AX72: =VLOOKUP(R72,listy_plac!$Z$27:$AA$32,2,0) -> Szkoła lub placówka w ramach jednostki złożonej | AY72: =VLOOKUP(S72,listy_plac!$Z$2:$AA$5,2,0) -> publiczna | AZ72: =VLOOKUP(T72,listy_plac!$Z$8:$AA$10,2,0) -> Dzieci lub młodzież | BA72: =VLOOKUP(U72,listy_plac!$Z$13:$AA$15,2,0) -> specjalna | BB72: =VLOOKUP(Y72,listy_plac!$Z$18:$AA$24,2,0) -> dzienna | BC72: =AA72 -> Zasadnicza Szkoła Zawodowe Specjalna | BD72: =AF72 -> Wałbrzych | BE72: =AG72 -> Mickiewicza | BF72: =AH72 -> 24 | BG72: =AI72 -> 58-300 | BH72: =AJ72 -> Wałbrzych | BI72: =AK72 -> 45 | BJ72: =AL72 -> 6 | BK72: =VLOOKUP(AM72,wsk_doch!B:D,3,0) -> 196.79 | BL72: =IF(($BK72-$C$1)<0,($BK72-$C$1)*(-1),($BK72-$C$1)) -> 
A73: 13014 | C73: 0401 | D73: 04 | E73: 01 | G73: KUJAWSKO-POMORSKIE | H73: aleksandrowski | K73: 0003 | L73: Powiat ziemski | M73: 04 | N73: 01 | P73: 00013 | Q73: 2 | R73: 002 | S73: 001 | T73: 001 | U73: 100 | V73: 0003 | W73: 0100 | Y73: 001 | Z73: 01 | AA73: Zasadnicza Szkoła nr 2 | AB73: 91095233100000 | AC73: 04 | AD73: 01 | AE73: 01 | AF73: Aleksandrów Kujawski | AG73: ul. Sikorskiego | AH73: 2 | AI73: 87-700 | AJ73: Aleksandrów Kujawski | AK73: 193 | AL73: 187 | AM73: 0401 | AN73: 04 | AO73: 01 | AQ73: =IF(LEN($AM73)=6,VLOOKUP($AM73,slownik_JST!$B:$J,9,0),"") ->  | AR73: =VLOOKUP($AN73&$AO73,slownik_JST!$B:$J,9,0) -> Powiat nie będący miastem na pr. powiatu | AS73: KUJAWSKO-POMORSKIE | AT73: aleksandrowski | AV73: Powiat ziemski | AW73: =VLOOKUP(P73,listy_plac!$M$2:$N$52,2,0) -> Zasadnicza szkoła zawodowa | AX73: =VLOOKUP(R73,listy_plac!$Z$27:$AA$32,2,0) -> Szkoła lub placówka w ramach jednostki złożonej | AY73: =VLOOKUP(S73,listy_plac!$Z$2:$AA$5,2,0) -> publiczna | AZ73: =VLOOKUP(T73,listy_plac!$Z$8:$AA$10,2,0) -> Dzieci lub młodzież | BA73: =VLOOKUP(U73,listy_plac!$Z$13:$AA$15,2,0) -> brak specyfiki | BB73: =VLOOKUP(Y73,listy_plac!$Z$18:$AA$24,2,0) -> dzienna | BC73: Zasadnicza Szkoła nr 2 | BD73: Aleksandrów Kujawski | BE73: ul. Sikorskiego | BF73: 2 | BG73: 87-700 | BH73: Aleksandrów Kujawski | BI73: 193 | BJ73: 187 | BK73: =VLOOKUP(AM73,wsk_doch!B:D,3,0) -> 133
A74: 82396 | C74: 0402 | D74: 04 | E74: 02 | G74: KUJAWSKO-POMORSKIE | H74: brodnicki | K74: 0003 | L74: Powiat ziemski | M74: 04 | N74: 02 | P74: 00013 | Q74: 1 | R74: 002 | S74: 001 | T74: 001 | U74: 100 | V74: 0003 | W74: 0100 | Y74: 001 | Z74: 01 | AA74: Zasadnicza Szkoła Zawodowa | AB74: 87166833800000 | AC74: 04 | AD74: 02 | AE74: 07 | AF74: Jabłonowo Pomorskie | AG74: NOWY RYNEK | AH74: 5 | AI74: 87-330 | AJ74: JABŁONOWO POMORSKIE | AK74: 67 | AL74: 67 | AM74: 0402 | AN74: 04 | AO74: 02 | AQ74: =IF(LEN($AM74)=6,VLOOKUP($AM74,slownik_JST!$B:$J,9,0),"") ->  | AR74: =VLOOKUP($AN74&$AO74,slownik_JST!$B:$J,9,0) -> Powiat nie będący miastem na pr. powiatu | AS74: KUJAWSKO-POMORSKIE | AT74: brodnicki | AV74: Powiat ziemski | AW74: =VLOOKUP(P74,listy_plac!$M$2:$N$52,2,0) -> Zasadnicza szkoła zawodowa | AX74: =VLOOKUP(R74,listy_plac!$Z$27:$AA$32,2,0) -> Szkoła lub placówka w ramach jednostki złożonej | AY74: =VLOOKUP(S74,listy_plac!$Z$2:$AA$5,2,0) -> publiczna | AZ74: =VLOOKUP(T74,listy_plac!$Z$8:$AA$10,2,0) -> Dzieci lub młodzież | BA74: =VLOOKUP(U74,listy_plac!$Z$13:$AA$15,2,0) -> brak specyfiki | BB74: =VLOOKUP(Y74,listy_plac!$Z$18:$AA$24,2,0) -> dzienna | BC74: Zasadnicza Szkoła Zawodowa | BD74: Jabłonowo Pomorskie | BE74: NOWY RYNEK | BF74: 5 | BG74: 87-330 | BH74: JABŁONOWO POMORSKIE | BI74: 67 | BJ74: 67 | BK74: =VLOOKUP(AM74,wsk_doch!B:D,3,0) -> 142.94
A75: 131391 | C75: 0402 | D75: 04 | E75: 02 | G75: KUJAWSKO-POMORSKIE | H75: brodnicki | K75: 0003 | L75: Powiat ziemski | M75: 04 | N75: 02 | P75: 00013 | Q75: 2 | R75: 002 | S75: 001 | T75: 001 | U75: 100 | V75: 0003 | W75: 0100 | Y75: 001 | Z75: 01 | AA75: Zasadnicza Szkoła Zawodowa | AB75: 36515466000000 | AC75: 04 | AD75: 02 | AE75: 01 | AF75: Brodnica | AG75: Mazurska | AH75: 28 | AI75: 87-300 | AJ75: Brodnica | AK75: 604 | AL75: 585 | AM75: 0402 | AN75: 04 | AO75: 02 | AQ75: =IF(LEN($AM75)=6,VLOOKUP($AM75,slownik_JST!$B:$J,9,0),"") ->  | AR75: =VLOOKUP($AN75&$AO75,slownik_JST!$B:$J,9,0) -> Powiat nie będący miastem na pr. powiatu | AS75: KUJAWSKO-POMORSKIE | AT75: brodnicki | AV75: Powiat ziemski | AW75: =VLOOKUP(P75,listy_plac!$M$2:$N$52,2,0) -> Zasadnicza szkoła zawodowa | AX75: =VLOOKUP(R75,listy_plac!$Z$27:$AA$32,2,0) -> Szkoła lub placówka w ramach jednostki złożonej | AY75: =VLOOKUP(S75,listy_plac!$Z$2:$AA$5,2,0) -> publiczna | AZ75: =VLOOKUP(T75,listy_plac!$Z$8:$AA$10,2,0) -> Dzieci lub młodzież | BA75: =VLOOKUP(U75,listy_plac!$Z$13:$AA$15,2,0) -> brak specyfiki | BB75: =VLOOKUP(Y75,listy_plac!$Z$18:$AA$24,2,0) -> dzienna | BC75: Zasadnicza Szkoła Zawodowa | BD75: Brodnica | BE75: Mazurska | BF75: 28 | BG75: 87-300 | BH75: Brodnica | BI75: 604 | BJ75: 585 | BK75: =VLOOKUP(AM75,wsk_doch!B:D,3,0) -> 142.94
A76: 74010 | C76: 0403 | D76: 04 | E76: 03 | G76: KUJAWSKO-POMORSKIE | H76: bydgoski | K76: 0003 | L76: Powiat ziemski | M76: 04 | N76: 03 | P76: 00013 | Q76: 3 | R76: 002 | S76: 001 | T76: 001 | U76: 100 | V76: 0003 | W76: 0100 | Y76: 001 | Z76: 01 | AA76: Zasadnicza Szkoła Zawodowa | AB76: 09318105800000 | AC76: 04 | AD76: 03 | AE76: 03 | AF76: Wudzynek | AH76: 8 | AI76: 86-022 | AJ76: Dobrcz | AK76: 63 | AL76: 53 | AM76: 0403 | AN76: 04 | AO76: 03 | AQ76: =IF(LEN($AM76)=6,VLOOKUP($AM76,slownik_JST!$B:$J,9,0),"") ->  | AR76: =VLOOKUP($AN76&$AO76,slownik_JST!$B:$J,9,0) -> Powiat nie będący miastem na pr. powiatu | AS76: KUJAWSKO-POMORSKIE | AT76: bydgoski | AV76: Powiat ziemski | AW76: =VLOOKUP(P76,listy_plac!$M$2:$N$52,2,0) -> Zasadnicza szkoła zawodowa | AX76: =VLOOKUP(R76,listy_plac!$Z$27:$AA$32,2,0) -> Szkoła lub placówka w ramach jednostki złożonej | AY76: =VLOOKUP(S76,listy_plac!$Z$2:$AA$5,2,0) -> publiczna | AZ76: =VLOOKUP(T76,listy_plac!$Z$8:$AA$10,2,0) -> Dzieci lub młodzież | BA76: =VLOOKUP(U76,listy_plac!$Z$13:$AA$15,2,0) -> brak specyfiki | BB76: =VLOOKUP(Y76,listy_plac!$Z$18:$AA$24,2,0) -> dzienna | BC76: Zasadnicza Szkoła Zawodowa | BD76: Wudzynek | BE76: 0 | BF76: 8 | BG76: 86-022 | BH76: Dobrcz | BI76: 63 | BJ76: 53 | BK76: =VLOOKUP(AM76,wsk_doch!B:D,3,0) -> 239.12
A77: 85255 | C77: 0403 | D77: 04 | E77: 03 | G77: KUJAWSKO-POMORSKIE | H77: bydgoski | K77: 0003 | L77: Powiat ziemski | M77: 04 | N77: 03 | P77: 00013 | Q77: 2 | R77: 002 | S77: 001 | T77: 001 | U77: 100 | V77: 0003 | W77: 0100 | Y77: 001 | Z77: 01 | AA77: Zasadnicza Szkoła Zawodowa | AB77: 09299219700000 | AC77: 04 | AD77: 03 | AE77: 08 | AF77: Solec Kujawski | AG77: 29 Listopada | AH77: 7 | AI77: 86-050 | AJ77: Solec Kujawski | AK77: 63 | AL77: 63 | AM77: 0403 | AN77: 04 | AO77: 03 | AQ77: =IF(LEN($AM77)=6,VLOOKUP($AM77,slownik_JST!$B:$J,9,0),"") ->  | AR77: =VLOOKUP($AN77&$AO77,slownik_JST!$B:$J,9,0) -> Powiat nie będący miastem na pr. powiatu | AS77: KUJAWSKO-POMORSKIE | AT77: bydgoski | AV77: Powiat ziemski | AW77: =VLOOKUP(P77,listy_plac!$M$2:$N$52,2,0) -> Zasadnicza szkoła zawodowa | AX77: =VLOOKUP(R77,listy_plac!$Z$27:$AA$32,2,0) -> Szkoła lub placówka w ramach jednostki złożonej | AY77: =VLOOKUP(S77,listy_plac!$Z$2:$AA$5,2,0) -> publiczna | AZ77: =VLOOKUP(T77,listy_plac!$Z$8:$AA$10,2,0) -> Dzieci lub młodzież | BA77: =VLOOKUP(U77,listy_plac!$Z$13:$AA$15,2,0) -> brak specyfiki | BB77: =VLOOKUP(Y77,listy_plac!$Z$18:$AA$24,2,0) -> dzienna | BC77: Zasadnicza Szkoła Zawodowa | BD77: Solec Kujawski | BE77: 29 Listopada | BF77: 7 | BG77: 86-050 | BH77: Solec Kujawski | BI77: 63 | BJ77: 63 | BK77: =VLOOKUP(AM77,wsk_doch!B:D,3,0) -> 239.12
A78: 86669 | C78: 0403 | D78: 04 | E78: 03 | G78: KUJAWSKO-POMORSKIE | H78: bydgoski | K78: 0003 | L78: Powiat ziemski | M78: 04 | N78: 03 | P78: 00013 | Q78: 2 | R78: 002 | S78: 001 | T78: 001 | U78: 001 | V78: 0003 | W78: 0100 | X78: 005 | Y78: 001 | Z78: 01 | AA78: Zasadnicza Szkoła Zawodowa nr1 w Koronowie | AB78: 09306016500000 | AC78: 04 | AD78: 03 | AE78: 04 | AF78: Koronowo | AG78: Sobieskiego | AH78: 16 | AI78: 86-010 | AJ78: Koronowo | AK78: 15 | AL78: 13 | AM78: 0403 | AN78: 04 | AO78: 03 | AQ78: =IF(LEN($AM78)=6,VLOOKUP($AM78,slownik_JST!$B:$J,9,0),"") ->  | AR78: =VLOOKUP($AN78&$AO78,slownik_JST!$B:$J,9,0) -> Powiat nie będący miastem na pr. powiatu | AS78: KUJAWSKO-POMORSKIE | AT78: bydgoski | AV78: Powiat ziemski | AW78: =VLOOKUP(P78,listy_plac!$M$2:$N$52,2,0) -> Zasadnicza szkoła zawodowa | AX78: =VLOOKUP(R78,listy_plac!$Z$27:$AA$32,2,0) -> Szkoła lub placówka w ramach jednostki złożonej | AY78: =VLOOKUP(S78,listy_plac!$Z$2:$AA$5,2,0) -> publiczna | AZ78: =VLOOKUP(T78,listy_plac!$Z$8:$AA$10,2,0) -> Dzieci lub młodzież | BA78: =VLOOKUP(U78,listy_plac!$Z$13:$AA$15,2,0) -> specjalna | BB78: =VLOOKUP(Y78,listy_plac!$Z$18:$AA$24,2,0) -> dzienna | BC78: Zasadnicza Szkoła Zawodowa nr1 w Koronowie | BD78: Koronowo | BE78: Sobieskiego | BF78: 16 | BG78: 86-010 | BH78: Koronowo | BI78: 15 | BJ78: 13 | BK78: =VLOOKUP(AM78,wsk_doch!B:D,3,0) -> 239.12
A79: 83536 | C79: 0403 | D79: 04 | E79: 03 | G79: KUJAWSKO-POMORSKIE | H79: bydgoski | K79: 0003 | L79: Powiat ziemski | M79: 04 | N79: 03 | P79: 00013 | Q79: 2 | R79: 002 | S79: 001 | T79: 001 | U79: 100 | V79: 0003 | W79: 0100 | Y79: 001 | Z79: 01 | AA79: Zasadnicza Szkoła Zawodowa | AB79: 09303360700000 | AC79: 04 | AD79: 03 | AE79: 04 | AF79: Koronowo | AG79: Dworcowa | AH79: 53 | AI79: 86-010 | AJ79: Koronowo | AK79: 128 | AL79: 78 | AM79: 0403 | AN79: 04 | AO79: 03 | AQ79: =IF(LEN($AM79)=6,VLOOKUP($AM79,slownik_JST!$B:$J,9,0),"") ->  | AR79: =VLOOKUP($AN79&$AO79,slownik_JST!$B:$J,9,0) -> Powiat nie będący miastem na pr. powiatu | AS79: KUJAWSKO-POMORSKIE | AT79: bydgoski | AV79: Powiat ziemski | AW79: =VLOOKUP(P79,listy_plac!$M$2:$N$52,2,0) -> Zasadnicza szkoła zawodowa | AX79: =VLOOKUP(R79,listy_plac!$Z$27:$AA$32,2,0) -> Szkoła lub placówka w ramach jednostki złożonej | AY79: =VLOOKUP(S79,listy_plac!$Z$2:$AA$5,2,0) -> publiczna | AZ79: =VLOOKUP(T79,listy_plac!$Z$8:$AA$10,2,0) -> Dzieci lub młodzież | BA79: =VLOOKUP(U79,listy_plac!$Z$13:$AA$15,2,0) -> brak specyfiki | BB79: =VLOOKUP(Y79,listy_plac!$Z$18:$AA$24,2,0) -> dzienna | BC79: Zasadnicza Szkoła Zawodowa | BD79: Koronowo | BE79: Dworcowa | BF79: 53 | BG79: 86-010 | BH79: Koronowo | BI79: 128 | BJ79: 78 | BK79: =VLOOKUP(AM79,wsk_doch!B:D,3,0) -> 239.12
A80: 23019 | C80: 0404 | D80: 04 | E80: 04 | G80: KUJAWSKO-POMORSKIE | H80: chełmiński | K80: 0003 | L80: Powiat ziemski | M80: 04 | N80: 04 | P80: 00013 | Q80: 2 | R80: 002 | S80: 001 | T80: 001 | U80: 001 | V80: 0003 | W80: 0011 | X80: 005 | Y80: 001 | Z80: 01 | AA80: Zasadnicza Szkoła Zawodowa Specjalna | AB80: 87167976700000 | AC80: 04 | AD80: 04 | AE80: 01 | AF80: Chełmno | AG80: Dworcowa | AH80: 20/22 | AI80: 86-200 | AJ80: Chełmno | AK80: 15 | AL80: 15 | AM80: 0404 | AN80: 04 | AO80: 04 | AQ80: =IF(LEN($AM80)=6,VLOOKUP($AM80,slownik_JST!$B:$J,9,0),"") ->  | AR80: =VLOOKUP($AN80&$AO80,slownik_JST!$B:$J,9,0) -> Powiat nie będący miastem na pr. powiatu | AS80: KUJAWSKO-POMORSKIE | AT80: chełmiński | AV80: Powiat ziemski | AW80: =VLOOKUP(P80,listy_plac!$M$2:$N$52,2,0) -> Zasadnicza szkoła zawodowa | AX80: =VLOOKUP(R80,listy_plac!$Z$27:$AA$32,2,0) -> Szkoła lub placówka w ramach jednostki złożonej | AY80: =VLOOKUP(S80,listy_plac!$Z$2:$AA$5,2,0) -> publiczna | AZ80: =VLOOKUP(T80,listy_plac!$Z$8:$AA$10,2,0) -> Dzieci lub młodzież | BA80: =VLOOKUP(U80,listy_plac!$Z$13:$AA$15,2,0) -> specjalna | BB80: =VLOOKUP(Y80,listy_plac!$Z$18:$AA$24,2,0) -> dzienna | BC80: Zasadnicza Szkoła Zawodowa Specjalna | BD80: Chełmno | BE80: Dworcowa | BF80: 20/22 | BG80: 86-200 | BH80: Chełmno | BI80: 15 | BJ80: 15 | BK80: =VLOOKUP(AM80,wsk_doch!B:D,3,0) -> 128.81
A81: 5222 | C81: 0404 | D81: 04 | E81: 04 | G81: KUJAWSKO-POMORSKIE | H81: chełmiński | K81: 0003 | L81: Powiat ziemski | M81: 04 | N81: 04 | P81: 00013 | Q81: 2 | R81: 002 | S81: 001 | T81: 001 | U81: 100 | V81: 0003 | W81: 0100 | Y81: 001 | Z81: 01 | AA81: Zasadnicza Szkoła Zawodowa | AB81: 87167953700000 | AC81: 04 | AD81: 04 | AE81: 01 | AF81: Chełmno | AG81: Szkolna | AH81: 14 | AI81: 86-200 | AJ81: Chełmno | AK81: 161 | AL81: 161 | AM81: 0404 | AN81: 04 | AO81: 04 | AQ81: =IF(LEN($AM81)=6,VLOOKUP($AM81,slownik_JST!$B:$J,9,0),"") ->  | AR81: =VLOOKUP($AN81&$AO81,slownik_JST!$B:$J,9,0) -> Powiat nie będący miastem na pr. powiatu | AS81: KUJAWSKO-POMORSKIE | AT81: chełmiński | AV81: Powiat ziemski | AW81: =VLOOKUP(P81,listy_plac!$M$2:$N$52,2,0) -> Zasadnicza szkoła zawodowa | AX81: =VLOOKUP(R81,listy_plac!$Z$27:$AA$32,2,0) -> Szkoła lub placówka w ramach jednostki złożonej | AY81: =VLOOKUP(S81,listy_plac!$Z$2:$AA$5,2,0) -> publiczna | AZ81: =VLOOKUP(T81,listy_plac!$Z$8:$AA$10,2,0) -> Dzieci lub młodzież | BA81: =VLOOKUP(U81,listy_plac!$Z$13:$AA$15,2,0) -> brak specyfiki | BB81: =VLOOKUP(Y81,listy_plac!$Z$18:$AA$24,2,0) -> dzienna | BC81: Zasadnicza Szkoła Zawodowa | BD81: Chełmno | BE81: Szkolna | BF81: 14 | BG81: 86-200 | BH81: Chełmno | BI81: 161 | BJ81: 161 | BK81: =VLOOKUP(AM81,wsk_doch!B:D,3,0) -> 128.81
A82: 9973 | C82: 040407 | D82: 04 | E82: 04 | F82: 07 | G82: KUJAWSKO-POMORSKIE | H82: chełmiński | I82: Unisław | J82: Gm | K82: 0001 | L82: Gmina | M82: 04 | N82: 04 | O82: 07 | P82: 00013 | Q82: 3 | R82: 002 | S82: 001 | T82: 001 | U82: 100 | V82: 0003 | W82: 0100 | Y82: 001 | Z82: 01 | AA82: Zasadnicza Szkoła Zawodowa | AB82: 87041141300000 | AC82: 04 | AD82: 04 | AE82: 07 | AF82: Unisław | AG82: Lipowa | AH82: 31 | AI82: 86-260 | AJ82: Unisław | AK82: 45 | AL82: 45 | AM82: 040407 | AN82: 04 | AO82: 04 | AP82: 07 | AQ82: =IF(LEN($AM82)=6,VLOOKUP($AM82,slownik_JST!$B:$J,9,0),"") -> Gmina wiejska | AR82: =VLOOKUP($AN82&$AO82,slownik_JST!$B:$J,9,0) -> Powiat nie będący miastem na pr. powiatu | AS82: KUJAWSKO-POMORSKIE | AT82: chełmiński | AU82: Unisław | AV82: Gmina | AW82: =VLOOKUP(P82,listy_plac!$M$2:$N$52,2,0) -> Zasadnicza szkoła zawodowa | AX82: =VLOOKUP(R82,listy_plac!$Z$27:$AA$32,2,0) -> Szkoła lub placówka w ramach jednostki złożonej | AY82: =VLOOKUP(S82,listy_plac!$Z$2:$AA$5,2,0) -> publiczna | AZ82: =VLOOKUP(T82,listy_plac!$Z$8:$AA$10,2,0) -> Dzieci lub młodzież | BA82: =VLOOKUP(U82,listy_plac!$Z$13:$AA$15,2,0) -> brak specyfiki | BB82: =VLOOKUP(Y82,listy_plac!$Z$18:$AA$24,2,0) -> dzienna | BC82: Zasadnicza Szkoła Zawodowa | BD82: Unisław | BE82: Lipowa | BF82: 31 | BG82: 86-260 | BH82: Unisław | BI82: 45 | BJ82: 45 | BK82: =VLOOKUP(AM82,wsk_doch!B:D,3,0) -> 1068.86
A83: 106879 | C83: 0405 | D83: 04 | E83: 05 | G83: KUJAWSKO-POMORSKIE | H83: golubsko-dobrzyński | K83: 0003 | L83: Powiat ziemski | M83: 04 | N83: 05 | P83: 00013 | Q83: 2 | R83: 002 | S83: 001 | T83: 001 | U83: 100 | V83: 0003 | W83: 0100 | Y83: 001 | Z83: 01 | AA83: Zasadnicza Szkoła Zawodowa | AB83: 87165935100000 | AC83: 04 | AD83: 05 | AE83: 01 | AF83: Golub-Dobrzyń | AG83: Kilińskiego | AH83: 31 | AI83: 87-400 | AJ83: Golub-Dobrzyń | AK83: 154 | AL83: 154 | AM83: 0405 | AN83: 04 | AO83: 05 | AQ83: =IF(LEN($AM83)=6,VLOOKUP($AM83,slownik_JST!$B:$J,9,0),"") ->  | AR83: =VLOOKUP($AN83&$AO83,slownik_JST!$B:$J,9,0) -> Powiat nie będący miastem na pr. powiatu | AS83: KUJAWSKO-POMORSKIE | AT83: golubsko-dobrzyński | AV83: Powiat ziemski | AW83: =VLOOKUP(P83,listy_plac!$M$2:$N$52,2,0) -> Zasadnicza szkoła zawodowa | AX83: =VLOOKUP(R83,listy_plac!$Z$27:$AA$32,2,0) -> Szkoła lub placówka w ramach jednostki złożonej | AY83: =VLOOKUP(S83,listy_plac!$Z$2:$AA$5,2,0) -> publiczna | AZ83: =VLOOKUP(T83,listy_plac!$Z$8:$AA$10,2,0) -> Dzieci lub młodzież | BA83: =VLOOKUP(U83,listy_plac!$Z$13:$AA$15,2,0) -> brak specyfiki | BB83: =VLOOKUP(Y83,listy_plac!$Z$18:$AA$24,2,0) -> dzienna | BC83: Zasadnicza Szkoła Zawodowa | BD83: Golub-Dobrzyń | BE83: Kilińskiego | BF83: 31 | BG83: 87-400 | BH83: Golub-Dobrzyń | BI83: 154 | BJ83: 154 | BK83: =VLOOKUP(AM83,wsk_doch!B:D,3,0) -> 130.03
A84: 105189 | C84: 0405 | D84: 04 | E84: 05 | G84: KUJAWSKO-POMORSKIE | H84: golubsko-dobrzyński | K84: 0003 | L84: Powiat ziemski | M84: 04 | N84: 05 | P84: 00013 | Q84: 1 | R84: 002 | S84: 001 | T84: 001 | U84: 100 | V84: 0003 | W84: 0100 | Y84: 001 | Z84: 01 | AA84: Zasadnicza Szkoła Zawodowa | AB84: 87166863400000 | AC84: 04 | AD84: 05 | AE84: 04 | AF84: Kowalewo Pomorskie | AG84: Świętego Mikołaja | AH84: 6 | AI84: 87-410 | AJ84: Kowalewo Pomorskie | AK84: 79 | AL84: 43 | AM84: 0405 | AN84: 04 | AO84: 05 | AQ84: =IF(LEN($AM84)=6,VLOOKUP($AM84,slownik_JST!$B:$J,9,0),"") ->  | AR84: =VLOOKUP($AN84&$AO84,slownik_JST!$B:$J,9,0) -> Powiat nie będący miastem na pr. powiatu | AS84: KUJAWSKO-POMORSKIE | AT84: golubsko-dobrzyński | AV84: Powiat ziemski | AW84: =VLOOKUP(P84,listy_plac!$M$2:$N$52,2,0) -> Zasadnicza szkoła zawodowa | AX84: =VLOOKUP(R84,listy_plac!$Z$27:$AA$32,2,0) -> Szkoła lub placówka w ramach jednostki złożonej | AY84: =VLOOKUP(S84,listy_plac!$Z$2:$AA$5,2,0) -> publiczna | AZ84: =VLOOKUP(T84,listy_plac!$Z$8:$AA$10,2,0) -> Dzieci lub młodzież | BA84: =VLOOKUP(U84,listy_plac!$Z$13:$AA$15,2,0) -> brak specyfiki | BB84: =VLOOKUP(Y84,listy_plac!$Z$18:$AA$24,2,0) -> dzienna | BC84: Zasadnicza Szkoła Zawodowa | BD84: Kowalewo Pomorskie | BE84: Świętego Mikołaja | BF84: 6 | BG84: 87-410 | BH84: Kowalewo Pomorskie | BI84: 79 | BJ84: 43 | BK84: =VLOOKUP(AM84,wsk_doch!B:D,3,0) -> 130.03
A85: 92235 | C85: 0406 | D85: 04 | E85: 06 | G85: KUJAWSKO-POMORSKIE | H85: grudziądzki | K85: 0003 | L85: Powiat ziemski | M85: 04 | N85: 06 | P85: 00013 | Q85: 1 | R85: 002 | S85: 001 | T85: 001 | U85: 100 | V85: 0003 | W85: 0100 | Y85: 001 | Z85: 01 | AA85: Zasadnicza Szkoła Zawodowa | AB85: 34136148400000 | AC85: 04 | AD85: 06 | AE85: 03 | AF85: Łasin | AG85: ODRODZENIA POLSKI | AH85: 3 | AI85: 86-320 | AJ85: ŁASIN | AK85: 68 | AL85: 46 | AM85: 0406 | AN85: 04 | AO85: 06 | AQ85: =IF(LEN($AM85)=6,VLOOKUP($AM85,slownik_JST!$B:$J,9,0),"") ->  | AR85: =VLOOKUP($AN85&$AO85,slownik_JST!$B:$J,9,0) -> Powiat nie będący miastem na pr. powiatu | AS85: KUJAWSKO-POMORSKIE | AT85: grudziądzki | AV85: Powiat ziemski | AW85: =VLOOKUP(P85,listy_plac!$M$2:$N$52,2,0) -> Zasadnicza szkoła zawodowa | AX85: =VLOOKUP(R85,listy_plac!$Z$27:$AA$32,2,0) -> Szkoła lub placówka w ramach jednostki złożonej | AY85: =VLOOKUP(S85,listy_plac!$Z$2:$AA$5,2,0) -> publiczna | AZ85: =VLOOKUP(T85,listy_plac!$Z$8:$AA$10,2,0) -> Dzieci lub młodzież | BA85: =VLOOKUP(U85,listy_plac!$Z$13:$AA$15,2,0) -> brak specyfiki | BB85: =VLOOKUP(Y85,listy_plac!$Z$18:$AA$24,2,0) -> dzienna | BC85: Zasadnicza Szkoła Zawodowa | BD85: Łasin | BE85: ODRODZENIA POLSKI | BF85: 3 | BG85: 86-320 | BH85: ŁASIN | BI85: 68 | BJ85: 46 | BK85: =VLOOKUP(AM85,wsk_doch!B:D,3,0) -> 118.28
A86: 48637 | C86: 0407 | D86: 04 | E86: 07 | G86: KUJAWSKO-POMORSKIE | H86: inowrocławski | K86: 0003 | L86: Powiat ziemski | M86: 04 | N86: 07 | P86: 00013 | Q86: 2 | R86: 002 | S86: 001 | T86: 001 | U86: 001 | V86: 0003 | W86: 0100 | X86: 005 | Y86: 001 | Z86: 01 | AA86: Zasadnicza Szkoła Zawodowa | AB86: 09304238000000 | AC86: 04 | AD86: 07 | AE86: 01 | AF86: Inowrocław | AG86: Solankowa | AH86: 21 | AI86: 88-100 | AJ86: Inowrocław | AK86: 58 | AL86: 10 | AM86: 0407 | AN86: 04 | AO86: 07 | AQ86: =IF(LEN($AM86)=6,VLOOKUP($AM86,slownik_JST!$B:$J,9,0),"") ->  | AR86: =VLOOKUP($AN86&$AO86,slownik_JST!$B:$J,9,0) -> Powiat nie będący miastem na pr. powiatu | AS86: KUJAWSKO-POMORSKIE | AT86: inowrocławski | AV86: Powiat ziemski | AW86: =VLOOKUP(P86,listy_plac!$M$2:$N$52,2,0) -> Zasadnicza szkoła zawodowa | AX86: =VLOOKUP(R86,listy_plac!$Z$27:$AA$32,2,0) -> Szkoła lub placówka w ramach jednostki złożonej | AY86: =VLOOKUP(S86,listy_plac!$Z$2:$AA$5,2,0) -> publiczna | AZ86: =VLOOKUP(T86,listy_plac!$Z$8:$AA$10,2,0) -> Dzieci lub młodzież | BA86: =VLOOKUP(U86,listy_plac!$Z$13:$AA$15,2,0) -> specjalna | BB86: =VLOOKUP(Y86,listy_plac!$Z$18:$AA$24,2,0) -> dzienna | BC86: Zasadnicza Szkoła Zawodowa | BD86: Inowrocław | BE86: Solankowa | BF86: 21 | BG86: 88-100 | BH86: Inowrocław | BI86: 58 | BJ86: 10 | BK86: =VLOOKUP(AM86,wsk_doch!B:D,3,0) -> 164.2
A87: 55481 | C87: 0407 | D87: 04 | E87: 07 | G87: KUJAWSKO-POMORSKIE | H87: inowrocławski | K87: 0003 | L87: Powiat ziemski | M87: 04 | N87: 07 | P87: 00013 | Q87: 2 | R87: 002 | S87: 001 | T87: 001 | U87: 100 | V87: 0003 | W87: 0100 | Y87: 001 | Z87: 01 | AA87: ZSZ 3-letnia | AB87: 09255816000000 | AC87: 04 | AD87: 07 | AE87: 06 | AF87: Kruszwica | AG87: Kujawska | AH87: 20 | AI87: 88-153 | AJ87: Kruszwica | AK87: 86 | AL87: 81 | AM87: 0407 | AN87: 04 | AO87: 07 | AQ87: =IF(LEN($AM87)=6,VLOOKUP($AM87,slownik_JST!$B:$J,9,0),"") ->  | AR87: =VLOOKUP($AN87&$AO87,slownik_JST!$B:$J,9,0) -> Powiat nie będący miastem na pr. powiatu | AS87: KUJAWSKO-POMORSKIE | AT87: inowrocławski | AV87: Powiat ziemski | AW87: =VLOOKUP(P87,listy_plac!$M$2:$N$52,2,0) -> Zasadnicza szkoła zawodowa | AX87: =VLOOKUP(R87,listy_plac!$Z$27:$AA$32,2,0) -> Szkoła lub placówka w ramach jednostki złożonej | AY87: =VLOOKUP(S87,listy_plac!$Z$2:$AA$5,2,0) -> publiczna | AZ87: =VLOOKUP(T87,listy_plac!$Z$8:$AA$10,2,0) -> Dzieci lub młodzież | BA87: =VLOOKUP(U87,listy_plac!$Z$13:$AA$15,2,0) -> brak specyfiki | BB87: =VLOOKUP(Y87,listy_plac!$Z$18:$AA$24,2,0) -> dzienna | BC87: ZSZ 3-letnia | BD87: Kruszwica | BE87: Kujawska | BF87: 20 | BG87: 88-153 | BH87: Kruszwica | BI87: 86 | BJ87: 81 | BK87: =VLOOKUP(AM87,wsk_doch!B:D,3,0) -> 164.2
A88: 22843 | C88: 0407 | D88: 04 | E88: 07 | G88: KUJAWSKO-POMORSKIE | H88: inowrocławski | K88: 0003 | L88: Powiat ziemski | M88: 04 | N88: 07 | P88: 00013 | Q88: 2 | R88: 002 | S88: 001 | T88: 001 | U88: 100 | V88: 0003 | W88: 0100 | Y88: 001 | Z88: 01 | AA88: zasadnicza szkoła zawodowa | AB88: 09306418600000 | AC88: 04 | AD88: 07 | AE88: 01 | AF88: Inowrocław | AG88: Sienkiewicza | AH88: 33 | AI88: 88-100 | AJ88: Inowrocław | AK88: 119 | AL88: 28 | AM88: 0407 | AN88: 04 | AO88: 07 | AQ88: =IF(LEN($AM88)=6,VLOOKUP($AM88,slownik_JST!$B:$J,9,0),"") ->  | AR88: =VLOOKUP($AN88&$AO88,slownik_JST!$B:$J,9,0) -> Powiat nie będący miastem na pr. powiatu | AS88: KUJAWSKO-POMORSKIE | AT88: inowrocławski | AV88: Powiat ziemski | AW88: =VLOOKUP(P88,listy_plac!$M$2:$N$52,2,0) -> Zasadnicza szkoła zawodowa | AX88: =VLOOKUP(R88,listy_plac!$Z$27:$AA$32,2,0) -> Szkoła lub placówka w ramach jednostki złożonej | AY88: =VLOOKUP(S88,listy_plac!$Z$2:$AA$5,2,0) -> publiczna | AZ88: =VLOOKUP(T88,listy_plac!$Z$8:$AA$10,2,0) -> Dzieci lub młodzież | BA88: =VLOOKUP(U88,listy_plac!$Z$13:$AA$15,2,0) -> brak specyfiki | BB88: =VLOOKUP(Y88,listy_plac!$Z$18:$AA$24,2,0) -> dzienna | BC88: zasadnicza szkoła zawodowa | BD88: Inowrocław | BE88: Sienkiewicza | BF88: 33 | BG88: 88-100 | BH88: Inowrocław | BI88: 119 | BJ88: 28 | BK88: =VLOOKUP(AM88,wsk_doch!B:D,3,0) -> 164.2
A89: 40881 | C89: 0407 | D89: 04 | E89: 07 | G89: KUJAWSKO-POMORSKIE | H89: inowrocławski | K89: 0003 | L89: Powiat ziemski | M89: 04 | N89: 07 | P89: 00013 | Q89: 2 | R89: 002 | S89: 001 | T89: 001 | U89: 100 | V89: 0003 | W89: 0100 | Y89: 001 | Z89: 01 | AA89: Zasadnicza Szkoła Zawodowa | AB89: 09306790200000 | AC89: 04 | AD89: 07 | AE89: 01 | AF89: Inowrocław | AG89: Narutowicza | AH89: 34 | AI89: 88-100 | AJ89: Inowrocław | AK89: 44 | AL89: 44 | AM89: 0407 | AN89: 04 | AO89: 07 | AQ89: =IF(LEN($AM89)=6,VLOOKUP($AM89,slownik_JST!$B:$J,9,0),"") ->  | AR89: =VLOOKUP($AN89&$AO89,slownik_JST!$B:$J,9,0) -> Powiat nie będący miastem na pr. powiatu | AS89: KUJAWSKO-POMORSKIE | AT89: inowrocławski | AV89: Powiat ziemski | AW89: =VLOOKUP(P89,listy_plac!$M$2:$N$52,2,0) -> Zasadnicza szkoła zawodowa | AX89: =VLOOKUP(R89,listy_plac!$Z$27:$AA$32,2,0) -> Szkoła lub placówka w ramach jednostki złożonej | AY89: =VLOOKUP(S89,listy_plac!$Z$2:$AA$5,2,0) -> publiczna | AZ89: =VLOOKUP(T89,listy_plac!$Z$8:$AA$10,2,0) -> Dzieci lub młodzież | BA89: =VLOOKUP(U89,listy_plac!$Z$13:$AA$15,2,0) -> brak specyfiki | BB89: =VLOOKUP(Y89,listy_plac!$Z$18:$AA$24,2,0) -> dzienna | BC89: Zasadnicza Szkoła Zawodowa | BD89: Inowrocław | BE89: Narutowicza | BF89: 34 | BG89: 88-100 | BH89: Inowrocław | BI89: 44 | BJ89: 44 | BK89: =VLOOKUP(AM89,wsk_doch!B:D,3,0) -> 164.2
A90: 48392 | C90: 040703 | D90: 04 | E90: 07 | F90: 03 | G90: KUJAWSKO-POMORSKIE | H90: inowrocławski | I90: Gniewkowo | J90: M-Gm | K90: 0001 | L90: Gmina | M90: 04 | N90: 07 | O90: 03 | P90: 00013 | Q90: 2 | R90: 001 | S90: 001 | T90: 001 | U90: 100 | V90: 0003 | W90: 0100 | Y90: 001 | Z90: 01 | AA90: Szkoła Zawodowa | AB90: 09316463400000 | AC90: 04 | AD90: 07 | AE90: 03 | AF90: Gniewkowo | AG90: Powstańców Wielkopolskich | AH90: 5 | AI90: 88-140 | AJ90: Gniewkowo | AK90: 86 | AL90: 86 | AM90: 040703 | AN90: 04 | AO90: 07 | AP90: 03 | AQ90: =IF(LEN($AM90)=6,VLOOKUP($AM90,slownik_JST!$B:$J,9,0),"") -> Gmina miejsko-wiejska | AR90: =VLOOKUP($AN90&$AO90,slownik_JST!$B:$J,9,0) -> Powiat nie będący miastem na pr. powiatu | AS90: KUJAWSKO-POMORSKIE | AT90: inowrocławski | AU90: Gniewkowo | AV90: Gmina | AW90: =VLOOKUP(P90,listy_plac!$M$2:$N$52,2,0) -> Zasadnicza szkoła zawodowa | AX90: =VLOOKUP(R90,listy_plac!$Z$27:$AA$32,2,0) -> Dane własne | AY90: =VLOOKUP(S90,listy_plac!$Z$2:$AA$5,2,0) -> publiczna | AZ90: =VLOOKUP(T90,listy_plac!$Z$8:$AA$10,2,0) -> Dzieci lub młodzież | BA90: =VLOOKUP(U90,listy_plac!$Z$13:$AA$15,2,0) -> brak specyfiki | BB90: =VLOOKUP(Y90,listy_plac!$Z$18:$AA$24,2,0) -> dzienna | BC90: Szkoła Zawodowa | BD90: Gniewkowo | BE90: Powstańców Wielkopolskich | BF90: 5 | BG90: 88-140 | BH90: Gniewkowo | BI90: 86 | BJ90: 86 | BK90: =VLOOKUP(AM90,wsk_doch!B:D,3,0) -> 1281.02
A91: 16472 | C91: 0408 | D91: 04 | E91: 08 | G91: KUJAWSKO-POMORSKIE | H91: lipnowski | K91: 0003 | L91: Powiat ziemski | M91: 04 | N91: 08 | P91: 00013 | Q91: 2 | R91: 002 | S91: 001 | T91: 001 | U91: 100 | V91: 0003 | W91: 0100 | Y91: 001 | Z91: 01 | AA91: Zasadnicza Szkoła Zawodowa | AB91: 91130654400000 | AC91: 04 | AD91: 08 | AE91: 01 | AF91: Lipno | AG91: Okrzei | AH91: 3 | AI91: 87-600 | AJ91: Lipno | AK91: 313 | AL91: 130 | AM91: 0408 | AN91: 04 | AO91: 08 | AQ91: =IF(LEN($AM91)=6,VLOOKUP($AM91,slownik_JST!$B:$J,9,0),"") ->  | AR91: =VLOOKUP($AN91&$AO91,slownik_JST!$B:$J,9,0) -> Powiat nie będący miastem na pr. powiatu | AS91: KUJAWSKO-POMORSKIE | AT91: lipnowski | AV91: Powiat ziemski | AW91: =VLOOKUP(P91,listy_plac!$M$2:$N$52,2,0) -> Zasadnicza szkoła zawodowa | AX91: =VLOOKUP(R91,listy_plac!$Z$27:$AA$32,2,0) -> Szkoła lub placówka w ramach jednostki złożonej | AY91: =VLOOKUP(S91,listy_plac!$Z$2:$AA$5,2,0) -> publiczna | AZ91: =VLOOKUP(T91,listy_plac!$Z$8:$AA$10,2,0) -> Dzieci lub młodzież | BA91: =VLOOKUP(U91,listy_plac!$Z$13:$AA$15,2,0) -> brak specyfiki | BB91: =VLOOKUP(Y91,listy_plac!$Z$18:$AA$24,2,0) -> dzienna | BC91: Zasadnicza Szkoła Zawodowa | BD91: Lipno | BE91: Okrzei | BF91: 3 | BG91: 87-600 | BH91: Lipno | BI91: 313 | BJ91: 130 | BK91: =VLOOKUP(AM91,wsk_doch!B:D,3,0) -> 110.85
A92: 83480 | C92: 0409 | D92: 04 | E92: 09 | G92: KUJAWSKO-POMORSKIE | H92: mogileński | K92: 0003 | L92: Powiat ziemski | M92: 04 | N92: 09 | P92: 00013 | Q92: 3 | R92: 002 | S92: 001 | T92: 001 | U92: 001 | V92: 0003 | W92: 0011 | X92: 005 | Y92: 001 | Z92: 01 | AA92: Zasadnicza Szkoła Zawodowa Specjalna | AB92: 09257440700000 | AC92: 04 | AD92: 09 | AE92: 03 | AF92: Szerzawy | AG92: Szerzawy | AH92: 2 | AI92: 88-300 | AJ92: Mogilno | AK92: 21 | AL92: 17 | AM92: 0409 | AN92: 04 | AO92: 09 | AQ92: =IF(LEN($AM92)=6,VLOOKUP($AM92,slownik_JST!$B:$J,9,0),"") ->  | AR92: =VLOOKUP($AN92&$AO92,slownik_JST!$B:$J,9,0) -> Powiat nie będący miastem na pr. powiatu | AS92: KUJAWSKO-POMORSKIE | AT92: mogileński | AV92: Powiat ziemski | AW92: =VLOOKUP(P92,listy_plac!$M$2:$N$52,2,0) -> Zasadnicza szkoła zawodowa | AX92: =VLOOKUP(R92,listy_plac!$Z$27:$AA$32,2,0) -> Szkoła lub placówka w ramach jednostki złożonej | AY92: =VLOOKUP(S92,listy_plac!$Z$2:$AA$5,2,0) -> publiczna | AZ92: =VLOOKUP(T92,listy_plac!$Z$8:$AA$10,2,0) -> Dzieci lub młodzież | BA92: =VLOOKUP(U92,listy_plac!$Z$13:$AA$15,2,0) -> specjalna | BB92: =VLOOKUP(Y92,listy_plac!$Z$18:$AA$24,2,0) -> dzienna | BC92: Zasadnicza Szkoła Zawodowa Specjalna | BD92: Szerzawy | BE92: Szerzawy | BF92: 2 | BG92: 88-300 | BH92: Mogilno | BI92: 21 | BJ92: 17 | BK92: =VLOOKUP(AM92,wsk_doch!B:D,3,0) -> 133.3
A93: 64384 | C93: 0409 | D93: 04 | E93: 09 | G93: KUJAWSKO-POMORSKIE | H93: mogileński | K93: 0003 | L93: Powiat ziemski | M93: 04 | N93: 09 | P93: 00013 | Q93: 2 | R93: 002 | S93: 001 | T93: 001 | U93: 100 | V93: 0003 | W93: 0100 | Y93: 001 | Z93: 01 | AA93: Zasadnicza Szkoła Zawodowa | AB93: 09303318000000 | AC93: 04 | AD93: 09 | AE93: 03 | AF93: Mogilno | AG93: Dworcowa | AH93: 9 | AI93: 88-300 | AJ93: Mogilno | AK93: 233 | AL93: 233 | AM93: 0409 | AN93: 04 | AO93: 09 | AQ93: =IF(LEN($AM93)=6,VLOOKUP($AM93,slownik_JST!$B:$J,9,0),"") ->  | AR93: =VLOOKUP($AN93&$AO93,slownik_JST!$B:$J,9,0) -> Powiat nie będący miastem na pr. powiatu | AS93: KUJAWSKO-POMORSKIE | AT93: mogileński | AV93: Powiat ziemski | AW93: =VLOOKUP(P93,listy_plac!$M$2:$N$52,2,0) -> Zasadnicza szkoła zawodowa | AX93: =VLOOKUP(R93,listy_plac!$Z$27:$AA$32,2,0) -> Szkoła lub placówka w ramach jednostki złożonej | AY93: =VLOOKUP(S93,listy_plac!$Z$2:$AA$5,2,0) -> publiczna | AZ93: =VLOOKUP(T93,listy_plac!$Z$8:$AA$10,2,0) -> Dzieci lub młodzież | BA93: =VLOOKUP(U93,listy_plac!$Z$13:$AA$15,2,0) -> brak specyfiki | BB93: =VLOOKUP(Y93,listy_plac!$Z$18:$AA$24,2,0) -> dzienna | BC93: Zasadnicza Szkoła Zawodowa | BD93: Mogilno | BE93: Dworcowa | BF93: 9 | BG93: 88-300 | BH93: Mogilno | BI93: 233 | BJ93: 233 | BK93: =VLOOKUP(AM93,wsk_doch!B:D,3,0) -> 133.3
A94: 55733 | C94: 0409 | D94: 04 | E94: 09 | G94: KUJAWSKO-POMORSKIE | H94: mogileński | K94: 0003 | L94: Powiat ziemski | M94: 04 | N94: 09 | P94: 00013 | Q94: 2 | R94: 002 | S94: 001 | T94: 001 | U94: 100 | V94: 0003 | W94: 0100 | Y94: 001 | Z94: 01 | AA94: Zasadnicza Szkoła Zawodowa | AB94: 09304899700000 | AC94: 04 | AD94: 09 | AE94: 04 | AF94: Strzelno | AG94: Gimnazjalna | AH94: 7 | AI94: 88-320 | AJ94: Strzelno | AK94: 135 | AL94: 76 | AM94: 0409 | AN94: 04 | AO94: 09 | AQ94: =IF(LEN($AM94)=6,VLOOKUP($AM94,slownik_JST!$B:$J,9,0),"") ->  | AR94: =VLOOKUP($AN94&$AO94,slownik_JST!$B:$J,9,0) -> Powiat nie będący miastem na pr. powiatu | AS94: KUJAWSKO-POMORSKIE | AT94: mogileński | AV94: Powiat ziemski | AW94: =VLOOKUP(P94,listy_plac!$M$2:$N$52,2,0) -> Zasadnicza szkoła zawodowa | AX94: =VLOOKUP(R94,listy_plac!$Z$27:$AA$32,2,0) -> Szkoła lub placówka w ramach jednostki złożonej | AY94: =VLOOKUP(S94,listy_plac!$Z$2:$AA$5,2,0) -> publiczna | AZ94: =VLOOKUP(T94,listy_plac!$Z$8:$AA$10,2,0) -> Dzieci lub młodzież | BA94: =VLOOKUP(U94,listy_plac!$Z$13:$AA$15,2,0) -> brak specyfiki | BB94: =VLOOKUP(Y94,listy_plac!$Z$18:$AA$24,2,0) -> dzienna | BC94: Zasadnicza Szkoła Zawodowa | BD94: Strzelno | BE94: Gimnazjalna | BF94: 7 | BG94: 88-320 | BH94: Strzelno | BI94: 135 | BJ94: 76 | BK94: =VLOOKUP(AM94,wsk_doch!B:D,3,0) -> 133.3
A95: 127822 | C95: 040904 | D95: 04 | E95: 09 | F95: 04 | G95: KUJAWSKO-POMORSKIE | H95: mogileński | I95: Strzelno | J95: M-Gm | K95: 0001 | L95: Gmina | M95: 04 | N95: 09 | O95: 04 | P95: 00013 | Q95: 2 | R95: 002 | S95: 001 | T95: 001 | U95: 001 | V95: 0003 | W95: 0011 | X95: 005 | Y95: 001 | Z95: 01 | AA95: Zasadnicza Szkoła Zawodowa Specjalna | AB95: 09314010200000 | AC95: 04 | AD95: 09 | AE95: 04 | AF95: Strzelno | AG95: Parkowa | AH95: 10 | AI95: 88-320 | AJ95: Strzelno | AK95: 13 | AL95: 1 | AM95: 040904 | AN95: 04 | AO95: 09 | AP95: 04 | AQ95: =IF(LEN($AM95)=6,VLOOKUP($AM95,slownik_JST!$B:$J,9,0),"") -> Gmina miejsko-wiejska | AR95: =VLOOKUP($AN95&$AO95,slownik_JST!$B:$J,9,0) -> Powiat nie będący miastem na pr. powiatu | AS95: KUJAWSKO-POMORSKIE | AT95: mogileński | AU95: Strzelno | AV95: Gmina | AW95: =VLOOKUP(P95,listy_plac!$M$2:$N$52,2,0) -> Zasadnicza szkoła zawodowa | AX95: =VLOOKUP(R95,listy_plac!$Z$27:$AA$32,2,0) -> Szkoła lub placówka w ramach jednostki złożonej | AY95: =VLOOKUP(S95,listy_plac!$Z$2:$AA$5,2,0) -> publiczna | AZ95: =VLOOKUP(T95,listy_plac!$Z$8:$AA$10,2,0) -> Dzieci lub młodzież | BA95: =VLOOKUP(U95,listy_plac!$Z$13:$AA$15,2,0) -> specjalna | BB95: =VLOOKUP(Y95,listy_plac!$Z$18:$AA$24,2,0) -> dzienna | BC95: Zasadnicza Szkoła Zawodowa Specjalna | BD95: Strzelno | BE95: Parkowa | BF95: 10 | BG95: 88-320 | BH95: Strzelno | BI95: 13 | BJ95: 1 | BK95: =VLOOKUP(AM95,wsk_doch!B:D,3,0) -> 1370.46
A96: 56497 | C96: 0410 | D96: 04 | E96: 10 | G96: KUJAWSKO-POMORSKIE | H96: nakielski | K96: 0003 | L96: Powiat ziemski | M96: 04 | N96: 10 | P96: 00013 | Q96: 3 | R96: 002 | S96: 001 | T96: 001 | U96: 100 | V96: 0003 | W96: 0100 | Y96: 001 | Z96: 01 | AA96: Zasadnicza Szkoła Wielozawodowa | AB96: 34048928800000 | AC96: 04 | AD96: 10 | AE96: 04 | AF96: Samostrzel | AH96: 9 | AI96: 89-110 | AJ96: Sadki | AK96: 66 | AL96: 66 | AM96: 0410 | AN96: 04 | AO96: 10 | AQ96: =IF(LEN($AM96)=6,VLOOKUP($AM96,slownik_JST!$B:$J,9,0),"") ->  | AR96: =VLOOKUP($AN96&$AO96,slownik_JST!$B:$J,9,0) -> Powiat nie będący miastem na pr. powiatu | AS96: KUJAWSKO-POMORSKIE | AT96: nakielski | AV96: Powiat ziemski | AW96: =VLOOKUP(P96,listy_plac!$M$2:$N$52,2,0) -> Zasadnicza szkoła zawodowa | AX96: =VLOOKUP(R96,listy_plac!$Z$27:$AA$32,2,0) -> Szkoła lub placówka w ramach jednostki złożonej | AY96: =VLOOKUP(S96,listy_plac!$Z$2:$AA$5,2,0) -> publiczna | AZ96: =VLOOKUP(T96,listy_plac!$Z$8:$AA$10,2,0) -> Dzieci lub młodzież | BA96: =VLOOKUP(U96,listy_plac!$Z$13:$AA$15,2,0) -> brak specyfiki | BB96: =VLOOKUP(Y96,listy_plac!$Z$18:$AA$24,2,0) -> dzienna | BC96: Zasadnicza Szkoła Wielozawodowa | BD96: Samostrzel | BE96: 0 | BF96: 9 | BG96: 89-110 | BH96: Sadki | BI96: 66 | BJ96: 66 | BK96: =VLOOKUP(AM96,wsk_doch!B:D,3,0) -> 133.41
A97: 48551 | C97: 0410 | D97: 04 | E97: 10 | G97: KUJAWSKO-POMORSKIE | H97: nakielski | K97: 0003 | L97: Powiat ziemski | M97: 04 | N97: 10 | P97: 00013 | Q97: 3 | R97: 002 | S97: 001 | T97: 001 | U97: 001 | V97: 0003 | W97: 0100 | X97: 005 | Y97: 001 | Z97: 01 | AA97: ZASADNICZA SZKOŁA ZAWODOWA SPECJALNA W KARNOWIE | AB97: 34021250000000 | AC97: 04 | AD97: 10 | AE97: 03 | AF97: Karnowo | AH97: 56 | AI97: 89-100 | AJ97: NAKŁO NAD NOTECIĄ | AK97: 6 | AL97: 6 | AM97: 0410 | AN97: 04 | AO97: 10 | AQ97: =IF(LEN($AM97)=6,VLOOKUP($AM97,slownik_JST!$B:$J,9,0),"") ->  | AR97: =VLOOKUP($AN97&$AO97,slownik_JST!$B:$J,9,0) -> Powiat nie będący miastem na pr. powiatu | AS97: KUJAWSKO-POMORSKIE | AT97: nakielski | AV97: Powiat ziemski | AW97: =VLOOKUP(P97,listy_plac!$M$2:$N$52,2,0) -> Zasadnicza szkoła zawodowa | AX97: =VLOOKUP(R97,listy_plac!$Z$27:$AA$32,2,0) -> Szkoła lub placówka w ramach jednostki złożonej | AY97: =VLOOKUP(S97,listy_plac!$Z$2:$AA$5,2,0) -> publiczna | AZ97: =VLOOKUP(T97,listy_plac!$Z$8:$AA$10,2,0) -> Dzieci lub młodzież | BA97: =VLOOKUP(U97,listy_plac!$Z$13:$AA$15,2,0) -> specjalna | BB97: =VLOOKUP(Y97,listy_plac!$Z$18:$AA$24,2,0) -> dzienna | BC97: ZASADNICZA SZKOŁA ZAWODOWA SPECJALNA W KARNOWIE | BD97: Karnowo | BE97: 0 | BF97: 56 | BG97: 89-100 | BH97: NAKŁO NAD NOTECIĄ | BI97: 6 | BJ97: 6 | BK97: =VLOOKUP(AM97,wsk_doch!B:D,3,0) -> 133.41
A98: 55812 | C98: 0410 | D98: 04 | E98: 10 | G98: KUJAWSKO-POMORSKIE | H98: nakielski | K98: 0003 | L98: Powiat ziemski | M98: 04 | N98: 10 | P98: 00013 | Q98: 3 | R98: 002 | S98: 001 | T98: 001 | U98: 100 | V98: 0003 | W98: 0100 | Y98: 001 | Z98: 01 | AA98: Zasadnicza Szkoła Zawodowa | AB98: 00024154800000 | AC98: 04 | AD98: 10 | AE98: 03 | AF98: Lubaszcz | AH98: 11a | AI98: 89-100 | AJ98: Nakło nad Notecią | AK98: 157 | AL98: 157 | AM98: 0410 | AN98: 04 | AO98: 10 | AQ98: =IF(LEN($AM98)=6,VLOOKUP($AM98,slownik_JST!$B:$J,9,0),"") ->  | AR98: =VLOOKUP($AN98&$AO98,slownik_JST!$B:$J,9,0) -> Powiat nie będący miastem na pr. powiatu | AS98: KUJAWSKO-POMORSKIE | AT98: nakielski | AV98: Powiat ziemski | AW98: =VLOOKUP(P98,listy_plac!$M$2:$N$52,2,0) -> Zasadnicza szkoła zawodowa | AX98: =VLOOKUP(R98,listy_plac!$Z$27:$AA$32,2,0) -> Szkoła lub placówka w ramach jednostki złożonej | AY98: =VLOOKUP(S98,listy_plac!$Z$2:$AA$5,2,0) -> publiczna | AZ98: =VLOOKUP(T98,listy_plac!$Z$8:$AA$10,2,0) -> Dzieci lub młodzież | BA98: =VLOOKUP(U98,listy_plac!$Z$13:$AA$15,2,0) -> brak specyfiki | BB98: =VLOOKUP(Y98,listy_plac!$Z$18:$AA$24,2,0) -> dzienna | BC98: Zasadnicza Szkoła Zawodowa | BD98: Lubaszcz | BE98: 0 | BF98: 11a | BG98: 89-100 | BH98: Nakło nad Notecią | BI98: 157 | BJ98: 157 | BK98: =VLOOKUP(AM98,wsk_doch!B:D,3,0) -> 133.41
A99: 58587 | C99: 0410 | D99: 04 | E99: 10 | G99: KUJAWSKO-POMORSKIE | H99: nakielski | K99: 0003 | L99: Powiat ziemski | M99: 04 | N99: 10 | P99: 00013 | Q99: 2 | R99: 002 | S99: 001 | T99: 001 | U99: 100 | V99: 0003 | W99: 0100 | Y99: 001 | Z99: 01 | AA99: Zasadnicza Szkoła Zawodowa | AB99: 00023802600000 | AC99: 04 | AD99: 10 | AE99: 05 | AF99: Szubin | AG99: Jana Kochanowskiego | AH99: 1 | AI99: 89-200 | AJ99: Szubin | AK99: 117 | AL99: 117 | AM99: 0410 | AN99: 04 | AO99: 10 | AQ99: =IF(LEN($AM99)=6,VLOOKUP($AM99,slownik_JST!$B:$J,9,0),"") ->  | AR99: =VLOOKUP($AN99&$AO99,slownik_JST!$B:$J,9,0) -> Powiat nie będący miastem na pr. powiatu | AS99: KUJAWSKO-POMORSKIE | AT99: nakielski | AV99: Powiat ziemski | AW99: =VLOOKUP(P99,listy_plac!$M$2:$N$52,2,0) -> Zasadnicza szkoła zawodowa | AX99: =VLOOKUP(R99,listy_plac!$Z$27:$AA$32,2,0) -> Szkoła lub placówka w ramach jednostki złożonej | AY99: =VLOOKUP(S99,listy_plac!$Z$2:$AA$5,2,0) -> publiczna | AZ99: =VLOOKUP(T99,listy_plac!$Z$8:$AA$10,2,0) -> Dzieci lub młodzież | BA99: =VLOOKUP(U99,listy_plac!$Z$13:$AA$15,2,0) -> brak specyfiki | BB99: =VLOOKUP(Y99,listy_plac!$Z$18:$AA$24,2,0) -> dzienna | BC99: Zasadnicza Szkoła Zawodowa | BD99: Szubin | BE99: Jana Kochanowskiego | BF99: 1 | BG99: 89-200 | BH99: Szubin | BI99: 117 | BJ99: 117 | BK99: =VLOOKUP(AM99,wsk_doch!B:D,3,0) -> 133.41
A100: 79006 | C100: 041001 | D100: 04 | E100: 10 | F100: 01 | G100: KUJAWSKO-POMORSKIE | H100: nakielski | I100: Kcynia | J100: M-Gm | K100: 0001 | L100: Gmina | M100: 04 | N100: 10 | O100: 01 | P100: 00013 | Q100: 1 | R100: 002 | S100: 001 | T100: 001 | U100: 100 | V100: 0003 | W100: 0100 | Y100: 001 | Z100: 01 | AA100: Zasadnicza Szkoła Zawodowa w Kcyni | AB100: 34018787700000 | AC100: 04 | AD100: 10 | AE100: 01 | AF100: Kcynia | AG100: Emila Jurczyka | AH100: 3 | AI100: 89-240 | AJ100: Kcynia | AK100: 67 | AL100: 63 | AM100: 041001 | AN100: 04 | AO100: 10 | AP100: 01 | AQ100: =IF(LEN($AM100)=6,VLOOKUP($AM100,slownik_JST!$B:$J,9,0),"") -> Gmina miejsko-wiejska | AR100: =VLOOKUP($AN100&$AO100,slownik_JST!$B:$J,9,0) -> Powiat nie będący miastem na pr. powiatu | AS100: KUJAWSKO-POMORSKIE | AT100: nakielski | AU100: Kcynia | AV100: Gmina | AW100: =VLOOKUP(P100,listy_plac!$M$2:$N$52,2,0) -> Zasadnicza szkoła zawodowa | AX100: =VLOOKUP(R100,listy_plac!$Z$27:$AA$32,2,0) -> Szkoła lub placówka w ramach jednostki złożonej | AY100: =VLOOKUP(S100,listy_plac!$Z$2:$AA$5,2,0) -> publiczna | AZ100: =VLOOKUP(T100,listy_plac!$Z$8:$AA$10,2,0) -> Dzieci lub młodzież | BA100: =VLOOKUP(U100,listy_plac!$Z$13:$AA$15,2,0) -> brak specyfiki | BB100: =VLOOKUP(Y100,listy_plac!$Z$18:$AA$24,2,0) -> dzienna | BC100: Zasadnicza Szkoła Zawodowa w Kcyni | BD100: Kcynia | BE100: Emila Jurczyka | BF100: 3 | BG100: 89-240 | BH100: Kcynia | BI100: 67 | BJ100: 63 | BK100: =VLOOKUP(AM100,wsk_doch!B:D,3,0) -> 939.72
A101: 110315 | C101: 0411 | D101: 04 | E101: 11 | G101: KUJAWSKO-POMORSKIE | H101: radziejowski | K101: 0003 | L101: Powiat ziemski | M101: 04 | N101: 11 | P101: 00013 | Q101: 2 | R101: 002 | S101: 001 | T101: 001 | U101: 100 | V101: 0003 | W101: 0100 | Y101: 001 | Z101: 01 | AA101: Zasadnicza Szkoła Zawodowa | AB101: 91095215300000 | AC101: 04 | AD101: 11 | AE101: 01 | AF101: Radziejów | AG101: Kościuszki | AH101: 58 | AI101: 88-200 | AJ101: Radziejów | AK101: 180 | AL101: 69 | AM101: 0411 | AN101: 04 | AO101: 11 | AQ101: =IF(LEN($AM101)=6,VLOOKUP($AM101,slownik_JST!$B:$J,9,0),"") ->  | AR101: =VLOOKUP($AN101&$AO101,slownik_JST!$B:$J,9,0) -> Powiat nie będący miastem na pr. powiatu | AS101: KUJAWSKO-POMORSKIE | AT101: radziejowski | AV101: Powiat ziemski | AW101: =VLOOKUP(P101,listy_plac!$M$2:$N$52,2,0) -> Zasadnicza szkoła zawodowa | AX101: =VLOOKUP(R101,listy_plac!$Z$27:$AA$32,2,0) -> Szkoła lub placówka w ramach jednostki złożonej | AY101: =VLOOKUP(S101,listy_plac!$Z$2:$AA$5,2,0) -> publiczna | AZ101: =VLOOKUP(T101,listy_plac!$Z$8:$AA$10,2,0) -> Dzieci lub młodzież | BA101: =VLOOKUP(U101,listy_plac!$Z$13:$AA$15,2,0) -> brak specyfiki | BB101: =VLOOKUP(Y101,listy_plac!$Z$18:$AA$24,2,0) -> dzienna | BC101: Zasadnicza Szkoła Zawodowa | BD101: Radziejów | BE101: Kościuszki | BF101: 58 | BG101: 88-200 | BH101: Radziejów | BI101: 180 | BJ101: 69 | BK101: =VLOOKUP(AM101,wsk_doch!B:D,3,0) -> 110.48
A102: 80974 | C102: 0412 | D102: 04 | E102: 12 | G102: KUJAWSKO-POMORSKIE | H102: rypiński | K102: 0003 | L102: Powiat ziemski | M102: 04 | N102: 12 | P102: 00013 | Q102: 2 | R102: 002 | S102: 001 | T102: 001 | U102: 100 | V102: 0003 | W102: 0100 | Y102: 001 | Z102: 01 | AA102: Zasadnicza Szkoła Zawodowa | AB102: 91130504200000 | AC102: 04 | AD102: 12 | AE102: 01 | AF102: Rypin | AG102: Dworcowa | AH102: 11 | AI102: 87-500 | AJ102: Rypin | AK102: 285 | AL102: 285 | AM102: 0412 | AN102: 04 | AO102: 12 | AQ102: =IF(LEN($AM102)=6,VLOOKUP($AM102,slownik_JST!$B:$J,9,0),"") ->  | AR102: =VLOOKUP($AN102&$AO102,slownik_JST!$B:$J,9,0) -> Powiat nie będący miastem na pr. powiatu | AS102: KUJAWSKO-POMORSKIE | AT102: rypiński | AV102: Powiat ziemski | AW102: =VLOOKUP(P102,listy_plac!$M$2:$N$52,2,0) -> Zasadnicza szkoła zawodowa | AX102: =VLOOKUP(R102,listy_plac!$Z$27:$AA$32,2,0) -> Szkoła lub placówka w ramach jednostki złożonej | AY102: =VLOOKUP(S102,listy_plac!$Z$2:$AA$5,2,0) -> publiczna | AZ102: =VLOOKUP(T102,listy_plac!$Z$8:$AA$10,2,0) -> Dzieci lub młodzież | BA102: =VLOOKUP(U102,listy_plac!$Z$13:$AA$15,2,0) -> brak specyfiki | BB102: =VLOOKUP(Y102,listy_plac!$Z$18:$AA$24,2,0) -> dzienna | BC102: Zasadnicza Szkoła Zawodowa | BD102: Rypin | BE102: Dworcowa | BF102: 11 | BG102: 87-500 | BH102: Rypin | BI102: 285 | BJ102: 285 | BK102: =VLOOKUP(AM102,wsk_doch!B:D,3,0) -> 120.17
A103: 81145 | C103: 0412 | D103: 04 | E103: 12 | G103: KUJAWSKO-POMORSKIE | H103: rypiński | K103: 0003 | L103: Powiat ziemski | M103: 04 | N103: 12 | P103: 00013 | Q103: 2 | R103: 002 | S103: 001 | T103: 001 | U103: 001 | V103: 0003 | W103: 0100 | X103: 005 | Y103: 001 | Z103: 01 | AA103: Zasadnicza Szkoła Zawodowa w Zespole Szkół Nr 5 im. ks. Jana Twardowskiego | AB103: 91133543900000 | AC103: 04 | AD103: 12 | AE103: 01 | AF103: Rypin | AG103: MŁYŃSKA | AH103: 12 | AI103: 87-500 | AJ103: RYPIN | AK103: 30 | AL103: 12 | AM103: 0412 | AN103: 04 | AO103: 12 | AQ103: =IF(LEN($AM103)=6,VLOOKUP($AM103,slownik_JST!$B:$J,9,0),"") ->  | AR103: =VLOOKUP($AN103&$AO103,slownik_JST!$B:$J,9,0) -> Powiat nie będący miastem na pr. powiatu | AS103: KUJAWSKO-POMORSKIE | AT103: rypiński | AV103: Powiat ziemski | AW103: =VLOOKUP(P103,listy_plac!$M$2:$N$52,2,0) -> Zasadnicza szkoła zawodowa | AX103: =VLOOKUP(R103,listy_plac!$Z$27:$AA$32,2,0) -> Szkoła lub placówka w ramach jednostki złożonej | AY103: =VLOOKUP(S103,listy_plac!$Z$2:$AA$5,2,0) -> publiczna | AZ103: =VLOOKUP(T103,listy_plac!$Z$8:$AA$10,2,0) -> Dzieci lub młodzież | BA103: =VLOOKUP(U103,listy_plac!$Z$13:$AA$15,2,0) -> specjalna | BB103: =VLOOKUP(Y103,listy_plac!$Z$18:$AA$24,2,0) -> dzienna | BC103: Zasadnicza Szkoła Zawodowa w Zespole Szkół Nr 5 im. ks. Jana Twardowskiego | BD103: Rypin | BE103: MŁYŃSKA | BF103: 12 | BG103: 87-500 | BH103: RYPIN | BI103: 30 | BJ103: 12 | BK103: =VLOOKUP(AM103,wsk_doch!B:D,3,0) -> 120.17
A104: 17536 | C104: 0413 | D104: 04 | E104: 13 | G104: KUJAWSKO-POMORSKIE | H104: sępoleński | K104: 0003 | L104: Powiat ziemski | M104: 04 | N104: 13 | P104: 00013 | Q104: 2 | R104: 002 | S104: 001 | T104: 001 | U104: 100 | V104: 0003 | W104: 0100 | Y104: 001 | Z104: 01 | AA104: Zasadnicza Szkoła Zawodowa | AB104: 09304469200000 | AC104: 04 | AD104: 13 | AE104: 04 | AF104: Więcbork | AG104: Pocztowa | AH104: 14 b | AI104: 89-410 | AJ104: Więcbork | AK104: 110 | AL104: 110 | AM104: 0413 | AN104: 04 | AO104: 13 | AQ104: =IF(LEN($AM104)=6,VLOOKUP($AM104,slownik_JST!$B:$J,9,0),"") ->  | AR104: =VLOOKUP($AN104&$AO104,slownik_JST!$B:$J,9,0) -> Powiat nie będący miastem na pr. powiatu | AS104: KUJAWSKO-POMORSKIE | AT104: sępoleński | AV104: Powiat ziemski | AW104: =VLOOKUP(P104,listy_plac!$M$2:$N$52,2,0) -> Zasadnicza szkoła zawodowa | AX104: =VLOOKUP(R104,listy_plac!$Z$27:$AA$32,2,0) -> Szkoła lub placówka w ramach jednostki złożonej | AY104: =VLOOKUP(S104,listy_plac!$Z$2:$AA$5,2,0) -> publiczna | AZ104: =VLOOKUP(T104,listy_plac!$Z$8:$AA$10,2,0) -> Dzieci lub młodzież | BA104: =VLOOKUP(U104,listy_plac!$Z$13:$AA$15,2,0) -> brak specyfiki | BB104: =VLOOKUP(Y104,listy_plac!$Z$18:$AA$24,2,0) -> dzienna | BC104: Zasadnicza Szkoła Zawodowa | BD104: Więcbork | BE104: Pocztowa | BF104: 14 b | BG104: 89-410 | BH104: Więcbork | BI104: 110 | BJ104: 110 | BK104: =VLOOKUP(AM104,wsk_doch!B:D,3,0) -> 107.22
A105: 10968 | C105: 0413 | D105: 04 | E105: 13 | G105: KUJAWSKO-POMORSKIE | H105: sępoleński | K105: 0003 | L105: Powiat ziemski | M105: 04 | N105: 13 | P105: 00013 | Q105: 3 | R105: 002 | S105: 001 | T105: 001 | U105: 100 | V105: 0003 | W105: 0100 | Y105: 001 | Z105: 01 | AA105: Zasadnicza Szkoła Zawodowa | AB105: 09297244400000 | AC105: 04 | AD105: 13 | AE105: 04 | AF105: Sypniewo | AG105: Kwiatowa | AH105: 3 | AI105: 89-422 | AJ105: Sypniewo | AK105: 64 | AL105: 14 | AM105: 0413 | AN105: 04 | AO105: 13 | AQ105: =IF(LEN($AM105)=6,VLOOKUP($AM105,slownik_JST!$B:$J,9,0),"") ->  | AR105: =VLOOKUP($AN105&$AO105,slownik_JST!$B:$J,9,0) -> Powiat nie będący miastem na pr. powiatu | AS105: KUJAWSKO-POMORSKIE | AT105: sępoleński | AV105: Powiat ziemski | AW105: =VLOOKUP(P105,listy_plac!$M$2:$N$52,2,0) -> Zasadnicza szkoła zawodowa | AX105: =VLOOKUP(R105,listy_plac!$Z$27:$AA$32,2,0) -> Szkoła lub placówka w ramach jednostki złożonej | AY105: =VLOOKUP(S105,listy_plac!$Z$2:$AA$5,2,0) -> publiczna | AZ105: =VLOOKUP(T105,listy_plac!$Z$8:$AA$10,2,0) -> Dzieci lub młodzież | BA105: =VLOOKUP(U105,listy_plac!$Z$13:$AA$15,2,0) -> brak specyfiki | BB105: =VLOOKUP(Y105,listy_plac!$Z$18:$AA$24,2,0) -> dzienna | BC105: Zasadnicza Szkoła Zawodowa | BD105: Sypniewo | BE105: Kwiatowa | BF105: 3 | BG105: 89-422 | BH105: Sypniewo | BI105: 64 | BJ105: 14 | BK105: =VLOOKUP(AM105,wsk_doch!B:D,3,0) -> 107.22
A106: 25661 | C106: 0413 | D106: 04 | E106: 13 | G106: KUJAWSKO-POMORSKIE | H106: sępoleński | K106: 0003 | L106: Powiat ziemski | M106: 04 | N106: 13 | P106: 00013 | Q106: 2 | R106: 002 | S106: 001 | T106: 001 | U106: 100 | V106: 0003 | W106: 0100 | Y106: 001 | Z106: 01 | AA106: Zasadnicza Szkoła Zawodowa | AB106: 09304632000000 | AC106: 04 | AD106: 13 | AE106: 02 | AF106: Sępólno Krajeńskie | AG106: Przemysłowa | AH106: 15 | AI106: 89-400 | AJ106: Sępólno Krajeńskie | AK106: 189 | AL106: 189 | AM106: 0413 | AN106: 04 | AO106: 13 | AQ106: =IF(LEN($AM106)=6,VLOOKUP($AM106,slownik_JST!$B:$J,9,0),"") ->  | AR106: =VLOOKUP($AN106&$AO106,slownik_JST!$B:$J,9,0) -> Powiat nie będący miastem na pr. powiatu | AS106: KUJAWSKO-POMORSKIE | AT106: sępoleński | AV106: Powiat ziemski | AW106: =VLOOKUP(P106,listy_plac!$M$2:$N$52,2,0) -> Zasadnicza szkoła zawodowa | AX106: =VLOOKUP(R106,listy_plac!$Z$27:$AA$32,2,0) -> Szkoła lub placówka w ramach jednostki złożonej | AY106: =VLOOKUP(S106,listy_plac!$Z$2:$AA$5,2,0) -> publiczna | AZ106: =VLOOKUP(T106,listy_plac!$Z$8:$AA$10,2,0) -> Dzieci lub młodzież | BA106: =VLOOKUP(U106,listy_plac!$Z$13:$AA$15,2,0) -> brak specyfiki | BB106: =VLOOKUP(Y106,listy_plac!$Z$18:$AA$24,2,0) -> dzienna | BC106: Zasadnicza Szkoła Zawodowa | BD106: Sępólno Krajeńskie | BE106: Przemysłowa | BF106: 15 | BG106: 89-400 | BH106: Sępólno Krajeńskie | BI106: 189 | BJ106: 189 | BK106: =VLOOKUP(AM106,wsk_doch!B:D,3,0) -> 107.22
A107: 109710 | C107: 0414 | D107: 04 | E107: 14 | G107: KUJAWSKO-POMORSKIE | H107: świecki | K107: 0003 | L107: Powiat ziemski | M107: 04 | N107: 14 | P107: 00013 | Q107: 3 | R107: 002 | S107: 001 | T107: 001 | U107: 001 | V107: 0003 | W107: 0011 | X107: 005 | Y107: 001 | Z107: 01 | AA107: Zasadnicza Szkoła Zawodowa Specjalna | AB107: 34139351500000 | AC107: 04 | AD107: 14 | AE107: 11 | AF107: Warlubie | AG107: Szkolna | AH107: 8 | AI107: 86-160 | AJ107: Warlubie | AK107: 17 | AL107: 17 | AM107: 0414 | AN107: 04 | AO107: 14 | AQ107: =IF(LEN($AM107)=6,VLOOKUP($AM107,slownik_JST!$B:$J,9,0),"") ->  | AR107: =VLOOKUP($AN107&$AO107,slownik_JST!$B:$J,9,0) -> Powiat nie będący miastem na pr. powiatu | AS107: KUJAWSKO-POMORSKIE | AT107: świecki | AV107: Powiat ziemski | AW107: =VLOOKUP(P107,listy_plac!$M$2:$N$52,2,0) -> Zasadnicza szkoła zawodowa | AX107: =VLOOKUP(R107,listy_plac!$Z$27:$AA$32,2,0) -> Szkoła lub placówka w ramach jednostki złożonej | AY107: =VLOOKUP(S107,listy_plac!$Z$2:$AA$5,2,0) -> publiczna | AZ107: =VLOOKUP(T107,listy_plac!$Z$8:$AA$10,2,0) -> Dzieci lub młodzież | BA107: =VLOOKUP(U107,listy_plac!$Z$13:$AA$15,2,0) -> specjalna | BB107: =VLOOKUP(Y107,listy_plac!$Z$18:$AA$24,2,0) -> dzienna | BC107: Zasadnicza Szkoła Zawodowa Specjalna | BD107: Warlubie | BE107: Szkolna | BF107: 8 | BG107: 86-160 | BH107: Warlubie | BI107: 17 | BJ107: 17 | BK107: =VLOOKUP(AM107,wsk_doch!B:D,3,0) -> 163.96
A108: 54361 | C108: 0414 | D108: 04 | E108: 14 | G108: KUJAWSKO-POMORSKIE | H108: świecki | K108: 0003 | L108: Powiat ziemski | M108: 04 | N108: 14 | P108: 00013 | Q108: 2 | R108: 002 | S108: 001 | T108: 001 | U108: 100 | V108: 0003 | W108: 0100 | Y108: 001 | Z108: 01 | AA108: Zasadnicza Szkoła Zawodowa | AB108: 09303373100000 | AC108: 04 | AD108: 14 | AE108: 06 | AF108: Nowe | AG108: Myśliwska | AH108: 1 | AI108: 86-170 | AJ108: Nowe | AK108: 96 | AL108: 96 | AM108: 0414 | AN108: 04 | AO108: 14 | AQ108: =IF(LEN($AM108)=6,VLOOKUP($AM108,slownik_JST!$B:$J,9,0),"") ->  | AR108: =VLOOKUP($AN108&$AO108,slownik_JST!$B:$J,9,0) -> Powiat nie będący miastem na pr. powiatu | AS108: KUJAWSKO-POMORSKIE | AT108: świecki | AV108: Powiat ziemski | AW108: =VLOOKUP(P108,listy_plac!$M$2:$N$52,2,0) -> Zasadnicza szkoła zawodowa | AX108: =VLOOKUP(R108,listy_plac!$Z$27:$AA$32,2,0) -> Szkoła lub placówka w ramach jednostki złożonej | AY108: =VLOOKUP(S108,listy_plac!$Z$2:$AA$5,2,0) -> publiczna | AZ108: =VLOOKUP(T108,listy_plac!$Z$8:$AA$10,2,0) -> Dzieci lub młodzież | BA108: =VLOOKUP(U108,listy_plac!$Z$13:$AA$15,2,0) -> brak specyfiki | BB108: =VLOOKUP(Y108,listy_plac!$Z$18:$AA$24,2,0) -> dzienna | BC108: Zasadnicza Szkoła Zawodowa | BD108: Nowe | BE108: Myśliwska | BF108: 1 | BG108: 86-170 | BH108: Nowe | BI108: 96 | BJ108: 96 | BK108: =VLOOKUP(AM108,wsk_doch!B:D,3,0) -> 163.96
A109: 53812 | C109: 0414 | D109: 04 | E109: 14 | G109: KUJAWSKO-POMORSKIE | H109: świecki | K109: 0003 | L109: Powiat ziemski | M109: 04 | N109: 14 | P109: 00013 | Q109: 2 | R109: 002 | S109: 001 | T109: 001 | U109: 001 | V109: 0003 | W109: 0100 | X109: 005 | Y109: 001 | Z109: 01 | AA109: Zasadnicza Szkoła Zawodowa Specjalna Nr 2 dla Uczniów Upośledzonych Umysłowo | AB109: 09253065700000 | AC109: 04 | AD109: 14 | AE109: 09 | AF109: Świecie | AG109: Paderewskiego | AH109: 5a | AI109: 86-105 | AJ109: Świecie | AK109: 24 | AL109: 24 | AM109: 0414 | AN109: 04 | AO109: 14 | AQ109: =IF(LEN($AM109)=6,VLOOKUP($AM109,slownik_JST!$B:$J,9,0),"") ->  | AR109: =VLOOKUP($AN109&$AO109,slownik_JST!$B:$J,9,0) -> Powiat nie będący miastem na pr. powiatu | AS109: KUJAWSKO-POMORSKIE | AT109: świecki | AV109: Powiat ziemski | AW109: =VLOOKUP(P109,listy_plac!$M$2:$N$52,2,0) -> Zasadnicza szkoła zawodowa | AX109: =VLOOKUP(R109,listy_plac!$Z$27:$AA$32,2,0) -> Szkoła lub placówka w ramach jednostki złożonej | AY109: =VLOOKUP(S109,listy_plac!$Z$2:$AA$5,2,0) -> publiczna | AZ109: =VLOOKUP(T109,listy_plac!$Z$8:$AA$10,2,0) -> Dzieci lub młodzież | BA109: =VLOOKUP(U109,listy_plac!$Z$13:$AA$15,2,0) -> specjalna | BB109: =VLOOKUP(Y109,listy_plac!$Z$18:$AA$24,2,0) -> dzienna | BC109: Zasadnicza Szkoła Zawodowa Specjalna Nr 2 dla Uczniów Upośledzonych Umysłowo | BD109: Świecie | BE109: Paderewskiego | BF109: 5a | BG109: 86-105 | BH109: Świecie | BI109: 24 | BJ109: 24 | BK109: =VLOOKUP(AM109,wsk_doch!B:D,3,0) -> 163.96
A110: 44535 | C110: 0414 | D110: 04 | E110: 14 | G110: KUJAWSKO-POMORSKIE | H110: świecki | K110: 0003 | L110: Powiat ziemski | M110: 04 | N110: 14 | P110: 00013 | Q110: 2 | R110: 002 | S110: 001 | T110: 001 | U110: 100 | V110: 0003 | W110: 0100 | Y110: 001 | Z110: 01 | AA110: Zasadnicza Szkoła Zawodowa Nr 1 | AB110: 09303570100000 | AC110: 04 | AD110: 14 | AE110: 09 | AF110: Świecie | AG110: KOŚCIUSZKI | AH110: 6A | AI110: 86-100 | AJ110: ŚWIECIE | AK110: 360 | AL110: 323 | AM110: 0414 | AN110: 04 | AO110: 14 | AQ110: =IF(LEN($AM110)=6,VLOOKUP($AM110,slownik_JST!$B:$J,9,0),"") ->  | AR110: =VLOOKUP($AN110&$AO110,slownik_JST!$B:$J,9,0) -> Powiat nie będący miastem na pr. powiatu | AS110: KUJAWSKO-POMORSKIE | AT110: świecki | AV110: Powiat ziemski | AW110: =VLOOKUP(P110,listy_plac!$M$2:$N$52,2,0) -> Zasadnicza szkoła zawodowa | AX110: =VLOOKUP(R110,listy_plac!$Z$27:$AA$32,2,0) -> Szkoła lub placówka w ramach jednostki złożonej | AY110: =VLOOKUP(S110,listy_plac!$Z$2:$AA$5,2,0) -> publiczna | AZ110: =VLOOKUP(T110,listy_plac!$Z$8:$AA$10,2,0) -> Dzieci lub młodzież | BA110: =VLOOKUP(U110,listy_plac!$Z$13:$AA$15,2,0) -> brak specyfiki | BB110: =VLOOKUP(Y110,listy_plac!$Z$18:$AA$24,2,0) -> dzienna | BC110: Zasadnicza Szkoła Zawodowa Nr 1 | BD110: Świecie | BE110: KOŚCIUSZKI | BF110: 6A | BG110: 86-100 | BH110: ŚWIECIE | BI110: 360 | BJ110: 323 | BK110: =VLOOKUP(AM110,wsk_doch!B:D,3,0) -> 163.96
A111: 18973 | C111: 0415 | D111: 04 | E111: 15 | G111: KUJAWSKO-POMORSKIE | H111: toruński | K111: 0003 | L111: Powiat ziemski | M111: 04 | N111: 15 | P111: 00013 | Q111: 3 | R111: 002 | S111: 001 | T111: 001 | U111: 100 | V111: 0003 | W111: 0100 | Y111: 001 | Z111: 01 | AA111: Zasadnicza Szkoła Zawodowa w Gronowie | AB111: 87163350600000 | AC111: 04 | AD111: 15 | AE111: 04 | AF111: Gronowo | AG111: Gronowo | AH111: 128 | AI111: 87-162 | AJ111: Lubicz | AK111: 114 | AL111: 39 | AM111: 0415 | AN111: 04 | AO111: 15 | AQ111: =IF(LEN($AM111)=6,VLOOKUP($AM111,slownik_JST!$B:$J,9,0),"") ->  | AR111: =VLOOKUP($AN111&$AO111,slownik_JST!$B:$J,9,0) -> Powiat nie będący miastem na pr. powiatu | AS111: KUJAWSKO-POMORSKIE | AT111: toruński | AV111: Powiat ziemski | AW111: =VLOOKUP(P111,listy_plac!$M$2:$N$52,2,0) -> Zasadnicza szkoła zawodowa | AX111: =VLOOKUP(R111,listy_plac!$Z$27:$AA$32,2,0) -> Szkoła lub placówka w ramach jednostki złożonej | AY111: =VLOOKUP(S111,listy_plac!$Z$2:$AA$5,2,0) -> publiczna | AZ111: =VLOOKUP(T111,listy_plac!$Z$8:$AA$10,2,0) -> Dzieci lub młodzież | BA111: =VLOOKUP(U111,listy_plac!$Z$13:$AA$15,2,0) -> brak specyfiki | BB111: =VLOOKUP(Y111,listy_plac!$Z$18:$AA$24,2,0) -> dzienna | BC111: Zasadnicza Szkoła Zawodowa w Gronowie | BD111: Gronowo | BE111: Gronowo | BF111: 128 | BG111: 87-162 | BH111: Lubicz | BI111: 114 | BJ111: 39 | BK111: =VLOOKUP(AM111,wsk_doch!B:D,3,0) -> 159.94
A112: 31058 | C112: 0415 | D112: 04 | E112: 15 | G112: KUJAWSKO-POMORSKIE | H112: toruński | K112: 0003 | L112: Powiat ziemski | M112: 04 | N112: 15 | P112: 00013 | Q112: 2 | R112: 002 | S112: 001 | T112: 001 | U112: 100 | V112: 0003 | W112: 0100 | Y112: 001 | Z112: 01 | AA112: Zasadnicza Szkoła Zawodowa nr 1 w Chełmży | AB112: 00107011000000 | AC112: 04 | AD112: 15 | AE112: 01 | AF112: Chełmża | AG112: Hallera | AH112: 23 | AI112: 87-140 | AJ112: Chełmża | AK112: 93 | AL112: 82 | AM112: 0415 | AN112: 04 | AO112: 15 | AQ112: =IF(LEN($AM112)=6,VLOOKUP($AM112,slownik_JST!$B:$J,9,0),"") ->  | AR112: =VLOOKUP($AN112&$AO112,slownik_JST!$B:$J,9,0) -> Powiat nie będący miastem na pr. powiatu | AS112: KUJAWSKO-POMORSKIE | AT112: toruński | AV112: Powiat ziemski | AW112: =VLOOKUP(P112,listy_plac!$M$2:$N$52,2,0) -> Zasadnicza szkoła zawodowa | AX112: =VLOOKUP(R112,listy_plac!$Z$27:$AA$32,2,0) -> Szkoła lub placówka w ramach jednostki złożonej | AY112: =VLOOKUP(S112,listy_plac!$Z$2:$AA$5,2,0) -> publiczna | AZ112: =VLOOKUP(T112,listy_plac!$Z$8:$AA$10,2,0) -> Dzieci lub młodzież | BA112: =VLOOKUP(U112,listy_plac!$Z$13:$AA$15,2,0) -> brak specyfiki | BB112: =VLOOKUP(Y112,listy_plac!$Z$18:$AA$24,2,0) -> dzienna | BC112: Zasadnicza Szkoła Zawodowa nr 1 w Chełmży | BD112: Chełmża | BE112: Hallera | BF112: 23 | BG112: 87-140 | BH112: Chełmża | BI112: 93 | BJ112: 82 | BK112: =VLOOKUP(AM112,wsk_doch!B:D,3,0) -> 159.94
A113: 74784 | C113: 0416 | D113: 04 | E113: 16 | G113: KUJAWSKO-POMORSKIE | H113: tucholski | K113: 0003 | L113: Powiat ziemski | M113: 04 | N113: 16 | P113: 00013 | Q113: 3 | R113: 001 | S113: 001 | T113: 001 | U113: 100 | V113: 0003 | W113: 0100 | Y113: 001 | Z113: 01 | AA113: Zespół Szkół Ponadgimnazjalnych Zasadnicza Szkoła Zawodowa w Śliwicach | AB113: 34015683600000 | AC113: 04 | AD113: 16 | AE113: 05 | AF113: Śliwice | AG113: Szkolna | AH113: 9 | AI113: 89-530 | AJ113: ŚLIWICE | AK113: 61 | AL113: 61 | AM113: 0416 | AN113: 04 | AO113: 16 | AQ113: =IF(LEN($AM113)=6,VLOOKUP($AM113,slownik_JST!$B:$J,9,0),"") ->  | AR113: =VLOOKUP($AN113&$AO113,slownik_JST!$B:$J,9,0) -> Powiat nie będący miastem na pr. powiatu | AS113: KUJAWSKO-POMORSKIE | AT113: tucholski | AV113: Powiat ziemski | AW113: =VLOOKUP(P113,listy_plac!$M$2:$N$52,2,0) -> Zasadnicza szkoła zawodowa | AX113: =VLOOKUP(R113,listy_plac!$Z$27:$AA$32,2,0) -> Dane własne | AY113: =VLOOKUP(S113,listy_plac!$Z$2:$AA$5,2,0) -> publiczna | AZ113: =VLOOKUP(T113,listy_plac!$Z$8:$AA$10,2,0) -> Dzieci lub młodzież | BA113: =VLOOKUP(U113,listy_plac!$Z$13:$AA$15,2,0) -> brak specyfiki | BB113: =VLOOKUP(Y113,listy_plac!$Z$18:$AA$24,2,0) -> dzienna | BC113: Zespół Szkół Ponadgimnazjalnych Zasadnicza Szkoła Zawodowa w Śliwicach | BD113: Śliwice | BE113: Szkolna | BF113: 9 | BG113: 89-530 | BH113: ŚLIWICE | BI113: 61 | BJ113: 61 | BK113: =VLOOKUP(AM113,wsk_doch!B:D,3,0) -> 114.29
A114: 47786 | C114: 0416 | D114: 04 | E114: 16 | G114: KUJAWSKO-POMORSKIE | H114: tucholski | K114: 0003 | L114: Powiat ziemski | M114: 04 | N114: 16 | P114: 00013 | Q114: 2 | R114: 002 | S114: 001 | T114: 001 | U114: 100 | V114: 0003 | W114: 0100 | Y114: 001 | Z114: 01 | AA114: ZSZ-wielozawodowa | AB114: 09257127700000 | AC114: 04 | AD114: 16 | AE114: 06 | AF114: Tuchola | AG114: Nowodworskiego | AH114: 9-13 | AI114: 89-500 | AJ114: Tuchola | AK114: 97 | AL114: 97 | AM114: 0416 | AN114: 04 | AO114: 16 | AQ114: =IF(LEN($AM114)=6,VLOOKUP($AM114,slownik_JST!$B:$J,9,0),"") ->  | AR114: =VLOOKUP($AN114&$AO114,slownik_JST!$B:$J,9,0) -> Powiat nie będący miastem na pr. powiatu | AS114: KUJAWSKO-POMORSKIE | AT114: tucholski | AV114: Powiat ziemski | AW114: =VLOOKUP(P114,listy_plac!$M$2:$N$52,2,0) -> Zasadnicza szkoła zawodowa | AX114: =VLOOKUP(R114,listy_plac!$Z$27:$AA$32,2,0) -> Szkoła lub placówka w ramach jednostki złożonej | AY114: =VLOOKUP(S114,listy_plac!$Z$2:$AA$5,2,0) -> publiczna | AZ114: =VLOOKUP(T114,listy_plac!$Z$8:$AA$10,2,0) -> Dzieci lub młodzież | BA114: =VLOOKUP(U114,listy_plac!$Z$13:$AA$15,2,0) -> brak specyfiki | BB114: =VLOOKUP(Y114,listy_plac!$Z$18:$AA$24,2,0) -> dzienna | BC114: ZSZ-wielozawodowa | BD114: Tuchola | BE114: Nowodworskiego | BF114: 9-13 | BG114: 89-500 | BH114: Tuchola | BI114: 97 | BJ114: 97 | BK114: =VLOOKUP(AM114,wsk_doch!B:D,3,0) -> 114.29
A115: 52485 | C115: 0416 | D115: 04 | E115: 16 | G115: KUJAWSKO-POMORSKIE | H115: tucholski | K115: 0003 | L115: Powiat ziemski | M115: 04 | N115: 16 | P115: 00013 | Q115: 2 | R115: 002 | S115: 001 | T115: 001 | U115: 001 | V115: 0003 | W115: 0011 | X115: 005 | Y115: 001 | Z115: 01 | AA115: ZASADNICZA SZKOŁA ZAWODOWA SPECJALNA | AB115: 09319211600000 | AC115: 04 | AD115: 16 | AE115: 06 | AF115: Tuchola | AG115: PIASTOWSKA | AH115: 30 | AI115: 89-501 | AJ115: TUCHOLA | AK115: 24 | AL115: 3 | AM115: 0416 | AN115: 04 | AO115: 16 | AQ115: =IF(LEN($AM115)=6,VLOOKUP($AM115,slownik_JST!$B:$J,9,0),"") ->  | AR115: =VLOOKUP($AN115&$AO115,slownik_JST!$B:$J,9,0) -> Powiat nie będący miastem na pr. powiatu | AS115: KUJAWSKO-POMORSKIE | AT115: tucholski | AV115: Powiat ziemski | AW115: =VLOOKUP(P115,listy_plac!$M$2:$N$52,2,0) -> Zasadnicza szkoła zawodowa | AX115: =VLOOKUP(R115,listy_plac!$Z$27:$AA$32,2,0) -> Szkoła lub placówka w ramach jednostki złożonej | AY115: =VLOOKUP(S115,listy_plac!$Z$2:$AA$5,2,0) -> publiczna | AZ115: =VLOOKUP(T115,listy_plac!$Z$8:$AA$10,2,0) -> Dzieci lub młodzież | BA115: =VLOOKUP(U115,listy_plac!$Z$13:$AA$15,2,0) -> specjalna | BB115: =VLOOKUP(Y115,listy_plac!$Z$18:$AA$24,2,0) -> dzienna | BC115: ZASADNICZA SZKOŁA ZAWODOWA SPECJALNA | BD115: Tuchola | BE115: PIASTOWSKA | BF115: 30 | BG115: 89-501 | BH115: TUCHOLA | BI115: 24 | BJ115: 3 | BK115: =VLOOKUP(AM115,wsk_doch!B:D,3,0) -> 114.29
A116: 54234 | C116: 0416 | D116: 04 | E116: 16 | G116: KUJAWSKO-POMORSKIE | H116: tucholski | K116: 0003 | L116: Powiat ziemski | M116: 04 | N116: 16 | P116: 00013 | Q116: 2 | R116: 002 | S116: 001 | T116: 001 | U116: 100 | V116: 0003 | W116: 0100 | Y116: 001 | Z116: 01 | AA116: Zasadnicza Szkoła Zawodowa | AB116: 09315450600000 | AC116: 04 | AD116: 16 | AE116: 06 | AF116: Tuchola | AG116: Świecka | AH116: 89 a | AI116: 89-500 | AJ116: Tuchola | AK116: 196 | AL116: 113 | AM116: 0416 | AN116: 04 | AO116: 16 | AQ116: =IF(LEN($AM116)=6,VLOOKUP($AM116,slownik_JST!$B:$J,9,0),"") ->  | AR116: =VLOOKUP($AN116&$AO116,slownik_JST!$B:$J,9,0) -> Powiat nie będący miastem na pr. powiatu | AS116: KUJAWSKO-POMORSKIE | AT116: tucholski | AV116: Powiat ziemski | AW116: =VLOOKUP(P116,listy_plac!$M$2:$N$52,2,0) -> Zasadnicza szkoła zawodowa | AX116: =VLOOKUP(R116,listy_plac!$Z$27:$AA$32,2,0) -> Szkoła lub placówka w ramach jednostki złożonej | AY116: =VLOOKUP(S116,listy_plac!$Z$2:$AA$5,2,0) -> publiczna | AZ116: =VLOOKUP(T116,listy_plac!$Z$8:$AA$10,2,0) -> Dzieci lub młodzież | BA116: =VLOOKUP(U116,listy_plac!$Z$13:$AA$15,2,0) -> brak specyfiki | BB116: =VLOOKUP(Y116,listy_plac!$Z$18:$AA$24,2,0) -> dzienna | BC116: Zasadnicza Szkoła Zawodowa | BD116: Tuchola | BE116: Świecka | BF116: 89 a | BG116: 89-500 | BH116: Tuchola | BI116: 196 | BJ116: 113 | BK116: =VLOOKUP(AM116,wsk_doch!B:D,3,0) -> 114.29
A117: 61301 | C117: 0417 | D117: 04 | E117: 17 | G117: KUJAWSKO-POMORSKIE | H117: wąbrzeski | K117: 0003 | L117: Powiat ziemski | M117: 04 | N117: 17 | P117: 00013 | Q117: 2 | R117: 002 | S117: 001 | T117: 001 | U117: 100 | V117: 0003 | W117: 0100 | Y117: 001 | Z117: 01 | AA117: Zasadnicza Szkoła Zawodowa | AB117: 87166874600000 | AC117: 04 | AD117: 17 | AE117: 01 | AF117: Wąbrzeźno | AG117: Żeromskiego | AH117: 6 | AI117: 87-200 | AJ117: Wąbrzeźno | AK117: 194 | AL117: 178 | AM117: 0417 | AN117: 04 | AO117: 17 | AQ117: =IF(LEN($AM117)=6,VLOOKUP($AM117,slownik_JST!$B:$J,9,0),"") ->  | AR117: =VLOOKUP($AN117&$AO117,slownik_JST!$B:$J,9,0) -> Powiat nie będący miastem na pr. powiatu | AS117: KUJAWSKO-POMORSKIE | AT117: wąbrzeski | AV117: Powiat ziemski | AW117: =VLOOKUP(P117,listy_plac!$M$2:$N$52,2,0) -> Zasadnicza szkoła zawodowa | AX117: =VLOOKUP(R117,listy_plac!$Z$27:$AA$32,2,0) -> Szkoła lub placówka w ramach jednostki złożonej | AY117: =VLOOKUP(S117,listy_plac!$Z$2:$AA$5,2,0) -> publiczna | AZ117: =VLOOKUP(T117,listy_plac!$Z$8:$AA$10,2,0) -> Dzieci lub młodzież | BA117: =VLOOKUP(U117,listy_plac!$Z$13:$AA$15,2,0) -> brak specyfiki | BB117: =VLOOKUP(Y117,listy_plac!$Z$18:$AA$24,2,0) -> dzienna | BC117: Zasadnicza Szkoła Zawodowa | BD117: Wąbrzeźno | BE117: Żeromskiego | BF117: 6 | BG117: 87-200 | BH117: Wąbrzeźno | BI117: 194 | BJ117: 178 | BK117: =VLOOKUP(AM117,wsk_doch!B:D,3,0) -> 131.41
A118: 89191 | C118: 0418 | D118: 04 | E118: 18 | G118: KUJAWSKO-POMORSKIE | H118: włocławski | K118: 0003 | L118: Powiat ziemski | M118: 04 | N118: 18 | P118: 00013 | Q118: 1 | R118: 002 | S118: 001 | T118: 001 | U118: 100 | V118: 0003 | W118: 0100 | Y118: 001 | Z118: 01 | AA118: Zasadnicza Szkoła Zawodowa | AB118: 91094901000000 | AC118: 04 | AD118: 18 | AE118: 12 | AF118: Lubraniec | AG118: Brzeska | AH118: 51 | AI118: 87-890 | AJ118: Lubraniec | AK118: 46 | AL118: 46 | AM118: 0418 | AN118: 04 | AO118: 18 | AQ118: =IF(LEN($AM118)=6,VLOOKUP($AM118,slownik_JST!$B:$J,9,0),"") ->  | AR118: =VLOOKUP($AN118&$AO118,slownik_JST!$B:$J,9,0) -> Powiat nie będący miastem na pr. powiatu | AS118: KUJAWSKO-POMORSKIE | AT118: włocławski | AV118: Powiat ziemski | AW118: =VLOOKUP(P118,listy_plac!$M$2:$N$52,2,0) -> Zasadnicza szkoła zawodowa | AX118: =VLOOKUP(R118,listy_plac!$Z$27:$AA$32,2,0) -> Szkoła lub placówka w ramach jednostki złożonej | AY118: =VLOOKUP(S118,listy_plac!$Z$2:$AA$5,2,0) -> publiczna | AZ118: =VLOOKUP(T118,listy_plac!$Z$8:$AA$10,2,0) -> Dzieci lub młodzież | BA118: =VLOOKUP(U118,listy_plac!$Z$13:$AA$15,2,0) -> brak specyfiki | BB118: =VLOOKUP(Y118,listy_plac!$Z$18:$AA$24,2,0) -> dzienna | BC118: Zasadnicza Szkoła Zawodowa | BD118: Lubraniec | BE118: Brzeska | BF118: 51 | BG118: 87-890 | BH118: Lubraniec | BI118: 46 | BJ118: 46 | BK118: =VLOOKUP(AM118,wsk_doch!B:D,3,0) -> 113.5
A119: 90515 | C119: 0418 | D119: 04 | E119: 18 | G119: KUJAWSKO-POMORSKIE | H119: włocławski | K119: 0003 | L119: Powiat ziemski | M119: 04 | N119: 18 | P119: 00013 | Q119: 1 | R119: 002 | S119: 001 | T119: 001 | U119: 100 | V119: 0003 | W119: 0100 | Y119: 001 | Z119: 01 | AA119: Zasadnicza Szkoła Zawodowa | AB119: 00070490700000 | AC119: 04 | AD119: 18 | AE119: 08 | AF119: Izbica Kujawska | AG119: Nowomiejska | AH119: 5 | AI119: 87-865 | AJ119: Izbica Kujawska | AK119: 68 | AL119: 68 | AM119: 0418 | AN119: 04 | AO119: 18 | AQ119: =IF(LEN($AM119)=6,VLOOKUP($AM119,slownik_JST!$B:$J,9,0),"") ->  | AR119: =VLOOKUP($AN119&$AO119,slownik_JST!$B:$J,9,0) -> Powiat nie będący miastem na pr. powiatu | AS119: KUJAWSKO-POMORSKIE | AT119: włocławski | AV119: Powiat ziemski | AW119: =VLOOKUP(P119,listy_plac!$M$2:$N$52,2,0) -> Zasadnicza szkoła zawodowa | AX119: =VLOOKUP(R119,listy_plac!$Z$27:$AA$32,2,0) -> Szkoła lub placówka w ramach jednostki złożonej | AY119: =VLOOKUP(S119,listy_plac!$Z$2:$AA$5,2,0) -> publiczna | AZ119: =VLOOKUP(T119,listy_plac!$Z$8:$AA$10,2,0) -> Dzieci lub młodzież | BA119: =VLOOKUP(U119,listy_plac!$Z$13:$AA$15,2,0) -> brak specyfiki | BB119: =VLOOKUP(Y119,listy_plac!$Z$18:$AA$24,2,0) -> dzienna | BC119: Zasadnicza Szkoła Zawodowa | BD119: Izbica Kujawska | BE119: Nowomiejska | BF119: 5 | BG119: 87-865 | BH119: Izbica Kujawska | BI119: 68 | BJ119: 68 | BK119: =VLOOKUP(AM119,wsk_doch!B:D,3,0) -> 113.5
A120: 91895 | C120: 0418 | D120: 04 | E120: 18 | G120: KUJAWSKO-POMORSKIE | H120: włocławski | K120: 0003 | L120: Powiat ziemski | M120: 04 | N120: 18 | P120: 00013 | Q120: 1 | R120: 002 | S120: 001 | T120: 001 | U120: 100 | V120: 0003 | W120: 0100 | Y120: 001 | Z120: 01 | AA120: ZSZ w zespole | AB120: 00069138100000 | AC120: 04 | AD120: 18 | AE120: 06 | AF120: Chodecz | AG120: Kaliska | AH120: 9/11 | AI120: 87-860 | AJ120: Chodecz | AK120: 76 | AL120: 40 | AM120: 0418 | AN120: 04 | AO120: 18 | AQ120: =IF(LEN($AM120)=6,VLOOKUP($AM120,slownik_JST!$B:$J,9,0),"") ->  | AR120: =VLOOKUP($AN120&$AO120,slownik_JST!$B:$J,9,0) -> Powiat nie będący miastem na pr. powiatu | AS120: KUJAWSKO-POMORSKIE | AT120: włocławski | AV120: Powiat ziemski | AW120: =VLOOKUP(P120,listy_plac!$M$2:$N$52,2,0) -> Zasadnicza szkoła zawodowa | AX120: =VLOOKUP(R120,listy_plac!$Z$27:$AA$32,2,0) -> Szkoła lub placówka w ramach jednostki złożonej | AY120: =VLOOKUP(S120,listy_plac!$Z$2:$AA$5,2,0) -> publiczna | AZ120: =VLOOKUP(T120,listy_plac!$Z$8:$AA$10,2,0) -> Dzieci lub młodzież | BA120: =VLOOKUP(U120,listy_plac!$Z$13:$AA$15,2,0) -> brak specyfiki | BB120: =VLOOKUP(Y120,listy_plac!$Z$18:$AA$24,2,0) -> dzienna | BC120: ZSZ w zespole | BD120: Chodecz | BE120: Kaliska | BF120: 9/11 | BG120: 87-860 | BH120: Chodecz | BI120: 76 | BJ120: 40 | BK120: =VLOOKUP(AM120,wsk_doch!B:D,3,0) -> 113.5
A121: 87343 | C121: 0419 | D121: 04 | E121: 19 | G121: KUJAWSKO-POMORSKIE | H121: żniński | K121: 0003 | L121: Powiat ziemski | M121: 04 | N121: 19 | P121: 00013 | Q121: 2 | R121: 002 | S121: 001 | T121: 001 | U121: 100 | V121: 0003 | W121: 0100 | Y121: 001 | Z121: 01 | AA121: Zasadnicza Szkoła Zawodowa dla Młodocianych Pracowników | AB121: 34135277500000 | AC121: 04 | AD121: 19 | AE121: 06 | AF121: Żnin | AG121: Browarowa | AH121: 14 | AI121: 88-400 | AJ121: Żnin | AK121: 121 | AL121: 121 | AM121: 0419 | AN121: 04 | AO121: 19 | AQ121: =IF(LEN($AM121)=6,VLOOKUP($AM121,slownik_JST!$B:$J,9,0),"") ->  | AR121: =VLOOKUP($AN121&$AO121,slownik_JST!$B:$J,9,0) -> Powiat nie będący miastem na pr. powiatu | AS121: KUJAWSKO-POMORSKIE | AT121: żniński | AV121: Powiat ziemski | AW121: =VLOOKUP(P121,listy_plac!$M$2:$N$52,2,0) -> Zasadnicza szkoła zawodowa | AX121: =VLOOKUP(R121,listy_plac!$Z$27:$AA$32,2,0) -> Szkoła lub placówka w ramach jednostki złożonej | AY121: =VLOOKUP(S121,listy_plac!$Z$2:$AA$5,2,0) -> publiczna | AZ121: =VLOOKUP(T121,listy_plac!$Z$8:$AA$10,2,0) -> Dzieci lub młodzież | BA121: =VLOOKUP(U121,listy_plac!$Z$13:$AA$15,2,0) -> brak specyfiki | BB121: =VLOOKUP(Y121,listy_plac!$Z$18:$AA$24,2,0) -> dzienna | BC121: Zasadnicza Szkoła Zawodowa dla Młodocianych Pracowników | BD121: Żnin | BE121: Browarowa | BF121: 14 | BG121: 88-400 | BH121: Żnin | BI121: 121 | BJ121: 121 | BK121: =VLOOKUP(AM121,wsk_doch!B:D,3,0) -> 134.02
A122: 39726 | C122: 0419 | D122: 04 | E122: 19 | G122: KUJAWSKO-POMORSKIE | H122: żniński | K122: 0003 | L122: Powiat ziemski | M122: 04 | N122: 19 | P122: 00013 | Q122: 1 | R122: 002 | S122: 001 | T122: 001 | U122: 100 | V122: 0003 | W122: 0100 | Y122: 001 | Z122: 01 | AA122: Zasadnicza Szkoła Zawodowa | AB122: 09001596800000 | AC122: 04 | AD122: 19 | AE122: 04 | AF122: Łabiszyn | AG122: Poznańska | AH122: 10 | AI122: 89-210 | AJ122: Łabiszyn | AK122: 111 | AL122: 111 | AM122: 0419 | AN122: 04 | AO122: 19 | AQ122: =IF(LEN($AM122)=6,VLOOKUP($AM122,slownik_JST!$B:$J,9,0),"") ->  | AR122: =VLOOKUP($AN122&$AO122,slownik_JST!$B:$J,9,0) -> Powiat nie będący miastem na pr. powiatu | AS122: KUJAWSKO-POMORSKIE | AT122: żniński | AV122: Powiat ziemski | AW122: =VLOOKUP(P122,listy_plac!$M$2:$N$52,2,0) -> Zasadnicza szkoła zawodowa | AX122: =VLOOKUP(R122,listy_plac!$Z$27:$AA$32,2,0) -> Szkoła lub placówka w ramach jednostki złożonej | AY122: =VLOOKUP(S122,listy_plac!$Z$2:$AA$5,2,0) -> publiczna | AZ122: =VLOOKUP(T122,listy_plac!$Z$8:$AA$10,2,0) -> Dzieci lub młodzież | BA122: =VLOOKUP(U122,listy_plac!$Z$13:$AA$15,2,0) -> brak specyfiki | BB122: =VLOOKUP(Y122,listy_plac!$Z$18:$AA$24,2,0) -> dzienna | BC122: Zasadnicza Szkoła Zawodowa | BD122: Łabiszyn | BE122: Poznańska | BF122: 10 | BG122: 89-210 | BH122: Łabiszyn | BI122: 111 | BJ122: 111 | BK122: =VLOOKUP(AM122,wsk_doch!B:D,3,0) -> 134.02
A123: 27722 | C123: 0419 | D123: 04 | E123: 19 | G123: KUJAWSKO-POMORSKIE | H123: żniński | K123: 0003 | L123: Powiat ziemski | M123: 04 | N123: 19 | P123: 00013 | Q123: 2 | R123: 002 | S123: 001 | T123: 001 | U123: 001 | V123: 0003 | W123: 0100 | X123: 005 | Y123: 001 | Z123: 01 | AA123: Zasadnicza Szkoła Zawodowa Specjalna | AB123: 09254122400000 | AC123: 04 | AD123: 19 | AE123: 06 | AF123: Żnin | AG123: Mickiewicza | AH123: 32 | AI123: 88-400 | AJ123: Żnin | AK123: 7 | AL123: 7 | AM123: 0419 | AN123: 04 | AO123: 19 | AQ123: =IF(LEN($AM123)=6,VLOOKUP($AM123,slownik_JST!$B:$J,9,0),"") ->  | AR123: =VLOOKUP($AN123&$AO123,slownik_JST!$B:$J,9,0) -> Powiat nie będący miastem na pr. powiatu | AS123: KUJAWSKO-POMORSKIE | AT123: żniński | AV123: Powiat ziemski | AW123: =VLOOKUP(P123,listy_plac!$M$2:$N$52,2,0) -> Zasadnicza szkoła zawodowa | AX123: =VLOOKUP(R123,listy_plac!$Z$27:$AA$32,2,0) -> Szkoła lub placówka w ramach jednostki złożonej | AY123: =VLOOKUP(S123,listy_plac!$Z$2:$AA$5,2,0) -> publiczna | AZ123: =VLOOKUP(T123,listy_plac!$Z$8:$AA$10,2,0) -> Dzieci lub młodzież | BA123: =VLOOKUP(U123,listy_plac!$Z$13:$AA$15,2,0) -> specjalna | BB123: =VLOOKUP(Y123,listy_plac!$Z$18:$AA$24,2,0) -> dzienna | BC123: Zasadnicza Szkoła Zawodowa Specjalna | BD123: Żnin | BE123: Mickiewicza | BF123: 32 | BG123: 88-400 | BH123: Żnin | BI123: 7 | BJ123: 7 | BK123: =VLOOKUP(AM123,wsk_doch!B:D,3,0) -> 134.02
A124: 14225 | C124: 0461 | D124: 04 | E124: 61 | G124: KUJAWSKO-POMORSKIE | H124: m. Bydgoszcz | K124: 0002 | L124: Miasto na prawach powiatu | M124: 04 | N124: 61 | P124: 00013 | Q124: 2 | R124: 002 | S124: 001 | T124: 001 | U124: 100 | V124: 0003 | W124: 0100 | Y124: 001 | Z124: 01 | AA124: Zasadnicza Szkoła Zawodowa nr 4 | AB124: 00022314800000 | AC124: 04 | AD124: 61 | AE124: 01 | AF124: Bydgoszcz | AG124: Toruńska | AH124: 44 | AI124: 85-023 | AJ124: Bydgoszcz | AK124: 117 | AL124: 75 | AM124: 0461 | AN124: 04 | AO124: 61 | AQ124: =IF(LEN($AM124)=6,VLOOKUP($AM124,slownik_JST!$B:$J,9,0),"") ->  | AR124: =VLOOKUP($AN124&$AO124,slownik_JST!$B:$J,9,0) -> Miasto (powiat) > 150 tys. mieszkańców | AS124: KUJAWSKO-POMORSKIE | AT124: m. Bydgoszcz | AV124: Miasto na prawach powiatu | AW124: =VLOOKUP(P124,listy_plac!$M$2:$N$52,2,0) -> Zasadnicza szkoła zawodowa | AX124: =VLOOKUP(R124,listy_plac!$Z$27:$AA$32,2,0) -> Szkoła lub placówka w ramach jednostki złożonej | AY124: =VLOOKUP(S124,listy_plac!$Z$2:$AA$5,2,0) -> publiczna | AZ124: =VLOOKUP(T124,listy_plac!$Z$8:$AA$10,2,0) -> Dzieci lub młodzież | BA124: =VLOOKUP(U124,listy_plac!$Z$13:$AA$15,2,0) -> brak specyfiki | BB124: =VLOOKUP(Y124,listy_plac!$Z$18:$AA$24,2,0) -> dzienna | BC124: Zasadnicza Szkoła Zawodowa nr 4 | BD124: Bydgoszcz | BE124: Toruńska | BF124: 44 | BG124: 85-023 | BH124: Bydgoszcz | BI124: 117 | BJ124: 75 | BK124: =VLOOKUP(AM124,wsk_doch!B:D,3,0) -> 248.67
A125: 8750 | C125: 0461 | D125: 04 | E125: 61 | G125: KUJAWSKO-POMORSKIE | H125: m. Bydgoszcz | K125: 0002 | L125: Miasto na prawach powiatu | M125: 04 | N125: 61 | P125: 00013 | Q125: 2 | R125: 001 | S125: 001 | T125: 001 | U125: 001 | V125: 0003 | W125: 0100 | X125: 005 | Y125: 001 | Z125: 01 | AA125: Zasadnicza Szkoła Zawodowa nr 5 Specjalna | AB125: 00089572900000 | AC125: 04 | AD125: 61 | AE125: 01 | AF125: Bydgoszcz | AG125: Grunwaldzka | AH125: 41 | AI125: 85-239 | AJ125: Bydgoszcz | AK125: 134 | AL125: 2 | AM125: 0461 | AN125: 04 | AO125: 61 | AQ125: =IF(LEN($AM125)=6,VLOOKUP($AM125,slownik_JST!$B:$J,9,0),"") ->  | AR125: =VLOOKUP($AN125&$AO125,slownik_JST!$B:$J,9,0) -> Miasto (powiat) > 150 tys. mieszkańców | AS125: KUJAWSKO-POMORSKIE | AT125: m. Bydgoszcz | AV125: Miasto na prawach powiatu | AW125: =VLOOKUP(P125,listy_plac!$M$2:$N$52,2,0) -> Zasadnicza szkoła zawodowa | AX125: =VLOOKUP(R125,listy_plac!$Z$27:$AA$32,2,0) -> Dane własne | AY125: =VLOOKUP(S125,listy_plac!$Z$2:$AA$5,2,0) -> publiczna | AZ125: =VLOOKUP(T125,listy_plac!$Z$8:$AA$10,2,0) -> Dzieci lub młodzież | BA125: =VLOOKUP(U125,listy_plac!$Z$13:$AA$15,2,0) -> specjalna | BB125: =VLOOKUP(Y125,listy_plac!$Z$18:$AA$24,2,0) -> dzienna | BC125: Zasadnicza Szkoła Zawodowa nr 5 Specjalna | BD125: Bydgoszcz | BE125: Grunwaldzka | BF125: 41 | BG125: 85-239 | BH125: Bydgoszcz | BI125: 134 | BJ125: 2 | BK125: =VLOOKUP(AM125,wsk_doch!B:D,3,0) -> 248.67
A126: 13858 | C126: 0461 | D126: 04 | E126: 61 | G126: KUJAWSKO-POMORSKIE | H126: m. Bydgoszcz | K126: 0002 | L126: Miasto na prawach powiatu | M126: 04 | N126: 61 | P126: 00013 | Q126: 2 | R126: 002 | S126: 001 | T126: 001 | U126: 100 | V126: 0003 | W126: 0100 | Y126: 001 | Z126: 01 | AA126: Zasadnicza Szkoła Zawodowa Samochodowa | AB126: 09304561600000 | AC126: 04 | AD126: 61 | AE126: 01 | AF126: Bydgoszcz | AG126: Powstańców Wielkopolskich | AH126: 63 | AI126: 85-090 | AJ126: Bydgoszcz | AK126: 191 | AL126: 12 | AM126: 0461 | AN126: 04 | AO126: 61 | AQ126: =IF(LEN($AM126)=6,VLOOKUP($AM126,slownik_JST!$B:$J,9,0),"") ->  | AR126: =VLOOKUP($AN126&$AO126,slownik_JST!$B:$J,9,0) -> Miasto (powiat) > 150 tys. mieszkańców | AS126: KUJAWSKO-POMORSKIE | AT126: m. Bydgoszcz | AV126: Miasto na prawach powiatu | AW126: =VLOOKUP(P126,listy_plac!$M$2:$N$52,2,0) -> Zasadnicza szkoła zawodowa | AX126: =VLOOKUP(R126,listy_plac!$Z$27:$AA$32,2,0) -> Szkoła lub placówka w ramach jednostki złożonej | AY126: =VLOOKUP(S126,listy_plac!$Z$2:$AA$5,2,0) -> publiczna | AZ126: =VLOOKUP(T126,listy_plac!$Z$8:$AA$10,2,0) -> Dzieci lub młodzież | BA126: =VLOOKUP(U126,listy_plac!$Z$13:$AA$15,2,0) -> brak specyfiki | BB126: =VLOOKUP(Y126,listy_plac!$Z$18:$AA$24,2,0) -> dzienna | BC126: Zasadnicza Szkoła Zawodowa Samochodowa | BD126: Bydgoszcz | BE126: Powstańców Wielkopolskich | BF126: 63 | BG126: 85-090 | BH126: Bydgoszcz | BI126: 191 | BJ126: 12 | BK126: =VLOOKUP(AM126,wsk_doch!B:D,3,0) -> 248.67
A127: 13658 | C127: 0461 | D127: 04 | E127: 61 | G127: KUJAWSKO-POMORSKIE | H127: m. Bydgoszcz | K127: 0002 | L127: Miasto na prawach powiatu | M127: 04 | N127: 61 | P127: 00013 | Q127: 2 | R127: 002 | S127: 001 | T127: 001 | U127: 100 | V127: 0003 | W127: 0100 | Y127: 001 | Z127: 01 | AA127: Zasadnicza Szkoła Zawodowa Mechaniczna | AB127: 09314501600000 | AC127: 04 | AD127: 61 | AE127: 01 | AF127: Bydgoszcz | AG127: SŁONECZNA | AH127: 19 | AI127: 85-348 | AJ127: BYDGOSZCZ | AK127: 81 | AL127: 1 | AM127: 0461 | AN127: 04 | AO127: 61 | AQ127: =IF(LEN($AM127)=6,VLOOKUP($AM127,slownik_JST!$B:$J,9,0),"") ->  | AR127: =VLOOKUP($AN127&$AO127,slownik_JST!$B:$J,9,0) -> Miasto (powiat) > 150 tys. mieszkańców | AS127: KUJAWSKO-POMORSKIE | AT127: m. Bydgoszcz | AV127: Miasto na prawach powiatu | AW127: =VLOOKUP(P127,listy_plac!$M$2:$N$52,2,0) -> Zasadnicza szkoła zawodowa | AX127: =VLOOKUP(R127,listy_plac!$Z$27:$AA$32,2,0) -> Szkoła lub placówka w ramach jednostki złożonej | AY127: =VLOOKUP(S127,listy_plac!$Z$2:$AA$5,2,0) -> publiczna | AZ127: =VLOOKUP(T127,listy_plac!$Z$8:$AA$10,2,0) -> Dzieci lub młodzież | BA127: =VLOOKUP(U127,listy_plac!$Z$13:$AA$15,2,0) -> brak specyfiki | BB127: =VLOOKUP(Y127,listy_plac!$Z$18:$AA$24,2,0) -> dzienna | BC127: Zasadnicza Szkoła Zawodowa Mechaniczna | BD127: Bydgoszcz | BE127: SŁONECZNA | BF127: 19 | BG127: 85-348 | BH127: BYDGOSZCZ | BI127: 81 | BJ127: 1 | BK127: =VLOOKUP(AM127,wsk_doch!B:D,3,0) -> 248.67
A128: 13828 | C128: 0461 | D128: 04 | E128: 61 | G128: KUJAWSKO-POMORSKIE | H128: m. Bydgoszcz | K128: 0002 | L128: Miasto na prawach powiatu | M128: 04 | N128: 61 | P128: 00013 | Q128: 2 | R128: 002 | S128: 001 | T128: 001 | U128: 100 | V128: 0003 | W128: 0100 | Y128: 001 | Z128: 01 | AA128: Zasadnicza Szkoła Zawodowa Spożywcza | AB128: 09306833300000 | AC128: 04 | AD128: 61 | AE128: 01 | AF128: Bydgoszcz | AG128: Toruńska | AH128: 174 | AI128: 85-844 | AJ128: Bydgoszcz | AK128: 68 | AL128: 9 | AM128: 0461 | AN128: 04 | AO128: 61 | AQ128: =IF(LEN($AM128)=6,VLOOKUP($AM128,slownik_JST!$B:$J,9,0),"") ->  | AR128: =VLOOKUP($AN128&$AO128,slownik_JST!$B:$J,9,0) -> Miasto (powiat) > 150 tys. mieszkańców | AS128: KUJAWSKO-POMORSKIE | AT128: m. Bydgoszcz | AV128: Miasto na prawach powiatu | AW128: =VLOOKUP(P128,listy_plac!$M$2:$N$52,2,0) -> Zasadnicza szkoła zawodowa | AX128: =VLOOKUP(R128,listy_plac!$Z$27:$AA$32,2,0) -> Szkoła lub placówka w ramach jednostki złożonej | AY128: =VLOOKUP(S128,listy_plac!$Z$2:$AA$5,2,0) -> publiczna | AZ128: =VLOOKUP(T128,listy_plac!$Z$8:$AA$10,2,0) -> Dzieci lub młodzież | BA128: =VLOOKUP(U128,listy_plac!$Z$13:$AA$15,2,0) -> brak specyfiki | BB128: =VLOOKUP(Y128,listy_plac!$Z$18:$AA$24,2,0) -> dzienna | BC128: Zasadnicza Szkoła Zawodowa Spożywcza | BD128: Bydgoszcz | BE128: Toruńska | BF128: 174 | BG128: 85-844 | BH128: Bydgoszcz | BI128: 68 | BJ128: 9 | BK128: =VLOOKUP(AM128,wsk_doch!B:D,3,0) -> 248.67
A129: 53543 | C129: 0462 | D129: 04 | E129: 62 | G129: KUJAWSKO-POMORSKIE | H129: m. Grudziądz | K129: 0002 | L129: Miasto na prawach powiatu | M129: 04 | N129: 62 | P129: 00013 | Q129: 2 | R129: 002 | S129: 001 | T129: 001 | U129: 100 | V129: 0003 | W129: 0100 | Y129: 001 | Z129: 01 | AA129: Zasadnicza Szkoła Zawodowa | AB129: 87167642100000 | AC129: 04 | AD129: 62 | AE129: 01 | AF129: Grudziądz | AG129: gen. J.Hallera | AH129: 31 | AI129: 86-300 | AJ129: Grudziądz | AK129: 129 | AL129: 49 | AM129: 0462 | AN129: 04 | AO129: 62 | AQ129: =IF(LEN($AM129)=6,VLOOKUP($AM129,slownik_JST!$B:$J,9,0),"") ->  | AR129: =VLOOKUP($AN129&$AO129,slownik_JST!$B:$J,9,0) -> Miasto (powiat) < 150 tys. mieszkańców | AS129: KUJAWSKO-POMORSKIE | AT129: m. Grudziądz | AV129: Miasto na prawach powiatu | AW129: =VLOOKUP(P129,listy_plac!$M$2:$N$52,2,0) -> Zasadnicza szkoła zawodowa | AX129: =VLOOKUP(R129,listy_plac!$Z$27:$AA$32,2,0) -> Szkoła lub placówka w ramach jednostki złożonej | AY129: =VLOOKUP(S129,listy_plac!$Z$2:$AA$5,2,0) -> publiczna | AZ129: =VLOOKUP(T129,listy_plac!$Z$8:$AA$10,2,0) -> Dzieci lub młodzież | BA129: =VLOOKUP(U129,listy_plac!$Z$13:$AA$15,2,0) -> brak specyfiki | BB129: =VLOOKUP(Y129,listy_plac!$Z$18:$AA$24,2,0) -> dzienna | BC129: Zasadnicza Szkoła Zawodowa | BD129: Grudziądz | BE129: gen. J.Hallera | BF129: 31 | BG129: 86-300 | BH129: Grudziądz | BI129: 129 | BJ129: 49 | BK129: =VLOOKUP(AM129,wsk_doch!B:D,3,0) -> 177.42
A130: 53525 | C130: 0462 | D130: 04 | E130: 62 | G130: KUJAWSKO-POMORSKIE | H130: m. Grudziądz | K130: 0002 | L130: Miasto na prawach powiatu | M130: 04 | N130: 62 | P130: 00013 | Q130: 2 | R130: 002 | S130: 001 | T130: 001 | U130: 100 | V130: 0003 | W130: 0100 | Y130: 001 | Z130: 01 | AA130: ZASADNICZA SZKOŁA ZAWODWA 3-LETNIA | AB130: 87168033900000 | AC130: 04 | AD130: 62 | AE130: 01 | AF130: Grudziądz | AG130: CURIE-SKŁODOWSKIEJ | AH130: 22/24 | AI130: 86-300 | AJ130: GRUDZIĄDZ | AK130: 141 | AL130: 58 | AM130: 0462 | AN130: 04 | AO130: 62 | AQ130: =IF(LEN($AM130)=6,VLOOKUP($AM130,slownik_JST!$B:$J,9,0),"") ->  | AR130: =VLOOKUP($AN130&$AO130,slownik_JST!$B:$J,9,0) -> Miasto (powiat) < 150 tys. mieszkańców | AS130: KUJAWSKO-POMORSKIE | AT130: m. Grudziądz | AV130: Miasto na prawach powiatu | AW130: =VLOOKUP(P130,listy_plac!$M$2:$N$52,2,0) -> Zasadnicza szkoła zawodowa | AX130: =VLOOKUP(R130,listy_plac!$Z$27:$AA$32,2,0) -> Szkoła lub placówka w ramach jednostki złożonej | AY130: =VLOOKUP(S130,listy_plac!$Z$2:$AA$5,2,0) -> publiczna | AZ130: =VLOOKUP(T130,listy_plac!$Z$8:$AA$10,2,0) -> Dzieci lub młodzież | BA130: =VLOOKUP(U130,listy_plac!$Z$13:$AA$15,2,0) -> brak specyfiki | BB130: =VLOOKUP(Y130,listy_plac!$Z$18:$AA$24,2,0) -> dzienna | BC130: ZASADNICZA SZKOŁA ZAWODWA 3-LETNIA | BD130: Grudziądz | BE130: CURIE-SKŁODOWSKIEJ | BF130: 22/24 | BG130: 86-300 | BH130: GRUDZIĄDZ | BI130: 141 | BJ130: 58 | BK130: =VLOOKUP(AM130,wsk_doch!B:D,3,0) -> 177.42
A131: 53547 | C131: 0462 | D131: 04 | E131: 62 | G131: KUJAWSKO-POMORSKIE | H131: m. Grudziądz | K131: 0002 | L131: Miasto na prawach powiatu | M131: 04 | N131: 62 | P131: 00013 | Q131: 2 | R131: 002 | S131: 001 | T131: 001 | U131: 100 | V131: 0003 | W131: 0100 | Y131: 001 | Z131: 01 | AA131: Zasadnicza Szkoła Zawodowa | AB131: 87167338000000 | AC131: 04 | AD131: 62 | AE131: 01 | AF131: Grudziądz | AG131: Czarnieckiego | AH131: 9 | AI131: 86-300 | AJ131: Grudziądz | AK131: 155 | AL131: 58 | AM131: 0462 | AN131: 04 | AO131: 62 | AQ131: =IF(LEN($AM131)=6,VLOOKUP($AM131,slownik_JST!$B:$J,9,0),"") ->  | AR131: =VLOOKUP($AN131&$AO131,slownik_JST!$B:$J,9,0) -> Miasto (powiat) < 150 tys. mieszkańców | AS131: KUJAWSKO-POMORSKIE | AT131: m. Grudziądz | AV131: Miasto na prawach powiatu | AW131: =VLOOKUP(P131,listy_plac!$M$2:$N$52,2,0) -> Zasadnicza szkoła zawodowa | AX131: =VLOOKUP(R131,listy_plac!$Z$27:$AA$32,2,0) -> Szkoła lub placówka w ramach jednostki złożonej | AY131: =VLOOKUP(S131,listy_plac!$Z$2:$AA$5,2,0) -> publiczna | AZ131: =VLOOKUP(T131,listy_plac!$Z$8:$AA$10,2,0) -> Dzieci lub młodzież | BA131: =VLOOKUP(U131,listy_plac!$Z$13:$AA$15,2,0) -> brak specyfiki | BB131: =VLOOKUP(Y131,listy_plac!$Z$18:$AA$24,2,0) -> dzienna | BC131: Zasadnicza Szkoła Zawodowa | BD131: Grudziądz | BE131: Czarnieckiego | BF131: 9 | BG131: 86-300 | BH131: Grudziądz | BI131: 155 | BJ131: 58 | BK131: =VLOOKUP(AM131,wsk_doch!B:D,3,0) -> 177.42
A132: 84819 | C132: 0463 | D132: 04 | E132: 63 | G132: KUJAWSKO-POMORSKIE | H132: m. Toruń | K132: 0002 | L132: Miasto na prawach powiatu | M132: 04 | N132: 63 | P132: 00013 | Q132: 2 | R132: 002 | S132: 001 | T132: 001 | U132: 100 | V132: 0003 | W132: 0100 | Y132: 001 | Z132: 01 | AA132: Zasadnicza Szkoła Zawodowa Nr 7 | AB132: 87166771200000 | AC132: 04 | AD132: 63 | AE132: 01 | AF132: Toruń | AG132: Grunwaldzka | AH132: 25 B | AI132: 87-100 | AJ132: Toruń | AK132: 209 | AL132: 26 | AM132: 0463 | AN132: 04 | AO132: 63 | AQ132: =IF(LEN($AM132)=6,VLOOKUP($AM132,slownik_JST!$B:$J,9,0),"") ->  | AR132: =VLOOKUP($AN132&$AO132,slownik_JST!$B:$J,9,0) -> Miasto (powiat) > 150 tys. mieszkańców | AS132: KUJAWSKO-POMORSKIE | AT132: m. Toruń | AV132: Miasto na prawach powiatu | AW132: =VLOOKUP(P132,listy_plac!$M$2:$N$52,2,0) -> Zasadnicza szkoła zawodowa | AX132: =VLOOKUP(R132,listy_plac!$Z$27:$AA$32,2,0) -> Szkoła lub placówka w ramach jednostki złożonej | AY132: =VLOOKUP(S132,listy_plac!$Z$2:$AA$5,2,0) -> publiczna | AZ132: =VLOOKUP(T132,listy_plac!$Z$8:$AA$10,2,0) -> Dzieci lub młodzież | BA132: =VLOOKUP(U132,listy_plac!$Z$13:$AA$15,2,0) -> brak specyfiki | BB132: =VLOOKUP(Y132,listy_plac!$Z$18:$AA$24,2,0) -> dzienna | BC132: Zasadnicza Szkoła Zawodowa Nr 7 | BD132: Toruń | BE132: Grunwaldzka | BF132: 25 B | BG132: 87-100 | BH132: Toruń | BI132: 209 | BJ132: 26 | BK132: =VLOOKUP(AM132,wsk_doch!B:D,3,0) -> 256.14
A133: 6191 | C133: 0463 | D133: 04 | E133: 63 | G133: KUJAWSKO-POMORSKIE | H133: m. Toruń | K133: 0002 | L133: Miasto na prawach powiatu | M133: 04 | N133: 63 | P133: 00013 | Q133: 2 | R133: 002 | S133: 001 | T133: 001 | U133: 100 | V133: 0003 | W133: 0100 | Y133: 001 | Z133: 01 | AA133: Zasadnicza Szkoła Zawodowa Nr 1 | AB133: 87166784700000 | AC133: 04 | AD133: 63 | AE133: 01 | AF133: Toruń | AG133: Grunwaldzka | AH133: 39 | AI133: 87-100 | AJ133: Toruń | AK133: 65 | AL133: 65 | AM133: 0463 | AN133: 04 | AO133: 63 | AQ133: =IF(LEN($AM133)=6,VLOOKUP($AM133,slownik_JST!$B:$J,9,0),"") ->  | AR133: =VLOOKUP($AN133&$AO133,slownik_JST!$B:$J,9,0) -> Miasto (powiat) > 150 tys. mieszkańców | AS133: KUJAWSKO-POMORSKIE | AT133: m. Toruń | AV133: Miasto na prawach powiatu | AW133: =VLOOKUP(P133,listy_plac!$M$2:$N$52,2,0) -> Zasadnicza szkoła zawodowa | AX133: =VLOOKUP(R133,listy_plac!$Z$27:$AA$32,2,0) -> Szkoła lub placówka w ramach jednostki złożonej | AY133: =VLOOKUP(S133,listy_plac!$Z$2:$AA$5,2,0) -> publiczna | AZ133: =VLOOKUP(T133,listy_plac!$Z$8:$AA$10,2,0) -> Dzieci lub młodzież | BA133: =VLOOKUP(U133,listy_plac!$Z$13:$AA$15,2,0) -> brak specyfiki | BB133: =VLOOKUP(Y133,listy_plac!$Z$18:$AA$24,2,0) -> dzienna | BC133: Zasadnicza Szkoła Zawodowa Nr 1 | BD133: Toruń | BE133: Grunwaldzka | BF133: 39 | BG133: 87-100 | BH133: Toruń | BI133: 65 | BJ133: 65 | BK133: =VLOOKUP(AM133,wsk_doch!B:D,3,0) -> 256.14
A134: 104854 | C134: 0464 | D134: 04 | E134: 64 | G134: KUJAWSKO-POMORSKIE | H134: m. Włocławek | K134: 0002 | L134: Miasto na prawach powiatu | M134: 04 | N134: 64 | P134: 00013 | Q134: 2 | R134: 002 | S134: 001 | T134: 001 | U134: 100 | V134: 0003 | W134: 0100 | Y134: 001 | Z134: 01 | AA134: Zasadnicza Szkoła Zawodowa Nr 4 | AB134: 91094954700000 | AC134: 04 | AD134: 64 | AE134: 01 | AF134: Włocławek | AG134: Leśna | AH134: 1A | AI134: 87-800 | AJ134: Włocławek | AK134: 187 | AL134: 42 | AM134: 0464 | AN134: 04 | AO134: 64 | AQ134: =IF(LEN($AM134)=6,VLOOKUP($AM134,slownik_JST!$B:$J,9,0),"") ->  | AR134: =VLOOKUP($AN134&$AO134,slownik_JST!$B:$J,9,0) -> Miasto (powiat) < 150 tys. mieszkańców | AS134: KUJAWSKO-POMORSKIE | AT134: m. Włocławek | AV134: Miasto na prawach powiatu | AW134: =VLOOKUP(P134,listy_plac!$M$2:$N$52,2,0) -> Zasadnicza szkoła zawodowa | AX134: =VLOOKUP(R134,listy_plac!$Z$27:$AA$32,2,0) -> Szkoła lub placówka w ramach jednostki złożonej | AY134: =VLOOKUP(S134,listy_plac!$Z$2:$AA$5,2,0) -> publiczna | AZ134: =VLOOKUP(T134,listy_plac!$Z$8:$AA$10,2,0) -> Dzieci lub młodzież | BA134: =VLOOKUP(U134,listy_plac!$Z$13:$AA$15,2,0) -> brak specyfiki | BB134: =VLOOKUP(Y134,listy_plac!$Z$18:$AA$24,2,0) -> dzienna | BC134: Zasadnicza Szkoła Zawodowa Nr 4 | BD134: Włocławek | BE134: Leśna | BF134: 1A | BG134: 87-800 | BH134: Włocławek | BI134: 187 | BJ134: 42 | BK134: =VLOOKUP(AM134,wsk_doch!B:D,3,0) -> 209.87
A135: 107561 | C135: =D135&E135&F135 -> 0464 | D135: 04 | E135: 64 | G135: KUJAWSKO-POMORSKIE | H135: m. Włocławek | K135: 0002 | L135: Miasto na prawach powiatu | M135: 04 | N135: 64 | P135: 00013 | Q135: 2 | R135: 002 | S135: 001 | T135: 001 | U135: 100 | V135: 0003 | W135: 0100 | Y135: 001 | Z135: 01 | AA135: Zasadnicza Szkoła Zawodowa nr 2 | AB135: 91133719000000 | AC135: 04 | AD135: 64 | AE135: 01 | AF135: Włocławek | AG135: Bulwary im.Józefa Piłsudskiego | AH135: 4 | AI135: 87-800 | AJ135: Włocławek | AK135: 160 | AL135: 88 | AM135: 0464 | AN135: 04 | AO135: 64 | AQ135: =IF(LEN($AM135)=6,VLOOKUP($AM135,slownik_JST!$B:$J,9,0),"") ->  | AR135: =VLOOKUP($AN135&$AO135,slownik_JST!$B:$J,9,0) -> Miasto (powiat) < 150 tys. mieszkańców | AS135: KUJAWSKO-POMORSKIE | AT135: m. Włocławek | AV135: Miasto na prawach powiatu | AW135: =VLOOKUP(P135,listy_plac!$M$2:$N$52,2,0) -> Zasadnicza szkoła zawodowa | AX135: =VLOOKUP(R135,listy_plac!$Z$27:$AA$32,2,0) -> Szkoła lub placówka w ramach jednostki złożonej | AY135: =VLOOKUP(S135,listy_plac!$Z$2:$AA$5,2,0) -> publiczna | AZ135: =VLOOKUP(T135,listy_plac!$Z$8:$AA$10,2,0) -> Dzieci lub młodzież | BA135: =VLOOKUP(U135,listy_plac!$Z$13:$AA$15,2,0) -> brak specyfiki | BB135: =VLOOKUP(Y135,listy_plac!$Z$18:$AA$24,2,0) -> dzienna | BC135: Zasadnicza Szkoła Zawodowa nr 2 | BD135: Włocławek | BE135: Bulwary im.Józefa Piłsudskiego | BF135: 4 | BG135: 87-800 | BH135: Włocławek | BI135: 160 | BJ135: 88 | BK135: =VLOOKUP(AM135,wsk_doch!B:D,3,0) -> 209.87
A136: 10525 | C136: 0601 | D136: 06 | E136: 01 | G136: LUBELSKIE | H136: bialski | K136: 0003 | L136: Powiat ziemski | M136: 06 | N136: 01 | P136: 00013 | Q136: 2 | R136: 002 | S136: 001 | T136: 001 | U136: 100 | V136: 0003 | W136: 0100 | Y136: 001 | Z136: 01 | AA136: Zasadnicza Szkoła Zawodowa | AB136: 03031240800000 | AC136: 06 | AD136: 01 | AE136: 01 | AF136: Międzyrzec Podlaski | AG136: Warszawska | AH136: 30 | AI136: 21-560 | AJ136: Międzyrzec Podlaski | AK136: 110 | AL136: 52 | AM136: =AN136&AO136&AP136 -> 0601 | AN136: =IF(D136="","",D136) -> 06 | AO136: =IF(E136="","",E136) -> 01 | AP136: =IF(F136="","",F136) ->  | AQ136: =IF(LEN($AM136)=6,VLOOKUP($AM136,slownik_JST!$B:$J,9,0),"") ->  | AR136: =VLOOKUP($AN136&$AO136,slownik_JST!$B:$J,9,0) -> Powiat nie będący miastem na pr. powiatu | AS136: =IF(G136="","",G136) -> LUBELSKIE | AT136: =IF(H136="","",H136) -> bialski | AU136: =IF(I136="","",I136) ->  | AV136: =L136 -> Powiat ziemski | AW136: =VLOOKUP(P136,listy_plac!$M$2:$N$52,2,0) -> Zasadnicza szkoła zawodowa | AX136: =VLOOKUP(R136,listy_plac!$Z$27:$AA$32,2,0) -> Szkoła lub placówka w ramach jednostki złożonej | AY136: =VLOOKUP(S136,listy_plac!$Z$2:$AA$5,2,0) -> publiczna | AZ136: =VLOOKUP(T136,listy_plac!$Z$8:$AA$10,2,0) -> Dzieci lub młodzież | BA136: =VLOOKUP(U136,listy_plac!$Z$13:$AA$15,2,0) -> brak specyfiki | BB136: =VLOOKUP(Y136,listy_plac!$Z$18:$AA$24,2,0) -> dzienna | BC136: =AA136 -> Zasadnicza Szkoła Zawodowa | BD136: =AF136 -> Międzyrzec Podlaski | BE136: =AG136 -> Warszawska | BF136: =AH136 -> 30 | BG136: =AI136 -> 21-560 | BH136: =AJ136 -> Międzyrzec Podlaski | BI136: =AK136 -> 110 | BJ136: =AL136 -> 52 | BK136: =VLOOKUP(AM136,wsk_doch!B:D,3,0) -> 101.55 | BL136: =IF(($BK136-$C$1)<0,($BK136-$C$1)*(-1),($BK136-$C$1)) -> 
A137: 72482 | C137: 0602 | D137: 06 | E137: 02 | G137: LUBELSKIE | H137: biłgorajski | K137: 0003 | L137: Powiat ziemski | M137: 06 | N137: 02 | P137: 00013 | Q137: 2 | R137: 002 | S137: 001 | T137: 001 | U137: 100 | V137: 0003 | W137: 0100 | Y137: 001 | Z137: 01 | AA137: Zasadnicza Szkoła Zawodowa Nr 1 w Biłgoraju w Zespole Szkół Zawodowych i Ogólnokształcących w Biłgoraju, ul. Przemysłowa 23 | AB137: 95119650900000 | AC137: 06 | AD137: 02 | AE137: 01 | AF137: Biłgoraj | AG137: Przemysłowa | AH137: 23 | AI137: 23-400 | AJ137: Biłgoraj | AK137: 103 | AL137: 61 | AM137: 0602 | AN137: 06 | AO137: 02 | AQ137: =IF(LEN($AM137)=6,VLOOKUP($AM137,slownik_JST!$B:$J,9,0),"") ->  | AR137: =VLOOKUP($AN137&$AO137,slownik_JST!$B:$J,9,0) -> Powiat nie będący miastem na pr. powiatu | AS137: LUBELSKIE | AT137: biłgorajski | AV137: Powiat ziemski | AW137: =VLOOKUP(P137,listy_plac!$M$2:$N$52,2,0) -> Zasadnicza szkoła zawodowa | AX137: =VLOOKUP(R137,listy_plac!$Z$27:$AA$32,2,0) -> Szkoła lub placówka w ramach jednostki złożonej | AY137: =VLOOKUP(S137,listy_plac!$Z$2:$AA$5,2,0) -> publiczna | AZ137: =VLOOKUP(T137,listy_plac!$Z$8:$AA$10,2,0) -> Dzieci lub młodzież | BA137: =VLOOKUP(U137,listy_plac!$Z$13:$AA$15,2,0) -> brak specyfiki | BB137: =VLOOKUP(Y137,listy_plac!$Z$18:$AA$24,2,0) -> dzienna | BC137: Zasadnicza Szkoła Zawodowa Nr 1 w Biłgoraju w Zespole Szkół Zawodowych i Ogólnokształcących w Biłgoraju, ul. Przemysłowa 23 | BD137: Biłgoraj | BE137: Przemysłowa | BF137: 23 | BG137: 23-400 | BH137: Biłgoraj | BI137: 103 | BJ137: 61 | BK137: =VLOOKUP(AM137,wsk_doch!B:D,3,0) -> 94.87
A138: 111925 | C138: 0605 | D138: 06 | E138: 05 | G138: LUBELSKIE | H138: janowski | K138: 0003 | L138: Powiat ziemski | M138: 06 | N138: 05 | P138: 00013 | Q138: 2 | R138: 002 | S138: 001 | T138: 001 | U138: 100 | V138: 0003 | W138: 0100 | Y138: 001 | Z138: 01 | AA138: Zasadnicza Szkoła Zawodowa w Janowie Lubelskim | AB138: 43125815300000 | AC138: 06 | AD138: 05 | AE138: 05 | AF138: Janów Lubelski | AG138: Ogrodowa | AH138: 20 | AI138: 23-300 | AJ138: Janów Lubelski | AK138: 80 | AL138: 62 | AM138: 0605 | AN138: 06 | AO138: 05 | AQ138: =IF(LEN($AM138)=6,VLOOKUP($AM138,slownik_JST!$B:$J,9,0),"") ->  | AR138: =VLOOKUP($AN138&$AO138,slownik_JST!$B:$J,9,0) -> Powiat nie będący miastem na pr. powiatu | AS138: LUBELSKIE | AT138: janowski | AV138: Powiat ziemski | AW138: =VLOOKUP(P138,listy_plac!$M$2:$N$52,2,0) -> Zasadnicza szkoła zawodowa | AX138: =VLOOKUP(R138,listy_plac!$Z$27:$AA$32,2,0) -> Szkoła lub placówka w ramach jednostki złożonej | AY138: =VLOOKUP(S138,listy_plac!$Z$2:$AA$5,2,0) -> publiczna | AZ138: =VLOOKUP(T138,listy_plac!$Z$8:$AA$10,2,0) -> Dzieci lub młodzież | BA138: =VLOOKUP(U138,listy_plac!$Z$13:$AA$15,2,0) -> brak specyfiki | BB138: =VLOOKUP(Y138,listy_plac!$Z$18:$AA$24,2,0) -> dzienna | BC138: Zasadnicza Szkoła Zawodowa w Janowie Lubelskim | BD138: Janów Lubelski | BE138: Ogrodowa | BF138: 20 | BG138: 23-300 | BH138: Janów Lubelski | BI138: 80 | BJ138: 62 | BK138: =VLOOKUP(AM138,wsk_doch!B:D,3,0) -> 100.58
A139: 68238 | C139: 0607 | D139: 06 | E139: 07 | G139: LUBELSKIE | H139: kraśnicki | K139: 0003 | L139: Powiat ziemski | M139: 06 | N139: 07 | P139: 00013 | Q139: 3 | R139: 002 | S139: 001 | T139: 001 | U139: 001 | V139: 0003 | W139: 0011 | X139: 005 | Y139: 001 | Z139: 01 | AA139: Zasadnicza Szkoła Zawodowa Specjalna w Olbięcinie | AB139: 43123850600000 | AC139: 06 | AD139: 07 | AE139: 07 | AF139: Olbięcin | AG139: Olbięcin | AH139: 139 | AI139: 23-230 | AJ139: Trzydnik Duży | AK139: 38 | AL139: 26 | AM139: 0607 | AN139: 06 | AO139: 07 | AQ139: =IF(LEN($AM139)=6,VLOOKUP($AM139,slownik_JST!$B:$J,9,0),"") ->  | AR139: =VLOOKUP($AN139&$AO139,slownik_JST!$B:$J,9,0) -> Powiat nie będący miastem na pr. powiatu | AS139: LUBELSKIE | AT139: kraśnicki | AV139: Powiat ziemski | AW139: =VLOOKUP(P139,listy_plac!$M$2:$N$52,2,0) -> Zasadnicza szkoła zawodowa | AX139: =VLOOKUP(R139,listy_plac!$Z$27:$AA$32,2,0) -> Szkoła lub placówka w ramach jednostki złożonej | AY139: =VLOOKUP(S139,listy_plac!$Z$2:$AA$5,2,0) -> publiczna | AZ139: =VLOOKUP(T139,listy_plac!$Z$8:$AA$10,2,0) -> Dzieci lub młodzież | BA139: =VLOOKUP(U139,listy_plac!$Z$13:$AA$15,2,0) -> specjalna | BB139: =VLOOKUP(Y139,listy_plac!$Z$18:$AA$24,2,0) -> dzienna | BC139: Zasadnicza Szkoła Zawodowa Specjalna w Olbięcinie | BD139: Olbięcin | BE139: Olbięcin | BF139: 139 | BG139: 23-230 | BH139: Trzydnik Duży | BI139: 38 | BJ139: 26 | BK139: =VLOOKUP(AM139,wsk_doch!B:D,3,0) -> 103.84
A140: 87184 | C140: 0607 | D140: 06 | E140: 07 | G140: LUBELSKIE | H140: kraśnicki | K140: 0003 | L140: Powiat ziemski | M140: 06 | N140: 07 | P140: 00013 | Q140: 1 | R140: 002 | S140: 001 | T140: 001 | U140: 100 | V140: 0003 | W140: 0100 | Y140: 001 | Z140: 01 | AA140: Zasadnicza Szkoła Zawodowa -wielozawodowa w Annopolu | AB140: 43125451100000 | AC140: 06 | AD140: 07 | AE140: 02 | AF140: Annopol | AG140: Kościuszki | AH140: 22 | AI140: 23-235 | AJ140: Annopol | AK140: 66 | AL140: 66 | AM140: 0607 | AN140: 06 | AO140: 07 | AQ140: =IF(LEN($AM140)=6,VLOOKUP($AM140,slownik_JST!$B:$J,9,0),"") ->  | AR140: =VLOOKUP($AN140&$AO140,slownik_JST!$B:$J,9,0) -> Powiat nie będący miastem na pr. powiatu | AS140: LUBELSKIE | AT140: kraśnicki | AV140: Powiat ziemski | AW140: =VLOOKUP(P140,listy_plac!$M$2:$N$52,2,0) -> Zasadnicza szkoła zawodowa | AX140: =VLOOKUP(R140,listy_plac!$Z$27:$AA$32,2,0) -> Szkoła lub placówka w ramach jednostki złożonej | AY140: =VLOOKUP(S140,listy_plac!$Z$2:$AA$5,2,0) -> publiczna | AZ140: =VLOOKUP(T140,listy_plac!$Z$8:$AA$10,2,0) -> Dzieci lub młodzież | BA140: =VLOOKUP(U140,listy_plac!$Z$13:$AA$15,2,0) -> brak specyfiki | BB140: =VLOOKUP(Y140,listy_plac!$Z$18:$AA$24,2,0) -> dzienna | BC140: Zasadnicza Szkoła Zawodowa -wielozawodowa w Annopolu | BD140: Annopol | BE140: Kościuszki | BF140: 22 | BG140: 23-235 | BH140: Annopol | BI140: 66 | BJ140: 66 | BK140: =VLOOKUP(AM140,wsk_doch!B:D,3,0) -> 103.84
A141: 14087 | C141: 0608 | D141: 06 | E141: 08 | G141: LUBELSKIE | H141: lubartowski | K141: 0003 | L141: Powiat ziemski | M141: 06 | N141: 08 | P141: 00013 | Q141: 1 | R141: 002 | S141: 001 | T141: 001 | U141: 100 | V141: 0003 | W141: 0100 | Y141: 001 | Z141: 01 | AA141: Zasadnicza Szkoła Zawodowa Nr 1 | AB141: 06145873400000 | AC141: 06 | AD141: 08 | AE141: 06 | AF141: Kock | AG141: Warszawska | AH141: 41 | AI141: 21-150 | AJ141: Kock | AK141: 61 | AL141: 17 | AM141: 0608 | AN141: 06 | AO141: 08 | AQ141: =IF(LEN($AM141)=6,VLOOKUP($AM141,slownik_JST!$B:$J,9,0),"") ->  | AR141: =VLOOKUP($AN141&$AO141,slownik_JST!$B:$J,9,0) -> Powiat nie będący miastem na pr. powiatu | AS141: LUBELSKIE | AT141: lubartowski | AV141: Powiat ziemski | AW141: =VLOOKUP(P141,listy_plac!$M$2:$N$52,2,0) -> Zasadnicza szkoła zawodowa | AX141: =VLOOKUP(R141,listy_plac!$Z$27:$AA$32,2,0) -> Szkoła lub placówka w ramach jednostki złożonej | AY141: =VLOOKUP(S141,listy_plac!$Z$2:$AA$5,2,0) -> publiczna | AZ141: =VLOOKUP(T141,listy_plac!$Z$8:$AA$10,2,0) -> Dzieci lub młodzież | BA141: =VLOOKUP(U141,listy_plac!$Z$13:$AA$15,2,0) -> brak specyfiki | BB141: =VLOOKUP(Y141,listy_plac!$Z$18:$AA$24,2,0) -> dzienna | BC141: Zasadnicza Szkoła Zawodowa Nr 1 | BD141: Kock | BE141: Warszawska | BF141: 41 | BG141: 21-150 | BH141: Kock | BI141: 61 | BJ141: 17 | BK141: =VLOOKUP(AM141,wsk_doch!B:D,3,0) -> 114.53
A142: 22759 | C142: 0608 | D142: 06 | E142: 08 | G142: LUBELSKIE | H142: lubartowski | K142: 0003 | L142: Powiat ziemski | M142: 06 | N142: 08 | P142: 00013 | Q142: 1 | R142: 002 | S142: 001 | T142: 001 | U142: 100 | V142: 0003 | W142: 0100 | Y142: 001 | Z142: 01 | AA142: Zasadnicza Szkoła Zawodowa nr. 1 w Zespole Szkół w Ostrowie Lubelskim | AB142: 06146624800000 | AC142: 06 | AD142: 08 | AE142: 10 | AF142: Ostrów Lubelski | AG142: Unicka | AH142: 5 | AI142: 21-110 | AJ142: Ostrów Lubelski | AK142: 29 | AL142: 1 | AM142: 0608 | AN142: 06 | AO142: 08 | AQ142: =IF(LEN($AM142)=6,VLOOKUP($AM142,slownik_JST!$B:$J,9,0),"") ->  | AR142: =VLOOKUP($AN142&$AO142,slownik_JST!$B:$J,9,0) -> Powiat nie będący miastem na pr. powiatu | AS142: LUBELSKIE | AT142: lubartowski | AV142: Powiat ziemski | AW142: =VLOOKUP(P142,listy_plac!$M$2:$N$52,2,0) -> Zasadnicza szkoła zawodowa | AX142: =VLOOKUP(R142,listy_plac!$Z$27:$AA$32,2,0) -> Szkoła lub placówka w ramach jednostki złożonej | AY142: =VLOOKUP(S142,listy_plac!$Z$2:$AA$5,2,0) -> publiczna | AZ142: =VLOOKUP(T142,listy_plac!$Z$8:$AA$10,2,0) -> Dzieci lub młodzież | BA142: =VLOOKUP(U142,listy_plac!$Z$13:$AA$15,2,0) -> brak specyfiki | BB142: =VLOOKUP(Y142,listy_plac!$Z$18:$AA$24,2,0) -> dzienna | BC142: Zasadnicza Szkoła Zawodowa nr. 1 w Zespole Szkół w Ostrowie Lubelskim | BD142: Ostrów Lubelski | BE142: Unicka | BF142: 5 | BG142: 21-110 | BH142: Ostrów Lubelski | BI142: 29 | BJ142: 1 | BK142: =VLOOKUP(AM142,wsk_doch!B:D,3,0) -> 114.53
A143: 21959 | C143: 0608 | D143: 06 | E143: 08 | G143: LUBELSKIE | H143: lubartowski | K143: 0003 | L143: Powiat ziemski | M143: 06 | N143: 08 | P143: 00013 | Q143: 2 | R143: 002 | S143: 001 | T143: 001 | U143: 100 | V143: 0003 | W143: 0100 | Y143: 001 | Z143: 01 | AA143: Zasadnicza Szkoła Zawodowa nr 1 w Lubartowie | AB143: 06146536100000 | AC143: 06 | AD143: 08 | AE143: 01 | AF143: Lubartów | AG143: 1 Maja | AH143: 82 | AI143: 21-100 | AJ143: Lubartów | AK143: 347 | AL143: 215 | AM143: 0608 | AN143: 06 | AO143: 08 | AQ143: =IF(LEN($AM143)=6,VLOOKUP($AM143,slownik_JST!$B:$J,9,0),"") ->  | AR143: =VLOOKUP($AN143&$AO143,slownik_JST!$B:$J,9,0) -> Powiat nie będący miastem na pr. powiatu | AS143: LUBELSKIE | AT143: lubartowski | AV143: Powiat ziemski | AW143: =VLOOKUP(P143,listy_plac!$M$2:$N$52,2,0) -> Zasadnicza szkoła zawodowa | AX143: =VLOOKUP(R143,listy_plac!$Z$27:$AA$32,2,0) -> Szkoła lub placówka w ramach jednostki złożonej | AY143: =VLOOKUP(S143,listy_plac!$Z$2:$AA$5,2,0) -> publiczna | AZ143: =VLOOKUP(T143,listy_plac!$Z$8:$AA$10,2,0) -> Dzieci lub młodzież | BA143: =VLOOKUP(U143,listy_plac!$Z$13:$AA$15,2,0) -> brak specyfiki | BB143: =VLOOKUP(Y143,listy_plac!$Z$18:$AA$24,2,0) -> dzienna | BC143: Zasadnicza Szkoła Zawodowa nr 1 w Lubartowie | BD143: Lubartów | BE143: 1 Maja | BF143: 82 | BG143: 21-100 | BH143: Lubartów | BI143: 347 | BJ143: 215 | BK143: =VLOOKUP(AM143,wsk_doch!B:D,3,0) -> 114.53
A144: 88926 | C144: 0610 | D144: 06 | E144: 10 | G144: LUBELSKIE | H144: łęczyński | K144: 0003 | L144: Powiat ziemski | M144: 06 | N144: 10 | P144: 00013 | Q144: 3 | R144: 002 | S144: 001 | T144: 001 | U144: 100 | V144: 0003 | W144: 0100 | Y144: 001 | Z144: 01 | AA144: Zasadnicza Szkoła Zawodowa | AB144: 43125866700000 | AC144: 06 | AD144: 10 | AE144: 06 | AF144: Kijany | AG144: --- | AH144: 19 | AI144: 21-077 | AJ144: Spiczyn | AK144: 40 | AL144: 1 | AM144: 0610 | AN144: 06 | AO144: 10 | AQ144: =IF(LEN($AM144)=6,VLOOKUP($AM144,slownik_JST!$B:$J,9,0),"") ->  | AR144: =VLOOKUP($AN144&$AO144,slownik_JST!$B:$J,9,0) -> Powiat nie będący miastem na pr. powiatu | AS144: LUBELSKIE | AT144: łęczyński | AV144: Powiat ziemski | AW144: =VLOOKUP(P144,listy_plac!$M$2:$N$52,2,0) -> Zasadnicza szkoła zawodowa | AX144: =VLOOKUP(R144,listy_plac!$Z$27:$AA$32,2,0) -> Szkoła lub placówka w ramach jednostki złożonej | AY144: =VLOOKUP(S144,listy_plac!$Z$2:$AA$5,2,0) -> publiczna | AZ144: =VLOOKUP(T144,listy_plac!$Z$8:$AA$10,2,0) -> Dzieci lub młodzież | BA144: =VLOOKUP(U144,listy_plac!$Z$13:$AA$15,2,0) -> brak specyfiki | BB144: =VLOOKUP(Y144,listy_plac!$Z$18:$AA$24,2,0) -> dzienna | BC144: Zasadnicza Szkoła Zawodowa | BD144: Kijany | BE144: --- | BF144: 19 | BG144: 21-077 | BH144: Spiczyn | BI144: 40 | BJ144: 1 | BK144: =VLOOKUP(AM144,wsk_doch!B:D,3,0) -> 174.6
A145: 88918 | C145: 0610 | D145: 06 | E145: 10 | G145: LUBELSKIE | H145: łęczyński | K145: 0003 | L145: Powiat ziemski | M145: 06 | N145: 10 | P145: 00013 | Q145: 3 | R145: 002 | S145: 001 | T145: 001 | U145: 100 | V145: 0003 | W145: 0100 | Y145: 001 | Z145: 01 | AA145: ZSZ | AB145: 43251748000000 | AC145: 06 | AD145: 10 | AE145: 04 | AF145: Milejów | AG145: Partyzancka | AH145: 62 | AI145: 21-020 | AJ145: Milejów | AK145: 66 | AL145: 16 | AM145: 0610 | AN145: 06 | AO145: 10 | AQ145: =IF(LEN($AM145)=6,VLOOKUP($AM145,slownik_JST!$B:$J,9,0),"") ->  | AR145: =VLOOKUP($AN145&$AO145,slownik_JST!$B:$J,9,0) -> Powiat nie będący miastem na pr. powiatu | AS145: LUBELSKIE | AT145: łęczyński | AV145: Powiat ziemski | AW145: =VLOOKUP(P145,listy_plac!$M$2:$N$52,2,0) -> Zasadnicza szkoła zawodowa | AX145: =VLOOKUP(R145,listy_plac!$Z$27:$AA$32,2,0) -> Szkoła lub placówka w ramach jednostki złożonej | AY145: =VLOOKUP(S145,listy_plac!$Z$2:$AA$5,2,0) -> publiczna | AZ145: =VLOOKUP(T145,listy_plac!$Z$8:$AA$10,2,0) -> Dzieci lub młodzież | BA145: =VLOOKUP(U145,listy_plac!$Z$13:$AA$15,2,0) -> brak specyfiki | BB145: =VLOOKUP(Y145,listy_plac!$Z$18:$AA$24,2,0) -> dzienna | BC145: ZSZ | BD145: Milejów | BE145: Partyzancka | BF145: 62 | BG145: 21-020 | BH145: Milejów | BI145: 66 | BJ145: 16 | BK145: =VLOOKUP(AM145,wsk_doch!B:D,3,0) -> 174.6
A146: 81681 | C146: 0610 | D146: 06 | E146: 10 | G146: LUBELSKIE | H146: łęczyński | K146: 0003 | L146: Powiat ziemski | M146: 06 | N146: 10 | P146: 00013 | Q146: 2 | R146: 002 | S146: 001 | T146: 001 | U146: 100 | V146: 0003 | W146: 0100 | Y146: 001 | Z146: 01 | AA146: Zasadnicza Szkoła Zawodowa | AB146: 43127807800000 | AC146: 06 | AD146: 10 | AE146: 03 | AF146: Łęczna | AG146: Bogdanowicza | AH146: 9 | AI146: 21-010 | AJ146: Łęczna | AK146: 36 | AL146: 12 | AM146: 0610 | AN146: 06 | AO146: 10 | AQ146: =IF(LEN($AM146)=6,VLOOKUP($AM146,slownik_JST!$B:$J,9,0),"") ->  | AR146: =VLOOKUP($AN146&$AO146,slownik_JST!$B:$J,9,0) -> Powiat nie będący miastem na pr. powiatu | AS146: LUBELSKIE | AT146: łęczyński | AV146: Powiat ziemski | AW146: =VLOOKUP(P146,listy_plac!$M$2:$N$52,2,0) -> Zasadnicza szkoła zawodowa | AX146: =VLOOKUP(R146,listy_plac!$Z$27:$AA$32,2,0) -> Szkoła lub placówka w ramach jednostki złożonej | AY146: =VLOOKUP(S146,listy_plac!$Z$2:$AA$5,2,0) -> publiczna | AZ146: =VLOOKUP(T146,listy_plac!$Z$8:$AA$10,2,0) -> Dzieci lub młodzież | BA146: =VLOOKUP(U146,listy_plac!$Z$13:$AA$15,2,0) -> brak specyfiki | BB146: =VLOOKUP(Y146,listy_plac!$Z$18:$AA$24,2,0) -> dzienna | BC146: Zasadnicza Szkoła Zawodowa | BD146: Łęczna | BE146: Bogdanowicza | BF146: 9 | BG146: 21-010 | BH146: Łęczna | BI146: 36 | BJ146: 12 | BK146: =VLOOKUP(AM146,wsk_doch!B:D,3,0) -> 174.6
A147: 13620 | C147: 0611 | D147: 06 | E147: 11 | G147: LUBELSKIE | H147: łukowski | K147: 0003 | L147: Powiat ziemski | M147: 06 | N147: 11 | P147: 00013 | Q147: 2 | R147: 002 | S147: 001 | T147: 001 | U147: 100 | V147: 0003 | W147: 0100 | Y147: 001 | Z147: 01 | AA147: Zasadnicza Szkoła Zawodowa z Oddz. Integracyjnymi Nr 2 | AB147: 03031144900000 | AC147: 06 | AD147: 11 | AE147: 01 | AF147: Łuków | AG147: Warszawska | AH147: 88 | AI147: 21-400 | AJ147: Łuków | AK147: 221 | AL147: 199 | AM147: 0611 | AN147: 06 | AO147: 11 | AQ147: =IF(LEN($AM147)=6,VLOOKUP($AM147,slownik_JST!$B:$J,9,0),"") ->  | AR147: =VLOOKUP($AN147&$AO147,slownik_JST!$B:$J,9,0) -> Powiat nie będący miastem na pr. powiatu | AS147: LUBELSKIE | AT147: łukowski | AV147: Powiat ziemski | AW147: =VLOOKUP(P147,listy_plac!$M$2:$N$52,2,0) -> Zasadnicza szkoła zawodowa | AX147: =VLOOKUP(R147,listy_plac!$Z$27:$AA$32,2,0) -> Szkoła lub placówka w ramach jednostki złożonej | AY147: =VLOOKUP(S147,listy_plac!$Z$2:$AA$5,2,0) -> publiczna | AZ147: =VLOOKUP(T147,listy_plac!$Z$8:$AA$10,2,0) -> Dzieci lub młodzież | BA147: =VLOOKUP(U147,listy_plac!$Z$13:$AA$15,2,0) -> brak specyfiki | BB147: =VLOOKUP(Y147,listy_plac!$Z$18:$AA$24,2,0) -> dzienna | BC147: Zasadnicza Szkoła Zawodowa z Oddz. Integracyjnymi Nr 2 | BD147: Łuków | BE147: Warszawska | BF147: 88 | BG147: 21-400 | BH147: Łuków | BI147: 221 | BJ147: 199 | BK147: =VLOOKUP(AM147,wsk_doch!B:D,3,0) -> 122.12
A148: 22099 | C148: 0611 | D148: 06 | E148: 11 | G148: LUBELSKIE | H148: łukowski | K148: 0003 | L148: Powiat ziemski | M148: 06 | N148: 11 | P148: 00013 | Q148: 3 | R148: 002 | S148: 001 | T148: 001 | U148: 100 | V148: 0003 | W148: 0100 | Y148: 001 | Z148: 01 | AA148: ZSZ w Zespole Szkół im. Gen. F.Kamiński | AB148: 03031116500000 | AC148: 06 | AD148: 11 | AE148: 03 | AF148: Adamów | AG148: Cmentarna | AH148: 6 | AI148: 21-412 | AJ148: Adamów | AK148: 88 | AL148: 54 | AM148: 0611 | AN148: 06 | AO148: 11 | AQ148: =IF(LEN($AM148)=6,VLOOKUP($AM148,slownik_JST!$B:$J,9,0),"") ->  | AR148: =VLOOKUP($AN148&$AO148,slownik_JST!$B:$J,9,0) -> Powiat nie będący miastem na pr. powiatu | AS148: LUBELSKIE | AT148: łukowski | AV148: Powiat ziemski | AW148: =VLOOKUP(P148,listy_plac!$M$2:$N$52,2,0) -> Zasadnicza szkoła zawodowa | AX148: =VLOOKUP(R148,listy_plac!$Z$27:$AA$32,2,0) -> Szkoła lub placówka w ramach jednostki złożonej | AY148: =VLOOKUP(S148,listy_plac!$Z$2:$AA$5,2,0) -> publiczna | AZ148: =VLOOKUP(T148,listy_plac!$Z$8:$AA$10,2,0) -> Dzieci lub młodzież | BA148: =VLOOKUP(U148,listy_plac!$Z$13:$AA$15,2,0) -> brak specyfiki | BB148: =VLOOKUP(Y148,listy_plac!$Z$18:$AA$24,2,0) -> dzienna | BC148: ZSZ w Zespole Szkół im. Gen. F.Kamiński | BD148: Adamów | BE148: Cmentarna | BF148: 6 | BG148: 21-412 | BH148: Adamów | BI148: 88 | BJ148: 54 | BK148: =VLOOKUP(AM148,wsk_doch!B:D,3,0) -> 122.12
A149: 13165 | C149: 0611 | D149: 06 | E149: 11 | G149: LUBELSKIE | H149: łukowski | K149: 0003 | L149: Powiat ziemski | M149: 06 | N149: 11 | P149: 00013 | Q149: 2 | R149: 002 | S149: 001 | T149: 001 | U149: 100 | V149: 0003 | W149: 0100 | Y149: 001 | Z149: 01 | AA149: Zasadnicza Szkoła Zawodowa Nr 1 | AB149: 03031139500000 | AC149: 06 | AD149: 11 | AE149: 01 | AF149: Łuków | AG149: Al. T. Kościuszki | AH149: 10 | AI149: 21-400 | AJ149: Łuków | AK149: 183 | AL149: 127 | AM149: 0611 | AN149: 06 | AO149: 11 | AQ149: =IF(LEN($AM149)=6,VLOOKUP($AM149,slownik_JST!$B:$J,9,0),"") ->  | AR149: =VLOOKUP($AN149&$AO149,slownik_JST!$B:$J,9,0) -> Powiat nie będący miastem na pr. powiatu | AS149: LUBELSKIE | AT149: łukowski | AV149: Powiat ziemski | AW149: =VLOOKUP(P149,listy_plac!$M$2:$N$52,2,0) -> Zasadnicza szkoła zawodowa | AX149: =VLOOKUP(R149,listy_plac!$Z$27:$AA$32,2,0) -> Szkoła lub placówka w ramach jednostki złożonej | AY149: =VLOOKUP(S149,listy_plac!$Z$2:$AA$5,2,0) -> publiczna | AZ149: =VLOOKUP(T149,listy_plac!$Z$8:$AA$10,2,0) -> Dzieci lub młodzież | BA149: =VLOOKUP(U149,listy_plac!$Z$13:$AA$15,2,0) -> brak specyfiki | BB149: =VLOOKUP(Y149,listy_plac!$Z$18:$AA$24,2,0) -> dzienna | BC149: Zasadnicza Szkoła Zawodowa Nr 1 | BD149: Łuków | BE149: Al. T. Kościuszki | BF149: 10 | BG149: 21-400 | BH149: Łuków | BI149: 183 | BJ149: 127 | BK149: =VLOOKUP(AM149,wsk_doch!B:D,3,0) -> 122.12
A150: 106692 | C150: 0612 | D150: 06 | E150: 12 | G150: LUBELSKIE | H150: opolski | K150: 0003 | L150: Powiat ziemski | M150: 06 | N150: 12 | P150: 00013 | Q150: 2 | R150: 002 | S150: 001 | T150: 001 | U150: 100 | V150: 0003 | W150: 0100 | Y150: 001 | Z150: 01 | AA150: Zasadnicza Szkoła Zawodowa | AB150: 43125493600000 | AC150: 06 | AD150: 12 | AE150: 05 | AF150: Opole Lubelskie | AG150: Kolejowa | AH150: 2 | AI150: 24-300 | AJ150: Opole Lubelskie | AK150: 66 | AL150: 66 | AM150: 0612 | AN150: 06 | AO150: 12 | AQ150: =IF(LEN($AM150)=6,VLOOKUP($AM150,slownik_JST!$B:$J,9,0),"") ->  | AR150: =VLOOKUP($AN150&$AO150,slownik_JST!$B:$J,9,0) -> Powiat nie będący miastem na pr. powiatu | AS150: LUBELSKIE | AT150: opolski | AV150: Powiat ziemski | AW150: =VLOOKUP(P150,listy_plac!$M$2:$N$52,2,0) -> Zasadnicza szkoła zawodowa | AX150: =VLOOKUP(R150,listy_plac!$Z$27:$AA$32,2,0) -> Szkoła lub placówka w ramach jednostki złożonej | AY150: =VLOOKUP(S150,listy_plac!$Z$2:$AA$5,2,0) -> publiczna | AZ150: =VLOOKUP(T150,listy_plac!$Z$8:$AA$10,2,0) -> Dzieci lub młodzież | BA150: =VLOOKUP(U150,listy_plac!$Z$13:$AA$15,2,0) -> brak specyfiki | BB150: =VLOOKUP(Y150,listy_plac!$Z$18:$AA$24,2,0) -> dzienna | BC150: Zasadnicza Szkoła Zawodowa | BD150: Opole Lubelskie | BE150: Kolejowa | BF150: 2 | BG150: 24-300 | BH150: Opole Lubelskie | BI150: 66 | BJ150: 66 | BK150: =VLOOKUP(AM150,wsk_doch!B:D,3,0) -> 92.7
A151: 44061 | C151: 0614 | D151: 06 | E151: 14 | G151: LUBELSKIE | H151: puławski | K151: 0003 | L151: Powiat ziemski | M151: 06 | N151: 14 | P151: 00013 | Q151: 2 | R151: 002 | S151: 001 | T151: 001 | U151: 100 | V151: 0003 | W151: 0100 | Y151: 001 | Z151: 01 | AA151: Zasadnicza Szkoła Zawodowa nr 1 | AB151: 06065959000000 | AC151: 06 | AD151: 14 | AE151: 01 | AF151: Puławy | AG151: Polna | AH151: 18 | AI151: 24-100 | AJ151: Puławy | AK151: 102 | AL151: 40 | AM151: 0614 | AN151: 06 | AO151: 14 | AQ151: =IF(LEN($AM151)=6,VLOOKUP($AM151,slownik_JST!$B:$J,9,0),"") ->  | AR151: =VLOOKUP($AN151&$AO151,slownik_JST!$B:$J,9,0) -> Powiat nie będący miastem na pr. powiatu | AS151: LUBELSKIE | AT151: puławski | AV151: Powiat ziemski | AW151: =VLOOKUP(P151,listy_plac!$M$2:$N$52,2,0) -> Zasadnicza szkoła zawodowa | AX151: =VLOOKUP(R151,listy_plac!$Z$27:$AA$32,2,0) -> Szkoła lub placówka w ramach jednostki złożonej | AY151: =VLOOKUP(S151,listy_plac!$Z$2:$AA$5,2,0) -> publiczna | AZ151: =VLOOKUP(T151,listy_plac!$Z$8:$AA$10,2,0) -> Dzieci lub młodzież | BA151: =VLOOKUP(U151,listy_plac!$Z$13:$AA$15,2,0) -> brak specyfiki | BB151: =VLOOKUP(Y151,listy_plac!$Z$18:$AA$24,2,0) -> dzienna | BC151: Zasadnicza Szkoła Zawodowa nr 1 | BD151: Puławy | BE151: Polna | BF151: 18 | BG151: 24-100 | BH151: Puławy | BI151: 102 | BJ151: 40 | BK151: =VLOOKUP(AM151,wsk_doch!B:D,3,0) -> 177.85
A152: 48022 | C152: 0614 | D152: 06 | E152: 14 | G152: LUBELSKIE | H152: puławski | K152: 0003 | L152: Powiat ziemski | M152: 06 | N152: 14 | P152: 00013 | Q152: 1 | R152: 002 | S152: 001 | T152: 001 | U152: 100 | V152: 0003 | W152: 0100 | Y152: 001 | Z152: 01 | AA152: Zasadnicza Szkoła Zawodowa | AB152: 06066459000000 | AC152: 06 | AD152: 14 | AE152: 04 | AF152: Kazimierz Dolny | AG152: Nadwiślańska | AH152: 9 | AI152: 24-120 | AJ152: Kazimierz Dolny | AK152: 77 | AL152: 77 | AM152: 0614 | AN152: 06 | AO152: 14 | AQ152: =IF(LEN($AM152)=6,VLOOKUP($AM152,slownik_JST!$B:$J,9,0),"") ->  | AR152: =VLOOKUP($AN152&$AO152,slownik_JST!$B:$J,9,0) -> Powiat nie będący miastem na pr. powiatu | AS152: LUBELSKIE | AT152: puławski | AV152: Powiat ziemski | AW152: =VLOOKUP(P152,listy_plac!$M$2:$N$52,2,0) -> Zasadnicza szkoła zawodowa | AX152: =VLOOKUP(R152,listy_plac!$Z$27:$AA$32,2,0) -> Szkoła lub placówka w ramach jednostki złożonej | AY152: =VLOOKUP(S152,listy_plac!$Z$2:$AA$5,2,0) -> publiczna | AZ152: =VLOOKUP(T152,listy_plac!$Z$8:$AA$10,2,0) -> Dzieci lub młodzież | BA152: =VLOOKUP(U152,listy_plac!$Z$13:$AA$15,2,0) -> brak specyfiki | BB152: =VLOOKUP(Y152,listy_plac!$Z$18:$AA$24,2,0) -> dzienna | BC152: Zasadnicza Szkoła Zawodowa | BD152: Kazimierz Dolny | BE152: Nadwiślańska | BF152: 9 | BG152: 24-120 | BH152: Kazimierz Dolny | BI152: 77 | BJ152: 77 | BK152: =VLOOKUP(AM152,wsk_doch!B:D,3,0) -> 177.85
A153: 92522 | C153: 0614 | D153: 06 | E153: 14 | G153: LUBELSKIE | H153: puławski | K153: 0003 | L153: Powiat ziemski | M153: 06 | N153: 14 | P153: 00013 | Q153: 2 | R153: 002 | S153: 001 | T153: 001 | U153: 001 | V153: 0003 | W153: 0009 | X153: 011 | Y153: 001 | Z153: 01 | AA153: Zasadnicza Szkoła Zawodowa nr6 | AB153: 06044686400000 | AC153: 06 | AD153: 14 | AE153: 01 | AF153: Puławy | AG153: C.K. Norwida | AH153: 8A | AI153: 24-100 | AJ153: Puławy | AK153: 26 | AL153: 17 | AM153: 0614 | AN153: 06 | AO153: 14 | AQ153: =IF(LEN($AM153)=6,VLOOKUP($AM153,slownik_JST!$B:$J,9,0),"") ->  | AR153: =VLOOKUP($AN153&$AO153,slownik_JST!$B:$J,9,0) -> Powiat nie będący miastem na pr. powiatu | AS153: LUBELSKIE | AT153: puławski | AV153: Powiat ziemski | AW153: =VLOOKUP(P153,listy_plac!$M$2:$N$52,2,0) -> Zasadnicza szkoła zawodowa | AX153: =VLOOKUP(R153,listy_plac!$Z$27:$AA$32,2,0) -> Szkoła lub placówka w ramach jednostki złożonej | AY153: =VLOOKUP(S153,listy_plac!$Z$2:$AA$5,2,0) -> publiczna | AZ153: =VLOOKUP(T153,listy_plac!$Z$8:$AA$10,2,0) -> Dzieci lub młodzież | BA153: =VLOOKUP(U153,listy_plac!$Z$13:$AA$15,2,0) -> specjalna | BB153: =VLOOKUP(Y153,listy_plac!$Z$18:$AA$24,2,0) -> dzienna | BC153: Zasadnicza Szkoła Zawodowa nr6 | BD153: Puławy | BE153: C.K. Norwida | BF153: 8A | BG153: 24-100 | BH153: Puławy | BI153: 26 | BJ153: 17 | BK153: =VLOOKUP(AM153,wsk_doch!B:D,3,0) -> 177.85
A154: 87577 | C154: 061408 | D154: 06 | E154: 14 | F154: 08 | G154: LUBELSKIE | H154: puławski | I154: Nałęczów | J154: M-Gm | K154: 0001 | L154: Gmina | M154: 06 | N154: 14 | O154: 08 | P154: 00013 | Q154: 1 | R154: 002 | S154: 001 | T154: 001 | U154: 100 | V154: 0003 | W154: 0100 | Y154: 001 | Z154: 01 | AA154: Zasadnicza Szkoła Zawodowa | AB154: 06052039400000 | AC154: 06 | AD154: 14 | AE154: 08 | AF154: Nałęczów | AG154: Spółdzielcza | AH154: 17 | AI154: 24-140 | AJ154: Nałęczów | AK154: 59 | AL154: 14 | AM154: 061408 | AN154: 06 | AO154: 14 | AP154: 08 | AQ154: =IF(LEN($AM154)=6,VLOOKUP($AM154,slownik_JST!$B:$J,9,0),"") -> Gmina miejsko-wiejska | AR154: =VLOOKUP($AN154&$AO154,slownik_JST!$B:$J,9,0) -> Powiat nie będący miastem na pr. powiatu | AS154: LUBELSKIE | AT154: puławski | AU154: Nałęczów | AV154: Gmina | AW154: =VLOOKUP(P154,listy_plac!$M$2:$N$52,2,0) -> Zasadnicza szkoła zawodowa | AX154: =VLOOKUP(R154,listy_plac!$Z$27:$AA$32,2,0) -> Szkoła lub placówka w ramach jednostki złożonej | AY154: =VLOOKUP(S154,listy_plac!$Z$2:$AA$5,2,0) -> publiczna | AZ154: =VLOOKUP(T154,listy_plac!$Z$8:$AA$10,2,0) -> Dzieci lub młodzież | BA154: =VLOOKUP(U154,listy_plac!$Z$13:$AA$15,2,0) -> brak specyfiki | BB154: =VLOOKUP(Y154,listy_plac!$Z$18:$AA$24,2,0) -> dzienna | BC154: Zasadnicza Szkoła Zawodowa | BD154: Nałęczów | BE154: Spółdzielcza | BF154: 17 | BG154: 24-140 | BH154: Nałęczów | BI154: 59 | BJ154: 14 | BK154: =VLOOKUP(AM154,wsk_doch!B:D,3,0) -> 1305.05
A155: 107700 | C155: 0615 | D155: 06 | E155: 15 | G155: LUBELSKIE | H155: radzyński | K155: 0003 | L155: Powiat ziemski | M155: 06 | N155: 15 | P155: 00013 | Q155: 2 | R155: 002 | S155: 001 | T155: 001 | U155: 100 | V155: 0003 | W155: 0100 | Y155: 001 | Z155: 01 | AA155: Zasadnicza Szkoła Zawodowa w ZSP | AB155: 03030879500000 | AC155: 06 | AD155: 15 | AE155: 01 | AF155: Radzyń Podlaski | AG155: Sikorskiego | AH155: 15 | AI155: 21-315 | AJ155: Radzyń Podlaski | AK155: 271 | AL155: 90 | AM155: 0615 | AN155: 06 | AO155: 15 | AQ155: =IF(LEN($AM155)=6,VLOOKUP($AM155,slownik_JST!$B:$J,9,0),"") ->  | AR155: =VLOOKUP($AN155&$AO155,slownik_JST!$B:$J,9,0) -> Powiat nie będący miastem na pr. powiatu | AS155: LUBELSKIE | AT155: radzyński | AV155: Powiat ziemski | AW155: =VLOOKUP(P155,listy_plac!$M$2:$N$52,2,0) -> Zasadnicza szkoła zawodowa | AX155: =VLOOKUP(R155,listy_plac!$Z$27:$AA$32,2,0) -> Szkoła lub placówka w ramach jednostki złożonej | AY155: =VLOOKUP(S155,listy_plac!$Z$2:$AA$5,2,0) -> publiczna | AZ155: =VLOOKUP(T155,listy_plac!$Z$8:$AA$10,2,0) -> Dzieci lub młodzież | BA155: =VLOOKUP(U155,listy_plac!$Z$13:$AA$15,2,0) -> brak specyfiki | BB155: =VLOOKUP(Y155,listy_plac!$Z$18:$AA$24,2,0) -> dzienna | BC155: Zasadnicza Szkoła Zawodowa w ZSP | BD155: Radzyń Podlaski | BE155: Sikorskiego | BF155: 15 | BG155: 21-315 | BH155: Radzyń Podlaski | BI155: 271 | BJ155: 90 | BK155: =VLOOKUP(AM155,wsk_doch!B:D,3,0) -> 106.56
A156: 64500 | C156: 061505 | D156: 06 | E156: 15 | F156: 05 | G156: LUBELSKIE | H156: radzyński | I156: Komarówka Podlaska | J156: Gm | K156: 0001 | L156: Gmina | M156: 06 | N156: 15 | O156: 05 | P156: 00013 | Q156: 3 | R156: 002 | S156: 001 | T156: 001 | U156: 100 | V156: 0003 | W156: 0100 | Y156: 001 | Z156: 01 | AA156: Zasadnicza Szkoła Zawodowa | AB156: 03088744500000 | AC156: 06 | AD156: 15 | AE156: 05 | AF156: Komarówka Podlaska | AG156: Waleriana Batki | AH156: 20 | AI156: 21-311 | AJ156: Komarówka Podlaska | AK156: 13 | AL156: 13 | AM156: 061505 | AN156: 06 | AO156: 15 | AP156: 05 | AQ156: =IF(LEN($AM156)=6,VLOOKUP($AM156,slownik_JST!$B:$J,9,0),"") -> Gmina wiejska | AR156: =VLOOKUP($AN156&$AO156,slownik_JST!$B:$J,9,0) -> Powiat nie będący miastem na pr. powiatu | AS156: LUBELSKIE | AT156: radzyński | AU156: Komarówka Podlaska | AV156: Gmina | AW156: =VLOOKUP(P156,listy_plac!$M$2:$N$52,2,0) -> Zasadnicza szkoła zawodowa | AX156: =VLOOKUP(R156,listy_plac!$Z$27:$AA$32,2,0) -> Szkoła lub placówka w ramach jednostki złożonej | AY156: =VLOOKUP(S156,listy_plac!$Z$2:$AA$5,2,0) -> publiczna | AZ156: =VLOOKUP(T156,listy_plac!$Z$8:$AA$10,2,0) -> Dzieci lub młodzież | BA156: =VLOOKUP(U156,listy_plac!$Z$13:$AA$15,2,0) -> brak specyfiki | BB156: =VLOOKUP(Y156,listy_plac!$Z$18:$AA$24,2,0) -> dzienna | BC156: Zasadnicza Szkoła Zawodowa | BD156: Komarówka Podlaska | BE156: Waleriana Batki | BF156: 20 | BG156: 21-311 | BH156: Komarówka Podlaska | BI156: 13 | BJ156: 13 | BK156: =VLOOKUP(AM156,wsk_doch!B:D,3,0) -> 859.33
A157: 19577 | C157: 0616 | D157: 06 | E157: 16 | G157: LUBELSKIE | H157: rycki | K157: 0003 | L157: Powiat ziemski | M157: 06 | N157: 16 | P157: 00013 | Q157: 2 | R157: 002 | S157: 001 | T157: 001 | U157: 100 | V157: 0003 | W157: 0100 | Y157: 001 | Z157: 01 | AA157: Zasadnicza Szkoła Zawodowa Nr 2 | AB157: 06070735900000 | AC157: 06 | AD157: 16 | AE157: 01 | AF157: Dęblin | AG157: Wiślana | AH157: 3b | AI157: 08-530 | AJ157: Dęblin | AK157: 71 | AL157: 36 | AM157: 0616 | AN157: 06 | AO157: 16 | AQ157: =IF(LEN($AM157)=6,VLOOKUP($AM157,slownik_JST!$B:$J,9,0),"") ->  | AR157: =VLOOKUP($AN157&$AO157,slownik_JST!$B:$J,9,0) -> Powiat nie będący miastem na pr. powiatu | AS157: LUBELSKIE | AT157: rycki | AV157: Powiat ziemski | AW157: =VLOOKUP(P157,listy_plac!$M$2:$N$52,2,0) -> Zasadnicza szkoła zawodowa | AX157: =VLOOKUP(R157,listy_plac!$Z$27:$AA$32,2,0) -> Szkoła lub placówka w ramach jednostki złożonej | AY157: =VLOOKUP(S157,listy_plac!$Z$2:$AA$5,2,0) -> publiczna | AZ157: =VLOOKUP(T157,listy_plac!$Z$8:$AA$10,2,0) -> Dzieci lub młodzież | BA157: =VLOOKUP(U157,listy_plac!$Z$13:$AA$15,2,0) -> brak specyfiki | BB157: =VLOOKUP(Y157,listy_plac!$Z$18:$AA$24,2,0) -> dzienna | BC157: Zasadnicza Szkoła Zawodowa Nr 2 | BD157: Dęblin | BE157: Wiślana | BF157: 3b | BG157: 08-530 | BH157: Dęblin | BI157: 71 | BJ157: 36 | BK157: =VLOOKUP(AM157,wsk_doch!B:D,3,0) -> 155.56
A158: 84190 | C158: 0617 | D158: 06 | E158: 17 | G158: LUBELSKIE | H158: świdnicki | K158: 0003 | L158: Powiat ziemski | M158: 06 | N158: 17 | P158: 00013 | Q158: 1 | R158: 002 | S158: 001 | T158: 001 | U158: 100 | V158: 0003 | W158: 0100 | Y158: 001 | Z158: 01 | AA158: Zasadnicza szkoła zawodowa | AB158: 43126608100000 | AC158: 06 | AD158: 17 | AE158: 03 | AF158: Piaski | AG158: Partyzantów | AH158: 19 | AI158: 21-050 | AJ158: Piaski | AK158: 90 | AL158: 16 | AM158: 0617 | AN158: 06 | AO158: 17 | AQ158: =IF(LEN($AM158)=6,VLOOKUP($AM158,slownik_JST!$B:$J,9,0),"") ->  | AR158: =VLOOKUP($AN158&$AO158,slownik_JST!$B:$J,9,0) -> Powiat nie będący miastem na pr. powiatu | AS158: LUBELSKIE | AT158: świdnicki | AV158: Powiat ziemski | AW158: =VLOOKUP(P158,listy_plac!$M$2:$N$52,2,0) -> Zasadnicza szkoła zawodowa | AX158: =VLOOKUP(R158,listy_plac!$Z$27:$AA$32,2,0) -> Szkoła lub placówka w ramach jednostki złożonej | AY158: =VLOOKUP(S158,listy_plac!$Z$2:$AA$5,2,0) -> publiczna | AZ158: =VLOOKUP(T158,listy_plac!$Z$8:$AA$10,2,0) -> Dzieci lub młodzież | BA158: =VLOOKUP(U158,listy_plac!$Z$13:$AA$15,2,0) -> brak specyfiki | BB158: =VLOOKUP(Y158,listy_plac!$Z$18:$AA$24,2,0) -> dzienna | BC158: Zasadnicza szkoła zawodowa | BD158: Piaski | BE158: Partyzantów | BF158: 19 | BG158: 21-050 | BH158: Piaski | BI158: 90 | BJ158: 16 | BK158: =VLOOKUP(AM158,wsk_doch!B:D,3,0) -> 166.43
A159: 85944 | C159: 0617 | D159: 06 | E159: 17 | G159: LUBELSKIE | H159: świdnicki | K159: 0003 | L159: Powiat ziemski | M159: 06 | N159: 17 | P159: 00013 | Q159: 3 | R159: 002 | S159: 001 | T159: 001 | U159: 100 | V159: 0003 | W159: 0100 | Y159: 001 | Z159: 01 | AA159: Zasadnicza Szkoła Zawodowa | AB159: 43126769500000 | AC159: 06 | AD159: 17 | AE159: 05 | AF159: Trawniki | AI159: 21-044 | AJ159: Trawniki | AK159: 46 | AL159: 46 | AM159: 0617 | AN159: 06 | AO159: 17 | AQ159: =IF(LEN($AM159)=6,VLOOKUP($AM159,slownik_JST!$B:$J,9,0),"") ->  | AR159: =VLOOKUP($AN159&$AO159,slownik_JST!$B:$J,9,0) -> Powiat nie będący miastem na pr. powiatu | AS159: LUBELSKIE | AT159: świdnicki | AV159: Powiat ziemski | AW159: =VLOOKUP(P159,listy_plac!$M$2:$N$52,2,0) -> Zasadnicza szkoła zawodowa | AX159: =VLOOKUP(R159,listy_plac!$Z$27:$AA$32,2,0) -> Szkoła lub placówka w ramach jednostki złożonej | AY159: =VLOOKUP(S159,listy_plac!$Z$2:$AA$5,2,0) -> publiczna | AZ159: =VLOOKUP(T159,listy_plac!$Z$8:$AA$10,2,0) -> Dzieci lub młodzież | BA159: =VLOOKUP(U159,listy_plac!$Z$13:$AA$15,2,0) -> brak specyfiki | BB159: =VLOOKUP(Y159,listy_plac!$Z$18:$AA$24,2,0) -> dzienna | BC159: Zasadnicza Szkoła Zawodowa | BD159: Trawniki | BE159: 0 | BF159: 0 | BG159: 21-044 | BH159: Trawniki | BI159: 46 | BJ159: 46 | BK159: =VLOOKUP(AM159,wsk_doch!B:D,3,0) -> 166.43
A160: 49614 | C160: 0617 | D160: 06 | E160: 17 | G160: LUBELSKIE | H160: świdnicki | K160: 0003 | L160: Powiat ziemski | M160: 06 | N160: 17 | P160: 00013 | Q160: 2 | R160: 002 | S160: 001 | T160: 001 | U160: 100 | V160: 0003 | W160: 0100 | Y160: 001 | Z160: 01 | AA160: Zasadnicza Szkoła Zawodowa Nr 2 | AB160: 43224320200000 | AC160: 06 | AD160: 17 | AE160: 01 | AF160: Świdnik | AG160: Okulickiego | AH160: 13 | AI160: 21-040 | AJ160: Świdnik | AK160: 12 | AL160: 11 | AM160: 0617 | AN160: 06 | AO160: 17 | AQ160: =IF(LEN($AM160)=6,VLOOKUP($AM160,slownik_JST!$B:$J,9,0),"") ->  | AR160: =VLOOKUP($AN160&$AO160,slownik_JST!$B:$J,9,0) -> Powiat nie będący miastem na pr. powiatu | AS160: LUBELSKIE | AT160: świdnicki | AV160: Powiat ziemski | AW160: =VLOOKUP(P160,listy_plac!$M$2:$N$52,2,0) -> Zasadnicza szkoła zawodowa | AX160: =VLOOKUP(R160,listy_plac!$Z$27:$AA$32,2,0) -> Szkoła lub placówka w ramach jednostki złożonej | AY160: =VLOOKUP(S160,listy_plac!$Z$2:$AA$5,2,0) -> publiczna | AZ160: =VLOOKUP(T160,listy_plac!$Z$8:$AA$10,2,0) -> Dzieci lub młodzież | BA160: =VLOOKUP(U160,listy_plac!$Z$13:$AA$15,2,0) -> brak specyfiki | BB160: =VLOOKUP(Y160,listy_plac!$Z$18:$AA$24,2,0) -> dzienna | BC160: Zasadnicza Szkoła Zawodowa Nr 2 | BD160: Świdnik | BE160: Okulickiego | BF160: 13 | BG160: 21-040 | BH160: Świdnik | BI160: 12 | BJ160: 11 | BK160: =VLOOKUP(AM160,wsk_doch!B:D,3,0) -> 166.43
A161: 24165 | C161: 0618 | D161: 06 | E161: 18 | G161: LUBELSKIE | H161: tomaszowski | K161: 0003 | L161: Powiat ziemski | M161: 06 | N161: 18 | P161: 00013 | Q161: 2 | R161: 002 | S161: 001 | T161: 001 | U161: 100 | V161: 0003 | W161: 0100 | Y161: 001 | Z161: 01 | AA161: Zasadnicza Szkoła Zawodowa przy ZS Nr 4 | AB161: 95115300300000 | AC161: 06 | AD161: 18 | AE161: 01 | AF161: Tomaszów Lubelski | AG161: Żwirki i Wigury | AH161: 7 | AI161: 22-600 | AJ161: Tomaszów Lubelski | AK161: 179 | AL161: 30 | AM161: 0618 | AN161: 06 | AO161: 18 | AQ161: =IF(LEN($AM161)=6,VLOOKUP($AM161,slownik_JST!$B:$J,9,0),"") ->  | AR161: =VLOOKUP($AN161&$AO161,slownik_JST!$B:$J,9,0) -> Powiat nie będący miastem na pr. powiatu | AS161: LUBELSKIE | AT161: tomaszowski | AV161: Powiat ziemski | AW161: =VLOOKUP(P161,listy_plac!$M$2:$N$52,2,0) -> Zasadnicza szkoła zawodowa | AX161: =VLOOKUP(R161,listy_plac!$Z$27:$AA$32,2,0) -> Szkoła lub placówka w ramach jednostki złożonej | AY161: =VLOOKUP(S161,listy_plac!$Z$2:$AA$5,2,0) -> publiczna | AZ161: =VLOOKUP(T161,listy_plac!$Z$8:$AA$10,2,0) -> Dzieci lub młodzież | BA161: =VLOOKUP(U161,listy_plac!$Z$13:$AA$15,2,0) -> brak specyfiki | BB161: =VLOOKUP(Y161,listy_plac!$Z$18:$AA$24,2,0) -> dzienna | BC161: Zasadnicza Szkoła Zawodowa przy ZS Nr 4 | BD161: Tomaszów Lubelski | BE161: Żwirki i Wigury | BF161: 7 | BG161: 22-600 | BH161: Tomaszów Lubelski | BI161: 179 | BJ161: 30 | BK161: =VLOOKUP(AM161,wsk_doch!B:D,3,0) -> 98.43
A162: 81055 | C162: 0619 | D162: 06 | E162: 19 | G162: LUBELSKIE | H162: włodawski | K162: 0003 | L162: Powiat ziemski | M162: 06 | N162: 19 | P162: 00013 | Q162: 2 | R162: 002 | S162: 001 | T162: 001 | U162: 100 | V162: 0003 | W162: 0100 | Y162: 001 | Z162: 01 | AA162: Zasadnicza Szkoła Zawodowa nr 1 | AB162: 11060776000000 | AC162: 06 | AD162: 19 | AE162: 01 | AF162: Włodawa | AG162: Modrzewskiego | AH162: 24 | AI162: 22-200 | AJ162: Włodawa | AK162: 91 | AL162: 16 | AM162: 0619 | AN162: 06 | AO162: 19 | AQ162: =IF(LEN($AM162)=6,VLOOKUP($AM162,slownik_JST!$B:$J,9,0),"") ->  | AR162: =VLOOKUP($AN162&$AO162,slownik_JST!$B:$J,9,0) -> Powiat nie będący miastem na pr. powiatu | AS162: LUBELSKIE | AT162: włodawski | AV162: Powiat ziemski | AW162: =VLOOKUP(P162,listy_plac!$M$2:$N$52,2,0) -> Zasadnicza szkoła zawodowa | AX162: =VLOOKUP(R162,listy_plac!$Z$27:$AA$32,2,0) -> Szkoła lub placówka w ramach jednostki złożonej | AY162: =VLOOKUP(S162,listy_plac!$Z$2:$AA$5,2,0) -> publiczna | AZ162: =VLOOKUP(T162,listy_plac!$Z$8:$AA$10,2,0) -> Dzieci lub młodzież | BA162: =VLOOKUP(U162,listy_plac!$Z$13:$AA$15,2,0) -> brak specyfiki | BB162: =VLOOKUP(Y162,listy_plac!$Z$18:$AA$24,2,0) -> dzienna | BC162: Zasadnicza Szkoła Zawodowa nr 1 | BD162: Włodawa | BE162: Modrzewskiego | BF162: 24 | BG162: 22-200 | BH162: Włodawa | BI162: 91 | BJ162: 16 | BK162: =VLOOKUP(AM162,wsk_doch!B:D,3,0) -> 107.84
A163: 42002 | C163: 0620 | D163: 06 | E163: 20 | G163: LUBELSKIE | H163: zamojski | K163: 0003 | L163: Powiat ziemski | M163: 06 | N163: 20 | P163: 00013 | Q163: 2 | R163: 002 | S163: 001 | T163: 001 | U163: 100 | V163: 0003 | W163: 0100 | Y163: 001 | Z163: 01 | AA163: Zasadnicza Szkoła Zawodowa | AB163: 00019907100000 | AC163: 06 | AD163: 20 | AE163: 13 | AF163: Szczebrzeszyn | AG163: Zamojska | AH163: 29 | AI163: 22-460 | AJ163: Szczebrzeszyn | AK163: 20 | AL163: 20 | AM163: 0620 | AN163: 06 | AO163: 20 | AQ163: =IF(LEN($AM163)=6,VLOOKUP($AM163,slownik_JST!$B:$J,9,0),"") ->  | AR163: =VLOOKUP($AN163&$AO163,slownik_JST!$B:$J,9,0) -> Powiat nie będący miastem na pr. powiatu | AS163: LUBELSKIE | AT163: zamojski | AV163: Powiat ziemski | AW163: =VLOOKUP(P163,listy_plac!$M$2:$N$52,2,0) -> Zasadnicza szkoła zawodowa | AX163: =VLOOKUP(R163,listy_plac!$Z$27:$AA$32,2,0) -> Szkoła lub placówka w ramach jednostki złożonej | AY163: =VLOOKUP(S163,listy_plac!$Z$2:$AA$5,2,0) -> publiczna | AZ163: =VLOOKUP(T163,listy_plac!$Z$8:$AA$10,2,0) -> Dzieci lub młodzież | BA163: =VLOOKUP(U163,listy_plac!$Z$13:$AA$15,2,0) -> brak specyfiki | BB163: =VLOOKUP(Y163,listy_plac!$Z$18:$AA$24,2,0) -> dzienna | BC163: Zasadnicza Szkoła Zawodowa | BD163: Szczebrzeszyn | BE163: Zamojska | BF163: 29 | BG163: 22-460 | BH163: Szczebrzeszyn | BI163: 20 | BJ163: 20 | BK163: =VLOOKUP(AM163,wsk_doch!B:D,3,0) -> 91.28
A164: 6304 | C164: 062002 | D164: 06 | E164: 20 | F164: 02 | G164: LUBELSKIE | H164: zamojski | I164: Grabowiec | J164: Gm | K164: 0001 | L164: Gmina | M164: 06 | N164: 20 | O164: 02 | P164: 00013 | Q164: 3 | R164: 002 | S164: 001 | T164: 001 | U164: 100 | V164: 0003 | W164: 0100 | Y164: 001 | Z164: 01 | AA164: Zasadnicza Szkoła Zawodowa w Grabowcu | AB164: 06145257100000 | AC164: 06 | AD164: 20 | AE164: 02 | AF164: Grabowiec | AG164: Wojsławska | AH164: 1 | AI164: 22-425 | AJ164: Grabowiec | AK164: 5 | AL164: 5 | AM164: 062002 | AN164: 06 | AO164: 20 | AP164: 02 | AQ164: =IF(LEN($AM164)=6,VLOOKUP($AM164,slownik_JST!$B:$J,9,0),"") -> Gmina wiejska | AR164: =VLOOKUP($AN164&$AO164,slownik_JST!$B:$J,9,0) -> Powiat nie będący miastem na pr. powiatu | AS164: LUBELSKIE | AT164: zamojski | AU164: Grabowiec | AV164: Gmina | AW164: =VLOOKUP(P164,listy_plac!$M$2:$N$52,2,0) -> Zasadnicza szkoła zawodowa | AX164: =VLOOKUP(R164,listy_plac!$Z$27:$AA$32,2,0) -> Szkoła lub placówka w ramach jednostki złożonej | AY164: =VLOOKUP(S164,listy_plac!$Z$2:$AA$5,2,0) -> publiczna | AZ164: =VLOOKUP(T164,listy_plac!$Z$8:$AA$10,2,0) -> Dzieci lub młodzież | BA164: =VLOOKUP(U164,listy_plac!$Z$13:$AA$15,2,0) -> brak specyfiki | BB164: =VLOOKUP(Y164,listy_plac!$Z$18:$AA$24,2,0) -> dzienna | BC164: Zasadnicza Szkoła Zawodowa w Grabowcu | BD164: Grabowiec | BE164: Wojsławska | BF164: 1 | BG164: 22-425 | BH164: Grabowiec | BI164: 5 | BJ164: 5 | BK164: =VLOOKUP(AM164,wsk_doch!B:D,3,0) -> 907.17
A165: 61015 | C165: 0661 | D165: 06 | E165: 61 | G165: LUBELSKIE | H165: m. Biała Podlaska | K165: 0002 | L165: Miasto na prawach powiatu | M165: 06 | N165: 61 | P165: 00013 | Q165: 2 | R165: 002 | S165: 001 | T165: 001 | U165: 100 | V165: 0003 | W165: 0100 | Y165: 001 | Z165: 01 | AA165: Zasadnicza Szkoła Zawodowa Nr 2 | AB165: 03031082300000 | AC165: 06 | AD165: 61 | AE165: 01 | AF165: Biała Podlaska | AG165: Brzeska | AH165: 71 | AI165: 21-500 | AJ165: Biała Podlaska | AK165: 97 | AL165: 41 | AM165: 0661 | AN165: 06 | AO165: 61 | AQ165: =IF(LEN($AM165)=6,VLOOKUP($AM165,slownik_JST!$B:$J,9,0),"") ->  | AR165: =VLOOKUP($AN165&$AO165,slownik_JST!$B:$J,9,0) -> Miasto (powiat) < 150 tys. mieszkańców | AS165: LUBELSKIE | AT165: m. Biała Podlaska | AV165: Miasto na prawach powiatu | AW165: =VLOOKUP(P165,listy_plac!$M$2:$N$52,2,0) -> Zasadnicza szkoła zawodowa | AX165: =VLOOKUP(R165,listy_plac!$Z$27:$AA$32,2,0) -> Szkoła lub placówka w ramach jednostki złożonej | AY165: =VLOOKUP(S165,listy_plac!$Z$2:$AA$5,2,0) -> publiczna | AZ165: =VLOOKUP(T165,listy_plac!$Z$8:$AA$10,2,0) -> Dzieci lub młodzież | BA165: =VLOOKUP(U165,listy_plac!$Z$13:$AA$15,2,0) -> brak specyfiki | BB165: =VLOOKUP(Y165,listy_plac!$Z$18:$AA$24,2,0) -> dzienna | BC165: Zasadnicza Szkoła Zawodowa Nr 2 | BD165: Biała Podlaska | BE165: Brzeska | BF165: 71 | BG165: 21-500 | BH165: Biała Podlaska | BI165: 97 | BJ165: 41 | BK165: =VLOOKUP(AM165,wsk_doch!B:D,3,0) -> 196.97
A166: 27086 | C166: 0662 | D166: 06 | E166: 62 | G166: LUBELSKIE | H166: m. Chełm | K166: 0002 | L166: Miasto na prawach powiatu | M166: 06 | N166: 62 | P166: 00013 | Q166: 2 | R166: 002 | S166: 001 | T166: 001 | U166: 100 | V166: 0003 | W166: 0100 | Y166: 001 | Z166: 01 | AA166: Zasadnicza Szkoła Zawodowa nr 4 | AB166: 11060235000000 | AC166: 06 | AD166: 62 | AE166: 01 | AF166: Chełm | AG166: Reformacka | AH166: 13 | AI166: 22-100 | AJ166: Chełm | AK166: 95 | AL166: 4 | AM166: 0662 | AN166: 06 | AO166: 62 | AQ166: =IF(LEN($AM166)=6,VLOOKUP($AM166,slownik_JST!$B:$J,9,0),"") ->  | AR166: =VLOOKUP($AN166&$AO166,slownik_JST!$B:$J,9,0) -> Miasto (powiat) < 150 tys. mieszkańców | AS166: LUBELSKIE | AT166: m. Chełm | AV166: Miasto na prawach powiatu | AW166: =VLOOKUP(P166,listy_plac!$M$2:$N$52,2,0) -> Zasadnicza szkoła zawodowa | AX166: =VLOOKUP(R166,listy_plac!$Z$27:$AA$32,2,0) -> Szkoła lub placówka w ramach jednostki złożonej | AY166: =VLOOKUP(S166,listy_plac!$Z$2:$AA$5,2,0) -> publiczna | AZ166: =VLOOKUP(T166,listy_plac!$Z$8:$AA$10,2,0) -> Dzieci lub młodzież | BA166: =VLOOKUP(U166,listy_plac!$Z$13:$AA$15,2,0) -> brak specyfiki | BB166: =VLOOKUP(Y166,listy_plac!$Z$18:$AA$24,2,0) -> dzienna | BC166: Zasadnicza Szkoła Zawodowa nr 4 | BD166: Chełm | BE166: Reformacka | BF166: 13 | BG166: 22-100 | BH166: Chełm | BI166: 95 | BJ166: 4 | BK166: =VLOOKUP(AM166,wsk_doch!B:D,3,0) -> 185.66
A167: 82584 | C167: 0663 | D167: 06 | E167: 63 | G167: LUBELSKIE | H167: m. Lublin | K167: 0002 | L167: Miasto na prawach powiatu | M167: 06 | N167: 63 | P167: 00013 | Q167: 2 | R167: 002 | S167: 001 | T167: 001 | U167: 100 | V167: 0003 | W167: 0100 | Y167: 001 | Z167: 01 | AA167: Zasadnicz Szkoła Zawodowa nr 17 | AB167: 43125790000000 | AC167: 06 | AD167: 63 | AE167: 01 | AF167: Lublin | AG167: Diamentowa | AH167: 2 | AI167: 20-447 | AJ167: LUBLIN | AK167: 71 | AL167: 12 | AM167: 0663 | AN167: 06 | AO167: 63 | AQ167: =IF(LEN($AM167)=6,VLOOKUP($AM167,slownik_JST!$B:$J,9,0),"") ->  | AR167: =VLOOKUP($AN167&$AO167,slownik_JST!$B:$J,9,0) -> Miasto (powiat) > 150 tys. mieszkańców | AS167: LUBELSKIE | AT167: m. Lublin | AV167: Miasto na prawach powiatu | AW167: =VLOOKUP(P167,listy_plac!$M$2:$N$52,2,0) -> Zasadnicza szkoła zawodowa | AX167: =VLOOKUP(R167,listy_plac!$Z$27:$AA$32,2,0) -> Szkoła lub placówka w ramach jednostki złożonej | AY167: =VLOOKUP(S167,listy_plac!$Z$2:$AA$5,2,0) -> publiczna | AZ167: =VLOOKUP(T167,listy_plac!$Z$8:$AA$10,2,0) -> Dzieci lub młodzież | BA167: =VLOOKUP(U167,listy_plac!$Z$13:$AA$15,2,0) -> brak specyfiki | BB167: =VLOOKUP(Y167,listy_plac!$Z$18:$AA$24,2,0) -> dzienna | BC167: Zasadnicz Szkoła Zawodowa nr 17 | BD167: Lublin | BE167: Diamentowa | BF167: 2 | BG167: 20-447 | BH167: LUBLIN | BI167: 71 | BJ167: 12 | BK167: =VLOOKUP(AM167,wsk_doch!B:D,3,0) -> 264.52
